Workbook

Sheet Data Input Instructions (hidden)
A3: Worksheet ID | B3: Worksheet | C3: Input Data Notes
A4: 1 | B4: Data Current Rates | C4: R2 Service Charge should already be net of RRRP credit
A5: 1 | B5: Data Current Rates | C5: Demand billed RTSR should already be loss adjusted
A6: 2 | B6: Data Proposed Rates | C6: Mapped from Draft Rates file prepared for Claude
A7: 2 | B7: Data Proposed Rates | C7: Row 5 with header name TEXT is precedent to templates; changes to TEXT need to reflected in templates
A8: 2 | B8: Data Proposed Rates | C8: Templates are set up with 2-dimension vlookups so it will accommodate inserted/deleted rows and/or columns
A9: 3 | B9: Data Billing Quantities | C9: Row 4 with header name TEXT is precedent to templates; changes to TEXT need to reflected in templates
A10: 3 | B10: Data Billing Quantities | C10: Templates are set up with 2-dimension vlookups so it will accommodate inserted/deleted rows and/or columns
A11: 4 | B11: Data Pass Through | C11: Changes to Pass Through rates can be manually input on this sheet, which is precedent to the templates
A12: 4 | B12: Data Pass Through | C12: Links to templates from Column A TEXT; any changes in the TEXT of the charge names must be reflected in the templates
A13: 5 | B13: Data BI List | C13: Instruction Sheet for macro to create individual bill impact worksheets
A14: 5 | B14: Data BI List | C14: Need to MANUALLY update Test Year to appear as header on all bill impact worksheets
A15: 6 | B15: Data BI Summary | C15: This replaces the need for cell references in summary sheet, and displays value for totals so rows can be added to templates and worksheets without having to update the summary sheet
B16: Bill Impact Summary | C16: This file has 2 hidden columns needed to link to worksheets; see Col E and F

Sheet Data Current Rates (hidden)
A1: 2020 Rates
A3: 1 | B3: 2 | C3: 3 | D3: 4 | E3: 5 | H3: 6 | I3: 7 | J3: 8 | K3: 9 | L3: 10 | M3: 11 | N3: 12
A4: Rate Description | B4: Fixed Charge ($/month) | C4: Current Variable Charge ($/kWh or $/kW) | D4: Current Foregone Revenue Riders Fixed ($/month) | E4: Current Volumetric Foregone Revenue Rider | F4: Fixed Charge + Fixed Foregone | G4: Volumetric Charge + Volumetric Foregone | H4: Current Def/VA rate rider Fixed ($/month) | I4: Current Def/VA rate rider Volumetric ($/kWh or $/kW) | J4: Vol VA Rider ($/kWh or $/kW) Non WMP | K4: Current Rate Rider for CBR (Non-WMP Class B) ($/kWh or $/kW) | L4: Current Rate Rider for Disposition of Global Adjustment (Non WMP, Non-RPP, Non-LDC, and Class B) ($/kWh) | M4: Current RTSR-NW ($/kWh or $/kW) | N4: Current RTSR-CONN ($/kWh or $/kW)
A5: Rate as shown on Bill Impact Sheet | B5: Service Charge | C5: Distribution Volumetric Charge | D5: Fixed Foregone Revenue Charge | E5: Volumetric Foregone Revenue Charge | F5: Fixed Service Charge | G5: Dx Volumetric Charge | H5: Fixed Deferral/Variance Account Rider (General) | I5: Volumetric Deferral/Variance Account Rider (General) | J5: Volumetric Deferral/Variance Account Rider (Sub-Account RSVA Wholesale Market Service Charge & RSVA Power) - ST only | K5: Volumetric Deferral/Variance Account Rider (Sub Account CBR) | L5: Volumetric Deferral/Variance Account Rider (Sub-Account Global Adjustment) | M5: Retail Transmission Rate – Network Service Rate | N5: Retail Transmission Rate – Line and Transformation Connection Service Rate
A6: UR | B6: =VLOOKUP($A6,'[1]Data Proposed Rates'!$A:$AX,MATCH(B$5,[1]!ProposedHeader,0),FALSE) -> 32.08 | C6: =VLOOKUP($A6,'[1]Data Proposed Rates'!$A:$AX,MATCH(C$5,[1]!ProposedHeader,0),FALSE) -> 0.0039 | D6: =VLOOKUP($A6,'[1]Data Proposed Rates'!$A:$AX,MATCH(D$5,[1]!ProposedHeader,0),FALSE) -> 1.45 | E6: =VLOOKUP($A6,'[1]Data Proposed Rates'!$A:$AX,MATCH(E$5,[1]!ProposedHeader,0),FALSE) -> 0 | F6: =ROUND(SUM(B6,D6),2) -> 33.53 | G6: =ROUND(SUM(C6,E6),4) -> 0.0039 | H6: =VLOOKUP($A6,'[1]Data Proposed Rates'!$A:$AX,MATCH(H$5,[1]!ProposedHeader,0),FALSE) -> 0.05 | I6: =VLOOKUP($A6,'[1]Data Proposed Rates'!$A:$AX,MATCH(I$5,[1]!ProposedHeader,0),FALSE) -> -0.0008 | J6: =VLOOKUP($A6,'[1]Data Proposed Rates'!$A:$AX,MATCH(J$5,[1]!ProposedHeader,0),FALSE) -> 0 | K6: =VLOOKUP($A6,'[1]Data Proposed Rates'!$A:$AX,MATCH(K$5,[1]!ProposedHeader,0),FALSE) -> 0 | L6: =VLOOKUP($A6,'[1]Data Proposed Rates'!$A:$AX,MATCH(L$5,[1]!ProposedHeader,0),FALSE) -> 0 | M6: =VLOOKUP($A6,'[1]Data Proposed Rates'!$A:$AX,MATCH(M$5,[1]!ProposedHeader,0),FALSE) -> 0.0087 | N6: =VLOOKUP($A6,'[1]Data Proposed Rates'!$A:$AX,MATCH(N$5,[1]!ProposedHeader,0),FALSE) -> 0.0076
A7: R1 | B7: =VLOOKUP($A7,'[1]Data Proposed Rates'!$A:$AX,MATCH(B$5,[1]!ProposedHeader,0),FALSE) -> 43.58 | C7: =VLOOKUP($A7,'[1]Data Proposed Rates'!$A:$AX,MATCH(C$5,[1]!ProposedHeader,0),FALSE) -> 0.0182 | D7: =VLOOKUP($A7,'[1]Data Proposed Rates'!$A:$AX,MATCH(D$5,[1]!ProposedHeader,0),FALSE) -> 1.69 | E7: =VLOOKUP($A7,'[1]Data Proposed Rates'!$A:$AX,MATCH(E$5,[1]!ProposedHeader,0),FALSE) -> 0.0009 | F7: =ROUND(SUM(B7,D7),2) -> 45.27 | G7: =ROUND(SUM(C7,E7),4) -> 0.0191 | H7: =VLOOKUP($A7,'[1]Data Proposed Rates'!$A:$AX,MATCH(H$5,[1]!ProposedHeader,0),FALSE) -> 0.04 | I7: =VLOOKUP($A7,'[1]Data Proposed Rates'!$A:$AX,MATCH(I$5,[1]!ProposedHeader,0),FALSE) -> -0.0008 | J7: =VLOOKUP($A7,'[1]Data Proposed Rates'!$A:$AX,MATCH(J$5,[1]!ProposedHeader,0),FALSE) -> 0 | K7: =VLOOKUP($A7,'[1]Data Proposed Rates'!$A:$AX,MATCH(K$5,[1]!ProposedHeader,0),FALSE) -> 0 | L7: =VLOOKUP($A7,'[1]Data Proposed Rates'!$A:$AX,MATCH(L$5,[1]!ProposedHeader,0),FALSE) -> 0 | M7: =VLOOKUP($A7,'[1]Data Proposed Rates'!$A:$AX,MATCH(M$5,[1]!ProposedHeader,0),FALSE) -> 0.008 | N7: =VLOOKUP($A7,'[1]Data Proposed Rates'!$A:$AX,MATCH(N$5,[1]!ProposedHeader,0),FALSE) -> 0.0072
A8: R2 | B8: =VLOOKUP($A8,'[1]Data Proposed Rates'!$A:$AX,MATCH(B$5,[1]!ProposedHeader,0),FALSE) -> 41.7 | C8: =VLOOKUP($A8,'[1]Data Proposed Rates'!$A:$AX,MATCH(C$5,[1]!ProposedHeader,0),FALSE) -> 0.0293 | D8: =VLOOKUP($A8,'[1]Data Proposed Rates'!$A:$AX,MATCH(D$5,[1]!ProposedHeader,0),FALSE) -> 4.35 | E8: =VLOOKUP($A8,'[1]Data Proposed Rates'!$A:$AX,MATCH(E$5,[1]!ProposedHeader,0),FALSE) -> 0.0011 | F8: 46.05 | G8: 0.0304 | H8: =VLOOKUP($A8,'[1]Data Proposed Rates'!$A:$AX,MATCH(H$5,[1]!ProposedHeader,0),FALSE) -> -0.03 | I8: =VLOOKUP($A8,'[1]Data Proposed Rates'!$A:$AX,MATCH(I$5,[1]!ProposedHeader,0),FALSE) -> -0.0008 | J8: =VLOOKUP($A8,'[1]Data Proposed Rates'!$A:$AX,MATCH(J$5,[1]!ProposedHeader,0),FALSE) -> 0 | K8: =VLOOKUP($A8,'[1]Data Proposed Rates'!$A:$AX,MATCH(K$5,[1]!ProposedHeader,0),FALSE) -> 0 | L8: =VLOOKUP($A8,'[1]Data Proposed Rates'!$A:$AX,MATCH(L$5,[1]!ProposedHeader,0),FALSE) -> 0 | M8: =VLOOKUP($A8,'[1]Data Proposed Rates'!$A:$AX,MATCH(M$5,[1]!ProposedHeader,0),FALSE) -> 0.0075 | N8: =VLOOKUP($A8,'[1]Data Proposed Rates'!$A:$AX,MATCH(N$5,[1]!ProposedHeader,0),FALSE) -> 0.0067
A9: Seasonal | B9: =VLOOKUP($A9,'[1]Data Proposed Rates'!$A:$AX,MATCH(B$5,[1]!ProposedHeader,0),FALSE) -> 44.62 | C9: =VLOOKUP($A9,'[1]Data Proposed Rates'!$A:$AX,MATCH(C$5,[1]!ProposedHeader,0),FALSE) -> 0.0568 | D9: =VLOOKUP($A9,'[1]Data Proposed Rates'!$A:$AX,MATCH(D$5,[1]!ProposedHeader,0),FALSE) -> 1.13 | E9: =VLOOKUP($A9,'[1]Data Proposed Rates'!$A:$AX,MATCH(E$5,[1]!ProposedHeader,0),FALSE) -> 0.0048 | F9: 45.75 | G9: 0.0616 | H9: =VLOOKUP($A9,'[1]Data Proposed Rates'!$A:$AX,MATCH(H$5,[1]!ProposedHeader,0),FALSE) -> 0.03 | I9: =VLOOKUP($A9,'[1]Data Proposed Rates'!$A:$AX,MATCH(I$5,[1]!ProposedHeader,0),FALSE) -> -0.0009 | J9: =VLOOKUP($A9,'[1]Data Proposed Rates'!$A:$AX,MATCH(J$5,[1]!ProposedHeader,0),FALSE) -> 0 | K9: =VLOOKUP($A9,'[1]Data Proposed Rates'!$A:$AX,MATCH(K$5,[1]!ProposedHeader,0),FALSE) -> 0 | L9: =VLOOKUP($A9,'[1]Data Proposed Rates'!$A:$AX,MATCH(L$5,[1]!ProposedHeader,0),FALSE) -> 0 | M9: =VLOOKUP($A9,'[1]Data Proposed Rates'!$A:$AX,MATCH(M$5,[1]!ProposedHeader,0),FALSE) -> 0.0063 | N9: =VLOOKUP($A9,'[1]Data Proposed Rates'!$A:$AX,MATCH(N$5,[1]!ProposedHeader,0),FALSE) -> 0.006
A10: GSe | B10: =VLOOKUP($A10,'[1]Data Proposed Rates'!$A:$AX,MATCH(B$5,[1]!ProposedHeader,0),FALSE) -> 31.67 | C10: =VLOOKUP($A10,'[1]Data Proposed Rates'!$A:$AX,MATCH(C$5,[1]!ProposedHeader,0),FALSE) -> 0.0619 | D10: =VLOOKUP($A10,'[1]Data Proposed Rates'!$A:$AX,MATCH(D$5,[1]!ProposedHeader,0),FALSE) -> 2.34 | E10: =VLOOKUP($A10,'[1]Data Proposed Rates'!$A:$AX,MATCH(E$5,[1]!ProposedHeader,0),FALSE) -> 0.0022 | F10: 34.01 | G10: 0.0641 | H10: =VLOOKUP($A10,'[1]Data Proposed Rates'!$A:$AX,MATCH(H$5,[1]!ProposedHeader,0),FALSE) -> 0.03 | I10: =VLOOKUP($A10,'[1]Data Proposed Rates'!$A:$AX,MATCH(I$5,[1]!ProposedHeader,0),FALSE) -> -0.0008 | J10: =VLOOKUP($A10,'[1]Data Proposed Rates'!$A:$AX,MATCH(J$5,[1]!ProposedHeader,0),FALSE) -> 0 | K10: =VLOOKUP($A10,'[1]Data Proposed Rates'!$A:$AX,MATCH(K$5,[1]!ProposedHeader,0),FALSE) -> 0 | L10: =VLOOKUP($A10,'[1]Data Proposed Rates'!$A:$AX,MATCH(L$5,[1]!ProposedHeader,0),FALSE) -> 0 | M10: =VLOOKUP($A10,'[1]Data Proposed Rates'!$A:$AX,MATCH(M$5,[1]!ProposedHeader,0),FALSE) -> 0.0063 | N10: =VLOOKUP($A10,'[1]Data Proposed Rates'!$A:$AX,MATCH(N$5,[1]!ProposedHeader,0),FALSE) -> 0.0055
A11: UGe | B11: =VLOOKUP($A11,'[1]Data Proposed Rates'!$A:$AX,MATCH(B$5,[1]!ProposedHeader,0),FALSE) -> 24.89 | C11: =VLOOKUP($A11,'[1]Data Proposed Rates'!$A:$AX,MATCH(C$5,[1]!ProposedHeader,0),FALSE) -> 0.0295 | D11: =VLOOKUP($A11,'[1]Data Proposed Rates'!$A:$AX,MATCH(D$5,[1]!ProposedHeader,0),FALSE) -> 0.65 | E11: =VLOOKUP($A11,'[1]Data Proposed Rates'!$A:$AX,MATCH(E$5,[1]!ProposedHeader,0),FALSE) -> 0.0014 | F11: 25.54 | G11: 0.0309 | H11: =VLOOKUP($A11,'[1]Data Proposed Rates'!$A:$AX,MATCH(H$5,[1]!ProposedHeader,0),FALSE) -> 0.05 | I11: =VLOOKUP($A11,'[1]Data Proposed Rates'!$A:$AX,MATCH(I$5,[1]!ProposedHeader,0),FALSE) -> -0.0008 | J11: =VLOOKUP($A11,'[1]Data Proposed Rates'!$A:$AX,MATCH(J$5,[1]!ProposedHeader,0),FALSE) -> 0 | K11: =VLOOKUP($A11,'[1]Data Proposed Rates'!$A:$AX,MATCH(K$5,[1]!ProposedHeader,0),FALSE) -> 0 | L11: =VLOOKUP($A11,'[1]Data Proposed Rates'!$A:$AX,MATCH(L$5,[1]!ProposedHeader,0),FALSE) -> 0 | M11: =VLOOKUP($A11,'[1]Data Proposed Rates'!$A:$AX,MATCH(M$5,[1]!ProposedHeader,0),FALSE) -> 0.0068 | N11: =VLOOKUP($A11,'[1]Data Proposed Rates'!$A:$AX,MATCH(N$5,[1]!ProposedHeader,0),FALSE) -> 0.0056
A12: St Lgt | B12: =VLOOKUP($A12,'[1]Data Proposed Rates'!$A:$AX,MATCH(B$5,[1]!ProposedHeader,0),FALSE) -> 3.4 | C12: =VLOOKUP($A12,'[1]Data Proposed Rates'!$A:$AX,MATCH(C$5,[1]!ProposedHeader,0),FALSE) -> 0.1035 | D12: =VLOOKUP($A12,'[1]Data Proposed Rates'!$A:$AX,MATCH(D$5,[1]!ProposedHeader,0),FALSE) -> -0.75 | E12: =VLOOKUP($A12,'[1]Data Proposed Rates'!$A:$AX,MATCH(E$5,[1]!ProposedHeader,0),FALSE) -> 0.0051 | F12: 2.65 | G12: 0.1086 | H12: =VLOOKUP($A12,'[1]Data Proposed Rates'!$A:$AX,MATCH(H$5,[1]!ProposedHeader,0),FALSE) -> 0.03 | I12: =VLOOKUP($A12,'[1]Data Proposed Rates'!$A:$AX,MATCH(I$5,[1]!ProposedHeader,0),FALSE) -> -0.0009 | J12: =VLOOKUP($A12,'[1]Data Proposed Rates'!$A:$AX,MATCH(J$5,[1]!ProposedHeader,0),FALSE) -> 0 | K12: =VLOOKUP($A12,'[1]Data Proposed Rates'!$A:$AX,MATCH(K$5,[1]!ProposedHeader,0),FALSE) -> 0 | L12: =VLOOKUP($A12,'[1]Data Proposed Rates'!$A:$AX,MATCH(L$5,[1]!ProposedHeader,0),FALSE) -> 0 | M12: =VLOOKUP($A12,'[1]Data Proposed Rates'!$A:$AX,MATCH(M$5,[1]!ProposedHeader,0),FALSE) -> 0.0052 | N12: =VLOOKUP($A12,'[1]Data Proposed Rates'!$A:$AX,MATCH(N$5,[1]!ProposedHeader,0),FALSE) -> 0.0036
A13: Sen Lgt | B13: =VLOOKUP($A13,'[1]Data Proposed Rates'!$A:$AX,MATCH(B$5,[1]!ProposedHeader,0),FALSE) -> 2.67 | C13: =VLOOKUP($A13,'[1]Data Proposed Rates'!$A:$AX,MATCH(C$5,[1]!ProposedHeader,0),FALSE) -> 0.145 | D13: =VLOOKUP($A13,'[1]Data Proposed Rates'!$A:$AX,MATCH(D$5,[1]!ProposedHeader,0),FALSE) -> -0.19 | E13: =VLOOKUP($A13,'[1]Data Proposed Rates'!$A:$AX,MATCH(E$5,[1]!ProposedHeader,0),FALSE) -> 0.0124 | F13: 2.48 | G13: 0.1574 | H13: =VLOOKUP($A13,'[1]Data Proposed Rates'!$A:$AX,MATCH(H$5,[1]!ProposedHeader,0),FALSE) -> 0.02 | I13: =VLOOKUP($A13,'[1]Data Proposed Rates'!$A:$AX,MATCH(I$5,[1]!ProposedHeader,0),FALSE) -> -0.0013 | J13: =VLOOKUP($A13,'[1]Data Proposed Rates'!$A:$AX,MATCH(J$5,[1]!ProposedHeader,0),FALSE) -> 0 | K13: =VLOOKUP($A13,'[1]Data Proposed Rates'!$A:$AX,MATCH(K$5,[1]!ProposedHeader,0),FALSE) -> 0 | L13: =VLOOKUP($A13,'[1]Data Proposed Rates'!$A:$AX,MATCH(L$5,[1]!ProposedHeader,0),FALSE) -> 0 | M13: =VLOOKUP($A13,'[1]Data Proposed Rates'!$A:$AX,MATCH(M$5,[1]!ProposedHeader,0),FALSE) -> 0.0053 | N13: =VLOOKUP($A13,'[1]Data Proposed Rates'!$A:$AX,MATCH(N$5,[1]!ProposedHeader,0),FALSE) -> 0.0037
A14: USL | B14: =VLOOKUP($A14,'[1]Data Proposed Rates'!$A:$AX,MATCH(B$5,[1]!ProposedHeader,0),FALSE) -> 36.33 | C14: =VLOOKUP($A14,'[1]Data Proposed Rates'!$A:$AX,MATCH(C$5,[1]!ProposedHeader,0),FALSE) -> 0.0243 | D14: =VLOOKUP($A14,'[1]Data Proposed Rates'!$A:$AX,MATCH(D$5,[1]!ProposedHeader,0),FALSE) -> 1.65 | E14: =VLOOKUP($A14,'[1]Data Proposed Rates'!$A:$AX,MATCH(E$5,[1]!ProposedHeader,0),FALSE) -> -0.0028 | F14: 37.98 | G14: 0.0215 | H14: =VLOOKUP($A14,'[1]Data Proposed Rates'!$A:$AX,MATCH(H$5,[1]!ProposedHeader,0),FALSE) -> 0.01 | I14: =VLOOKUP($A14,'[1]Data Proposed Rates'!$A:$AX,MATCH(I$5,[1]!ProposedHeader,0),FALSE) -> -0.0008 | J14: =VLOOKUP($A14,'[1]Data Proposed Rates'!$A:$AX,MATCH(J$5,[1]!ProposedHeader,0),FALSE) -> 0 | K14: =VLOOKUP($A14,'[1]Data Proposed Rates'!$A:$AX,MATCH(K$5,[1]!ProposedHeader,0),FALSE) -> 0 | L14: =VLOOKUP($A14,'[1]Data Proposed Rates'!$A:$AX,MATCH(L$5,[1]!ProposedHeader,0),FALSE) -> 0 | M14: =VLOOKUP($A14,'[1]Data Proposed Rates'!$A:$AX,MATCH(M$5,[1]!ProposedHeader,0),FALSE) -> 0.0053 | N14: =VLOOKUP($A14,'[1]Data Proposed Rates'!$A:$AX,MATCH(N$5,[1]!ProposedHeader,0),FALSE) -> 0.0045
A15: GSd | B15: =VLOOKUP($A15,'[1]Data Proposed Rates'!$A:$AX,MATCH(B$5,[1]!ProposedHeader,0),FALSE) -> 105.73 | C15: =VLOOKUP($A15,'[1]Data Proposed Rates'!$A:$AX,MATCH(C$5,[1]!ProposedHeader,0),FALSE) -> 17.7164 | D15: =VLOOKUP($A15,'[1]Data Proposed Rates'!$A:$AX,MATCH(D$5,[1]!ProposedHeader,0),FALSE) -> 10.69 | E15: =VLOOKUP($A15,'[1]Data Proposed Rates'!$A:$AX,MATCH(E$5,[1]!ProposedHeader,0),FALSE) -> 0.7265 | F15: 116.42 | G15: 18.4429 | H15: =VLOOKUP($A15,'[1]Data Proposed Rates'!$A:$AX,MATCH(H$5,[1]!ProposedHeader,0),FALSE) -> -0.05 | I15: =VLOOKUP($A15,'[1]Data Proposed Rates'!$A:$AX,MATCH(I$5,[1]!ProposedHeader,0),FALSE) -> -0.2655 | J15: =VLOOKUP($A15,'[1]Data Proposed Rates'!$A:$AX,MATCH(J$5,[1]!ProposedHeader,0),FALSE) -> 0 | K15: =VLOOKUP($A15,'[1]Data Proposed Rates'!$A:$AX,MATCH(K$5,[1]!ProposedHeader,0),FALSE) -> 0 | L15: =VLOOKUP($A15,'[1]Data Proposed Rates'!$A:$AX,MATCH(L$5,[1]!ProposedHeader,0),FALSE) -> -0.0067 | M15: =VLOOKUP($A15,'[1]Data Proposed Rates'!$A:$AX,MATCH(M$5,[1]!ProposedHeader,0),FALSE) -> 1.9952 | N15: =VLOOKUP($A15,'[1]Data Proposed Rates'!$A:$AX,MATCH(N$5,[1]!ProposedHeader,0),FALSE) -> 1.6799
A16: UGd | B16: =VLOOKUP($A16,'[1]Data Proposed Rates'!$A:$AX,MATCH(B$5,[1]!ProposedHeader,0),FALSE) -> 98.17 | C16: =VLOOKUP($A16,'[1]Data Proposed Rates'!$A:$AX,MATCH(C$5,[1]!ProposedHeader,0),FALSE) -> 10.2015 | D16: =VLOOKUP($A16,'[1]Data Proposed Rates'!$A:$AX,MATCH(D$5,[1]!ProposedHeader,0),FALSE) -> 1.94 | E16: =VLOOKUP($A16,'[1]Data Proposed Rates'!$A:$AX,MATCH(E$5,[1]!ProposedHeader,0),FALSE) -> 0.4674 | F16: 100.11 | G16: 10.6689 | H16: =VLOOKUP($A16,'[1]Data Proposed Rates'!$A:$AX,MATCH(H$5,[1]!ProposedHeader,0),FALSE) -> 0.06 | I16: =VLOOKUP($A16,'[1]Data Proposed Rates'!$A:$AX,MATCH(I$5,[1]!ProposedHeader,0),FALSE) -> -0.3072 | J16: =VLOOKUP($A16,'[1]Data Proposed Rates'!$A:$AX,MATCH(J$5,[1]!ProposedHeader,0),FALSE) -> 0 | K16: =VLOOKUP($A16,'[1]Data Proposed Rates'!$A:$AX,MATCH(K$5,[1]!ProposedHeader,0),FALSE) -> 0 | L16: =VLOOKUP($A16,'[1]Data Proposed Rates'!$A:$AX,MATCH(L$5,[1]!ProposedHeader,0),FALSE) -> -0.0067 | M16: =VLOOKUP($A16,'[1]Data Proposed Rates'!$A:$AX,MATCH(M$5,[1]!ProposedHeader,0),FALSE) -> 2.5572 | N16: =VLOOKUP($A16,'[1]Data Proposed Rates'!$A:$AX,MATCH(N$5,[1]!ProposedHeader,0),FALSE) -> 2.1345
A17: Dgen | B17: =VLOOKUP($A17,'[1]Data Proposed Rates'!$A:$AX,MATCH(B$5,[1]!ProposedHeader,0),FALSE) -> 192.43 | C17: =VLOOKUP($A17,'[1]Data Proposed Rates'!$A:$AX,MATCH(C$5,[1]!ProposedHeader,0),FALSE) -> 9.2125 | D17: =VLOOKUP($A17,'[1]Data Proposed Rates'!$A:$AX,MATCH(D$5,[1]!ProposedHeader,0),FALSE) -> 12.69 | E17: =VLOOKUP($A17,'[1]Data Proposed Rates'!$A:$AX,MATCH(E$5,[1]!ProposedHeader,0),FALSE) -> 0.2421 | F17: 205.12 | G17: 9.4546 | H17: =VLOOKUP($A17,'[1]Data Proposed Rates'!$A:$AX,MATCH(H$5,[1]!ProposedHeader,0),FALSE) -> 0.05 | I17: =VLOOKUP($A17,'[1]Data Proposed Rates'!$A:$AX,MATCH(I$5,[1]!ProposedHeader,0),FALSE) -> -0.1097 | J17: =VLOOKUP($A17,'[1]Data Proposed Rates'!$A:$AX,MATCH(J$5,[1]!ProposedHeader,0),FALSE) -> 0 | K17: =VLOOKUP($A17,'[1]Data Proposed Rates'!$A:$AX,MATCH(K$5,[1]!ProposedHeader,0),FALSE) -> 0 | L17: =VLOOKUP($A17,'[1]Data Proposed Rates'!$A:$AX,MATCH(L$5,[1]!ProposedHeader,0),FALSE) -> -0.0067 | M17: =VLOOKUP($A17,'[1]Data Proposed Rates'!$A:$AX,MATCH(M$5,[1]!ProposedHeader,0),FALSE) -> 0.9699 | N17: =VLOOKUP($A17,'[1]Data Proposed Rates'!$A:$AX,MATCH(N$5,[1]!ProposedHeader,0),FALSE) -> 0.8183
A18: ST | B18: =VLOOKUP($A18,'[1]Data Proposed Rates'!$A:$AX,MATCH(B$5,[1]!ProposedHeader,0),FALSE) -> 1212.76 | C18: =VLOOKUP($A18,'[1]Data Proposed Rates'!$A:$AX,MATCH(C$5,[1]!ProposedHeader,0),FALSE) -> 1.3933 | D18: =VLOOKUP($A18,'[1]Data Proposed Rates'!$A:$AX,MATCH(D$5,[1]!ProposedHeader,0),FALSE) -> -65.66860283 | E18: =VLOOKUP($A18,'[1]Data Proposed Rates'!$A:$AX,MATCH(E$5,[1]!ProposedHeader,0),FALSE) -> 0.09205903174 | F18: 1147.09 | G18: 1.4854 | H18: =VLOOKUP($A18,'[1]Data Proposed Rates'!$A:$AX,MATCH(H$5,[1]!ProposedHeader,0),FALSE) -> 13.07 | I18: =VLOOKUP($A18,'[1]Data Proposed Rates'!$A:$AX,MATCH(I$5,[1]!ProposedHeader,0),FALSE) -> 0.8959 | J18: =VLOOKUP($A18,'[1]Data Proposed Rates'!$A:$AX,MATCH(J$5,[1]!ProposedHeader,0),FALSE) -> 0 | K18: =VLOOKUP($A18,'[1]Data Proposed Rates'!$A:$AX,MATCH(K$5,[1]!ProposedHeader,0),FALSE) -> 0 | L18: =VLOOKUP($A18,'[1]Data Proposed Rates'!$A:$AX,MATCH(L$5,[1]!ProposedHeader,0),FALSE) -> 0 | M18: =VLOOKUP($A18,'[1]Data Proposed Rates'!$A:$AX,MATCH(M$5,[1]!ProposedHeader,0),FALSE) -> 3.5135 | N18: =VLOOKUP($A18,'[1]Data Proposed Rates'!$A:$AX,MATCH(N$5,[1]!ProposedHeader,0),FALSE) -> 2.9199
A19: ST (NonWMP, NonRPP, NonLDC, ClassB) | B19: =VLOOKUP($A19,'[1]Data Proposed Rates'!$A:$AX,MATCH(B$5,[1]!ProposedHeader,0),FALSE) -> 1212.76 | C19: =VLOOKUP($A19,'[1]Data Proposed Rates'!$A:$AX,MATCH(C$5,[1]!ProposedHeader,0),FALSE) -> 1.3933 | D19: =VLOOKUP($A19,'[1]Data Proposed Rates'!$A:$AX,MATCH(D$5,[1]!ProposedHeader,0),FALSE) -> -65.66860283 | E19: =VLOOKUP($A19,'[1]Data Proposed Rates'!$A:$AX,MATCH(E$5,[1]!ProposedHeader,0),FALSE) -> 0.09205903174 | F19: 1147.09 | G19: 1.4854 | H19: =VLOOKUP($A19,'[1]Data Proposed Rates'!$A:$AX,MATCH(H$5,[1]!ProposedHeader,0),FALSE) -> 13.07 | I19: =VLOOKUP($A19,'[1]Data Proposed Rates'!$A:$AX,MATCH(I$5,[1]!ProposedHeader,0),FALSE) -> 0.8959 | J19: =VLOOKUP($A19,'[1]Data Proposed Rates'!$A:$AX,MATCH(J$5,[1]!ProposedHeader,0),FALSE) -> -1.2501 | K19: =VLOOKUP($A19,'[1]Data Proposed Rates'!$A:$AX,MATCH(K$5,[1]!ProposedHeader,0),FALSE) -> 0 | L19: =VLOOKUP($A19,'[1]Data Proposed Rates'!$A:$AX,MATCH(L$5,[1]!ProposedHeader,0),FALSE) -> -0.0067 | M19: =VLOOKUP($A19,'[1]Data Proposed Rates'!$A:$AX,MATCH(M$5,[1]!ProposedHeader,0),FALSE) -> 3.5135 | N19: =VLOOKUP($A19,'[1]Data Proposed Rates'!$A:$AX,MATCH(N$5,[1]!ProposedHeader,0),FALSE) -> 2.9199
A20: ST (NonWMP, NonRPP, NonLDC, ClassB) Exclude GA Rider | B20: =VLOOKUP($A20,'[1]Data Proposed Rates'!$A:$AX,MATCH(B$5,[1]!ProposedHeader,0),FALSE) -> 1212.76 | C20: =VLOOKUP($A20,'[1]Data Proposed Rates'!$A:$AX,MATCH(C$5,[1]!ProposedHeader,0),FALSE) -> 1.3933 | D20: =VLOOKUP($A20,'[1]Data Proposed Rates'!$A:$AX,MATCH(D$5,[1]!ProposedHeader,0),FALSE) -> -65.66860283 | E20: =VLOOKUP($A20,'[1]Data Proposed Rates'!$A:$AX,MATCH(E$5,[1]!ProposedHeader,0),FALSE) -> 0.09205903174 | F20: 1147.09 | G20: 1.4854 | H20: =VLOOKUP($A20,'[1]Data Proposed Rates'!$A:$AX,MATCH(H$5,[1]!ProposedHeader,0),FALSE) -> 13.07 | I20: =VLOOKUP($A20,'[1]Data Proposed Rates'!$A:$AX,MATCH(I$5,[1]!ProposedHeader,0),FALSE) -> 0.8959 | J20: =VLOOKUP($A20,'[1]Data Proposed Rates'!$A:$AX,MATCH(J$5,[1]!ProposedHeader,0),FALSE) -> -1.2501 | K20: =VLOOKUP($A20,'[1]Data Proposed Rates'!$A:$AX,MATCH(K$5,[1]!ProposedHeader,0),FALSE) -> 0 | L20: =VLOOKUP($A20,'[1]Data Proposed Rates'!$A:$AX,MATCH(L$5,[1]!ProposedHeader,0),FALSE) -> 0 | M20: =VLOOKUP($A20,'[1]Data Proposed Rates'!$A:$AX,MATCH(M$5,[1]!ProposedHeader,0),FALSE) -> 3.5135 | N20: =VLOOKUP($A20,'[1]Data Proposed Rates'!$A:$AX,MATCH(N$5,[1]!ProposedHeader,0),FALSE) -> 2.9199

Sheet Data Proposed Rates (hidden)
A1: 2021 Rates (Rounded)
A3: 1 | B3: 2 | C3: 3 | D3: 4 | E3: 5 | H3: 6 | I3: 7 | J3: 8 | K3: 9 | L3: 10 | O3: 11 | P3: 12
A4: Rate Class | B4: Fixed Base Charge ($/month) | C4: Proposed Variable Charge ($/kWh or $/kW) | D4: Proposed Foregone Revenue Charge Fixed ($/month) | E4: Proposed Volumetric Foregone Revenue Charge | F4: Fixed Charge + Fixed Foregone | G4: Volumetric Charge + Volumetric Foregone | H4: Proposed Def/VA rate rider Fixed ($/month) | I4: Proposed Def/VA rate rider Volumetric($/kWh or $/kW) | J4: Vol VA Rider ($/kWh or $/kW) Non WMP | K4: Proposed Rate Rider for CBR (Non-WMP Class B) ($/kWh or $/kW) | L4: Proposed Rate Rider for Disposition of Global Adjustment (Non WMP, Non-RPP, Non-LDC, and Class B) ($/kWh) | O4: Proposed RTSR-NW ($/kWh or $/kW) | P4: Proposed RTSR-CONN ($/kWh or $/kW)
A5: Rate as shown on Bill Impact Sheet | B5: Service Charge | C5: Distribution Volumetric Charge | D5: Fixed Foregone Revenue Charge | E5: Volumetric Foregone Revenue Charge | F5: Fixed Service Charge | G5: Dx Volumetric Charge | H5: Fixed Deferral/Variance Account Rider (General) | I5: Volumetric Deferral/Variance Account Rider (General) | J5: Volumetric Deferral/Variance Account Rider (Sub-Account RSVA Wholesale Market Service Charge & RSVA Power) - ST only | K5: Volumetric Deferral/Variance Account Rider (Sub Account CBR-B) | L5: Volumetric Deferral/Variance Account Rider (Sub-Account Global Adjustment) | M5: Fixed ESM Rider | N5: Volumetric ESM Rider | O5: Retail Transmission Rate – Network Service Rate | P5: Retail Transmission Rate – Line and Transformation Connection Service Rate
A6: Rounding Factor | B6: 2 | C6: 4 | D6: 2 | E6: 4 | H6: 2 | I6: 4 | J6: 4 | K6: 4 | L6: 4 | M6: 2 | N6: 4 | O6: 4 | P6: 4
A7: UR | B7: =ROUND(VLOOKUP($A7,'[2]Proposed Rates'!$A:$AI,MATCH(B$5,'[2]Proposed Rates'!$4:$4,0),FALSE),B$6) -> 35.92 | C7: =ROUND(VLOOKUP($A7,'[2]Proposed Rates'!$A:$AI,MATCH(C$5,'[2]Proposed Rates'!$4:$4,0),FALSE),C$6) -> 0 | D7: =ROUND(VLOOKUP($A7,'[2]Proposed Rates'!$A:$AI,MATCH(D$5,'[2]Proposed Rates'!$4:$4,0),FALSE),D$6) -> 0 | E7: =ROUND(VLOOKUP($A7,'[2]Proposed Rates'!$A:$AI,MATCH(E$5,'[2]Proposed Rates'!$4:$4,0),FALSE),E$6) -> 0 | F7: =ROUND(SUM(B7,D7),2) -> 35.92 | G7: =ROUND(SUM(C7,E7),4) -> 0 | H7: =ROUND(VLOOKUP($A7,'[2]Proposed Rates'!$A:$AI,MATCH(H$5,'[2]Proposed Rates'!$4:$4,0),FALSE),H$6) -> -0.14 | I7: =ROUND(VLOOKUP($A7,'[2]Proposed Rates'!$A:$AI,MATCH(I$5,'[2]Proposed Rates'!$4:$4,0),FALSE),I$6) -> -0.0007 | K7: =ROUND(VLOOKUP($A7,'[2]Proposed Rates'!$A:$AI,MATCH(K$5,'[2]Proposed Rates'!$4:$4,0),FALSE),5) -> 0 | L7: =ROUND(VLOOKUP($A7,'[2]Proposed Rates'!$A:$AI,MATCH(L$5,'[2]Proposed Rates'!$4:$4,0),FALSE),L$6) -> -0.0039 | M7: =ROUND(VLOOKUP($A7,'[2]Proposed Rates'!$A:$AI,MATCH(M$5,'[2]Proposed Rates'!$4:$4,0),FALSE),M$6) -> -0.5 | N7: =ROUND(VLOOKUP($A7,'[2]Proposed Rates'!$A:$AI,MATCH(N$5,'[2]Proposed Rates'!$4:$4,0),FALSE),N$6) -> 0 | O7: =ROUND(VLOOKUP($A7,'[2]Proposed Rates'!$A:$AI,MATCH(O$5,'[2]Proposed Rates'!$4:$4,0),FALSE),O$6) -> 0.0089 | P7: =ROUND(VLOOKUP($A7,'[2]Proposed Rates'!$A:$AI,MATCH(P$5,'[2]Proposed Rates'!$4:$4,0),FALSE),P$6) -> 0.0077
A8: R1 | B8: =ROUND(VLOOKUP($A8,'[2]Proposed Rates'!$A:$AI,MATCH(B$5,'[2]Proposed Rates'!$4:$4,0),FALSE),B$6) -> 49.04 | C8: =ROUND(VLOOKUP($A8,'[2]Proposed Rates'!$A:$AI,MATCH(C$5,'[2]Proposed Rates'!$4:$4,0),FALSE),C$6) -> 0.0141 | D8: =ROUND(VLOOKUP($A8,'[2]Proposed Rates'!$A:$AI,MATCH(D$5,'[2]Proposed Rates'!$4:$4,0),FALSE),D$6) -> 0 | E8: =ROUND(VLOOKUP($A8,'[2]Proposed Rates'!$A:$AI,MATCH(E$5,'[2]Proposed Rates'!$4:$4,0),FALSE),E$6) -> 0 | F8: =ROUND(SUM(B8,D8),2) -> 49.04 | G8: =ROUND(SUM(C8,E8),4) -> 0.0141 | H8: =ROUND(VLOOKUP($A8,'[2]Proposed Rates'!$A:$AI,MATCH(H$5,'[2]Proposed Rates'!$4:$4,0),FALSE),H$6) -> -0.14 | I8: =ROUND(VLOOKUP($A8,'[2]Proposed Rates'!$A:$AI,MATCH(I$5,'[2]Proposed Rates'!$4:$4,0),FALSE),I$6) -> -0.0008 | K8: =ROUND(VLOOKUP($A8,'[2]Proposed Rates'!$A:$AI,MATCH(K$5,'[2]Proposed Rates'!$4:$4,0),FALSE),5) -> 0 | L8: =ROUND(VLOOKUP($A8,'[2]Proposed Rates'!$A:$AI,MATCH(L$5,'[2]Proposed Rates'!$4:$4,0),FALSE),L$6) -> -0.0039 | M8: =ROUND(VLOOKUP($A8,'[2]Proposed Rates'!$A:$AI,MATCH(M$5,'[2]Proposed Rates'!$4:$4,0),FALSE),M$6) -> -0.85 | N8: =ROUND(VLOOKUP($A8,'[2]Proposed Rates'!$A:$AI,MATCH(N$5,'[2]Proposed Rates'!$4:$4,0),FALSE),N$6) -> 0 | O8: =ROUND(VLOOKUP($A8,'[2]Proposed Rates'!$A:$AI,MATCH(O$5,'[2]Proposed Rates'!$4:$4,0),FALSE),O$6) -> 0.0082 | P8: =ROUND(VLOOKUP($A8,'[2]Proposed Rates'!$A:$AI,MATCH(P$5,'[2]Proposed Rates'!$4:$4,0),FALSE),P$6) -> 0.0073
A9: R2 | B9: =ROUND(VLOOKUP($A9,'[2]Proposed Rates'!$A:$AI,MATCH(B$5,'[2]Proposed Rates'!$4:$4,0),FALSE),B$6)-'Data Pass Through'!C4 -> 53.14 | C9: =ROUND(VLOOKUP($A9,'[2]Proposed Rates'!$A:$AI,MATCH(C$5,'[2]Proposed Rates'!$4:$4,0),FALSE),C$6) -> 0.0227 | D9: =ROUND(VLOOKUP($A9,'[2]Proposed Rates'!$A:$AI,MATCH(D$5,'[2]Proposed Rates'!$4:$4,0),FALSE),D$6) -> 0 | E9: =ROUND(VLOOKUP($A9,'[2]Proposed Rates'!$A:$AI,MATCH(E$5,'[2]Proposed Rates'!$4:$4,0),FALSE),E$6) -> 0 | F9: 53.14 | G9: 0.0227 | H9: =ROUND(VLOOKUP($A9,'[2]Proposed Rates'!$A:$AI,MATCH(H$5,'[2]Proposed Rates'!$4:$4,0),FALSE),H$6) -> -0.14 | I9: =ROUND(VLOOKUP($A9,'[2]Proposed Rates'!$A:$AI,MATCH(I$5,'[2]Proposed Rates'!$4:$4,0),FALSE),I$6) -> -0.0011 | K9: =ROUND(VLOOKUP($A9,'[2]Proposed Rates'!$A:$AI,MATCH(K$5,'[2]Proposed Rates'!$4:$4,0),FALSE),5) -> 0 | L9: =ROUND(VLOOKUP($A9,'[2]Proposed Rates'!$A:$AI,MATCH(L$5,'[2]Proposed Rates'!$4:$4,0),FALSE),L$6) -> -0.0039 | M9: =ROUND(VLOOKUP($A9,'[2]Proposed Rates'!$A:$AI,MATCH(M$5,'[2]Proposed Rates'!$4:$4,0),FALSE),M$6) -> -1.92 | N9: =ROUND(VLOOKUP($A9,'[2]Proposed Rates'!$A:$AI,MATCH(N$5,'[2]Proposed Rates'!$4:$4,0),FALSE),N$6) -> 0 | O9: =ROUND(VLOOKUP($A9,'[2]Proposed Rates'!$A:$AI,MATCH(O$5,'[2]Proposed Rates'!$4:$4,0),FALSE),O$6) -> 0.0077 | P9: =ROUND(VLOOKUP($A9,'[2]Proposed Rates'!$A:$AI,MATCH(P$5,'[2]Proposed Rates'!$4:$4,0),FALSE),P$6) -> 0.0068
A10: Seasonal | B10: =ROUND(VLOOKUP($A10,'[2]Proposed Rates'!$A:$AI,MATCH(B$5,'[2]Proposed Rates'!$4:$4,0),FALSE),B$6) -> 50.72 | C10: =ROUND(VLOOKUP($A10,'[2]Proposed Rates'!$A:$AI,MATCH(C$5,'[2]Proposed Rates'!$4:$4,0),FALSE),C$6) -> 0.0441 | D10: =ROUND(VLOOKUP($A10,'[2]Proposed Rates'!$A:$AI,MATCH(D$5,'[2]Proposed Rates'!$4:$4,0),FALSE),D$6) -> 0 | E10: =ROUND(VLOOKUP($A10,'[2]Proposed Rates'!$A:$AI,MATCH(E$5,'[2]Proposed Rates'!$4:$4,0),FALSE),E$6) -> 0 | F10: 50.72 | G10: 0.0441 | H10: =ROUND(VLOOKUP($A10,'[2]Proposed Rates'!$A:$AI,MATCH(H$5,'[2]Proposed Rates'!$4:$4,0),FALSE),H$6) -> -0.14 | I10: =ROUND(VLOOKUP($A10,'[2]Proposed Rates'!$A:$AI,MATCH(I$5,'[2]Proposed Rates'!$4:$4,0),FALSE),I$6) -> -0.0023 | K10: =ROUND(VLOOKUP($A10,'[2]Proposed Rates'!$A:$AI,MATCH(K$5,'[2]Proposed Rates'!$4:$4,0),FALSE),5) -> 0 | L10: =ROUND(VLOOKUP($A10,'[2]Proposed Rates'!$A:$AI,MATCH(L$5,'[2]Proposed Rates'!$4:$4,0),FALSE),L$6) -> -0.0039 | M10: =ROUND(VLOOKUP($A10,'[2]Proposed Rates'!$A:$AI,MATCH(M$5,'[2]Proposed Rates'!$4:$4,0),FALSE),M$6) -> -0.9 | N10: =ROUND(VLOOKUP($A10,'[2]Proposed Rates'!$A:$AI,MATCH(N$5,'[2]Proposed Rates'!$4:$4,0),FALSE),N$6) -> 0 | O10: =ROUND(VLOOKUP($A10,'[2]Proposed Rates'!$A:$AI,MATCH(O$5,'[2]Proposed Rates'!$4:$4,0),FALSE),O$6) -> 0.0064 | P10: =ROUND(VLOOKUP($A10,'[2]Proposed Rates'!$A:$AI,MATCH(P$5,'[2]Proposed Rates'!$4:$4,0),FALSE),P$6) -> 0.0061
A11: GSe | B11: =ROUND(VLOOKUP($A11,'[2]Proposed Rates'!$A:$AI,MATCH(B$5,'[2]Proposed Rates'!$4:$4,0),FALSE),B$6) -> 32.48 | C11: =ROUND(VLOOKUP($A11,'[2]Proposed Rates'!$A:$AI,MATCH(C$5,'[2]Proposed Rates'!$4:$4,0),FALSE),C$6) -> 0.0642 | D11: =ROUND(VLOOKUP($A11,'[2]Proposed Rates'!$A:$AI,MATCH(D$5,'[2]Proposed Rates'!$4:$4,0),FALSE),D$6) -> 0 | E11: =ROUND(VLOOKUP($A11,'[2]Proposed Rates'!$A:$AI,MATCH(E$5,'[2]Proposed Rates'!$4:$4,0),FALSE),E$6) -> 0 | F11: 32.48 | G11: 0.0642 | H11: =ROUND(VLOOKUP($A11,'[2]Proposed Rates'!$A:$AI,MATCH(H$5,'[2]Proposed Rates'!$4:$4,0),FALSE),H$6) -> -0.14 | I11: =ROUND(VLOOKUP($A11,'[2]Proposed Rates'!$A:$AI,MATCH(I$5,'[2]Proposed Rates'!$4:$4,0),FALSE),I$6) -> -0.0007 | K11: =ROUND(VLOOKUP($A11,'[2]Proposed Rates'!$A:$AI,MATCH(K$5,'[2]Proposed Rates'!$4:$4,0),FALSE),5) -> 0 | L11: =ROUND(VLOOKUP($A11,'[2]Proposed Rates'!$A:$AI,MATCH(L$5,'[2]Proposed Rates'!$4:$4,0),FALSE),L$6) -> -0.0039 | M11: =ROUND(VLOOKUP($A11,'[2]Proposed Rates'!$A:$AI,MATCH(M$5,'[2]Proposed Rates'!$4:$4,0),FALSE),M$6) -> -0.45 | N11: =ROUND(VLOOKUP($A11,'[2]Proposed Rates'!$A:$AI,MATCH(N$5,'[2]Proposed Rates'!$4:$4,0),FALSE),N$6) -> -0.0009 | O11: =ROUND(VLOOKUP($A11,'[2]Proposed Rates'!$A:$AI,MATCH(O$5,'[2]Proposed Rates'!$4:$4,0),FALSE),O$6) -> 0.0065 | P11: =ROUND(VLOOKUP($A11,'[2]Proposed Rates'!$A:$AI,MATCH(P$5,'[2]Proposed Rates'!$4:$4,0),FALSE),P$6) -> 0.0056
A12: UGe | B12: =ROUND(VLOOKUP($A12,'[2]Proposed Rates'!$A:$AI,MATCH(B$5,'[2]Proposed Rates'!$4:$4,0),FALSE),B$6) -> 25.59 | C12: =ROUND(VLOOKUP($A12,'[2]Proposed Rates'!$A:$AI,MATCH(C$5,'[2]Proposed Rates'!$4:$4,0),FALSE),C$6) -> 0.0306 | D12: =ROUND(VLOOKUP($A12,'[2]Proposed Rates'!$A:$AI,MATCH(D$5,'[2]Proposed Rates'!$4:$4,0),FALSE),D$6) -> 0 | E12: =ROUND(VLOOKUP($A12,'[2]Proposed Rates'!$A:$AI,MATCH(E$5,'[2]Proposed Rates'!$4:$4,0),FALSE),E$6) -> 0 | F12: 25.59 | G12: 0.0306 | H12: =ROUND(VLOOKUP($A12,'[2]Proposed Rates'!$A:$AI,MATCH(H$5,'[2]Proposed Rates'!$4:$4,0),FALSE),H$6) -> -0.14 | I12: =ROUND(VLOOKUP($A12,'[2]Proposed Rates'!$A:$AI,MATCH(I$5,'[2]Proposed Rates'!$4:$4,0),FALSE),I$6) -> -0.0003 | K12: =ROUND(VLOOKUP($A12,'[2]Proposed Rates'!$A:$AI,MATCH(K$5,'[2]Proposed Rates'!$4:$4,0),FALSE),5) -> 0 | L12: =ROUND(VLOOKUP($A12,'[2]Proposed Rates'!$A:$AI,MATCH(L$5,'[2]Proposed Rates'!$4:$4,0),FALSE),L$6) -> -0.0039 | M12: =ROUND(VLOOKUP($A12,'[2]Proposed Rates'!$A:$AI,MATCH(M$5,'[2]Proposed Rates'!$4:$4,0),FALSE),M$6) -> -0.36 | N12: =ROUND(VLOOKUP($A12,'[2]Proposed Rates'!$A:$AI,MATCH(N$5,'[2]Proposed Rates'!$4:$4,0),FALSE),N$6) -> -0.0004 | O12: =ROUND(VLOOKUP($A12,'[2]Proposed Rates'!$A:$AI,MATCH(O$5,'[2]Proposed Rates'!$4:$4,0),FALSE),O$6) -> 0.007 | P12: =ROUND(VLOOKUP($A12,'[2]Proposed Rates'!$A:$AI,MATCH(P$5,'[2]Proposed Rates'!$4:$4,0),FALSE),P$6) -> 0.0057
A13: St Lgt | B13: =ROUND(VLOOKUP($A13,'[2]Proposed Rates'!$A:$AI,MATCH(B$5,'[2]Proposed Rates'!$4:$4,0),FALSE),B$6) -> 3.5 | C13: =ROUND(VLOOKUP($A13,'[2]Proposed Rates'!$A:$AI,MATCH(C$5,'[2]Proposed Rates'!$4:$4,0),FALSE),C$6) -> 0.1071 | D13: =ROUND(VLOOKUP($A13,'[2]Proposed Rates'!$A:$AI,MATCH(D$5,'[2]Proposed Rates'!$4:$4,0),FALSE),D$6) -> 0 | E13: =ROUND(VLOOKUP($A13,'[2]Proposed Rates'!$A:$AI,MATCH(E$5,'[2]Proposed Rates'!$4:$4,0),FALSE),E$6) -> 0 | F13: 3.5 | G13: 0.1071 | H13: =ROUND(VLOOKUP($A13,'[2]Proposed Rates'!$A:$AI,MATCH(H$5,'[2]Proposed Rates'!$4:$4,0),FALSE),H$6) -> 0 | I13: =ROUND(VLOOKUP($A13,'[2]Proposed Rates'!$A:$AI,MATCH(I$5,'[2]Proposed Rates'!$4:$4,0),FALSE),I$6) -> -0.0009 | K13: =ROUND(VLOOKUP($A13,'[2]Proposed Rates'!$A:$AI,MATCH(K$5,'[2]Proposed Rates'!$4:$4,0),FALSE),5) -> 0 | L13: =ROUND(VLOOKUP($A13,'[2]Proposed Rates'!$A:$AI,MATCH(L$5,'[2]Proposed Rates'!$4:$4,0),FALSE),L$6) -> -0.0039 | M13: =ROUND(VLOOKUP($A13,'[2]Proposed Rates'!$A:$AI,MATCH(M$5,'[2]Proposed Rates'!$4:$4,0),FALSE),M$6) -> -0.05 | N13: =ROUND(VLOOKUP($A13,'[2]Proposed Rates'!$A:$AI,MATCH(N$5,'[2]Proposed Rates'!$4:$4,0),FALSE),N$6) -> -0.0015 | O13: =ROUND(VLOOKUP($A13,'[2]Proposed Rates'!$A:$AI,MATCH(O$5,'[2]Proposed Rates'!$4:$4,0),FALSE),O$6) -> 0.0054 | P13: =ROUND(VLOOKUP($A13,'[2]Proposed Rates'!$A:$AI,MATCH(P$5,'[2]Proposed Rates'!$4:$4,0),FALSE),P$6) -> 0.0036
A14: Sen Lgt | B14: =ROUND(VLOOKUP($A14,'[2]Proposed Rates'!$A:$AI,MATCH(B$5,'[2]Proposed Rates'!$4:$4,0),FALSE),B$6) -> 2.86 | C14: =ROUND(VLOOKUP($A14,'[2]Proposed Rates'!$A:$AI,MATCH(C$5,'[2]Proposed Rates'!$4:$4,0),FALSE),C$6) -> 0.1556 | D14: =ROUND(VLOOKUP($A14,'[2]Proposed Rates'!$A:$AI,MATCH(D$5,'[2]Proposed Rates'!$4:$4,0),FALSE),D$6) -> 0 | E14: =ROUND(VLOOKUP($A14,'[2]Proposed Rates'!$A:$AI,MATCH(E$5,'[2]Proposed Rates'!$4:$4,0),FALSE),E$6) -> 0 | F14: 2.86 | G14: 0.1556 | H14: =ROUND(VLOOKUP($A14,'[2]Proposed Rates'!$A:$AI,MATCH(H$5,'[2]Proposed Rates'!$4:$4,0),FALSE),H$6) -> 0 | I14: =ROUND(VLOOKUP($A14,'[2]Proposed Rates'!$A:$AI,MATCH(I$5,'[2]Proposed Rates'!$4:$4,0),FALSE),I$6) -> -0.0021 | K14: =ROUND(VLOOKUP($A14,'[2]Proposed Rates'!$A:$AI,MATCH(K$5,'[2]Proposed Rates'!$4:$4,0),FALSE),5) -> 0 | L14: =ROUND(VLOOKUP($A14,'[2]Proposed Rates'!$A:$AI,MATCH(L$5,'[2]Proposed Rates'!$4:$4,0),FALSE),L$6) -> -0.0039 | M14: =ROUND(VLOOKUP($A14,'[2]Proposed Rates'!$A:$AI,MATCH(M$5,'[2]Proposed Rates'!$4:$4,0),FALSE),M$6) -> -0.04 | N14: =ROUND(VLOOKUP($A14,'[2]Proposed Rates'!$A:$AI,MATCH(N$5,'[2]Proposed Rates'!$4:$4,0),FALSE),N$6) -> -0.0022 | O14: =ROUND(VLOOKUP($A14,'[2]Proposed Rates'!$A:$AI,MATCH(O$5,'[2]Proposed Rates'!$4:$4,0),FALSE),O$6) -> 0.0054 | P14: =ROUND(VLOOKUP($A14,'[2]Proposed Rates'!$A:$AI,MATCH(P$5,'[2]Proposed Rates'!$4:$4,0),FALSE),P$6) -> 0.0037
A15: USL | B15: =ROUND(VLOOKUP($A15,'[2]Proposed Rates'!$A:$AI,MATCH(B$5,'[2]Proposed Rates'!$4:$4,0),FALSE),B$6) -> 37.58 | C15: =ROUND(VLOOKUP($A15,'[2]Proposed Rates'!$A:$AI,MATCH(C$5,'[2]Proposed Rates'!$4:$4,0),FALSE),C$6) -> 0.0251 | D15: =ROUND(VLOOKUP($A15,'[2]Proposed Rates'!$A:$AI,MATCH(D$5,'[2]Proposed Rates'!$4:$4,0),FALSE),D$6) -> 0 | E15: =ROUND(VLOOKUP($A15,'[2]Proposed Rates'!$A:$AI,MATCH(E$5,'[2]Proposed Rates'!$4:$4,0),FALSE),E$6) -> 0 | F15: 37.58 | G15: 0.0251 | H15: =ROUND(VLOOKUP($A15,'[2]Proposed Rates'!$A:$AI,MATCH(H$5,'[2]Proposed Rates'!$4:$4,0),FALSE),H$6) -> 0 | I15: =ROUND(VLOOKUP($A15,'[2]Proposed Rates'!$A:$AI,MATCH(I$5,'[2]Proposed Rates'!$4:$4,0),FALSE),I$6) -> 0.0001 | K15: =ROUND(VLOOKUP($A15,'[2]Proposed Rates'!$A:$AI,MATCH(K$5,'[2]Proposed Rates'!$4:$4,0),FALSE),5) -> 0 | L15: =ROUND(VLOOKUP($A15,'[2]Proposed Rates'!$A:$AI,MATCH(L$5,'[2]Proposed Rates'!$4:$4,0),FALSE),L$6) -> -0.0039 | M15: =ROUND(VLOOKUP($A15,'[2]Proposed Rates'!$A:$AI,MATCH(M$5,'[2]Proposed Rates'!$4:$4,0),FALSE),M$6) -> -0.53 | N15: =ROUND(VLOOKUP($A15,'[2]Proposed Rates'!$A:$AI,MATCH(N$5,'[2]Proposed Rates'!$4:$4,0),FALSE),N$6) -> -0.0004 | O15: =ROUND(VLOOKUP($A15,'[2]Proposed Rates'!$A:$AI,MATCH(O$5,'[2]Proposed Rates'!$4:$4,0),FALSE),O$6) -> 0.0054 | P15: =ROUND(VLOOKUP($A15,'[2]Proposed Rates'!$A:$AI,MATCH(P$5,'[2]Proposed Rates'!$4:$4,0),FALSE),P$6) -> 0.0046
A16: GSd | B16: =ROUND(VLOOKUP($A16,'[2]Proposed Rates'!$A:$AI,MATCH(B$5,'[2]Proposed Rates'!$4:$4,0),FALSE),B$6) -> 108.28 | C16: =ROUND(VLOOKUP($A16,'[2]Proposed Rates'!$A:$AI,MATCH(C$5,'[2]Proposed Rates'!$4:$4,0),FALSE),C$6) -> 18.3296 | D16: =ROUND(VLOOKUP($A16,'[2]Proposed Rates'!$A:$AI,MATCH(D$5,'[2]Proposed Rates'!$4:$4,0),FALSE),D$6) -> 0 | E16: =ROUND(VLOOKUP($A16,'[2]Proposed Rates'!$A:$AI,MATCH(E$5,'[2]Proposed Rates'!$4:$4,0),FALSE),E$6) -> 0 | F16: 108.28 | G16: 18.3296 | H16: =ROUND(VLOOKUP($A16,'[2]Proposed Rates'!$A:$AI,MATCH(H$5,'[2]Proposed Rates'!$4:$4,0),FALSE),H$6) -> 0 | I16: =ROUND(VLOOKUP($A16,'[2]Proposed Rates'!$A:$AI,MATCH(I$5,'[2]Proposed Rates'!$4:$4,0),FALSE),I$6) -> 0.0117 | K16: =ROUND(VLOOKUP($A16,'[2]Proposed Rates'!$A:$AI,MATCH(K$5,'[2]Proposed Rates'!$4:$4,0),FALSE),K$6) -> 0 | L16: =ROUND(VLOOKUP($A16,'[2]Proposed Rates'!$A:$AI,MATCH(L$5,'[2]Proposed Rates'!$4:$4,0),FALSE),L$6) -> -0.0039 | M16: =ROUND(VLOOKUP($A16,'[2]Proposed Rates'!$A:$AI,MATCH(M$5,'[2]Proposed Rates'!$4:$4,0),FALSE),M$6) -> -1.52 | N16: =ROUND(VLOOKUP($A16,'[2]Proposed Rates'!$A:$AI,MATCH(N$5,'[2]Proposed Rates'!$4:$4,0),FALSE),N$6) -> -0.2555 | O16: =ROUND(VLOOKUP($A16,'[2]Proposed Rates'!$A:$AI,MATCH(O$5,'[2]Proposed Rates'!$4:$4,0),FALSE)*VLOOKUP($A16,'Data Billing Quantities'!$A:$B,2,FALSE),O$6) -> 2.0421 | P16: =ROUND(VLOOKUP($A16,'[2]Proposed Rates'!$A:$AI,MATCH(P$5,'[2]Proposed Rates'!$4:$4,0),FALSE)*VLOOKUP($A16,'Data Billing Quantities'!$A:$B,2,FALSE),P$6) -> 1.7006
A17: UGd | B17: =ROUND(VLOOKUP($A17,'[2]Proposed Rates'!$A:$AI,MATCH(B$5,'[2]Proposed Rates'!$4:$4,0),FALSE),B$6) -> 100.19 | C17: =ROUND(VLOOKUP($A17,'[2]Proposed Rates'!$A:$AI,MATCH(C$5,'[2]Proposed Rates'!$4:$4,0),FALSE),C$6) -> 10.5601 | D17: =ROUND(VLOOKUP($A17,'[2]Proposed Rates'!$A:$AI,MATCH(D$5,'[2]Proposed Rates'!$4:$4,0),FALSE),D$6) -> 0 | E17: =ROUND(VLOOKUP($A17,'[2]Proposed Rates'!$A:$AI,MATCH(E$5,'[2]Proposed Rates'!$4:$4,0),FALSE),E$6) -> 0 | F17: 100.19 | G17: 10.5601 | H17: =ROUND(VLOOKUP($A17,'[2]Proposed Rates'!$A:$AI,MATCH(H$5,'[2]Proposed Rates'!$4:$4,0),FALSE),H$6) -> 0 | I17: =ROUND(VLOOKUP($A17,'[2]Proposed Rates'!$A:$AI,MATCH(I$5,'[2]Proposed Rates'!$4:$4,0),FALSE),I$6) -> 0.1062 | K17: =ROUND(VLOOKUP($A17,'[2]Proposed Rates'!$A:$AI,MATCH(K$5,'[2]Proposed Rates'!$4:$4,0),FALSE),K$6) -> 0 | L17: =ROUND(VLOOKUP($A17,'[2]Proposed Rates'!$A:$AI,MATCH(L$5,'[2]Proposed Rates'!$4:$4,0),FALSE),L$6) -> -0.0039 | M17: =ROUND(VLOOKUP($A17,'[2]Proposed Rates'!$A:$AI,MATCH(M$5,'[2]Proposed Rates'!$4:$4,0),FALSE),M$6) -> -1.4 | N17: =ROUND(VLOOKUP($A17,'[2]Proposed Rates'!$A:$AI,MATCH(N$5,'[2]Proposed Rates'!$4:$4,0),FALSE),N$6) -> -0.0004 | O17: =ROUND(VLOOKUP($A17,'[2]Proposed Rates'!$A:$AI,MATCH(O$5,'[2]Proposed Rates'!$4:$4,0),FALSE)*VLOOKUP($A17,'Data Billing Quantities'!$A:$B,2,FALSE),O$6) -> 2.6172 | P17: =ROUND(VLOOKUP($A17,'[2]Proposed Rates'!$A:$AI,MATCH(P$5,'[2]Proposed Rates'!$4:$4,0),FALSE)*VLOOKUP($A17,'Data Billing Quantities'!$A:$B,2,FALSE),P$6) -> 2.1608
A18: Dgen | B18: =ROUND(VLOOKUP($A18,'[2]Proposed Rates'!$A:$AI,MATCH(B$5,'[2]Proposed Rates'!$4:$4,0),FALSE),B$6) -> 195.54 | C18: =ROUND(VLOOKUP($A18,'[2]Proposed Rates'!$A:$AI,MATCH(C$5,'[2]Proposed Rates'!$4:$4,0),FALSE),C$6) -> 9.8163 | D18: =ROUND(VLOOKUP($A18,'[2]Proposed Rates'!$A:$AI,MATCH(D$5,'[2]Proposed Rates'!$4:$4,0),FALSE),D$6) -> 0 | E18: =ROUND(VLOOKUP($A18,'[2]Proposed Rates'!$A:$AI,MATCH(E$5,'[2]Proposed Rates'!$4:$4,0),FALSE),E$6) -> 0 | F18: 195.54 | G18: 9.8163 | H18: =ROUND(VLOOKUP($A18,'[2]Proposed Rates'!$A:$AI,MATCH(H$5,'[2]Proposed Rates'!$4:$4,0),FALSE),H$6) -> 0 | I18: =ROUND(VLOOKUP($A18,'[2]Proposed Rates'!$A:$AI,MATCH(I$5,'[2]Proposed Rates'!$4:$4,0),FALSE),I$6) -> -0.1359 | K18: =ROUND(VLOOKUP($A18,'[2]Proposed Rates'!$A:$AI,MATCH(K$5,'[2]Proposed Rates'!$4:$4,0),FALSE),K$6) -> 0 | L18: =ROUND(VLOOKUP($A18,'[2]Proposed Rates'!$A:$AI,MATCH(L$5,'[2]Proposed Rates'!$4:$4,0),FALSE),L$6) -> -0.0039 | M18: =ROUND(VLOOKUP($A18,'[2]Proposed Rates'!$A:$AI,MATCH(M$5,'[2]Proposed Rates'!$4:$4,0),FALSE),M$6) -> -2.74 | N18: =ROUND(VLOOKUP($A18,'[2]Proposed Rates'!$A:$AI,MATCH(N$5,'[2]Proposed Rates'!$4:$4,0),FALSE),N$6) -> -0.1365 | O18: =ROUND(VLOOKUP($A18,'[2]Proposed Rates'!$A:$AI,MATCH(O$5,'[2]Proposed Rates'!$4:$4,0),FALSE)*VLOOKUP($A18,'Data Billing Quantities'!$A:$B,2,FALSE),O$6) -> 0.9927 | P18: =ROUND(VLOOKUP($A18,'[2]Proposed Rates'!$A:$AI,MATCH(P$5,'[2]Proposed Rates'!$4:$4,0),FALSE)*VLOOKUP($A18,'Data Billing Quantities'!$A:$B,2,FALSE),P$6) -> 0.8284
A19: ST | B19: =ROUND(SUM('[2]Proposed Rates'!$B$17:$B$19),B$6) -> 1312.3 | C19: =ROUND(VLOOKUP("Common Line",'[2]Proposed Rates'!$A:$H,8,FALSE),C$6) -> 1.5335 | D19: =SUM('[2]Proposed Rates'!$I$17:$I$18) -> 0 | E19: ='[2]Proposed Rates'!$J$19 -> 0 | F19: 1312.3 | G19: 1.5335 | H19: =ROUND(VLOOKUP($A19,'[2]Proposed Rates'!$A:$AI,MATCH(H$5,'[2]Proposed Rates'!$4:$4,0),FALSE),H$6) -> 0 | I19: =ROUND(VLOOKUP($A19,'[2]Proposed Rates'!$A:$AI,MATCH(I$5,'[2]Proposed Rates'!$4:$4,0),FALSE),I$6) -> 0.9444 | M19: =ROUND(VLOOKUP($A19,'[2]Proposed Rates'!$A:$AI,MATCH(M$5,'[2]Proposed Rates'!$4:$4,0),FALSE),M$6) -> -15.7 | N19: =ROUND(VLOOKUP($A19,'[2]Proposed Rates'!$A:$AI,MATCH(N$5,'[2]Proposed Rates'!$4:$4,0),FALSE),N$6) -> -0.0219 | O19: =ROUND(VLOOKUP($A19,'[2]Proposed Rates'!$A:$AI,MATCH(O$5,'[2]Proposed Rates'!$4:$4,0),FALSE)*VLOOKUP($A19,'Data Billing Quantities'!$A:$B,2,FALSE),O$6) -> 3.596 | P19: =ROUND(VLOOKUP($A19,'[2]Proposed Rates'!$A:$AI,MATCH(P$5,'[2]Proposed Rates'!$4:$4,0),FALSE)*VLOOKUP($A19,'Data Billing Quantities'!$A:$B,2,FALSE),P$6) -> 2.9558
A20: ST (NonWMP, NonRPP, NonLDC, ClassB) | B20: =B$19 -> 1312.3 | C20: =C$19 -> 1.5335 | D20: 0 | E20: 0 | F20: 1312.3 | G20: 1.5335 | H20: =ROUND(VLOOKUP("ST",'[2]Proposed Rates'!$A:$AI,MATCH(H$5,'[2]Proposed Rates'!$4:$4,0),FALSE),H$6) -> 0 | I20: =ROUND(VLOOKUP("ST",'[2]Proposed Rates'!$A:$AI,MATCH(I$5,'[2]Proposed Rates'!$4:$4,0),FALSE),I$6) -> 0.9444 | J20: =ROUND(VLOOKUP("ST",'[2]Proposed Rates'!$A:$AI,MATCH(J$5,'[2]Proposed Rates'!$4:$4,0),FALSE),J$6) -> -1.1389 | K20: =ROUND(VLOOKUP("ST",'[2]Proposed Rates'!$A:$AI,MATCH(K$5,'[2]Proposed Rates'!$4:$4,0),FALSE),K$6) -> 0 | L20: =ROUND(VLOOKUP("ST",'[2]Proposed Rates'!$A:$AI,MATCH(L$5,'[2]Proposed Rates'!$4:$4,0),FALSE),L$6) -> -0.0039 | M20: =ROUND(VLOOKUP("ST",'[2]Proposed Rates'!$A:$AI,MATCH(M$5,'[2]Proposed Rates'!$4:$4,0),FALSE),M$6) -> -15.7 | N20: =ROUND(VLOOKUP("ST",'[2]Proposed Rates'!$A:$AI,MATCH(N$5,'[2]Proposed Rates'!$4:$4,0),FALSE),N$6) -> -0.0219 | O20: =ROUND(VLOOKUP("ST",'[2]Proposed Rates'!$A:$AI,MATCH(O$5,'[2]Proposed Rates'!$4:$4,0),FALSE)*VLOOKUP($A20,'Data Billing Quantities'!$A:$B,2,FALSE),O$6) -> 3.596 | P20: =ROUND(VLOOKUP("ST",'[2]Proposed Rates'!$A:$AI,MATCH(P$5,'[2]Proposed Rates'!$4:$4,0),FALSE)*VLOOKUP($A20,'Data Billing Quantities'!$A:$B,2,FALSE),P$6) -> 2.9558
A21: ST (NonWMP, NonRPP, NonLDC, ClassB) Exclude GA Rider | B21: =B$19 -> 1312.3 | C21: 1.5335 | D21: 0 | E21: 0 | F21: 1312.3 | G21: 1.5335 | H21: =ROUND(VLOOKUP("ST",'[2]Proposed Rates'!$A:$AI,MATCH(H$5,'[2]Proposed Rates'!$4:$4,0),FALSE),H$6) -> 0 | I21: =ROUND(VLOOKUP("ST",'[2]Proposed Rates'!$A:$AI,MATCH(I$5,'[2]Proposed Rates'!$4:$4,0),FALSE),I$6) -> 0.9444 | J21: =ROUND(VLOOKUP("ST",'[2]Proposed Rates'!$A:$AI,MATCH(J$5,'[2]Proposed Rates'!$4:$4,0),FALSE),J$6) -> -1.1389 | K21: =ROUND(VLOOKUP("ST",'[2]Proposed Rates'!$A:$AI,MATCH(K$5,'[2]Proposed Rates'!$4:$4,0),FALSE),K$6) -> 0 | M21: =ROUND(VLOOKUP("ST",'[2]Proposed Rates'!$A:$AI,MATCH(M$5,'[2]Proposed Rates'!$4:$4,0),FALSE),M$6) -> -15.7 | N21: =ROUND(VLOOKUP("ST",'[2]Proposed Rates'!$A:$AI,MATCH(N$5,'[2]Proposed Rates'!$4:$4,0),FALSE),N$6) -> -0.0219 | O21: =ROUND(VLOOKUP("ST",'[2]Proposed Rates'!$A:$AI,MATCH(O$5,'[2]Proposed Rates'!$4:$4,0),FALSE)*VLOOKUP($A21,'Data Billing Quantities'!$A:$B,2,FALSE),O$6) -> 3.596 | P21: =ROUND(VLOOKUP("ST",'[2]Proposed Rates'!$A:$AI,MATCH(P$5,'[2]Proposed Rates'!$4:$4,0),FALSE)*VLOOKUP($A21,'Data Billing Quantities'!$A:$B,2,FALSE),P$6) -> 2.9558

Sheet Data Billing Quantities (hidden)
A1: Rate Class-Specific Billing Quantities (Applied to Current and Proposed Bill)
E3: Consumption (kWh) | I3: Peak (kW) | M3: TOU Split
A4: Rate Class | B4: Loss Factor | C4: Charge Determinant | D4: Commodity Threshold | E4: Low kWh | F4: Typical kWh | G4: Average kWh | H4: High kWh | I4: Low kW | J4: Typical kW | K4: Average kW | L4: High kW | M4: TOU-Off Peak | N4: TOU-Mid Peak | O4: TOU-On Peak
A5: UR | B5: 1.057 | C5: kWh | D5: 600 | E5: 350 | F5: 750 | G5: =VLOOKUP(A5,[3]Sheet1!$A$9:$I$22,8,FALSE) -> 755 | H5: 1400 | M5: 0.65 | N5: 0.17 | O5: 0.18
A6: R1 | B6: 1.076 | C6: kWh | D6: 600 | E6: 400 | F6: 750 | G6: =VLOOKUP(A6,[3]Sheet1!$A$10:$I$22,8,FALSE) -> 920 | H6: 1800 | M6: 0.65 | N6: 0.17 | O6: 0.18
A7: R2 | B7: 1.105 | C7: kWh | D7: 600 | E7: 450 | F7: 750 | G7: =VLOOKUP(A7,[3]Sheet1!$A$10:$I$22,8,FALSE) -> 1152 | H7: 2300 | M7: 0.65 | N7: 0.17 | O7: 0.18
A8: Seasonal | B8: 1.104 | C8: kWh | D8: 600 | E8: 50 | G8: =VLOOKUP(A8,[3]Sheet1!$A$10:$I$22,8,FALSE) -> 352 | H8: 1000 | M8: 0.65 | N8: 0.17 | O8: 0.18
A9: GSe | B9: 1.096 | C9: kWh | D9: 750 | E9: 1000 | F9: 2000 | G9: =VLOOKUP(A9,[3]Sheet1!$A$10:$I$22,8,FALSE) -> 1982 | H9: 15000 | M9: 0.65 | N9: 0.17 | O9: 0.18
A10: UGe | B10: 1.067 | C10: kWh | D10: 750 | E10: 1000 | F10: 2000 | G10: =VLOOKUP(A10,[3]Sheet1!$A$10:$I$22,8,FALSE) -> 2759 | H10: 15000 | M10: 0.65 | N10: 0.17 | O10: 0.18
A11: St Lgt | B11: 1.092 | C11: kWh | D11: 750 | E11: 100 | G11: =VLOOKUP(A11,[3]Sheet1!$A$10:$I$22,8,FALSE) -> 517 | H11: 2000
A12: Sen Lgt | B12: 1.092 | C12: kWh | D12: 750 | E12: 20 | G12: =VLOOKUP(A12,[3]Sheet1!$A$10:$I$22,8,FALSE) -> 71 | H12: 200
A13: USL | B13: 1.092 | C13: kWh | D13: 750 | E13: 100 | G13: =VLOOKUP(A13,[3]Sheet1!$A$10:$I$22,8,FALSE) -> 364 | H13: 1000
A14: GSd | B14: 1.061 | C14: kW | D14: 0 | E14: 15000 | G14: =VLOOKUP(A14,[3]Sheet1!$A$10:$I$22,8,FALSE) -> 36104 | H14: 175000 | I14: 60 | J14: 117 | K14: =VLOOKUP(A14,[3]Sheet1!$A$10:$I$22,9,FALSE) -> 124 | L14: 500
A15: UGd | B15: 1.05 | C15: kW | D15: 0 | E15: 15000 | G15: =VLOOKUP(A15,[3]Sheet1!$A$10:$I$22,8,FALSE) -> 50525 | H15: 175000 | I15: 60 | J15: 117 | K15: =VLOOKUP(A15,[3]Sheet1!$A$10:$I$22,9,FALSE) -> 135 | L15: 500
A16: Dgen | B16: 1.061 | C16: kW | D16: 0 | E16: 300 | G16: =VLOOKUP(A16,[3]Sheet1!$A$10:$I$22,8,FALSE) -> 1328 | H16: 5000 | I16: 10 | J16: 15 | K16: =VLOOKUP(A16,[3]Sheet1!$A$10:$I$22,9,FALSE) -> 13 | L16: 100
A17: ST | B17: 1.034 | C17: kW | D17: 0 | E17: 200000 | G17: =VLOOKUP(A17,[3]Sheet1!$A$10:$I$22,8,FALSE) -> 1601036 | H17: 4000000 | I17: 500 | J17: 117 | K17: =VLOOKUP(A17,[3]Sheet1!$A$10:$I$22,9,FALSE) -> 3091 | L17: 10000
A18: ST (NonWMP, NonRPP, NonLDC, ClassB) | B18: =B$17 -> 1.034 | C18: =C$17 -> kW | D18: 0 | G18: 1601036 | K18: 3091
A19: ST (NonWMP, NonRPP, NonLDC, ClassB) Exclude GA Rider | B19: =B$17 -> 1.034 | C19: kW | D19: 0 | G19: 1601036 | K19: 3091

Sheet Data Pass Through (hidden)
A1: 3. Pass Through Charges (maintain pass through charges effective during application period for 2021 annual update august 2020)
B2: Current Bill | C2: Proposed Bill
A3: Effective Date | B3: 2018-05-01 | C3: 2018-05-01 | D3: TOU % | E3: Notes
A4: R2 Credit | B4: 60.5 | C4: 60.5
A5: Energy (Non-RPP)* | B5: =12.3/100 -> 0.123 | C5: =12.3/100 -> 0.123 | E5: *Average HOEP plus average GA used to approximate Non-RPP Energy Charges (IESO Monthly Market Report December 2017)
A6: Energy First Tier | B6: 0.077 | C6: 0.077 | E6: Effective May 1 2018
A7: Energy Second Tier | B7: 0.089 | C7: 0.089 | E7: Effective May 1 2018
A8: TOU-Off Peak | B8: 0.065 | C8: 0.065 | D8: 0.65 | E8: Effective May 1 2018
A9: TOU-Mid Peak | B9: 0.094 | C9: 0.094 | D9: 0.17 | E9: Effective May 1 2018
A10: TOU-On Peak | B10: 0.134 | C10: 0.134 | D10: 0.18 | E10: Effective May 1 2018
A11: Wholesale Market Service Rate (WMS) - not including CBR | B11: 0.003 | C11: 0.003 | E11: Effective May 1 2017, 0.0036 WMSC broken up between WMSC and CBR
A12: Capacity Based Recovery (CBR) - Applicable for Class B Customers | B12: 0.0004 | C12: 0.0004 | E12: Effective May 1 2017, 0.0036 WMSC broken up between WMSC and CBR
A13: Rural Rate Protection Charge | B13: 0.0005 | C13: 0.0005 | E13: RRRP charge reduced from $0.0021/kWh to $0.0003/kWh effective July 1, 2017; reduced to 0.0005 effective jan 1 2019
A14: Ontario Electricity Support Program Charge | B14: 0 | C14: 0 | E14: OESP charge removed for all rate classes effective May 1, 2017. ROW HIDDEN IN BILL IMPACT FILE
A15: Standard Supply Service – Administration Charge (if applicable) | B15: 0.25 | C15: 0.25
A16: Fair Hydro Plan - Distribution Rate Protection Savings* | B16: =IF('Bill Impact Summary'!L6="TOU",0,IF('Bill Impact Summary'!L6="TOU (DRP applied)",B17,"error")) -> 36.86 | C16: =IF('Bill Impact Summary'!L6="TOU",0,IF('Bill Impact Summary'!L6="TOU (DRP applied)",C17,"error")) -> 36.86 | E16: Highlighted cells are FORMULAS; do not overwrite with hard-entered values. Input DRP limit values in row 17 below
A17: DRP limit (applied when selected from Bill Impact Summary) | B17: 36.86 | C17: 36.86 | E17: Make change to FHP DRP limit here, but to apply DRP, must do in Bill Impact Summary sheet cell L6
A18: Smart Metering Entity Charge | B18: 0.57 | C18: 0.57 | E18: Change from 0.79 to 0.57 effective March 1 2018; only for metered energy-billed (UR, R1, R2, SEA, GSE, UGE)
A19: Debt Retirement Charge (DRC) | B19: 0 | C19: 0 | E19: DRC removed from all rate classes Apr 1 2018 ROW HIDDEN IN BILL IMPACT FILE
A21: Customer Attributes - Assumptions
A22: ST customers are assumed to be WMP Class B; exclude NonWMP rider and Standard Supply Service

Sheet Data BI List (hidden)
A1: Template Name | B1: Bill Impact Worksheet Name | C1: Bill Impact Header
A2: BI Template_Energy | B2: BI_UR_Low | C2: 2021 Bill Impacts (Low Consumption Level) - UR
A3: BI Template_Energy | B3: BI_UR_Typical | C3: 2021 Bill Impacts (Typical Consumption Level) - UR
A4: BI Template_Energy | B4: BI_UR_Avg | C4: 2021 Bill Impacts (Average Consumption Level) - UR
A5: BI Template_Energy | B5: BI_UR_High | C5: 2021 Bill Impacts (High Consumption Level) - UR
A6: BI Template_Energy | B6: BI_R1_Low | C6: 2021 Bill Impacts (Low Consumption Level) - R1
A7: BI Template_Energy | B7: BI_R1_Typical | C7: 2021 Bill Impacts (Typical Consumption Level) - R1
A8: BI Template_Energy | B8: BI_R1_Avg | C8: 2021 Bill Impacts (Average Consumption Level) - R1
A9: BI Template_Energy | B9: BI_R1_High | C9: 2021 Bill Impacts (High Consumption Level) - R1
A10: BI Template_Energy | B10: BI_R2_Low | C10: 2021 Bill Impacts (Low Consumption Level) - R2
A11: BI Template_Energy | B11: BI_R2_Typical | C11: 2021 Bill Impacts (Typical Consumption Level) - R2
A12: BI Template_Energy | B12: BI_R2_Avg | C12: 2021 Bill Impacts (Average Consumption Level) - R2
A13: BI Template_Energy | B13: BI_R2_High | C13: 2021 Bill Impacts (High Consumption Level) - R2
A14: BI Template_Energy | B14: BI_Seas_Low | C14: 2021 Bill Impacts (Low Consumption Level) - Seasonal
A15: BI Template_Energy | B15: BI_Seas_Avg | C15: 2021 Bill Impacts (Average Consumption Level) - Seasonal
A16: BI Template_Energy | B16: BI_Seas_High | C16: 2021 Bill Impacts (High Consumption Level) - Seasonal
A17: BI Template_Energy | B17: BI_GSe_Low | C17: 2021 Bill Impacts (Low Consumption Level) - GSe
A18: BI Template_Energy | B18: BI_GSe_Typical | C18: 2021 Bill Impacts (Typical Consumption Level) - GSe
A19: BI Template_Energy | B19: BI_GSe_Avg | C19: 2021 Bill Impacts (Average Consumption Level) - GSe
A20: BI Template_Energy | B20: BI_GSe_High | C20: 2021 Bill Impacts (High Consumption Level) - GSe
A21: BI Template_Energy | B21: BI_UGe_Low | C21: 2021 Bill Impacts (Low Consumption Level) - UGe
A22: BI Template_Energy | B22: BI_UGe_Typical | C22: 2021 Bill Impacts (Typical Consumption Level) - UGe
A23: BI Template_Energy | B23: BI_UGe_Avg | C23: 2021 Bill Impacts (Average Consumption Level) - UGe
A24: BI Template_Energy | B24: BI_UGe_High | C24: 2021 Bill Impacts (High Consumption Level) - UGe
A25: BI Template_Demand | B25: BI_GSd_Low | C25: 2021 Bill Impacts (Low Consumption Level) - GSd
A26: BI Template_Demand | B26: BI_GSd_Avg | C26: 2021 Bill Impacts (Average Consumption Level) - GSd
A27: BI Template_Demand | B27: BI_GSd_High | C27: 2021 Bill Impacts (High Consumption Level) - GSd
A28: BI Template_Demand | B28: BI_UGd_Low | C28: 2021 Bill Impacts (Low Consumption Level) - UGd
A29: BI Template_Demand | B29: BI_UGd_Avg | C29: 2021 Bill Impacts (Average Consumption Level) - UGd
A30: BI Template_Demand | B30: BI_UGd_High | C30: 2021 Bill Impacts (High Consumption Level) - UGd
A31: BI Template_EnergyUNM | B31: BI_StLgt_Low | C31: 2021 Bill Impacts (Low Consumption Level) - St Lgt
A32: BI Template_EnergyUNM | B32: BI_StLgt_Avg | C32: 2021 Bill Impacts (Average Consumption Level) - St Lgt
A33: BI Template_EnergyUNM | B33: BI_StLgt_High | C33: 2021 Bill Impacts (High Consumption Level) - St Lgt
A34: BI Template_EnergyUNM | B34: BI_SenLgt_Low | C34: 2021 Bill Impacts (Low Consumption Level) - Sen Lgt
A35: BI Template_EnergyUNM | B35: BI_SenLgt_Avg | C35: 2021 Bill Impacts (Average Consumption Level) - Sen Lgt
A36: BI Template_EnergyUNM | B36: BI_SenLgt_High | C36: 2021 Bill Impacts (High Consumption Level) - Sen Lgt
A37: BI Template_EnergyUNM | B37: BI_USL_Low | C37: 2021 Bill Impacts (Low Consumption Level) - USL
A38: BI Template_EnergyUNM | B38: BI_USL_Avg | C38: 2021 Bill Impacts (Average Consumption Level) - USL
A39: BI Template_EnergyUNM | B39: BI_USL_High | C39: 2021 Bill Impacts (High Consumption Level) - USL
A40: BI Template_Demand | B40: BI_Dgen_Low | C40: 2021 Bill Impacts (Low Consumption Level) - Dgen
A41: BI Template_Demand | B41: BI_Dgen_Avg | C41: 2021 Bill Impacts (Average Consumption Level) - Dgen
A42: BI Template_Demand | B42: BI_Dgen_High | C42: 2021 Bill Impacts (High Consumption Level) - Dgen
A43: BI Template_Demand | B43: BI_ST_Low | C43: 2021 Bill Impacts (Low Consumption Level) - ST
A44: BI Template_Demand | B44: BI_ST_Avg | C44: 2021 Bill Impacts (Average Consumption Level) - ST
A45: BI Template_Demand | B45: BI_ST_High | C45: 2021 Bill Impacts (High Consumption Level) - ST
A46: BI Template_Demand | B46: BI_ST_Avg_NonWMP | C46: 2021 Bill Impacts (Average Consumption Level) - ST (NonWMP, NonRPP, NonLDC, ClassB)
A47: BI Template_Demand | B47: BI_ST_Avg_NonWMP_exclGA | C47: 2021 Bill Impacts (Average Consumption Level) - ST (NonWMP, NonRPP, NonLDC, ClassB) Exclude GA Rider

Sheet Data BI Summary (hidden)
A2: Summary Column | B2: Current Total Bill | C2: Change in DX Bill ($) | D2: Change in DX Bill (%) | E2: Change in Total Bill ($) | F2: Change in Total Bill (%) | G2: Change in RTSR
A3: BI Template_Energy | B3: Total Amount on TOU | C3: Sub-Total: Distribution (excluding pass through) | D3: Sub-Total: Distribution (excluding pass through) | E3: Total Amount on TOU | F3: Total Amount on TOU | G3: Sub-Total: Retail Transmission | H3: Fixed Deferral/Variance Account Rider (General)
A4: BI Template_EnergyUNM | B4: Total Amount on Two-Tier RPP | C4: Sub-Total: Distribution (excluding pass through) | D4: Sub-Total: Distribution (excluding pass through) | E4: Total Amount on Two-Tier RPP | F4: Total Amount on Two-Tier RPP | G4: Sub-Total: Retail Transmission | H4: Fixed Deferral/Variance Account Rider (General)
A5: BI Template_Demand | B5: Total Amount | C5: Sub-Total: Distribution | D5: Sub-Total: Distribution | E5: Total Amount | F5: Total Amount | G5: Sub-Total: Retail Transmission | H5: Fixed Deferral/Variance Account Rider (General)

Sheet Bill Impact Summary (hidden)
A1: Rate Class | B1: Consumption Level | C1: Monthly Consumption (kWh) | D1: Monthly Peak (kW) | E1: BI Worksheet | F1: Template | G1: Current Total Bill | H1: Change in DX Bill ($) | I1: Change in DX Bill (%) | J1: Change in Total Bill ($) | K1: Change in Total Bill (%) | L1: Commodity Price Used | N1: List for Data Validation of cell L6; do not remove | O1: RTSR Impact | P1: Fixed Def/VA | Q1: Vol Def/VA | R1: RTSR Impact | S1: Fixed Def/VA | T1: Vol Def/VA | U1: GA Rider | V1: RTSR Impact Range
A2: UR | B2: Low | C2: =VLOOKUP(A$2,'Data Billing Quantities'!A:P,MATCH(B2&" kWh",'Data Billing Quantities'!$4:$4,0),FALSE) -> 350 | E2: BI_UR_Low | F2: BI Template_Energy | G2: =VLOOKUP(VLOOKUP($F2,'Data BI Summary'!$A:$F,MATCH(G$1,'Data BI Summary'!$2:$2,0),FALSE),INDIRECT("'"&$E2&"'!"&"$A:$K"),4,FALSE) -> 77.09454113 | H2: =VLOOKUP(VLOOKUP($F2,'Data BI Summary'!$A:$F,MATCH(H$1,'Data BI Summary'!$2:$2,0),FALSE),INDIRECT("'"&$E2&"'!"&"$A:$K"),8,FALSE) -> 0.37 | I2: =VLOOKUP(VLOOKUP($F2,'Data BI Summary'!$A:$F,MATCH(I$1,'Data BI Summary'!$2:$2,0),FALSE),INDIRECT("'"&$E2&"'!"&"$A:$K"),9,FALSE) -> 0.01067359008 | J2: =VLOOKUP(VLOOKUP($F2,'Data BI Summary'!$A:$F,MATCH(J$1,'Data BI Summary'!$2:$2,0),FALSE),INDIRECT("'"&$E2&"'!"&"$A:$K"),8,FALSE) -> 0.50503425 | K2: =VLOOKUP(VLOOKUP($F2,'Data BI Summary'!$A:$F,MATCH(K$1,'Data BI Summary'!$2:$2,0),FALSE),INDIRECT("'"&$E2&"'!"&"$A:$K"),9,FALSE) -> 0.006550843194 | L2: TOU | O2: =VLOOKUP("Sub-Total: Retail Transmission ",INDIRECT("'"&$E2&"'!"&"$A:$K"),8,FALSE) -> 0.110985 | P2: =VLOOKUP("Fixed Deferral/Variance Account Rider (General)",INDIRECT("'"&$E2&"'!"&"$A:$K"),8,FALSE) -> -0.19 | Q2: =VLOOKUP("Volumetric Deferral/Variance Account Rider (General)",INDIRECT("'"&$E2&"'!"&"$A:$K"),8,FALSE) -> 0.035 | R2: =VLOOKUP("Sub-Total: Retail Transmission ",INDIRECT("'"&$E2&"'!"&"$A:$K"),9,FALSE) -> 0.01840490798 | S2: =VLOOKUP("Fixed Deferral/Variance Account Rider (General)",INDIRECT("'"&$E2&"'!"&"$A:$K"),9,FALSE) -> -3.8 | T2: =VLOOKUP("Volumetric Deferral/Variance Account Rider (General)",INDIRECT("'"&$E2&"'!"&"$A:$K"),9,FALSE) -> 0.125 | U2: =VLOOKUP("Volumetric Deferral/Variance Account Rider (Sub-Account Global Adjustment)",INDIRECT("'"&$E2&"'!"&"$A:$K"),9,FALSE) ->  | V2: =MIN(R:R) -> 0.01111111111
B3: Typical | C3: =VLOOKUP(A$2,'Data Billing Quantities'!A:P,MATCH(B3&" kWh",'Data Billing Quantities'!$4:$4,0),FALSE) -> 750 | E3: BI_UR_Typical | F3: BI Template_Energy | G3: =VLOOKUP(VLOOKUP($F3,'Data BI Summary'!$A:$F,MATCH(G$1,'Data BI Summary'!$2:$2,0),FALSE),INDIRECT("'"&$E3&"'!"&"$A:$K"),4,FALSE) -> 123.9225881 | H3: =VLOOKUP(VLOOKUP($F3,'Data BI Summary'!$A:$F,MATCH(H$1,'Data BI Summary'!$2:$2,0),FALSE),INDIRECT("'"&$E3&"'!"&"$A:$K"),8,FALSE) -> -1.15 | I3: =VLOOKUP(VLOOKUP($F3,'Data BI Summary'!$A:$F,MATCH(I$1,'Data BI Summary'!$2:$2,0),FALSE),INDIRECT("'"&$E3&"'!"&"$A:$K"),9,FALSE) -> -0.03202896533 | J3: =VLOOKUP(VLOOKUP($F3,'Data BI Summary'!$A:$F,MATCH(J$1,'Data BI Summary'!$2:$2,0),FALSE),INDIRECT("'"&$E3&"'!"&"$A:$K"),8,FALSE) -> -0.95778375 | K3: =VLOOKUP(VLOOKUP($F3,'Data BI Summary'!$A:$F,MATCH(K$1,'Data BI Summary'!$2:$2,0),FALSE),INDIRECT("'"&$E3&"'!"&"$A:$K"),9,FALSE) -> -0.007728887562 | O3: =VLOOKUP("Sub-Total: Retail Transmission ",INDIRECT("'"&$E3&"'!"&"$A:$K"),8,FALSE) -> 0.237825 | P3: =VLOOKUP("Fixed Deferral/Variance Account Rider (General)",INDIRECT("'"&$E3&"'!"&"$A:$K"),8,FALSE) -> -0.19 | Q3: =VLOOKUP("Volumetric Deferral/Variance Account Rider (General)",INDIRECT("'"&$E3&"'!"&"$A:$K"),8,FALSE) -> 0.075 | R3: =VLOOKUP("Sub-Total: Retail Transmission ",INDIRECT("'"&$E3&"'!"&"$A:$K"),9,FALSE) -> 0.01840490798 | S3: =VLOOKUP("Fixed Deferral/Variance Account Rider (General)",INDIRECT("'"&$E3&"'!"&"$A:$K"),9,FALSE) -> -3.8 | T3: =VLOOKUP("Volumetric Deferral/Variance Account Rider (General)",INDIRECT("'"&$E3&"'!"&"$A:$K"),9,FALSE) -> 0.125 | U3: =VLOOKUP("Volumetric Deferral/Variance Account Rider (Sub-Account Global Adjustment)",INDIRECT("'"&$E3&"'!"&"$A:$K"),9,FALSE) ->  | V3: =MAX(R:R) -> 0.02542372881
B4: Average | C4: =VLOOKUP(A$2,'Data Billing Quantities'!A:P,MATCH(B4&" kWh",'Data Billing Quantities'!$4:$4,0),FALSE) -> 755 | E4: BI_UR_Avg | F4: BI Template_Energy | G4: =VLOOKUP(VLOOKUP($F4,'Data BI Summary'!$A:$F,MATCH(G$1,'Data BI Summary'!$2:$2,0),FALSE),INDIRECT("'"&$E4&"'!"&"$A:$K"),4,FALSE) -> 124.5079387 | H4: =VLOOKUP(VLOOKUP($F4,'Data BI Summary'!$A:$F,MATCH(H$1,'Data BI Summary'!$2:$2,0),FALSE),INDIRECT("'"&$E4&"'!"&"$A:$K"),8,FALSE) -> -1.169 | I4: =VLOOKUP(VLOOKUP($F4,'Data BI Summary'!$A:$F,MATCH(I$1,'Data BI Summary'!$2:$2,0),FALSE),INDIRECT("'"&$E4&"'!"&"$A:$K"),9,FALSE) -> -0.03254409042 | J4: =VLOOKUP(VLOOKUP($F4,'Data BI Summary'!$A:$F,MATCH(J$1,'Data BI Summary'!$2:$2,0),FALSE),INDIRECT("'"&$E4&"'!"&"$A:$K"),8,FALSE) -> -0.976068975 | K4: =VLOOKUP(VLOOKUP($F4,'Data BI Summary'!$A:$F,MATCH(K$1,'Data BI Summary'!$2:$2,0),FALSE),INDIRECT("'"&$E4&"'!"&"$A:$K"),9,FALSE) -> -0.007839411568 | O4: 0.2394105 | P4: -0.19 | Q4: 0.0755 | R4: 0.01840490798 | S4: -3.8 | T4: 0.125 | V4: =AVERAGE(R:R) -> 0.01966615106
B5: High | C5: =VLOOKUP(A$2,'Data Billing Quantities'!A:P,MATCH(B5&" kWh",'Data Billing Quantities'!$4:$4,0),FALSE) -> 1400 | E5: BI_UR_High | F5: BI Template_Energy | G5: =VLOOKUP(VLOOKUP($F5,'Data BI Summary'!$A:$F,MATCH(G$1,'Data BI Summary'!$2:$2,0),FALSE),INDIRECT("'"&$E5&"'!"&"$A:$K"),4,FALSE) -> 200.0181645 | H5: =VLOOKUP(VLOOKUP($F5,'Data BI Summary'!$A:$F,MATCH(H$1,'Data BI Summary'!$2:$2,0),FALSE),INDIRECT("'"&$E5&"'!"&"$A:$K"),8,FALSE) -> -3.62 | I5: =VLOOKUP(VLOOKUP($F5,'Data BI Summary'!$A:$F,MATCH(I$1,'Data BI Summary'!$2:$2,0),FALSE),INDIRECT("'"&$E5&"'!"&"$A:$K"),9,FALSE) -> -0.09546413502 | J5: =VLOOKUP(VLOOKUP($F5,'Data BI Summary'!$A:$F,MATCH(J$1,'Data BI Summary'!$2:$2,0),FALSE),INDIRECT("'"&$E5&"'!"&"$A:$K"),8,FALSE) -> -3.334863 | K5: =VLOOKUP(VLOOKUP($F5,'Data BI Summary'!$A:$F,MATCH(K$1,'Data BI Summary'!$2:$2,0),FALSE),INDIRECT("'"&$E5&"'!"&"$A:$K"),9,FALSE) -> -0.01667280073 | O5: 0.44394 | P5: -0.19 | Q5: 0.14 | R5: 0.01840490798 | S5: -3.8 | T5: 0.125
A6: R1 | B6: Low | C6: =VLOOKUP(A$6,'Data Billing Quantities'!A:P,MATCH(B6&" kWh",'Data Billing Quantities'!$4:$4,0),FALSE) -> 400 | E6: BI_R1_Low | F6: BI Template_Energy | G6: =VLOOKUP(VLOOKUP($F6,'Data BI Summary'!$A:$F,MATCH(G$1,'Data BI Summary'!$2:$2,0),FALSE),INDIRECT("'"&$E6&"'!"&"$A:$K"),4,FALSE) -> 85.117284 | H6: =VLOOKUP(VLOOKUP($F6,'Data BI Summary'!$A:$F,MATCH(H$1,'Data BI Summary'!$2:$2,0),FALSE),INDIRECT("'"&$E6&"'!"&"$A:$K"),8,FALSE) -> -1.03 | I6: =VLOOKUP(VLOOKUP($F6,'Data BI Summary'!$A:$F,MATCH(I$1,'Data BI Summary'!$2:$2,0),FALSE),INDIRECT("'"&$E6&"'!"&"$A:$K"),9,FALSE) -> -0.02815746309 | J6: =VLOOKUP(VLOOKUP($F6,'Data BI Summary'!$A:$F,MATCH(J$1,'Data BI Summary'!$2:$2,0),FALSE),INDIRECT("'"&$E6&"'!"&"$A:$K"),8,FALSE) -> -0.945924 | K6: =VLOOKUP(VLOOKUP($F6,'Data BI Summary'!$A:$F,MATCH(K$1,'Data BI Summary'!$2:$2,0),FALSE),INDIRECT("'"&$E6&"'!"&"$A:$K"),9,FALSE) -> -0.01111318355 | L6: TOU (DRP applied) | N6: TOU | O6: 0.12912 | P6: -0.18 | Q6: 0 | R6: 0.01973684211 | S6: -4.5 | T6: 0
B7: Typical | C7: =VLOOKUP(A$6,'Data Billing Quantities'!A:P,MATCH(B7&" kWh",'Data Billing Quantities'!$4:$4,0),FALSE) -> 750 | E7: BI_R1_Typical | F7: BI Template_Energy | G7: =VLOOKUP(VLOOKUP($F7,'Data BI Summary'!$A:$F,MATCH(G$1,'Data BI Summary'!$2:$2,0),FALSE),INDIRECT("'"&$E7&"'!"&"$A:$K"),4,FALSE) -> 124.9396575 | H7: =VLOOKUP(VLOOKUP($F7,'Data BI Summary'!$A:$F,MATCH(H$1,'Data BI Summary'!$2:$2,0),FALSE),INDIRECT("'"&$E7&"'!"&"$A:$K"),8,FALSE) -> -1.03 | I7: =VLOOKUP(VLOOKUP($F7,'Data BI Summary'!$A:$F,MATCH(I$1,'Data BI Summary'!$2:$2,0),FALSE),INDIRECT("'"&$E7&"'!"&"$A:$K"),9,FALSE) -> -0.02837465565 | J7: =VLOOKUP(VLOOKUP($F7,'Data BI Summary'!$A:$F,MATCH(J$1,'Data BI Summary'!$2:$2,0),FALSE),INDIRECT("'"&$E7&"'!"&"$A:$K"),8,FALSE) -> -0.827295 | K7: =VLOOKUP(VLOOKUP($F7,'Data BI Summary'!$A:$F,MATCH(K$1,'Data BI Summary'!$2:$2,0),FALSE),INDIRECT("'"&$E7&"'!"&"$A:$K"),9,FALSE) -> -0.00662155649 | N7: TOU (DRP applied) | O7: 0.2421 | P7: -0.18 | Q7: 0 | R7: 0.01973684211 | S7: -4.5 | T7: 0
B8: Average | C8: =VLOOKUP(A$6,'Data Billing Quantities'!A:P,MATCH(B8&" kWh",'Data Billing Quantities'!$4:$4,0),FALSE) -> 920 | E8: BI_R1_Avg | F8: BI Template_Energy | G8: =VLOOKUP(VLOOKUP($F8,'Data BI Summary'!$A:$F,MATCH(G$1,'Data BI Summary'!$2:$2,0),FALSE),INDIRECT("'"&$E8&"'!"&"$A:$K"),4,FALSE) -> 144.2819532 | H8: =VLOOKUP(VLOOKUP($F8,'Data BI Summary'!$A:$F,MATCH(H$1,'Data BI Summary'!$2:$2,0),FALSE),INDIRECT("'"&$E8&"'!"&"$A:$K"),8,FALSE) -> -1.03 | I8: =VLOOKUP(VLOOKUP($F8,'Data BI Summary'!$A:$F,MATCH(I$1,'Data BI Summary'!$2:$2,0),FALSE),INDIRECT("'"&$E8&"'!"&"$A:$K"),9,FALSE) -> -0.02848136268 | J8: =VLOOKUP(VLOOKUP($F8,'Data BI Summary'!$A:$F,MATCH(J$1,'Data BI Summary'!$2:$2,0),FALSE),INDIRECT("'"&$E8&"'!"&"$A:$K"),8,FALSE) -> -0.7696752 | K8: =VLOOKUP(VLOOKUP($F8,'Data BI Summary'!$A:$F,MATCH(K$1,'Data BI Summary'!$2:$2,0),FALSE),INDIRECT("'"&$E8&"'!"&"$A:$K"),9,FALSE) -> -0.005334521629 | O8: 0.296976 | P8: -0.18 | Q8: 0 | R8: 0.01973684211 | S8: -4.5 | T8: 0
B9: High | C9: =VLOOKUP(A$6,'Data Billing Quantities'!A:P,MATCH(B9&" kWh",'Data Billing Quantities'!$4:$4,0),FALSE) -> 1800 | E9: BI_R1_High | F9: BI Template_Energy | G9: =VLOOKUP(VLOOKUP($F9,'Data BI Summary'!$A:$F,MATCH(G$1,'Data BI Summary'!$2:$2,0),FALSE),INDIRECT("'"&$E9&"'!"&"$A:$K"),4,FALSE) -> 244.406778 | H9: =VLOOKUP(VLOOKUP($F9,'Data BI Summary'!$A:$F,MATCH(H$1,'Data BI Summary'!$2:$2,0),FALSE),INDIRECT("'"&$E9&"'!"&"$A:$K"),8,FALSE) -> -1.03 | I9: =VLOOKUP(VLOOKUP($F9,'Data BI Summary'!$A:$F,MATCH(I$1,'Data BI Summary'!$2:$2,0),FALSE),INDIRECT("'"&$E9&"'!"&"$A:$K"),9,FALSE) -> -0.02904681331 | J9: =VLOOKUP(VLOOKUP($F9,'Data BI Summary'!$A:$F,MATCH(J$1,'Data BI Summary'!$2:$2,0),FALSE),INDIRECT("'"&$E9&"'!"&"$A:$K"),8,FALSE) -> -0.471408 | K9: =VLOOKUP(VLOOKUP($F9,'Data BI Summary'!$A:$F,MATCH(K$1,'Data BI Summary'!$2:$2,0),FALSE),INDIRECT("'"&$E9&"'!"&"$A:$K"),9,FALSE) -> -0.001928784479 | O9: 0.58104 | P9: -0.18 | Q9: 0 | R9: 0.01973684211 | S9: -4.5 | T9: 0
A10: R2 | B10: Low | C10: =VLOOKUP(A$10,'Data Billing Quantities'!A:P,MATCH(B10&" kWh",'Data Billing Quantities'!$4:$4,0),FALSE) -> 450 | E10: BI_R2_Low | F10: BI Template_Energy | G10: =VLOOKUP(VLOOKUP($F10,'Data BI Summary'!$A:$F,MATCH(G$1,'Data BI Summary'!$2:$2,0),FALSE),INDIRECT("'"&$E10&"'!"&"$A:$K"),4,FALSE) -> 91.60070062 | H10: =VLOOKUP(VLOOKUP($F10,'Data BI Summary'!$A:$F,MATCH(H$1,'Data BI Summary'!$2:$2,0),FALSE),INDIRECT("'"&$E10&"'!"&"$A:$K"),8,FALSE) -> -2.165 | I10: =VLOOKUP(VLOOKUP($F10,'Data BI Summary'!$A:$F,MATCH(I$1,'Data BI Summary'!$2:$2,0),FALSE),INDIRECT("'"&$E10&"'!"&"$A:$K"),9,FALSE) -> -0.05936386071 | J10: =VLOOKUP(VLOOKUP($F10,'Data BI Summary'!$A:$F,MATCH(J$1,'Data BI Summary'!$2:$2,0),FALSE),INDIRECT("'"&$E10&"'!"&"$A:$K"),8,FALSE) -> -2.11661625 | K10: =VLOOKUP(VLOOKUP($F10,'Data BI Summary'!$A:$F,MATCH(K$1,'Data BI Summary'!$2:$2,0),FALSE),INDIRECT("'"&$E10&"'!"&"$A:$K"),9,FALSE) -> -0.02310698756 | L10: =L6 -> TOU (DRP applied) | O10: 0.149175 | P10: -0.11 | Q10: -0.135 | R10: 0.02112676056 | S10: -3.666666667 | T10: -0.375
B11: Typical | C11: =VLOOKUP(A$10,'Data Billing Quantities'!A:P,MATCH(B11&" kWh",'Data Billing Quantities'!$4:$4,0),FALSE) -> 750 | E11: BI_R2_Typical | F11: BI Template_Energy | G11: =VLOOKUP(VLOOKUP($F11,'Data BI Summary'!$A:$F,MATCH(G$1,'Data BI Summary'!$2:$2,0),FALSE),INDIRECT("'"&$E11&"'!"&"$A:$K"),4,FALSE) -> 126.3128344 | H11: =VLOOKUP(VLOOKUP($F11,'Data BI Summary'!$A:$F,MATCH(H$1,'Data BI Summary'!$2:$2,0),FALSE),INDIRECT("'"&$E11&"'!"&"$A:$K"),8,FALSE) -> -2.255 | I11: =VLOOKUP(VLOOKUP($F11,'Data BI Summary'!$A:$F,MATCH(I$1,'Data BI Summary'!$2:$2,0),FALSE),INDIRECT("'"&$E11&"'!"&"$A:$K"),9,FALSE) -> -0.06224123654 | J11: =VLOOKUP(VLOOKUP($F11,'Data BI Summary'!$A:$F,MATCH(J$1,'Data BI Summary'!$2:$2,0),FALSE),INDIRECT("'"&$E11&"'!"&"$A:$K"),8,FALSE) -> -2.10669375 | K11: =VLOOKUP(VLOOKUP($F11,'Data BI Summary'!$A:$F,MATCH(K$1,'Data BI Summary'!$2:$2,0),FALSE),INDIRECT("'"&$E11&"'!"&"$A:$K"),9,FALSE) -> -0.01667838237 | O11: 0.248625 | P11: -0.11 | Q11: -0.225 | R11: 0.02112676056 | S11: -3.666666667 | T11: -0.375
B12: Average | C12: =VLOOKUP(A$10,'Data Billing Quantities'!A:P,MATCH(B12&" kWh",'Data Billing Quantities'!$4:$4,0),FALSE) -> 1152 | E12: BI_R2_Avg | F12: BI Template_Energy | G12: =VLOOKUP(VLOOKUP($F12,'Data BI Summary'!$A:$F,MATCH(G$1,'Data BI Summary'!$2:$2,0),FALSE),INDIRECT("'"&$E12&"'!"&"$A:$K"),4,FALSE) -> 172.8270936 | H12: =VLOOKUP(VLOOKUP($F12,'Data BI Summary'!$A:$F,MATCH(H$1,'Data BI Summary'!$2:$2,0),FALSE),INDIRECT("'"&$E12&"'!"&"$A:$K"),8,FALSE) -> -2.3756 | I12: =VLOOKUP(VLOOKUP($F12,'Data BI Summary'!$A:$F,MATCH(I$1,'Data BI Summary'!$2:$2,0),FALSE),INDIRECT("'"&$E12&"'!"&"$A:$K"),9,FALSE) -> -0.06615722227 | J12: =VLOOKUP(VLOOKUP($F12,'Data BI Summary'!$A:$F,MATCH(J$1,'Data BI Summary'!$2:$2,0),FALSE),INDIRECT("'"&$E12&"'!"&"$A:$K"),8,FALSE) -> -2.0933976 | K12: =VLOOKUP(VLOOKUP($F12,'Data BI Summary'!$A:$F,MATCH(K$1,'Data BI Summary'!$2:$2,0),FALSE),INDIRECT("'"&$E12&"'!"&"$A:$K"),9,FALSE) -> -0.01211267028 | O12: 0.381888 | P12: -0.11 | Q12: -0.3456 | R12: 0.02112676056 | S12: -3.666666667 | T12: -0.375
B13: High | C13: =VLOOKUP(A$10,'Data Billing Quantities'!A:P,MATCH(B13&" kWh",'Data Billing Quantities'!$4:$4,0),FALSE) -> 2300 | E13: BI_R2_High | F13: BI Template_Energy | G13: =VLOOKUP(VLOOKUP($F13,'Data BI Summary'!$A:$F,MATCH(G$1,'Data BI Summary'!$2:$2,0),FALSE),INDIRECT("'"&$E13&"'!"&"$A:$K"),4,FALSE) -> 305.6588587 | H13: =VLOOKUP(VLOOKUP($F13,'Data BI Summary'!$A:$F,MATCH(H$1,'Data BI Summary'!$2:$2,0),FALSE),INDIRECT("'"&$E13&"'!"&"$A:$K"),8,FALSE) -> -2.72 | I13: =VLOOKUP(VLOOKUP($F13,'Data BI Summary'!$A:$F,MATCH(I$1,'Data BI Summary'!$2:$2,0),FALSE),INDIRECT("'"&$E13&"'!"&"$A:$K"),9,FALSE) -> -0.07773649614 | J13: =VLOOKUP(VLOOKUP($F13,'Data BI Summary'!$A:$F,MATCH(J$1,'Data BI Summary'!$2:$2,0),FALSE),INDIRECT("'"&$E13&"'!"&"$A:$K"),8,FALSE) -> -2.0554275 | K13: =VLOOKUP(VLOOKUP($F13,'Data BI Summary'!$A:$F,MATCH(K$1,'Data BI Summary'!$2:$2,0),FALSE),INDIRECT("'"&$E13&"'!"&"$A:$K"),9,FALSE) -> -0.006724580169 | O13: 0.76245 | P13: -0.11 | Q13: -0.69 | R13: 0.02112676056 | S13: -3.666666667 | T13: -0.375
A14: Seasonal | B14: Low | C14: =VLOOKUP(A$14,'Data Billing Quantities'!A:P,MATCH(B14&" kWh",'Data Billing Quantities'!$4:$4,0),FALSE) -> 50 | E14: BI_Seas_Low | F14: BI Template_Energy | G14: =VLOOKUP(VLOOKUP($F14,'Data BI Summary'!$A:$F,MATCH(G$1,'Data BI Summary'!$2:$2,0),FALSE),INDIRECT("'"&$E14&"'!"&"$A:$K"),4,FALSE) -> 57.828708 | H14: =VLOOKUP(VLOOKUP($F14,'Data BI Summary'!$A:$F,MATCH(H$1,'Data BI Summary'!$2:$2,0),FALSE),INDIRECT("'"&$E14&"'!"&"$A:$K"),8,FALSE) -> 2.955 | I14: =VLOOKUP(VLOOKUP($F14,'Data BI Summary'!$A:$F,MATCH(I$1,'Data BI Summary'!$2:$2,0),FALSE),INDIRECT("'"&$E14&"'!"&"$A:$K"),9,FALSE) -> 0.06053467172 | J14: =VLOOKUP(VLOOKUP($F14,'Data BI Summary'!$A:$F,MATCH(J$1,'Data BI Summary'!$2:$2,0),FALSE),INDIRECT("'"&$E14&"'!"&"$A:$K"),8,FALSE) -> 3.114342 | K14: =VLOOKUP(VLOOKUP($F14,'Data BI Summary'!$A:$F,MATCH(K$1,'Data BI Summary'!$2:$2,0),FALSE),INDIRECT("'"&$E14&"'!"&"$A:$K"),9,FALSE) -> 0.05385460107 | L14: TOU | O14: 0.01104 | P14: -0.17 | Q14: -0.07 | R14: 0.0162601626 | S14: -5.666666667 | T14: -1.555555556
B15: Average | C15: =VLOOKUP(A$14,'Data Billing Quantities'!A:P,MATCH(B15&" kWh",'Data Billing Quantities'!$4:$4,0),FALSE) -> 352 | E15: BI_Seas_Avg | F15: BI Template_Energy | G15: =VLOOKUP(VLOOKUP($F15,'Data BI Summary'!$A:$F,MATCH(G$1,'Data BI Summary'!$2:$2,0),FALSE),INDIRECT("'"&$E15&"'!"&"$A:$K"),4,FALSE) -> 111.5769043 | H15: =VLOOKUP(VLOOKUP($F15,'Data BI Summary'!$A:$F,MATCH(H$1,'Data BI Summary'!$2:$2,0),FALSE),INDIRECT("'"&$E15&"'!"&"$A:$K"),8,FALSE) -> -2.7528 | I15: =VLOOKUP(VLOOKUP($F15,'Data BI Summary'!$A:$F,MATCH(I$1,'Data BI Summary'!$2:$2,0),FALSE),INDIRECT("'"&$E15&"'!"&"$A:$K"),9,FALSE) -> -0.04099698569 | J15: =VLOOKUP(VLOOKUP($F15,'Data BI Summary'!$A:$F,MATCH(J$1,'Data BI Summary'!$2:$2,0),FALSE),INDIRECT("'"&$E15&"'!"&"$A:$K"),8,FALSE) -> -2.80883232 | K15: =VLOOKUP(VLOOKUP($F15,'Data BI Summary'!$A:$F,MATCH(K$1,'Data BI Summary'!$2:$2,0),FALSE),INDIRECT("'"&$E15&"'!"&"$A:$K"),9,FALSE) -> -0.02517395815 | O15: 0.0777216 | P15: -0.17 | Q15: -0.4928 | R15: 0.0162601626 | S15: -5.666666667 | T15: -1.555555556
B16: High | C16: =VLOOKUP(A$14,'Data Billing Quantities'!A:P,MATCH(B16&" kWh",'Data Billing Quantities'!$4:$4,0),FALSE) -> 1000 | E16: BI_Seas_High | F16: BI Template_Energy | G16: =VLOOKUP(VLOOKUP($F16,'Data BI Summary'!$A:$F,MATCH(G$1,'Data BI Summary'!$2:$2,0),FALSE),INDIRECT("'"&$E16&"'!"&"$A:$K"),4,FALSE) -> 226.90416 | H16: =VLOOKUP(VLOOKUP($F16,'Data BI Summary'!$A:$F,MATCH(H$1,'Data BI Summary'!$2:$2,0),FALSE),INDIRECT("'"&$E16&"'!"&"$A:$K"),8,FALSE) -> -15 | I16: =VLOOKUP(VLOOKUP($F16,'Data BI Summary'!$A:$F,MATCH(I$1,'Data BI Summary'!$2:$2,0),FALSE),INDIRECT("'"&$E16&"'!"&"$A:$K"),9,FALSE) -> -0.1408715252 | J16: =VLOOKUP(VLOOKUP($F16,'Data BI Summary'!$A:$F,MATCH(J$1,'Data BI Summary'!$2:$2,0),FALSE),INDIRECT("'"&$E16&"'!"&"$A:$K"),8,FALSE) -> -15.51816 | K16: =VLOOKUP(VLOOKUP($F16,'Data BI Summary'!$A:$F,MATCH(K$1,'Data BI Summary'!$2:$2,0),FALSE),INDIRECT("'"&$E16&"'!"&"$A:$K"),9,FALSE) -> -0.06839081311 | O16: 0.2208 | P16: -0.17 | Q16: -1.4 | R16: 0.0162601626 | S16: -5.666666667 | T16: -1.555555556
A17: GSe | B17: Low | C17: =VLOOKUP(A$17,'Data Billing Quantities'!A:P,MATCH(B17&" kWh",'Data Billing Quantities'!$4:$4,0),FALSE) -> 1000 | E17: BI_GSe_Low | F17: BI Template_Energy | G17: =VLOOKUP(VLOOKUP($F17,'Data BI Summary'!$A:$F,MATCH(G$1,'Data BI Summary'!$2:$2,0),FALSE),INDIRECT("'"&$E17&"'!"&"$A:$K"),4,FALSE) -> 215.90394 | H17: =VLOOKUP(VLOOKUP($F17,'Data BI Summary'!$A:$F,MATCH(H$1,'Data BI Summary'!$2:$2,0),FALSE),INDIRECT("'"&$E17&"'!"&"$A:$K"),8,FALSE) -> -2.85 | I17: =VLOOKUP(VLOOKUP($F17,'Data BI Summary'!$A:$F,MATCH(I$1,'Data BI Summary'!$2:$2,0),FALSE),INDIRECT("'"&$E17&"'!"&"$A:$K"),9,FALSE) -> -0.02927881652 | J17: =VLOOKUP(VLOOKUP($F17,'Data BI Summary'!$A:$F,MATCH(J$1,'Data BI Summary'!$2:$2,0),FALSE),INDIRECT("'"&$E17&"'!"&"$A:$K"),8,FALSE) -> -2.64726 | K17: =VLOOKUP(VLOOKUP($F17,'Data BI Summary'!$A:$F,MATCH(K$1,'Data BI Summary'!$2:$2,0),FALSE),INDIRECT("'"&$E17&"'!"&"$A:$K"),9,FALSE) -> -0.0122612862 | L17: TOU | O17: 0.3288 | P17: -0.17 | Q17: 0.1 | R17: 0.02542372881 | S17: -5.666666667 | T17: 0.125
B18: Typical | C18: =VLOOKUP(A$17,'Data Billing Quantities'!A:P,MATCH(B18&" kWh",'Data Billing Quantities'!$4:$4,0),FALSE) -> 2000 | E18: BI_GSe_Typical | F18: BI Template_Energy | G18: =VLOOKUP(VLOOKUP($F18,'Data BI Summary'!$A:$F,MATCH(G$1,'Data BI Summary'!$2:$2,0),FALSE),INDIRECT("'"&$E18&"'!"&"$A:$K"),4,FALSE) -> 395.20488 | H18: =VLOOKUP(VLOOKUP($F18,'Data BI Summary'!$A:$F,MATCH(H$1,'Data BI Summary'!$2:$2,0),FALSE),INDIRECT("'"&$E18&"'!"&"$A:$K"),8,FALSE) -> -3.55 | I18: =VLOOKUP(VLOOKUP($F18,'Data BI Summary'!$A:$F,MATCH(I$1,'Data BI Summary'!$2:$2,0),FALSE),INDIRECT("'"&$E18&"'!"&"$A:$K"),9,FALSE) -> -0.02209910359 | J18: =VLOOKUP(VLOOKUP($F18,'Data BI Summary'!$A:$F,MATCH(J$1,'Data BI Summary'!$2:$2,0),FALSE),INDIRECT("'"&$E18&"'!"&"$A:$K"),8,FALSE) -> -3.03702 | K18: =VLOOKUP(VLOOKUP($F18,'Data BI Summary'!$A:$F,MATCH(K$1,'Data BI Summary'!$2:$2,0),FALSE),INDIRECT("'"&$E18&"'!"&"$A:$K"),9,FALSE) -> -0.007684672315 | O18: 0.6576 | P18: -0.17 | Q18: 0.2 | R18: 0.02542372881 | S18: -5.666666667 | T18: 0.125
B19: Average | C19: =VLOOKUP(A$17,'Data Billing Quantities'!A:P,MATCH(B19&" kWh",'Data Billing Quantities'!$4:$4,0),FALSE) -> 1982 | E19: BI_GSe_Avg | F19: BI Template_Energy | G19: =VLOOKUP(VLOOKUP($F19,'Data BI Summary'!$A:$F,MATCH(G$1,'Data BI Summary'!$2:$2,0),FALSE),INDIRECT("'"&$E19&"'!"&"$A:$K"),4,FALSE) -> 391.9774631 | H19: =VLOOKUP(VLOOKUP($F19,'Data BI Summary'!$A:$F,MATCH(H$1,'Data BI Summary'!$2:$2,0),FALSE),INDIRECT("'"&$E19&"'!"&"$A:$K"),8,FALSE) -> -3.5374 | I19: =VLOOKUP(VLOOKUP($F19,'Data BI Summary'!$A:$F,MATCH(I$1,'Data BI Summary'!$2:$2,0),FALSE),INDIRECT("'"&$E19&"'!"&"$A:$K"),9,FALSE) -> -0.022177973 | J19: =VLOOKUP(VLOOKUP($F19,'Data BI Summary'!$A:$F,MATCH(J$1,'Data BI Summary'!$2:$2,0),FALSE),INDIRECT("'"&$E19&"'!"&"$A:$K"),8,FALSE) -> -3.03000432 | K19: =VLOOKUP(VLOOKUP($F19,'Data BI Summary'!$A:$F,MATCH(K$1,'Data BI Summary'!$2:$2,0),FALSE),INDIRECT("'"&$E19&"'!"&"$A:$K"),9,FALSE) -> -0.007730047274 | O19: 0.6516816 | P19: -0.17 | Q19: 0.1982 | R19: 0.02542372881 | S19: -5.666666667 | T19: 0.125
B20: High | C20: =VLOOKUP(A$17,'Data Billing Quantities'!A:P,MATCH(B20&" kWh",'Data Billing Quantities'!$4:$4,0),FALSE) -> 15000 | E20: BI_GSe_High | F20: BI Template_Energy | G20: =VLOOKUP(VLOOKUP($F20,'Data BI Summary'!$A:$F,MATCH(G$1,'Data BI Summary'!$2:$2,0),FALSE),INDIRECT("'"&$E20&"'!"&"$A:$K"),4,FALSE) -> 2726.1171 | H20: =VLOOKUP(VLOOKUP($F20,'Data BI Summary'!$A:$F,MATCH(H$1,'Data BI Summary'!$2:$2,0),FALSE),INDIRECT("'"&$E20&"'!"&"$A:$K"),8,FALSE) -> -12.65 | I20: =VLOOKUP(VLOOKUP($F20,'Data BI Summary'!$A:$F,MATCH(I$1,'Data BI Summary'!$2:$2,0),FALSE),INDIRECT("'"&$E20&"'!"&"$A:$K"),9,FALSE) -> -0.01286170364 | J20: =VLOOKUP(VLOOKUP($F20,'Data BI Summary'!$A:$F,MATCH(J$1,'Data BI Summary'!$2:$2,0),FALSE),INDIRECT("'"&$E20&"'!"&"$A:$K"),8,FALSE) -> -8.1039 | K20: =VLOOKUP(VLOOKUP($F20,'Data BI Summary'!$A:$F,MATCH(K$1,'Data BI Summary'!$2:$2,0),FALSE),INDIRECT("'"&$E20&"'!"&"$A:$K"),9,FALSE) -> -0.002972689618 | O20: 4.932 | P20: -0.17 | Q20: 1.5 | R20: 0.02542372881 | S20: -5.666666667 | T20: 0.125
A21: UGe | B21: Low | C21: =VLOOKUP(A$21,'Data Billing Quantities'!A:P,MATCH(B21&" kWh",'Data Billing Quantities'!$4:$4,0),FALSE) -> 1000 | E21: BI_UGe_Low | F21: BI Template_Energy | G21: =VLOOKUP(VLOOKUP($F21,'Data BI Summary'!$A:$F,MATCH(G$1,'Data BI Summary'!$2:$2,0),FALSE),INDIRECT("'"&$E21&"'!"&"$A:$K"),4,FALSE) -> 169.8580275 | H21: =VLOOKUP(VLOOKUP($F21,'Data BI Summary'!$A:$F,MATCH(H$1,'Data BI Summary'!$2:$2,0),FALSE),INDIRECT("'"&$E21&"'!"&"$A:$K"),8,FALSE) -> -0.7 | I21: =VLOOKUP(VLOOKUP($F21,'Data BI Summary'!$A:$F,MATCH(I$1,'Data BI Summary'!$2:$2,0),FALSE),INDIRECT("'"&$E21&"'!"&"$A:$K"),9,FALSE) -> -0.01256958161 | J21: =VLOOKUP(VLOOKUP($F21,'Data BI Summary'!$A:$F,MATCH(J$1,'Data BI Summary'!$2:$2,0),FALSE),INDIRECT("'"&$E21&"'!"&"$A:$K"),8,FALSE) -> -0.398895 | K21: =VLOOKUP(VLOOKUP($F21,'Data BI Summary'!$A:$F,MATCH(K$1,'Data BI Summary'!$2:$2,0),FALSE),INDIRECT("'"&$E21&"'!"&"$A:$K"),9,FALSE) -> -0.002348402403 | L21: TOU | O21: 0.3201 | P21: -0.19 | Q21: 0.5 | R21: 0.02419354839 | S21: -3.8 | T21: 0.625
B22: Typical | C22: =VLOOKUP(A$21,'Data Billing Quantities'!A:P,MATCH(B22&" kWh",'Data Billing Quantities'!$4:$4,0),FALSE) -> 2000 | E22: BI_UGe_Typical | F22: BI Template_Energy | G22: =VLOOKUP(VLOOKUP($F22,'Data BI Summary'!$A:$F,MATCH(G$1,'Data BI Summary'!$2:$2,0),FALSE),INDIRECT("'"&$E22&"'!"&"$A:$K"),4,FALSE) -> 311.985555 | H22: =VLOOKUP(VLOOKUP($F22,'Data BI Summary'!$A:$F,MATCH(H$1,'Data BI Summary'!$2:$2,0),FALSE),INDIRECT("'"&$E22&"'!"&"$A:$K"),8,FALSE) -> -0.9 | I22: =VLOOKUP(VLOOKUP($F22,'Data BI Summary'!$A:$F,MATCH(I$1,'Data BI Summary'!$2:$2,0),FALSE),INDIRECT("'"&$E22&"'!"&"$A:$K"),9,FALSE) -> -0.01049073319 | J22: =VLOOKUP(VLOOKUP($F22,'Data BI Summary'!$A:$F,MATCH(J$1,'Data BI Summary'!$2:$2,0),FALSE),INDIRECT("'"&$E22&"'!"&"$A:$K"),8,FALSE) -> -0.27279 | K22: =VLOOKUP(VLOOKUP($F22,'Data BI Summary'!$A:$F,MATCH(K$1,'Data BI Summary'!$2:$2,0),FALSE),INDIRECT("'"&$E22&"'!"&"$A:$K"),9,FALSE) -> -0.0008743674046 | O22: 0.6402 | P22: -0.19 | Q22: 1 | R22: 0.02419354839 | S22: -3.8 | T22: 0.625
B23: Average | C23: =VLOOKUP(A$21,'Data Billing Quantities'!A:P,MATCH(B23&" kWh",'Data Billing Quantities'!$4:$4,0),FALSE) -> 2759 | E23: BI_UGe_Avg | F23: BI Template_Energy | G23: =VLOOKUP(VLOOKUP($F23,'Data BI Summary'!$A:$F,MATCH(G$1,'Data BI Summary'!$2:$2,0),FALSE),INDIRECT("'"&$E23&"'!"&"$A:$K"),4,FALSE) -> 419.8603484 | H23: =VLOOKUP(VLOOKUP($F23,'Data BI Summary'!$A:$F,MATCH(H$1,'Data BI Summary'!$2:$2,0),FALSE),INDIRECT("'"&$E23&"'!"&"$A:$K"),8,FALSE) -> -1.0518 | I23: =VLOOKUP(VLOOKUP($F23,'Data BI Summary'!$A:$F,MATCH(I$1,'Data BI Summary'!$2:$2,0),FALSE),INDIRECT("'"&$E23&"'!"&"$A:$K"),9,FALSE) -> -0.009681882324 | J23: =VLOOKUP(VLOOKUP($F23,'Data BI Summary'!$A:$F,MATCH(J$1,'Data BI Summary'!$2:$2,0),FALSE),INDIRECT("'"&$E23&"'!"&"$A:$K"),8,FALSE) -> -0.177076305 | K23: =VLOOKUP(VLOOKUP($F23,'Data BI Summary'!$A:$F,MATCH(K$1,'Data BI Summary'!$2:$2,0),FALSE),INDIRECT("'"&$E23&"'!"&"$A:$K"),9,FALSE) -> -0.0004217504837 | O23: 0.8831559 | P23: -0.19 | Q23: 1.3795 | R23: 0.02419354839 | S23: -3.8 | T23: 0.625
B24: High | C24: =VLOOKUP(A$21,'Data Billing Quantities'!A:P,MATCH(B24&" kWh",'Data Billing Quantities'!$4:$4,0),FALSE) -> 15000 | E24: BI_UGe_High | F24: BI Template_Energy | G24: =VLOOKUP(VLOOKUP($F24,'Data BI Summary'!$A:$F,MATCH(G$1,'Data BI Summary'!$2:$2,0),FALSE),INDIRECT("'"&$E24&"'!"&"$A:$K"),4,FALSE) -> 2159.643413 | H24: =VLOOKUP(VLOOKUP($F24,'Data BI Summary'!$A:$F,MATCH(H$1,'Data BI Summary'!$2:$2,0),FALSE),INDIRECT("'"&$E24&"'!"&"$A:$K"),8,FALSE) -> -3.5 | I24: =VLOOKUP(VLOOKUP($F24,'Data BI Summary'!$A:$F,MATCH(I$1,'Data BI Summary'!$2:$2,0),FALSE),INDIRECT("'"&$E24&"'!"&"$A:$K"),9,FALSE) -> -0.007336142028 | J24: =VLOOKUP(VLOOKUP($F24,'Data BI Summary'!$A:$F,MATCH(J$1,'Data BI Summary'!$2:$2,0),FALSE),INDIRECT("'"&$E24&"'!"&"$A:$K"),8,FALSE) -> 1.366575 | K24: =VLOOKUP(VLOOKUP($F24,'Data BI Summary'!$A:$F,MATCH(K$1,'Data BI Summary'!$2:$2,0),FALSE),INDIRECT("'"&$E24&"'!"&"$A:$K"),9,FALSE) -> 0.0006327780744 | O24: 4.8015 | P24: -0.19 | Q24: 7.5 | R24: 0.02419354839 | S24: -3.8 | T24: 0.625
A25: GSd | B25: Low | C25: =VLOOKUP(A$25,'Data Billing Quantities'!A:P,MATCH(B25&" kWh",'Data Billing Quantities'!$4:$4,0),FALSE) -> 15000 | D25: =VLOOKUP(A$25,'Data Billing Quantities'!A:P,MATCH(B25&" kW",'Data Billing Quantities'!$4:$4,0),FALSE) -> 60 | E25: BI_GSd_Low | F25: BI Template_Demand | G25: =VLOOKUP(VLOOKUP($F25,'Data BI Summary'!$A:$F,MATCH(G$1,'Data BI Summary'!$2:$2,0),FALSE),INDIRECT("'"&$E25&"'!"&"$A:$K"),4,FALSE) -> 3775.05089 | H25: =VLOOKUP(VLOOKUP($F25,'Data BI Summary'!$A:$F,MATCH(H$1,'Data BI Summary'!$2:$2,0),FALSE),INDIRECT("'"&$E25&"'!"&"$A:$K"),8,FALSE) -> 29.456 | I25: =VLOOKUP(VLOOKUP($F25,'Data BI Summary'!$A:$F,MATCH(I$1,'Data BI Summary'!$2:$2,0),FALSE),INDIRECT("'"&$E25&"'!"&"$A:$K"),9,FALSE) -> 0.02676884922 | J25: =VLOOKUP(VLOOKUP($F25,'Data BI Summary'!$A:$F,MATCH(J$1,'Data BI Summary'!$2:$2,0),FALSE),INDIRECT("'"&$E25&"'!"&"$A:$K"),8,FALSE) -> 37.86856 | K25: =VLOOKUP(VLOOKUP($F25,'Data BI Summary'!$A:$F,MATCH(K$1,'Data BI Summary'!$2:$2,0),FALSE),INDIRECT("'"&$E25&"'!"&"$A:$K"),9,FALSE) -> 0.01003127139 | L25: Non-RPP | O25: 4.056 | P25: 0.05 | Q25: 16.632 | R25: 0.0183940573 | S25: 1 | T25: 1.044067797 | U25: 0.4179104478
B26: Average | C26: =VLOOKUP(A$25,'Data Billing Quantities'!A:P,MATCH(B26&" kWh",'Data Billing Quantities'!$4:$4,0),FALSE) -> 36104 | D26: =VLOOKUP(A$25,'Data Billing Quantities'!A:P,MATCH(B26&" kW",'Data Billing Quantities'!$4:$4,0),FALSE) -> 124 | E26: BI_GSd_Avg | F26: BI Template_Demand | G26: =VLOOKUP(VLOOKUP($F26,'Data BI Summary'!$A:$F,MATCH(G$1,'Data BI Summary'!$2:$2,0),FALSE),INDIRECT("'"&$E26&"'!"&"$A:$K"),4,FALSE) -> 8396.75038 | H26: =VLOOKUP(VLOOKUP($F26,'Data BI Summary'!$A:$F,MATCH(H$1,'Data BI Summary'!$2:$2,0),FALSE),INDIRECT("'"&$E26&"'!"&"$A:$K"),8,FALSE) -> 86.2893632 | I26: =VLOOKUP(VLOOKUP($F26,'Data BI Summary'!$A:$F,MATCH(I$1,'Data BI Summary'!$2:$2,0),FALSE),INDIRECT("'"&$E26&"'!"&"$A:$K"),9,FALSE) -> 0.04082355441 | J26: =VLOOKUP(VLOOKUP($F26,'Data BI Summary'!$A:$F,MATCH(J$1,'Data BI Summary'!$2:$2,0),FALSE),INDIRECT("'"&$E26&"'!"&"$A:$K"),8,FALSE) -> 106.9790924 | K26: =VLOOKUP(VLOOKUP($F26,'Data BI Summary'!$A:$F,MATCH(K$1,'Data BI Summary'!$2:$2,0),FALSE),INDIRECT("'"&$E26&"'!"&"$A:$K"),9,FALSE) -> 0.01274053504 | O26: 8.3824 | P26: 0.05 | Q26: 34.3728 | R26: 0.0183940573 | S26: 1 | T26: 1.044067797 | U26: 0.4179104478
B27: High | C27: =VLOOKUP(A$25,'Data Billing Quantities'!A:P,MATCH(B27&" kWh",'Data Billing Quantities'!$4:$4,0),FALSE) -> 175000 | D27: =VLOOKUP(A$25,'Data Billing Quantities'!A:P,MATCH(B27&" kW",'Data Billing Quantities'!$4:$4,0),FALSE) -> 500 | E27: BI_GSd_High | F27: BI Template_Demand | G27: =VLOOKUP(VLOOKUP($F27,'Data BI Summary'!$A:$F,MATCH(G$1,'Data BI Summary'!$2:$2,0),FALSE),INDIRECT("'"&$E27&"'!"&"$A:$K"),4,FALSE) -> 37697.93565 | H27: =VLOOKUP(VLOOKUP($F27,'Data BI Summary'!$A:$F,MATCH(H$1,'Data BI Summary'!$2:$2,0),FALSE),INDIRECT("'"&$E27&"'!"&"$A:$K"),8,FALSE) -> 464.48 | I27: =VLOOKUP(VLOOKUP($F27,'Data BI Summary'!$A:$F,MATCH(I$1,'Data BI Summary'!$2:$2,0),FALSE),INDIRECT("'"&$E27&"'!"&"$A:$K"),9,FALSE) -> 0.05834408098 | J27: =VLOOKUP(VLOOKUP($F27,'Data BI Summary'!$A:$F,MATCH(J$1,'Data BI Summary'!$2:$2,0),FALSE),INDIRECT("'"&$E27&"'!"&"$A:$K"),8,FALSE) -> 563.0564 | K27: =VLOOKUP(VLOOKUP($F27,'Data BI Summary'!$A:$F,MATCH(K$1,'Data BI Summary'!$2:$2,0),FALSE),INDIRECT("'"&$E27&"'!"&"$A:$K"),9,FALSE) -> 0.01493600088 | O27: 33.8 | P27: 0.05 | Q27: 138.6 | R27: 0.0183940573 | S27: 1 | T27: 1.044067797 | U27: 0.4179104478
A28: UGd | B28: Low | C28: =VLOOKUP(A$28,'Data Billing Quantities'!A:P,MATCH(B28&" kWh",'Data Billing Quantities'!$4:$4,0),FALSE) -> 15000 | D28: =VLOOKUP(A$28,'Data Billing Quantities'!A:P,MATCH(B28&" kW",'Data Billing Quantities'!$4:$4,0),FALSE) -> 60 | E28: BI_UGd_Low | F28: BI Template_Demand | G28: =VLOOKUP(VLOOKUP($F28,'Data BI Summary'!$A:$F,MATCH(G$1,'Data BI Summary'!$2:$2,0),FALSE),INDIRECT("'"&$E28&"'!"&"$A:$K"),4,FALSE) -> 3273.35462 | H28: =VLOOKUP(VLOOKUP($F28,'Data BI Summary'!$A:$F,MATCH(H$1,'Data BI Summary'!$2:$2,0),FALSE),INDIRECT("'"&$E28&"'!"&"$A:$K"),8,FALSE) -> 60.972 | I28: =VLOOKUP(VLOOKUP($F28,'Data BI Summary'!$A:$F,MATCH(I$1,'Data BI Summary'!$2:$2,0),FALSE),INDIRECT("'"&$E28&"'!"&"$A:$K"),9,FALSE) -> 0.09892479399 | J28: =VLOOKUP(VLOOKUP($F28,'Data BI Summary'!$A:$F,MATCH(J$1,'Data BI Summary'!$2:$2,0),FALSE),INDIRECT("'"&$E28&"'!"&"$A:$K"),8,FALSE) -> 74.7495 | K28: =VLOOKUP(VLOOKUP($F28,'Data BI Summary'!$A:$F,MATCH(K$1,'Data BI Summary'!$2:$2,0),FALSE),INDIRECT("'"&$E28&"'!"&"$A:$K"),9,FALSE) -> 0.02283574763 | L28: Non-RPP | O28: 5.178 | P28: -0.06 | Q28: 24.804 | R28: 0.01839418548 | S28: -1 | T28: 1.345703125 | U28: 0.4179104478
B29: Average | C29: =VLOOKUP(A$28,'Data Billing Quantities'!A:P,MATCH(B29&" kWh",'Data Billing Quantities'!$4:$4,0),FALSE) -> 50525 | D29: =VLOOKUP(A$28,'Data Billing Quantities'!A:P,MATCH(B29&" kW",'Data Billing Quantities'!$4:$4,0),FALSE) -> 135 | E29: BI_UGd_Avg | F29: BI Template_Demand | G29: =VLOOKUP(VLOOKUP($F29,'Data BI Summary'!$A:$F,MATCH(G$1,'Data BI Summary'!$2:$2,0),FALSE),INDIRECT("'"&$E29&"'!"&"$A:$K"),4,FALSE) -> 9615.609852 | H29: =VLOOKUP(VLOOKUP($F29,'Data BI Summary'!$A:$F,MATCH(H$1,'Data BI Summary'!$2:$2,0),FALSE),INDIRECT("'"&$E29&"'!"&"$A:$K"),8,FALSE) -> 188.2305 | I29: =VLOOKUP(VLOOKUP($F29,'Data BI Summary'!$A:$F,MATCH(I$1,'Data BI Summary'!$2:$2,0),FALSE),INDIRECT("'"&$E29&"'!"&"$A:$K"),9,FALSE) -> 0.164601016 | J29: =VLOOKUP(VLOOKUP($F29,'Data BI Summary'!$A:$F,MATCH(J$1,'Data BI Summary'!$2:$2,0),FALSE),INDIRECT("'"&$E29&"'!"&"$A:$K"),8,FALSE) -> 225.86553 | K29: =VLOOKUP(VLOOKUP($F29,'Data BI Summary'!$A:$F,MATCH(K$1,'Data BI Summary'!$2:$2,0),FALSE),INDIRECT("'"&$E29&"'!"&"$A:$K"),9,FALSE) -> 0.02348946489 | O29: 11.6505 | P29: -0.06 | Q29: 55.809 | R29: 0.01839418548 | S29: -1 | T29: 1.345703125 | U29: 0.4179104478
B30: High | C30: =VLOOKUP(A$28,'Data Billing Quantities'!A:P,MATCH(B30&" kWh",'Data Billing Quantities'!$4:$4,0),FALSE) -> 175000 | D30: =VLOOKUP(A$28,'Data Billing Quantities'!A:P,MATCH(B30&" kW",'Data Billing Quantities'!$4:$4,0),FALSE) -> 500 | E30: BI_UGd_High | F30: BI Template_Demand | G30: =VLOOKUP(VLOOKUP($F30,'Data BI Summary'!$A:$F,MATCH(G$1,'Data BI Summary'!$2:$2,0),FALSE),INDIRECT("'"&$E30&"'!"&"$A:$K"),4,FALSE) -> 33576.6731 | H30: =VLOOKUP(VLOOKUP($F30,'Data BI Summary'!$A:$F,MATCH(H$1,'Data BI Summary'!$2:$2,0),FALSE),INDIRECT("'"&$E30&"'!"&"$A:$K"),8,FALSE) -> 665.22 | I30: =VLOOKUP(VLOOKUP($F30,'Data BI Summary'!$A:$F,MATCH(I$1,'Data BI Summary'!$2:$2,0),FALSE),INDIRECT("'"&$E30&"'!"&"$A:$K"),9,FALSE) -> 0.1642561103 | J30: =VLOOKUP(VLOOKUP($F30,'Data BI Summary'!$A:$F,MATCH(J$1,'Data BI Summary'!$2:$2,0),FALSE),INDIRECT("'"&$E30&"'!"&"$A:$K"),8,FALSE) -> 800.4581 | K30: =VLOOKUP(VLOOKUP($F30,'Data BI Summary'!$A:$F,MATCH(K$1,'Data BI Summary'!$2:$2,0),FALSE),INDIRECT("'"&$E30&"'!"&"$A:$K"),9,FALSE) -> 0.02383970853 | O30: 43.15 | P30: -0.06 | Q30: 206.7 | R30: 0.01839418548 | S30: -1 | T30: 1.345703125 | U30: 0.4179104478
A31: St Lgt | B31: Low | C31: =VLOOKUP(A$31,'Data Billing Quantities'!A:P,MATCH(B31&" kWh",'Data Billing Quantities'!$4:$4,0),FALSE) -> 100 | E31: BI_StLgt_Low | F31: BI Template_EnergyUNM | G31: =VLOOKUP(VLOOKUP($F31,'Data BI Summary'!$A:$F,MATCH(G$1,'Data BI Summary'!$2:$2,0),FALSE),INDIRECT("'"&$E31&"'!"&"$A:$K"),4,FALSE) -> 24.670002 | H31: =VLOOKUP(VLOOKUP($F31,'Data BI Summary'!$A:$F,MATCH(H$1,'Data BI Summary'!$2:$2,0),FALSE),INDIRECT("'"&$E31&"'!"&"$A:$K"),8,FALSE) -> 0.52 | I31: =VLOOKUP(VLOOKUP($F31,'Data BI Summary'!$A:$F,MATCH(I$1,'Data BI Summary'!$2:$2,0),FALSE),INDIRECT("'"&$E31&"'!"&"$A:$K"),9,FALSE) -> 0.03866171004 | J31: =VLOOKUP(VLOOKUP($F31,'Data BI Summary'!$A:$F,MATCH(J$1,'Data BI Summary'!$2:$2,0),FALSE),INDIRECT("'"&$E31&"'!"&"$A:$K"),8,FALSE) -> 0.568932 | K31: =VLOOKUP(VLOOKUP($F31,'Data BI Summary'!$A:$F,MATCH(K$1,'Data BI Summary'!$2:$2,0),FALSE),INDIRECT("'"&$E31&"'!"&"$A:$K"),9,FALSE) -> 0.0230616925 | L31: Two-tier RPP | O31: 0.02184 | P31: -0.03 | Q31: 0 | R31: 0.02272727273 | S31: -1 | T31: 0
B32: Average | C32: =VLOOKUP(A$31,'Data Billing Quantities'!A:P,MATCH(B32&" kWh",'Data Billing Quantities'!$4:$4,0),FALSE) -> 517 | E32: BI_StLgt_Avg | F32: BI Template_EnergyUNM | G32: =VLOOKUP(VLOOKUP($F32,'Data BI Summary'!$A:$F,MATCH(G$1,'Data BI Summary'!$2:$2,0),FALSE),INDIRECT("'"&$E32&"'!"&"$A:$K"),4,FALSE) -> 114.7149053 | H32: =VLOOKUP(VLOOKUP($F32,'Data BI Summary'!$A:$F,MATCH(H$1,'Data BI Summary'!$2:$2,0),FALSE),INDIRECT("'"&$E32&"'!"&"$A:$K"),8,FALSE) -> -0.731 | I32: =VLOOKUP(VLOOKUP($F32,'Data BI Summary'!$A:$F,MATCH(I$1,'Data BI Summary'!$2:$2,0),FALSE),INDIRECT("'"&$E32&"'!"&"$A:$K"),9,FALSE) -> -0.01252550937 | J32: =VLOOKUP(VLOOKUP($F32,'Data BI Summary'!$A:$F,MATCH(J$1,'Data BI Summary'!$2:$2,0),FALSE),INDIRECT("'"&$E32&"'!"&"$A:$K"),8,FALSE) -> -0.64899156 | K32: =VLOOKUP(VLOOKUP($F32,'Data BI Summary'!$A:$F,MATCH(K$1,'Data BI Summary'!$2:$2,0),FALSE),INDIRECT("'"&$E32&"'!"&"$A:$K"),9,FALSE) -> -0.005657430114 | O32: 0.1129128 | P32: -0.03 | Q32: 0 | R32: 0.02272727273 | S32: -1 | T32: 0
B33: High | C33: =VLOOKUP(A$31,'Data Billing Quantities'!A:P,MATCH(B33&" kWh",'Data Billing Quantities'!$4:$4,0),FALSE) -> 2000 | E33: BI_StLgt_High | F33: BI Template_EnergyUNM | G33: =VLOOKUP(VLOOKUP($F33,'Data BI Summary'!$A:$F,MATCH(G$1,'Data BI Summary'!$2:$2,0),FALSE),INDIRECT("'"&$E33&"'!"&"$A:$K"),4,FALSE) -> 453.01494 | H33: =VLOOKUP(VLOOKUP($F33,'Data BI Summary'!$A:$F,MATCH(H$1,'Data BI Summary'!$2:$2,0),FALSE),INDIRECT("'"&$E33&"'!"&"$A:$K"),8,FALSE) -> -5.18 | I33: =VLOOKUP(VLOOKUP($F33,'Data BI Summary'!$A:$F,MATCH(I$1,'Data BI Summary'!$2:$2,0),FALSE),INDIRECT("'"&$E33&"'!"&"$A:$K"),9,FALSE) -> -0.02375275128 | J33: =VLOOKUP(VLOOKUP($F33,'Data BI Summary'!$A:$F,MATCH(J$1,'Data BI Summary'!$2:$2,0),FALSE),INDIRECT("'"&$E33&"'!"&"$A:$K"),8,FALSE) -> -4.98036 | K33: =VLOOKUP(VLOOKUP($F33,'Data BI Summary'!$A:$F,MATCH(K$1,'Data BI Summary'!$2:$2,0),FALSE),INDIRECT("'"&$E33&"'!"&"$A:$K"),9,FALSE) -> -0.01099380961 | O33: 0.4368 | P33: -0.03 | Q33: 0 | R33: 0.02272727273 | S33: -1 | T33: 0
A34: Sen Lgt | B34: Low | C34: =VLOOKUP(A$34,'Data Billing Quantities'!A:P,MATCH(B34&" kWh",'Data Billing Quantities'!$4:$4,0),FALSE) -> 20 | E34: BI_SenLgt_Low | F34: BI Template_EnergyUNM | G34: =VLOOKUP(VLOOKUP($F34,'Data BI Summary'!$A:$F,MATCH(G$1,'Data BI Summary'!$2:$2,0),FALSE),INDIRECT("'"&$E34&"'!"&"$A:$K"),4,FALSE) -> 8.2271868 | H34: =VLOOKUP(VLOOKUP($F34,'Data BI Summary'!$A:$F,MATCH(H$1,'Data BI Summary'!$2:$2,0),FALSE),INDIRECT("'"&$E34&"'!"&"$A:$K"),8,FALSE) -> 0.264 | I34: =VLOOKUP(VLOOKUP($F34,'Data BI Summary'!$A:$F,MATCH(I$1,'Data BI Summary'!$2:$2,0),FALSE),INDIRECT("'"&$E34&"'!"&"$A:$K"),9,FALSE) -> 0.0469583778 | J34: =VLOOKUP(VLOOKUP($F34,'Data BI Summary'!$A:$F,MATCH(J$1,'Data BI Summary'!$2:$2,0),FALSE),INDIRECT("'"&$E34&"'!"&"$A:$K"),8,FALSE) -> 0.2794932 | K34: =VLOOKUP(VLOOKUP($F34,'Data BI Summary'!$A:$F,MATCH(K$1,'Data BI Summary'!$2:$2,0),FALSE),INDIRECT("'"&$E34&"'!"&"$A:$K"),9,FALSE) -> 0.03397190398 | L34: Two-tier RPP | O34: 0.002184 | P34: -0.02 | Q34: -0.016 | R34: 0.01111111111 | S34: -1 | T34: -0.6153846154
B35: Average | C35: =VLOOKUP(A$34,'Data Billing Quantities'!A:P,MATCH(B35&" kWh",'Data Billing Quantities'!$4:$4,0),FALSE) -> 71 | E35: BI_SenLgt_Avg | F35: BI Template_EnergyUNM | G35: =VLOOKUP(VLOOKUP($F35,'Data BI Summary'!$A:$F,MATCH(G$1,'Data BI Summary'!$2:$2,0),FALSE),INDIRECT("'"&$E35&"'!"&"$A:$K"),4,FALSE) -> 21.84338814 | H35: =VLOOKUP(VLOOKUP($F35,'Data BI Summary'!$A:$F,MATCH(H$1,'Data BI Summary'!$2:$2,0),FALSE),INDIRECT("'"&$E35&"'!"&"$A:$K"),8,FALSE) -> 0.0192 | I35: =VLOOKUP(VLOOKUP($F35,'Data BI Summary'!$A:$F,MATCH(I$1,'Data BI Summary'!$2:$2,0),FALSE),INDIRECT("'"&$E35&"'!"&"$A:$K"),9,FALSE) -> 0.001413521214 | J35: =VLOOKUP(VLOOKUP($F35,'Data BI Summary'!$A:$F,MATCH(J$1,'Data BI Summary'!$2:$2,0),FALSE),INDIRECT("'"&$E35&"'!"&"$A:$K"),8,FALSE) -> 0.02830086 | K35: =VLOOKUP(VLOOKUP($F35,'Data BI Summary'!$A:$F,MATCH(K$1,'Data BI Summary'!$2:$2,0),FALSE),INDIRECT("'"&$E35&"'!"&"$A:$K"),9,FALSE) -> 0.001295625927 | O35: 0.0077532 | P35: -0.02 | Q35: -0.0568 | R35: 0.01111111111 | S35: -1 | T35: -0.6153846154
B36: High | C36: =VLOOKUP(A$34,'Data Billing Quantities'!A:P,MATCH(B36&" kWh",'Data Billing Quantities'!$4:$4,0),FALSE) -> 200 | E36: BI_SenLgt_High | F36: BI Template_EnergyUNM | G36: =VLOOKUP(VLOOKUP($F36,'Data BI Summary'!$A:$F,MATCH(G$1,'Data BI Summary'!$2:$2,0),FALSE),INDIRECT("'"&$E36&"'!"&"$A:$K"),4,FALSE) -> 56.284368 | H36: =VLOOKUP(VLOOKUP($F36,'Data BI Summary'!$A:$F,MATCH(H$1,'Data BI Summary'!$2:$2,0),FALSE),INDIRECT("'"&$E36&"'!"&"$A:$K"),8,FALSE) -> -0.6 | I36: =VLOOKUP(VLOOKUP($F36,'Data BI Summary'!$A:$F,MATCH(I$1,'Data BI Summary'!$2:$2,0),FALSE),INDIRECT("'"&$E36&"'!"&"$A:$K"),9,FALSE) -> -0.01779359431 | J36: =VLOOKUP(VLOOKUP($F36,'Data BI Summary'!$A:$F,MATCH(J$1,'Data BI Summary'!$2:$2,0),FALSE),INDIRECT("'"&$E36&"'!"&"$A:$K"),8,FALSE) -> -0.607068 | K36: =VLOOKUP(VLOOKUP($F36,'Data BI Summary'!$A:$F,MATCH(K$1,'Data BI Summary'!$2:$2,0),FALSE),INDIRECT("'"&$E36&"'!"&"$A:$K"),9,FALSE) -> -0.01078573006 | O36: 0.02184 | P36: -0.02 | Q36: -0.16 | R36: 0.01111111111 | S36: -1 | T36: -0.6153846154
A37: USL | B37: Low | C37: =VLOOKUP(A$37,'Data Billing Quantities'!A:P,MATCH(B37&" kWh",'Data Billing Quantities'!$4:$4,0),FALSE) -> 100 | E37: BI_USL_Low | F37: BI Template_EnergyUNM | G37: =VLOOKUP(VLOOKUP($F37,'Data BI Summary'!$A:$F,MATCH(G$1,'Data BI Summary'!$2:$2,0),FALSE),INDIRECT("'"&$E37&"'!"&"$A:$K"),4,FALSE) -> 52.725162 | H37: =VLOOKUP(VLOOKUP($F37,'Data BI Summary'!$A:$F,MATCH(H$1,'Data BI Summary'!$2:$2,0),FALSE),INDIRECT("'"&$E37&"'!"&"$A:$K"),8,FALSE) -> 0 | I37: =VLOOKUP(VLOOKUP($F37,'Data BI Summary'!$A:$F,MATCH(I$1,'Data BI Summary'!$2:$2,0),FALSE),INDIRECT("'"&$E37&"'!"&"$A:$K"),9,FALSE) -> 0 | J37: =VLOOKUP(VLOOKUP($F37,'Data BI Summary'!$A:$F,MATCH(J$1,'Data BI Summary'!$2:$2,0),FALSE),INDIRECT("'"&$E37&"'!"&"$A:$K"),8,FALSE) -> 0.022932 | K37: =VLOOKUP(VLOOKUP($F37,'Data BI Summary'!$A:$F,MATCH(K$1,'Data BI Summary'!$2:$2,0),FALSE),INDIRECT("'"&$E37&"'!"&"$A:$K"),9,FALSE) -> 0.0004349346523 | L37: Two-tier RPP | O37: 0.02184 | P37: -0.01 | Q37: 0.09 | R37: 0.02040816327 | S37: -1 | T37: 1.125
B38: Average | C38: =VLOOKUP(A$37,'Data Billing Quantities'!A:P,MATCH(B38&" kWh",'Data Billing Quantities'!$4:$4,0),FALSE) -> 364 | E38: BI_USL_Avg | F38: BI Template_EnergyUNM | G38: =VLOOKUP(VLOOKUP($F38,'Data BI Summary'!$A:$F,MATCH(G$1,'Data BI Summary'!$2:$2,0),FALSE),INDIRECT("'"&$E38&"'!"&"$A:$K"),4,FALSE) -> 85.91830968 | H38: =VLOOKUP(VLOOKUP($F38,'Data BI Summary'!$A:$F,MATCH(H$1,'Data BI Summary'!$2:$2,0),FALSE),INDIRECT("'"&$E38&"'!"&"$A:$K"),8,FALSE) -> 1.0824 | I38: =VLOOKUP(VLOOKUP($F38,'Data BI Summary'!$A:$F,MATCH(I$1,'Data BI Summary'!$2:$2,0),FALSE),INDIRECT("'"&$E38&"'!"&"$A:$K"),9,FALSE) -> 0.02377605173 | J38: =VLOOKUP(VLOOKUP($F38,'Data BI Summary'!$A:$F,MATCH(J$1,'Data BI Summary'!$2:$2,0),FALSE),INDIRECT("'"&$E38&"'!"&"$A:$K"),8,FALSE) -> 1.21999248 | K38: =VLOOKUP(VLOOKUP($F38,'Data BI Summary'!$A:$F,MATCH(K$1,'Data BI Summary'!$2:$2,0),FALSE),INDIRECT("'"&$E38&"'!"&"$A:$K"),9,FALSE) -> 0.01419944695 | O38: 0.0794976 | P38: -0.01 | Q38: 0.3276 | R38: 0.02040816327 | S38: -1 | T38: 1.125
B39: High | C39: =VLOOKUP(A$37,'Data Billing Quantities'!A:P,MATCH(B39&" kWh",'Data Billing Quantities'!$4:$4,0),FALSE) -> 1000 | E39: BI_USL_High | F39: BI Template_EnergyUNM | G39: =VLOOKUP(VLOOKUP($F39,'Data BI Summary'!$A:$F,MATCH(G$1,'Data BI Summary'!$2:$2,0),FALSE),INDIRECT("'"&$E39&"'!"&"$A:$K"),4,FALSE) -> 170.19282 | H39: =VLOOKUP(VLOOKUP($F39,'Data BI Summary'!$A:$F,MATCH(H$1,'Data BI Summary'!$2:$2,0),FALSE),INDIRECT("'"&$E39&"'!"&"$A:$K"),8,FALSE) -> 3.69 | I39: =VLOOKUP(VLOOKUP($F39,'Data BI Summary'!$A:$F,MATCH(I$1,'Data BI Summary'!$2:$2,0),FALSE),INDIRECT("'"&$E39&"'!"&"$A:$K"),9,FALSE) -> 0.06287272108 | J39: =VLOOKUP(VLOOKUP($F39,'Data BI Summary'!$A:$F,MATCH(J$1,'Data BI Summary'!$2:$2,0),FALSE),INDIRECT("'"&$E39&"'!"&"$A:$K"),8,FALSE) -> 4.10382 | K39: =VLOOKUP(VLOOKUP($F39,'Data BI Summary'!$A:$F,MATCH(K$1,'Data BI Summary'!$2:$2,0),FALSE),INDIRECT("'"&$E39&"'!"&"$A:$K"),9,FALSE) -> 0.02411276809 | O39: 0.2184 | P39: -0.01 | Q39: 0.9 | R39: 0.02040816327 | S39: -1 | T39: 1.125
A40: DGen | B40: Low | C40: =VLOOKUP(A$40,'Data Billing Quantities'!A:P,MATCH($B40&" kWh",'Data Billing Quantities'!$4:$4,0),FALSE) -> 300 | D40: =VLOOKUP(A$40,'Data Billing Quantities'!A:P,MATCH($B40&" kW",'Data Billing Quantities'!$4:$4,0),FALSE) -> 10 | E40: BI_Dgen_Low | F40: BI Template_Demand | G40: =VLOOKUP(VLOOKUP($F40,'Data BI Summary'!$A:$F,MATCH(G$1,'Data BI Summary'!$2:$2,0),FALSE),INDIRECT("'"&$E40&"'!"&"$A:$K"),4,FALSE) -> 401.1620458 | H40: =VLOOKUP(VLOOKUP($F40,'Data BI Summary'!$A:$F,MATCH(H$1,'Data BI Summary'!$2:$2,0),FALSE),INDIRECT("'"&$E40&"'!"&"$A:$K"),8,FALSE) -> -9.48876 | I40: =VLOOKUP(VLOOKUP($F40,'Data BI Summary'!$A:$F,MATCH(I$1,'Data BI Summary'!$2:$2,0),FALSE),INDIRECT("'"&$E40&"'!"&"$A:$K"),9,FALSE) -> -0.03200403229 | J40: =VLOOKUP(VLOOKUP($F40,'Data BI Summary'!$A:$F,MATCH(J$1,'Data BI Summary'!$2:$2,0),FALSE),INDIRECT("'"&$E40&"'!"&"$A:$K"),8,FALSE) -> -10.3505288 | K40: =VLOOKUP(VLOOKUP($F40,'Data BI Summary'!$A:$F,MATCH(K$1,'Data BI Summary'!$2:$2,0),FALSE),INDIRECT("'"&$E40&"'!"&"$A:$K"),9,FALSE) -> -0.02580136608 | L40: Non-RPP | O40: 0.329 | P40: -0.05 | Q40: -0.262 | R40: 0.01839838944 | S40: -1 | T40: -0.2388331814 | U40: 0.4179104478
B41: Average | C41: =VLOOKUP(A$40,'Data Billing Quantities'!A:P,MATCH($B41&" kWh",'Data Billing Quantities'!$4:$4,0),FALSE) -> 1328 | D41: =VLOOKUP(A$40,'Data Billing Quantities'!A:P,MATCH($B41&" kW",'Data Billing Quantities'!$4:$4,0),FALSE) -> 13 | E41: BI_Dgen_Avg | F41: BI Template_Demand | G41: =VLOOKUP(VLOOKUP($F41,'Data BI Summary'!$A:$F,MATCH(G$1,'Data BI Summary'!$2:$2,0),FALSE),INDIRECT("'"&$E41&"'!"&"$A:$K"),4,FALSE) -> 587.0497596 | H41: =VLOOKUP(VLOOKUP($F41,'Data BI Summary'!$A:$F,MATCH(H$1,'Data BI Summary'!$2:$2,0),FALSE),INDIRECT("'"&$E41&"'!"&"$A:$K"),8,FALSE) -> -5.8377776 | I41: =VLOOKUP(VLOOKUP($F41,'Data BI Summary'!$A:$F,MATCH(I$1,'Data BI Summary'!$2:$2,0),FALSE),INDIRECT("'"&$E41&"'!"&"$A:$K"),9,FALSE) -> -0.01840331646 | J41: =VLOOKUP(VLOOKUP($F41,'Data BI Summary'!$A:$F,MATCH(J$1,'Data BI Summary'!$2:$2,0),FALSE),INDIRECT("'"&$E41&"'!"&"$A:$K"),8,FALSE) -> -6.113387688 | K41: =VLOOKUP(VLOOKUP($F41,'Data BI Summary'!$A:$F,MATCH(K$1,'Data BI Summary'!$2:$2,0),FALSE),INDIRECT("'"&$E41&"'!"&"$A:$K"),9,FALSE) -> -0.01041374703 | O41: 0.4277 | P41: -0.05 | Q41: -0.3406 | R41: 0.01839838944 | S41: -1 | T41: -0.2388331814 | U41: 0.4179104478
B42: High | C42: =VLOOKUP(A$40,'Data Billing Quantities'!A:P,MATCH($B42&" kWh",'Data Billing Quantities'!$4:$4,0),FALSE) -> 5000 | D42: =VLOOKUP(A$40,'Data Billing Quantities'!A:P,MATCH($B42&" kW",'Data Billing Quantities'!$4:$4,0),FALSE) -> 100 | E42: BI_Dgen_High | F42: BI Template_Demand | G42: =VLOOKUP(VLOOKUP($F42,'Data BI Summary'!$A:$F,MATCH(G$1,'Data BI Summary'!$2:$2,0),FALSE),INDIRECT("'"&$E42&"'!"&"$A:$K"),4,FALSE) -> 2210.72183 | H42: =VLOOKUP(VLOOKUP($F42,'Data BI Summary'!$A:$F,MATCH(H$1,'Data BI Summary'!$2:$2,0),FALSE),INDIRECT("'"&$E42&"'!"&"$A:$K"),8,FALSE) -> 22.384 | I42: =VLOOKUP(VLOOKUP($F42,'Data BI Summary'!$A:$F,MATCH(I$1,'Data BI Summary'!$2:$2,0),FALSE),INDIRECT("'"&$E42&"'!"&"$A:$K"),9,FALSE) -> 0.02027322298 | J42: =VLOOKUP(VLOOKUP($F42,'Data BI Summary'!$A:$F,MATCH(J$1,'Data BI Summary'!$2:$2,0),FALSE),INDIRECT("'"&$E42&"'!"&"$A:$K"),8,FALSE) -> 29.01162 | K42: =VLOOKUP(VLOOKUP($F42,'Data BI Summary'!$A:$F,MATCH(K$1,'Data BI Summary'!$2:$2,0),FALSE),INDIRECT("'"&$E42&"'!"&"$A:$K"),9,FALSE) -> 0.01312314358 | O42: 3.29 | P42: -0.05 | Q42: -2.62 | R42: 0.01839838944 | S42: -1 | T42: -0.2388331814 | U42: 0.4179104478
A43: ST | B43: Low | C43: =VLOOKUP(A$43,'Data Billing Quantities'!A:P,MATCH($B43&" kWh",'Data Billing Quantities'!$4:$4,0),FALSE) -> 200000 | D43: =VLOOKUP(A$43,'Data Billing Quantities'!A:P,MATCH($B43&" kW",'Data Billing Quantities'!$4:$4,0),FALSE) -> 500 | E43: BI_ST_Low | F43: BI Template_Demand | G43: =VLOOKUP(VLOOKUP($F43,'Data BI Summary'!$A:$F,MATCH(G$1,'Data BI Summary'!$2:$2,0),FALSE),INDIRECT("'"&$E43&"'!"&"$A:$K"),4,FALSE) -> 35946.04683 | H43: =VLOOKUP(VLOOKUP($F43,'Data BI Summary'!$A:$F,MATCH(H$1,'Data BI Summary'!$2:$2,0),FALSE),INDIRECT("'"&$E43&"'!"&"$A:$K"),8,FALSE) -> 173.809087 | I43: =VLOOKUP(VLOOKUP($F43,'Data BI Summary'!$A:$F,MATCH(I$1,'Data BI Summary'!$2:$2,0),FALSE),INDIRECT("'"&$E43&"'!"&"$A:$K"),9,FALSE) -> 0.07393642965 | J43: =VLOOKUP(VLOOKUP($F43,'Data BI Summary'!$A:$F,MATCH(J$1,'Data BI Summary'!$2:$2,0),FALSE),INDIRECT("'"&$E43&"'!"&"$A:$K"),8,FALSE) -> 263.3002683 | K43: =VLOOKUP(VLOOKUP($F43,'Data BI Summary'!$A:$F,MATCH(K$1,'Data BI Summary'!$2:$2,0),FALSE),INDIRECT("'"&$E43&"'!"&"$A:$K"),9,FALSE) -> 0.007324874123 | L43: Non-RPP | O43: 59.2 | P43: -13.07 | Q43: 24.25 | R43: 0.01840395436 | S43: -1 | T43: 0.05413550619 | U43: N/A
B44: Average | C44: =VLOOKUP(A$43,'Data Billing Quantities'!A:P,MATCH($B44&" kWh",'Data Billing Quantities'!$4:$4,0),FALSE) -> 1601036 | D44: =VLOOKUP(A$43,'Data Billing Quantities'!A:P,MATCH($B44&" kW",'Data Billing Quantities'!$4:$4,0),FALSE) -> 3091 | E44: BI_ST_Avg | F44: BI Template_Demand | G44: =VLOOKUP(VLOOKUP($F44,'Data BI Summary'!$A:$F,MATCH(G$1,'Data BI Summary'!$2:$2,0),FALSE),INDIRECT("'"&$E44&"'!"&"$A:$K"),4,FALSE) -> 269488.9775 | H44: =VLOOKUP(VLOOKUP($F44,'Data BI Summary'!$A:$F,MATCH(H$1,'Data BI Summary'!$2:$2,0),FALSE),INDIRECT("'"&$E44&"'!"&"$A:$K"),8,FALSE) -> 367.4629357 | I44: =VLOOKUP(VLOOKUP($F44,'Data BI Summary'!$A:$F,MATCH(I$1,'Data BI Summary'!$2:$2,0),FALSE),INDIRECT("'"&$E44&"'!"&"$A:$K"),9,FALSE) -> 0.04312624813 | J44: =VLOOKUP(VLOOKUP($F44,'Data BI Summary'!$A:$F,MATCH(J$1,'Data BI Summary'!$2:$2,0),FALSE),INDIRECT("'"&$E44&"'!"&"$A:$K"),8,FALSE) -> 828.7841894 | K44: =VLOOKUP(VLOOKUP($F44,'Data BI Summary'!$A:$F,MATCH(K$1,'Data BI Summary'!$2:$2,0),FALSE),INDIRECT("'"&$E44&"'!"&"$A:$K"),9,FALSE) -> 0.003075391792 | O44: 365.9744 | P44: -13.07 | Q44: 149.9135 | R44: 0.01840395436 | S44: -1 | T44: 0.05413550619 | U44: N/A
B45: High | C45: =VLOOKUP(A$43,'Data Billing Quantities'!A:P,MATCH($B45&" kWh",'Data Billing Quantities'!$4:$4,0),FALSE) -> 4000000 | D45: =VLOOKUP(A$43,'Data Billing Quantities'!A:P,MATCH($B45&" kW",'Data Billing Quantities'!$4:$4,0),FALSE) -> 10000 | E45: BI_ST_High | F45: BI Template_Demand | G45: =VLOOKUP(VLOOKUP($F45,'Data BI Summary'!$A:$F,MATCH(G$1,'Data BI Summary'!$2:$2,0),FALSE),INDIRECT("'"&$E45&"'!"&"$A:$K"),4,FALSE) -> 694006.9039 | H45: =VLOOKUP(VLOOKUP($F45,'Data BI Summary'!$A:$F,MATCH(H$1,'Data BI Summary'!$2:$2,0),FALSE),INDIRECT("'"&$E45&"'!"&"$A:$K"),8,FALSE) -> 883.8482855 | I45: =VLOOKUP(VLOOKUP($F45,'Data BI Summary'!$A:$F,MATCH(I$1,'Data BI Summary'!$2:$2,0),FALSE),INDIRECT("'"&$E45&"'!"&"$A:$K"),9,FALSE) -> 0.03539250682 | J45: =VLOOKUP(VLOOKUP($F45,'Data BI Summary'!$A:$F,MATCH(J$1,'Data BI Summary'!$2:$2,0),FALSE),INDIRECT("'"&$E45&"'!"&"$A:$K"),8,FALSE) -> 2336.668563 | K45: =VLOOKUP(VLOOKUP($F45,'Data BI Summary'!$A:$F,MATCH(K$1,'Data BI Summary'!$2:$2,0),FALSE),INDIRECT("'"&$E45&"'!"&"$A:$K"),9,FALSE) -> 0.003366924089 | O45: 1184 | P45: -13.07 | Q45: 485 | R45: 0.01840395436 | S45: -1 | T45: 0.05413550619 | U45: N/A
A46: ST (NonWMP, NonRPP, NonLDC, ClassB) | B46: Average | C46: =VLOOKUP(A$46,'Data Billing Quantities'!A:P,MATCH($B46&" kWh",'Data Billing Quantities'!$4:$4,0),FALSE) -> 1601036 | D46: =VLOOKUP(A$46,'Data Billing Quantities'!A:P,MATCH($B46&" kW",'Data Billing Quantities'!$4:$4,0),FALSE) -> 3091 | E46: BI_ST_Avg_NonWMP | F46: BI Template_Demand | G46: =VLOOKUP(VLOOKUP($F46,'Data BI Summary'!$A:$F,MATCH(G$1,'Data BI Summary'!$2:$2,0),FALSE),INDIRECT("'"&$E46&"'!"&"$A:$K"),4,FALSE) -> 256955.4049 | H46: =VLOOKUP(VLOOKUP($F46,'Data BI Summary'!$A:$F,MATCH(H$1,'Data BI Summary'!$2:$2,0),FALSE),INDIRECT("'"&$E46&"'!"&"$A:$K"),8,FALSE) -> 5002.782363 | I46: =VLOOKUP(VLOOKUP($F46,'Data BI Summary'!$A:$F,MATCH(I$1,'Data BI Summary'!$2:$2,0),FALSE),INDIRECT("'"&$E46&"'!"&"$A:$K"),9,FALSE) -> 1.945832515 | J46: =VLOOKUP(VLOOKUP($F46,'Data BI Summary'!$A:$F,MATCH(J$1,'Data BI Summary'!$2:$2,0),FALSE),INDIRECT("'"&$E46&"'!"&"$A:$K"),8,FALSE) -> 6066.695142 | K46: =VLOOKUP(VLOOKUP($F46,'Data BI Summary'!$A:$F,MATCH(K$1,'Data BI Summary'!$2:$2,0),FALSE),INDIRECT("'"&$E46&"'!"&"$A:$K"),9,FALSE) -> 0.02360991451 | L46: Non-RPP | O46: 365.9744 | P46: -13.07 | Q46: 149.9135 | R46: 0.01840395436 | S46: -1 | T46: 0.05413550619 | U46: 0.4179104478
A47: ST (NonWMP, NonRPP, NonLDC, ClassB) Exclude GA Rider | B47: Average | C47: =VLOOKUP(A$47,'Data Billing Quantities'!A:P,MATCH($B47&" kWh",'Data Billing Quantities'!$4:$4,0),FALSE) -> 1601036 | D47: =VLOOKUP(A$47,'Data Billing Quantities'!A:P,MATCH($B47&" kW",'Data Billing Quantities'!$4:$4,0),FALSE) -> 3091 | E47: BI_ST_Avg_NonWMP_exclGA | F47: BI Template_Demand | G47: =VLOOKUP(VLOOKUP($F47,'Data BI Summary'!$A:$F,MATCH(G$1,'Data BI Summary'!$2:$2,0),FALSE),INDIRECT("'"&$E47&"'!"&"$A:$K"),4,FALSE) -> 269488.9775 | H47: =VLOOKUP(VLOOKUP($F47,'Data BI Summary'!$A:$F,MATCH(H$1,'Data BI Summary'!$2:$2,0),FALSE),INDIRECT("'"&$E47&"'!"&"$A:$K"),8,FALSE) -> 367.4629357 | I47: =VLOOKUP(VLOOKUP($F47,'Data BI Summary'!$A:$F,MATCH(I$1,'Data BI Summary'!$2:$2,0),FALSE),INDIRECT("'"&$E47&"'!"&"$A:$K"),9,FALSE) -> 0.04312624813 | J47: =VLOOKUP(VLOOKUP($F47,'Data BI Summary'!$A:$F,MATCH(J$1,'Data BI Summary'!$2:$2,0),FALSE),INDIRECT("'"&$E47&"'!"&"$A:$K"),8,FALSE) -> 828.7841894 | K47: =VLOOKUP(VLOOKUP($F47,'Data BI Summary'!$A:$F,MATCH(K$1,'Data BI Summary'!$2:$2,0),FALSE),INDIRECT("'"&$E47&"'!"&"$A:$K"),9,FALSE) -> 0.003075391792 | L47: Non-RPP | O47: 365.9744 | P47: -13.07 | Q47: 149.9135 | R47: 0.01840395436 | S47: -1 | T47: 0.05413550619 | U47: N/A

Sheet BI Template_Energy (hidden)
A1: 2021 Bill Impacts (Average Consumption Level) - R1
A3: Rate Class | B3: =RIGHT(A1,LEN(A1)-FIND("- ",A1,1)-1) -> R1
A4: Monthly Consumption (kWh) | B4: =IF(COUNTIF(A1,"*Low*")>0,VLOOKUP(B3,'Data Billing Quantities'!$A:$Z,MATCH("Low kWh",'Data Billing Quantities'!4:4,0),FALSE),IF(COUNTIF(A1,"*Typical*")>0,VLOOKUP(B3,'Data Billing Quantities'!$A:$Z,MATCH("Typical kWh",'Data Billing Quantities'!4:4,0),FALSE),IF(COUNTIF(A1,"*Average*")>0,VLOOKUP(B3,'Data Billing Quantities'!$A:$Z,MATCH("Average kWh",'Data Billing Quantities'!4:4,0),FALSE),IF(COUNTIF(A1,"*High*")>0,VLOOKUP(B3,'Data Billing Quantities'!$A:$Z,MATCH("High kWh",'Data Billing Quantities'!4:4,0),FALSE),"error")))) -> 920
A5: Peak (kW) | B5: =IF(COUNTIF(A1,"*Low*")>0,VLOOKUP(B3,'Data Billing Quantities'!$A:$Z,MATCH("Low kW",'Data Billing Quantities'!4:4,0),FALSE),IF(COUNTIF(A1,"*Typical*")>0,VLOOKUP(B3,'Data Billing Quantities'!$A:$Z,MATCH("Typical kW",'Data Billing Quantities'!4:4,0),FALSE),IF(COUNTIF(A1,"*Average*")>0,VLOOKUP(B3,'Data Billing Quantities'!$A:$Z,MATCH("Average kW",'Data Billing Quantities'!4:4,0),FALSE),IF(COUNTIF(A1,"*High*")>0,VLOOKUP(B3,'Data Billing Quantities'!$A:$Z,MATCH("High kW",'Data Billing Quantities'!4:4,0),FALSE),"error")))) -> 0
A6: Loss factor | B6: =VLOOKUP(B3,'Data Billing Quantities'!A:D,MATCH(A6,'Data Billing Quantities'!4:4,0),FALSE) -> 1.076
A7: Commodity Threshold | B7: =VLOOKUP(B3,'Data Billing Quantities'!A:D,MATCH(A7,'Data Billing Quantities'!4:4,0),FALSE) -> 600
A8: Monthly Consumption (kWh) - Uplifted | B8: =B4*B6 -> 989.92
A9: Charge determinant | B9: =VLOOKUP(B3,'Data Billing Quantities'!A:D,MATCH(A9,'Data Billing Quantities'!4:4,0),FALSE) -> kWh
B11: Volume | C11: Current Rate ($) | D11: Current Charge ($) | E11: Volume | F11: Proposed Rate ($) | G11: Proposed Charge ($) | H11: Change ($) | I11: Change (%) | J11: % of Total Bill on RPP | K11: % of Total Bill on TOU
A12: Energy First Tier | B12: =IF(B4>B7,B7,B4) -> 600 | C12: =VLOOKUP($A12,'Data Pass Through'!$A:$D,2,FALSE) -> 0.077 | D12: =B12*C12 -> 46.2 | E12: =B12 -> 600 | F12: =VLOOKUP($A12,'Data Pass Through'!$A:$D,3,FALSE) -> 0.077 | G12: =E12*F12 -> 46.2 | H12: =G12-D12 -> 0 | I12: =IF(ISERROR(H12/ABS(D12)),"N/A",(H12/ABS(D12))) -> 0 | J12: =G12/$G$49 -> 0.3233835848
A13: Energy Second Tier | B13: =IF(B4>B7,(B4)-B7,0) -> 320 | C13: =VLOOKUP($A13,'Data Pass Through'!$A:$D,2,FALSE) -> 0.089 | D13: =B13*C13 -> 28.48 | E13: =B13 -> 320 | F13: =VLOOKUP($A13,'Data Pass Through'!$A:$D,3,FALSE) -> 0.089 | G13: =E13*F13 -> 28.48 | H13: 0 | I13: 0 | J13: =G13/$G$49 -> 0.1993498808
A14: Sub-Total: Energy (RPP Tiered) | D14: =SUM(D12:D13) -> 74.68 | G14: =SUM(G12:G13) -> 74.68 | H14: 0 | I14: 0 | J14: =G14/$G$49 -> 0.5227334656
A15: TOU-Off Peak | B15: =B$4*VLOOKUP($B$3,'Data Billing Quantities'!$A:$O,MATCH('BI Template_Energy'!$A15,'Data Billing Quantities'!$4:$4,0),FALSE) -> 598 | C15: =VLOOKUP($A15,'Data Pass Through'!$A:$D,2,FALSE) -> 0.065 | D15: =B15*C15 -> 38.87 | E15: 598 | F15: =VLOOKUP($A15,'Data Pass Through'!$A:$D,3,FALSE) -> 0.065 | G15: =E15*F15 -> 38.87 | H15: 0 | I15: 0 | K15: =G15/$G$54 -> 0.2708479061
A16: TOU-Mid Peak | B16: =B$4*VLOOKUP($B$3,'Data Billing Quantities'!$A:$O,MATCH('BI Template_Energy'!$A16,'Data Billing Quantities'!$4:$4,0),FALSE) -> 156.4 | C16: =VLOOKUP($A16,'Data Pass Through'!$A:$D,2,FALSE) -> 0.094 | D16: =B16*C16 -> 14.7016 | E16: 156.4 | F16: =VLOOKUP($A16,'Data Pass Through'!$A:$D,3,FALSE) -> 0.094 | G16: =E16*F16 -> 14.7016 | H16: 0 | I16: 0 | K16: 0.1024414092
A17: TOU-On Peak | B17: =B$4*VLOOKUP($B$3,'Data Billing Quantities'!$A:$O,MATCH('BI Template_Energy'!$A17,'Data Billing Quantities'!$4:$4,0),FALSE) -> 165.6 | C17: =VLOOKUP($A17,'Data Pass Through'!$A:$D,2,FALSE) -> 0.134 | D17: =B17*C17 -> 22.1904 | E17: 165.6 | F17: =VLOOKUP($A17,'Data Pass Through'!$A:$D,3,FALSE) -> 0.134 | G17: =E17*F17 -> 22.1904 | H17: 0 | I17: 0 | K17: 0.154623704
A18: Sub-Total: Energy (RPP TOU) | D18: =SUM(D15:D17) -> 75.762 | G18: =SUM(G15:G17) -> 75.762 | H18: 0 | I18: 0 | J18: =G18/$G$49 -> 0.5303070812 | K18: 0.5279130194
A19: Service Charge | B19: 1 | C19: =IF(ISERROR(VLOOKUP($B$3,'Data Current Rates'!$A:$BA,MATCH('BI Template_Energy'!$A19,CurrentHeader,0),FALSE)),0,VLOOKUP($B$3,'Data Current Rates'!$A:$BA,MATCH('BI Template_Energy'!$A19,CurrentHeader,0),FALSE)) -> 43.58 | D19: =B19*C19 -> 43.58 | E19: 1 | F19: =VLOOKUP($B$3,'Data Proposed Rates'!$A:$BA,MATCH('BI Template_Energy'!$A19,ProposedHeader,0),FALSE) -> 49.04 | G19: =E19*F19 -> 49.04 | H19: 5.46 | I19: 0.1252868288 | J19: 0.3432625757 | K19: 0.341712923
A20: Fixed Foregone Revenue Charge | B20: 1 | C20: =IF(ISERROR(VLOOKUP($B$3,'Data Current Rates'!$A:$BA,MATCH('BI Template_Energy'!$A20,CurrentHeader,0),FALSE)),0,VLOOKUP($B$3,'Data Current Rates'!$A:$BA,MATCH('BI Template_Energy'!$A20,CurrentHeader,0),FALSE)) -> 1.69 | D20: =B20*C20 -> 1.69 | H20: =G20-D20 -> -1.69 | I20: =IF(ISERROR(H20/ABS(D20)),"N/A",(H20/ABS(D20))) -> -1 | J20: 0 | K20: 0
A21: Fixed Deferral/Variance Account Rider (General) | B21: 1 | C21: =IF(ISERROR(VLOOKUP($B$3,'Data Current Rates'!$A:$BA,MATCH('BI Template_Energy'!$A21,CurrentHeader,0),FALSE)),0,VLOOKUP($B$3,'Data Current Rates'!$A:$BA,MATCH('BI Template_Energy'!$A21,CurrentHeader,0),FALSE)) -> 0.04 | D21: 0.04 | E21: 1 | F21: =VLOOKUP($B$3,'Data Proposed Rates'!$A:$BA,MATCH('BI Template_Energy'!$A21,ProposedHeader,0),FALSE) -> -0.14 | G21: -0.14 | H21: -0.18 | I21: -4.5 | J21: -0.0009799502569 | K21: -0.0009755262891
A22: Fixed ESM Rider | E22: 1 | F22: =VLOOKUP($B$3,'Data Proposed Rates'!$A:$BA,MATCH('BI Template_Energy'!$A22,ProposedHeader,0),FALSE) -> -0.85 | G22: =E22*F22 -> -0.85 | H22: =G22-D22 -> -0.85 | I22: =IF(ISERROR(H22/ABS(D22)),"N/A",(H22/ABS(D22))) -> N/A | J22: -0.005949697989 | K22: -0.005922838184
A23: Distribution Volumetric Charge | B23: =IF($B$9="kWh",$B$4,$B$5) -> 920 | C23: =IF(ISERROR(VLOOKUP($B$3,'Data Current Rates'!$A:$BA,MATCH('BI Template_Energy'!$A23,CurrentHeader,0),FALSE)),0,VLOOKUP($B$3,'Data Current Rates'!$A:$BA,MATCH('BI Template_Energy'!$A23,CurrentHeader,0),FALSE)) -> 0.0182 | D23: 16.744 | E23: =IF($B$9="kWh",$B$4,$B$5) -> 920 | F23: =VLOOKUP($B$3,'Data Proposed Rates'!$A:$BA,MATCH('BI Template_Energy'!$A23,ProposedHeader,0),FALSE) -> 0.0141 | G23: 12.972 | H23: -3.772 | I23: -0.2252747253 | J23: 0.09079939095 | K23: 0.09038947873
A24: Volumetric Foregone Revenue Charge | B24: =IF($B$9="kWh",$B$4,$B$5) -> 920 | C24: =IF(ISERROR(VLOOKUP($B$3,'Data Current Rates'!$A:$BA,MATCH('BI Template_Energy'!$A24,CurrentHeader,0),FALSE)),0,VLOOKUP($B$3,'Data Current Rates'!$A:$BA,MATCH('BI Template_Energy'!$A24,CurrentHeader,0),FALSE)) -> 0.0009 | D24: =B24*C24 -> 0.828 | H24: =G24-D24 -> -0.828 | I24: =IF(ISERROR(H24/ABS(D24)),"N/A",(H24/ABS(D24))) -> -1 | J24: 0 | K24: 0
A25: Volumetric Deferral/Variance Account Rider (General) | B25: =IF($B$9="kWh",$B$4,$B$5) -> 920 | C25: =IF(ISERROR(VLOOKUP($B$3,'Data Current Rates'!$A:$BA,MATCH('BI Template_Energy'!$A25,CurrentHeader,0),FALSE)),0,VLOOKUP($B$3,'Data Current Rates'!$A:$BA,MATCH('BI Template_Energy'!$A25,CurrentHeader,0),FALSE)) -> -0.0008 | D25: -0.736 | E25: =IF($B$9="kWh",$B$4,$B$5) -> 920 | F25: =VLOOKUP($B$3,'Data Proposed Rates'!$A:$BA,MATCH('BI Template_Energy'!$A25,ProposedHeader,0),FALSE) -> -0.0008 | G25: -0.736 | H25: 0 | I25: 0 | J25: -0.005151738494 | K25: -0.005128481063
A26: Volumetric ESM Rider | E26: 920 | F26: =VLOOKUP($B$3,'Data Proposed Rates'!$A:$BA,MATCH('BI Template_Energy'!$A26,ProposedHeader,0),FALSE) -> 0 | G26: 0 | H26: 0 | I26: N/A | J26: 0 | K26: 0
A27: Fair Hydro Plan - Distribution Rate Protection Savings* | D27: =IF(AND(B3<>"R1",B3<>"R2"),0,IF(VLOOKUP($A27,'Data Pass Through'!$A:$D,2,FALSE)=0,0,IF(SUM(D19:D20,D23:D24)<VLOOKUP($A27,'Data Pass Through'!$A:$D,2,FALSE),0,VLOOKUP($A27,'Data Pass Through'!$A:$D,2,FALSE)-SUM(D19:D20,D23:D24)))) -> -25.982 | G27: =IF(AND(B3<>"R1",B3<>"R2"),0,IF(VLOOKUP($A27,'Data Pass Through'!$A:$D,2,FALSE)=0,0,IF(SUM(G19:G20,G23:G24)<VLOOKUP($A27,'Data Pass Through'!$A:$D,2,FALSE),0,VLOOKUP($A27,'Data Pass Through'!$A:$D,2,FALSE)-SUM(G19:G20,G23:G24)))) -> -25.152 | H27: 0.83 | I27: 0.03194519283 | J27: -0.1760550633 | K27: -0.1752602659
A28: Sub-Total: Distribution (excluding pass through) | D28: =SUM(INDIRECT("D19:D"&ROW()-1)) -> 36.164 | G28: =SUM(INDIRECT("g19:g"&ROW()-1)) -> 35.134 | H28: =G28-D28 -> -1.03 | I28: =IF(ISERROR(H28/ABS(D28)),"N/A",(H28/ABS(D28))) -> -0.02848136268 | J28: 0.2459255166 | K28: 0.2448152903
A29: Smart Metering Entity Charge | B29: 1 | C29: =VLOOKUP($A29,'Data Pass Through'!$A:$D,2,FALSE) -> 0.57 | D29: =B29*C29 -> 0.57 | E29: 1 | F29: =VLOOKUP($A29,'Data Pass Through'!$A:$D,3,FALSE) -> 0.57 | G29: =E29*F29 -> 0.57 | H29: 0 | I29: 0 | J29: 0.003989797475 | K29: 0.003971785606
A30: Line Losses on Cost of Power (based on two-tier RPP prices) | B30: =B8-B4 -> 69.92 | C30: =IF(B4>B7,C13,C12) -> 0.089 | D30: =B30*C30 -> 6.22288 | E30: 69.92 | F30: =IF(B4>B7,F13,F12) -> 0.089 | G30: =E30*F30 -> 6.22288 | H30: 0 | I30: 0 | J30: 0.04355794896 | K30: 0.04336130739
A31: Line Losses on Cost of Power (based on TOU prices) | B31: =B8-B4 -> 69.92 | C31: =VLOOKUP($B$3,'Data Billing Quantities'!$A:$O,MATCH('BI Template_Energy'!$A15,'Data Billing Quantities'!$4:$4,0),FALSE)*C15+VLOOKUP($B$3,'Data Billing Quantities'!$A:$O,MATCH('BI Template_Energy'!$A16,'Data Billing Quantities'!$4:$4,0),FALSE)*C16+VLOOKUP($B$3,'Data Billing Quantities'!$A:$O,MATCH('BI Template_Energy'!$A17,'Data Billing Quantities'!$4:$4,0),FALSE)*C17 -> 0.08235 | D31: =B31*C31 -> 5.757912 | E31: 69.92 | F31: =VLOOKUP($B$3,'Data Billing Quantities'!$A:$O,MATCH('BI Template_Energy'!$A15,'Data Billing Quantities'!$4:$4,0),FALSE)*F15+VLOOKUP($B$3,'Data Billing Quantities'!$A:$O,MATCH('BI Template_Energy'!$A16,'Data Billing Quantities'!$4:$4,0),FALSE)*F16+VLOOKUP($B$3,'Data Billing Quantities'!$A:$O,MATCH('BI Template_Energy'!$A17,'Data Billing Quantities'!$4:$4,0),FALSE)*F17 -> 0.08235 | G31: =E31*F31 -> 5.757912 | H31: 0 | I31: 0 | J31: 0.04030333817 | K31: 0.04012138947
A32: Sub-Total: Distribution (based on two-tier RPP prices) | D32: =SUM(D28,D29:D30) -> 42.95688 | G32: =SUM(G28,G29:G30) -> 41.92688 | H32: -1.03 | I32: -0.02397753282 | J32: 0.2934732631 | K32: 0.2921483833
A33: Sub-Total: Distribution (based on TOU prices) | D33: =SUM(D28,D29,D31) -> 42.491912 | G33: =SUM(G28,G29,G31) -> 41.461912 | H33: -1.03 | I33: -0.02423990711 | J33: 0.2902186523 | K33: 0.2889084654
A34: Retail Transmission Rate – Network Service Rate | B34: =B8 -> 989.92 | C34: =VLOOKUP($B$3,'Data Current Rates'!$A:$BA,MATCH('BI Template_Energy'!$A34,CurrentHeader,0),FALSE) -> 0.008 | D34: =B34*C34 -> 7.91936 | E34: 989.92 | F34: =VLOOKUP($B$3,'Data Proposed Rates'!$A:$BA,MATCH('BI Template_Energy'!$A34,ProposedHeader,0),FALSE) -> 0.0082 | G34: =E34*F34 -> 8.117344 | H34: =G34-D34 -> 0.197984 | I34: 0.025 | J34: 0.05681852385 | K34: 0.05656201764
A35: Retail Transmission Rate – Line and Transformation Connection Service Rate | B35: =B8 -> 989.92 | C35: =VLOOKUP($B$3,'Data Current Rates'!$A:$BA,MATCH('BI Template_Energy'!$A35,CurrentHeader,0),FALSE) -> 0.0072 | D35: =B35*C35 -> 7.127424 | E35: 989.92 | F35: =VLOOKUP($B$3,'Data Proposed Rates'!$A:$BA,MATCH('BI Template_Energy'!$A35,ProposedHeader,0),FALSE) -> 0.0073 | G35: =E35*F35 -> 7.226416 | H35: =G35-D35 -> 0.098992 | I35: 0.01388888889 | J35: 0.0505823444 | K35: 0.05035399131
A36: Sub-Total: Retail Transmission | D36: =SUM(D34:D35) -> 15.046784 | G36: =SUM(G34:G35) -> 15.34376 | H36: =G36-D36 -> 0.296976 | I36: 0.01973684211 | J36: 0.1074008682 | K36: 0.106916009
A37: Sub-Total: Delivery (based on two-tier RPP prices) | D37: =D32+D36 -> 58.003664 | G37: =G32+G36 -> 57.27064 | H37: =G37-D37 -> -0.733024 | I37: -0.01263754648 | J37: 0.4008741313 | K37: 0.3990643922
A38: Sub-Total: Delivery (based on TOU prices) | D38: =D33+D36 -> 57.538696 | G38: =G33+G36 -> 56.805672 | H38: =G38-D38 -> -0.733024 | I38: -0.01273967001 | J38: 0.3976195205 | K38: 0.3958244743
A39: Wholesale Market Service Rate (WMS) - not including CBR | B39: =B8 -> 989.92 | C39: =VLOOKUP($A39,'Data Pass Through'!$A:$D,2,FALSE) -> 0.003 | D39: =B39*C39 -> 2.96976 | E39: =$B$8 -> 989.92 | F39: =VLOOKUP($A39,'Data Pass Through'!$A:$D,3,FALSE) -> 0.003 | G39: =E39*F39 -> 2.96976 | H39: 0 | I39: 0 | J39: 0.02078726482 | K39: 0.02069342109
A40: Capacity Based Recovery (CBR) - Applicable for Class B Customers | B40: =B8 -> 989.92 | C40: =VLOOKUP($A40,'Data Pass Through'!$A:$D,2,FALSE) -> 0.0004 | D40: =B40*C40 -> 0.395968 | E40: =$B$8 -> 989.92 | F40: =VLOOKUP($A40,'Data Pass Through'!$A:$D,3,FALSE) -> 0.0004 | G40: =E40*F40 -> 0.395968 | H40: =G40-D40 -> 0 | I40: =IF(ISERROR(H40/ABS(D40)),"N/A",(H40/ABS(D40))) -> 0 | J40: 0.00277163531 | K40: 0.002759122812
A41: Rural Rate Protection Charge | B41: =B8 -> 989.92 | C41: =VLOOKUP($A41,'Data Pass Through'!$A:$D,2,FALSE) -> 0.0005 | D41: 0.49496 | E41: 989.92 | F41: =VLOOKUP($A41,'Data Pass Through'!$A:$D,3,FALSE) -> 0.0005 | G41: 0.49496 | H41: 0 | I41: 0 | J41: 0.003464544137 | K41: 0.003448903515
A42: Standard Supply Service – Administration Charge (if applicable) | B42: 1 | C42: =VLOOKUP($A42,'Data Pass Through'!$A:$D,2,FALSE) -> 0.25 | D42: =B42*C42 -> 0.25 | E42: 1 | F42: =VLOOKUP($A42,'Data Pass Through'!$A:$D,3,FALSE) -> 0.25 | G42: 0.25 | H42: 0 | I42: 0 | J42: 0.001749911173 | K42: 0.001742011231
A43: Sub-Total: Regulatory | D43: =SUM(D39:D42) -> 4.110688 | G43: =SUM(G39:G42) -> 4.110688 | H43: 0 | I43: 0 | J43: 0.02877335544 | K43: 0.02864345865
A44: Debt Retirement Charge (DRC) | B44: =B4 -> 920 | C44: =VLOOKUP($A44,'Data Pass Through'!$A:$D,2,FALSE) -> 0 | D44: =B44*C44 -> 0 | E44: 920 | F44: =VLOOKUP($A44,'Data Pass Through'!$A:$D,3,FALSE) -> 0 | G44: =E44*F44 -> 0 | H44: 0 | I44: N/A | J44: 0 | K44: 0
A45: Total Electricty Charge on Two-Tier RPP | D45: =SUM(D14,D28,D29,D30,D36,D43,D44) -> 136.794352 | G45: =SUM(G14,G28,G29,G30,G36,G43,G44) -> 136.061328 | H45: -0.733024 | I45: -0.005358583811 | J45: 0.9523809524
A46: HST | C46: 0.13 | D46: =D45*C46 -> 17.78326576 | F46: =C46 -> 0.13 | G46: =G45*F46 -> 17.68797264 | H46: -0.09529312 | I46: -0.005358583811 | J46: 0.1238095238
A47: Total Electricity Charge on Two-Tier RPP (including HST) | D47: =SUM(D45:D46) -> 154.5776178 | G47: =SUM(G45:G46) -> 153.7493006 | H47: -0.82831712 | I47: -0.005358583811 | J47: 1.076190476
A48: Ontario Rebate for Electricity Consumers (OREC) | C48: -0.08 | D48: =D45*C48 -> -10.94354816 | F48: =C48 -> -0.08 | G48: =G45*F48 -> -10.88490624 | H48: 0.05864192 | I48: 0.005358583811 | J48: -0.07619047619
A49: Total Amount on Two-Tier RPP | D49: =SUM(D47:D48) -> 143.6340696 | G49: =SUM(G47:G48) -> 142.8643944 | H49: -0.7696752 | I49: -0.005358583811 | J49: 1
A50: Total Electricty Charge on TOU (before HST) | D50: =SUM(D18,D28,D29,D31,D36,D43,D44) -> 137.411384 | G50: =SUM(G18,G28,G29,G31,G36,G43,G44) -> 136.67836 | H50: -0.733024 | I50: -0.005334521629 | K50: =G50/$G$54 -> 0.9523809524
A51: HST | C51: 0.13 | D51: =D50*C51 -> 17.86347992 | F51: =C51 -> 0.13 | G51: =G50*F51 -> 17.7681868 | H51: -0.09529312 | I51: -0.005334521629 | K51: =G51/$G$54 -> 0.1238095238
A52: Total Electricity Charge on TOU (including HST) | D52: =SUM(D50:D51) -> 155.2748639 | G52: =SUM(G50:G51) -> 154.4465468 | H52: -0.82831712 | I52: -0.005334521629 | K52: =G52/$G$54 -> 1.076190476
A53: Ontario Rebate for Electricity Consumers (OREC) | C53: -0.08 | D53: =D50*C53 -> -10.99291072 | F53: =C53 -> -0.08 | G53: =G50*F53 -> -10.9342688 | H53: 0.05864192 | I53: 0.005334521629 | K53: =G53/$G$54 -> -0.07619047619
A54: Total Amount on TOU | D54: =SUM(D52:D53) -> 144.2819532 | G54: =SUM(G52:G53) -> 143.512278 | H54: -0.7696752 | I54: -0.005334521629 | K54: =G54/$G$54 -> 1
A55: * Distribution rate protection applies to R1 and R2 customers

Sheet BI Template_EnergyUNM (hidden)
A1: 2021 Bill Impacts (Average Consumption Level) - USL
A3: Rate Class | B3: =RIGHT(A1,LEN(A1)-FIND("- ",A1,1)-1) -> USL
A4: Monthly Consumption (kWh) | B4: =IF(COUNTIF(A1,"*Low*")>0,VLOOKUP(B3,'Data Billing Quantities'!$A:$Z,MATCH("Low kWh",'Data Billing Quantities'!4:4,0),FALSE),IF(COUNTIF(A1,"*Typical*")>0,VLOOKUP(B3,'Data Billing Quantities'!$A:$Z,MATCH("Typical kWh",'Data Billing Quantities'!4:4,0),FALSE),IF(COUNTIF(A1,"*Average*")>0,VLOOKUP(B3,'Data Billing Quantities'!$A:$Z,MATCH("Average kWh",'Data Billing Quantities'!4:4,0),FALSE),IF(COUNTIF(A1,"*High*")>0,VLOOKUP(B3,'Data Billing Quantities'!$A:$Z,MATCH("High kWh",'Data Billing Quantities'!4:4,0),FALSE),"error")))) -> 364
A5: Peak (kW) | B5: =IF(COUNTIF(A1,"*Low*")>0,VLOOKUP(B3,'Data Billing Quantities'!$A:$Z,MATCH("Low kW",'Data Billing Quantities'!4:4,0),FALSE),IF(COUNTIF(A1,"*Typical*")>0,VLOOKUP(B3,'Data Billing Quantities'!$A:$Z,MATCH("Typical kW",'Data Billing Quantities'!4:4,0),FALSE),IF(COUNTIF(A1,"*Average*")>0,VLOOKUP(B3,'Data Billing Quantities'!$A:$Z,MATCH("Average kW",'Data Billing Quantities'!4:4,0),FALSE),IF(COUNTIF(A1,"*High*")>0,VLOOKUP(B3,'Data Billing Quantities'!$A:$Z,MATCH("High kW",'Data Billing Quantities'!4:4,0),FALSE),"error")))) -> 0
A6: Loss factor | B6: =VLOOKUP(B3,'Data Billing Quantities'!A:D,MATCH(A6,'Data Billing Quantities'!4:4,0),FALSE) -> 1.092
A7: Commodity Threshold | B7: =VLOOKUP(B3,'Data Billing Quantities'!A:D,MATCH(A7,'Data Billing Quantities'!4:4,0),FALSE) -> 750
A8: Monthly Consumption (kWh) - Uplifted | B8: =B4*B6 -> 397.488
A9: Charge determinant | B9: =VLOOKUP(B3,'Data Billing Quantities'!A:D,MATCH(A9,'Data Billing Quantities'!4:4,0),FALSE) -> kWh
B11: Volume | C11: Current Rate ($) | D11: Current Charge ($) | E11: Volume | F11: Proposed Rate ($) | G11: Proposed Charge ($) | H11: Change ($) | I11: Change (%) | J11: % of Total Bill on RPP
A12: Energy First Tier | B12: =IF(B4>B7,B7,B4) -> 364 | C12: =VLOOKUP($A12,'Data Pass Through'!$A:$D,2,FALSE) -> 0.077 | D12: =B12*C12 -> 28.028 | E12: =B12 -> 364 | F12: =VLOOKUP($A12,'Data Pass Through'!$A:$D,3,FALSE) -> 0.077 | G12: =E12*F12 -> 28.028 | H12: =G12-D12 -> 0 | I12: =IF(ISERROR(H12/ABS(D12)),"N/A",(H12/ABS(D12))) -> 0 | J12: =G12/$G$41 -> 0.3216495996
A13: Energy Second Tier | B13: =IF(B4>B7,(B4)-B7,0) -> 0 | C13: =VLOOKUP($A13,'Data Pass Through'!$A:$D,2,FALSE) -> 0.089 | D13: =B13*C13 -> 0 | E13: =B13 -> 0 | F13: =VLOOKUP($A13,'Data Pass Through'!$A:$D,3,FALSE) -> 0.089 | G13: =E13*F13 -> 0 | H13: 0 | I13: N/A | J13: 0
A14: Sub-Total: Energy (RPP Tiered) | D14: =SUM(D12:D13) -> 28.028 | G14: =SUM(G12:G13) -> 28.028 | H14: 0 | I14: 0 | J14: 0.3216495996
A15: Service Charge | B15: 1 | C15: =VLOOKUP($B$3,'Data Current Rates'!$A:$BA,MATCH('BI Template_EnergyUNM'!$A15,CurrentHeader,0),FALSE) -> 36.33 | D15: =B15*C15 -> 36.33 | E15: 1 | F15: =VLOOKUP($B$3,'Data Proposed Rates'!$A:$BA,MATCH('BI Template_EnergyUNM'!$A15,ProposedHeader,0),FALSE) -> 37.58 | G15: =E15*F15 -> 37.58 | H15: 1.25 | I15: 0.03440682631 | J15: 0.4312684442
A16: Fixed Foregone Revenue Charge | B16: 1 | C16: =VLOOKUP($B$3,'Data Current Rates'!$A:$BA,MATCH('BI Template_EnergyUNM'!$A16,CurrentHeader,0),FALSE) -> 1.65 | D16: =B16*C16 -> 1.65 | H16: =G16-D16 -> -1.65 | I16: =IF(ISERROR(H16/ABS(D16)),"N/A",(H16/ABS(D16))) -> -1 | J16: 0
A17: Fixed Deferral/Variance Account Rider (General) | B17: 1 | C17: =VLOOKUP($B$3,'Data Current Rates'!$A:$BA,MATCH('BI Template_EnergyUNM'!$A17,CurrentHeader,0),FALSE) -> 0.01 | D17: 0.01 | E17: 1 | F17: =VLOOKUP($B$3,'Data Proposed Rates'!$A:$BA,MATCH('BI Template_EnergyUNM'!$A17,ProposedHeader,0),FALSE) -> 0 | G17: 0 | H17: -0.01 | I17: -1 | J17: 0
A18: Fixed ESM Rider | E18: =B18 -> 0 | F18: =VLOOKUP($B$3,'Data Proposed Rates'!$A:$BA,MATCH('BI Template_EnergyUNM'!$A18,ProposedHeader,0),FALSE) -> -0.53 | G18: =E18*F18 -> 0 | H18: =G18-D18 -> 0 | I18: =IF(ISERROR(H18/ABS(D18)),"N/A",(H18/ABS(D18))) -> N/A | J18: 0
A19: Distribution Volumetric Charge | B19: =IF($B$9="kWh",$B$4,$B$5) -> 364 | C19: =VLOOKUP($B$3,'Data Current Rates'!$A:$BA,MATCH('BI Template_EnergyUNM'!$A19,CurrentHeader,0),FALSE) -> 0.0243 | D19: 8.8452 | E19: =IF($B$9="kWh",$B$4,$B$5) -> 364 | F19: =VLOOKUP($B$3,'Data Proposed Rates'!$A:$BA,MATCH('BI Template_EnergyUNM'!$A19,ProposedHeader,0),FALSE) -> 0.0251 | G19: 9.1364 | H19: 0.2912 | I19: 0.0329218107 | J19: 0.1048494149
A20: Volumetric Foregone Revenue Charge | B20: =IF($B$9="kWh",$B$4,$B$5) -> 364 | C20: =VLOOKUP($B$3,'Data Current Rates'!$A:$BA,MATCH('BI Template_EnergyUNM'!$A20,CurrentHeader,0),FALSE) -> -0.0028 | D20: =B20*C20 -> -1.0192 | H20: =G20-D20 -> 1.0192 | I20: =IF(ISERROR(H20/ABS(D20)),"N/A",(H20/ABS(D20))) -> 1 | J20: 0
A21: Volumetric Deferral/Variance Account Rider (General) | B21: =IF($B$9="kWh",$B$4,$B$5) -> 364 | C21: =VLOOKUP($B$3,'Data Current Rates'!$A:$BA,MATCH('BI Template_EnergyUNM'!$A21,CurrentHeader,0),FALSE) -> -0.0008 | D21: -0.2912 | E21: =IF($B$9="kWh",$B$4,$B$5) -> 364 | F21: =VLOOKUP($B$3,'Data Proposed Rates'!$A:$BA,MATCH('BI Template_EnergyUNM'!$A21,ProposedHeader,0),FALSE) -> 0.0001 | G21: 0.0364 | H21: 0.3276 | I21: 1.125 | J21: 0.0004177267527
A22: Volumetric ESM Rider | E22: 364 | F22: =VLOOKUP($B$3,'Data Proposed Rates'!$A:$BA,MATCH('BI Template_EnergyUNM'!$A22,ProposedHeader,0),FALSE) -> -0.0004 | G22: -0.1456 | H22: -0.1456 | I22: N/A | J22: -0.001670907011
A23: Sub-Total: Distribution (excluding pass through) | D23: =SUM(INDIRECT("D15:D"&ROW()-1)) -> 45.5248 | G23: =SUM(INDIRECT("g15:g"&ROW()-1)) -> 46.6072 | H23: =G23-D23 -> 1.0824 | I23: 0.02377605173 | J23: 0.5348646788
A25: Line Losses on Cost of Power (based on two-tier RPP prices) | B25: =B8-B4 -> 33.488 | C25: =IF(B4>B7,C13,C12) -> 0.077 | D25: =B25*C25 -> 2.578576 | E25: 33.488 | F25: =IF(B4>B7,F13,F12) -> 0.077 | G25: =E25*F25 -> 2.578576 | H25: 0 | I25: 0 | J25: =G25/$G$41 -> 0.02959176316
A26: Sub-Total: Distribution (based on two-tier RPP prices) | D26: =SUM(D23,D24:D25) -> 48.103376 | G26: =SUM(G23,G24:G25) -> 49.185776 | H26: 1.0824 | I26: 0.02250153919 | J26: 0.564456442
A27: Retail Transmission Rate – Network Service Rate | B27: =B8 -> 397.488 | C27: =VLOOKUP($B$3,'Data Current Rates'!$A:$BA,MATCH('BI Template_EnergyUNM'!$A27,CurrentHeader,0),FALSE) -> 0.0053 | D27: =B27*C27 -> 2.1066864 | E27: 397.488 | F27: =VLOOKUP($B$3,'Data Proposed Rates'!$A:$BA,MATCH('BI Template_EnergyUNM'!$A27,ProposedHeader,0),FALSE) -> 0.0054 | G27: =E27*F27 -> 2.1464352 | H27: =G27-D27 -> 0.0397488 | I27: 0.01886792453 | J27: 0.02463251116
A28: Retail Transmission Rate – Line and Transformation Connection Service Rate | B28: =B8 -> 397.488 | C28: =VLOOKUP($B$3,'Data Current Rates'!$A:$BA,MATCH('BI Template_EnergyUNM'!$A28,CurrentHeader,0),FALSE) -> 0.0045 | D28: =B28*C28 -> 1.788696 | E28: 397.488 | F28: =VLOOKUP($B$3,'Data Proposed Rates'!$A:$BA,MATCH('BI Template_EnergyUNM'!$A28,ProposedHeader,0),FALSE) -> 0.0046 | G28: =E28*F28 -> 1.8284448 | H28: =G28-D28 -> 0.0397488 | I28: 0.02222222222 | J28: 0.02098325024
A29: Sub-Total: Retail Transmission | D29: =SUM(D27:D28) -> 3.8953824 | G29: =SUM(G27:G28) -> 3.97488 | H29: =G29-D29 -> 0.0794976 | I29: 0.02040816327 | J29: 0.0456157614
A30: Sub-Total: Delivery (based on two-tier RPP prices) | D30: =D26+D29 -> 51.9987584 | G30: =G26+G29 -> 53.160656 | H30: =G30-D30 -> 1.1618976 | I30: 0.02234471814 | J30: 0.6100722034
A31: Wholesale Market Service Rate (WMS) - not including CBR | B31: =B8 -> 397.488 | C31: =VLOOKUP($A31,'Data Pass Through'!$A:$D,2,FALSE) -> 0.003 | D31: =B31*C31 -> 1.192464 | E31: =$B$8 -> 397.488 | F31: =VLOOKUP($A31,'Data Pass Through'!$A:$D,3,FALSE) -> 0.003 | G31: =E31*F31 -> 1.192464 | H31: =G31-D31 -> 0 | I31: 0 | J31: 0.01368472842
A32: Capacity Based Recovery (CBR) - Applicable for Class B Customers | B32: =B8 -> 397.488 | C32: =VLOOKUP($A32,'Data Pass Through'!$A:$D,2,FALSE) -> 0.0004 | D32: =B32*C32 -> 0.1589952 | E32: =$B$8 -> 397.488 | F32: =VLOOKUP($A32,'Data Pass Through'!$A:$D,3,FALSE) -> 0.0004 | G32: =E32*F32 -> 0.1589952 | H32: 0 | I32: 0 | J32: 0.001824630456
A33: Rural Rate Protection Charge | B33: =B8 -> 397.488 | C33: =VLOOKUP($A33,'Data Pass Through'!$A:$D,2,FALSE) -> 0.0005 | D33: 0.198744 | E33: 397.488 | F33: =VLOOKUP($A33,'Data Pass Through'!$A:$D,3,FALSE) -> 0.0005 | G33: 0.198744 | H33: 0 | I33: 0 | J33: 0.00228078807
A34: Standard Supply Service – Administration Charge (if applicable) | B34: 1 | C34: =VLOOKUP($A34,'Data Pass Through'!$A:$D,2,FALSE) -> 0.25 | D34: =B34*C34 -> 0.25 | E34: 1 | F34: =VLOOKUP($A34,'Data Pass Through'!$A:$D,3,FALSE) -> 0.25 | G34: 0.25 | H34: 0 | I34: 0 | J34: 0.002869002423
A35: Sub-Total: Regulatory | D35: =SUM(D31:D34) -> 1.8002032 | G35: =SUM(G31:G34) -> 1.8002032 | H35: 0 | I35: 0 | J35: 0.02065914937
A36: Debt Retirement Charge (DRC) | B36: =B4 -> 364 | C36: =VLOOKUP($A36,'Data Pass Through'!$A:$D,2,FALSE) -> 0 | D36: =B36*C36 -> 0 | E36: 364 | F36: =VLOOKUP($A36,'Data Pass Through'!$A:$D,3,FALSE) -> 0 | G36: =E36*F36 -> 0 | H36: 0 | I36: N/A | J36: 0
A37: Total Electricty Charge on Two-Tier RPP | D37: =SUM(D14,D23,D24,D25,D29,D35,D36) -> 81.8269616 | G37: =SUM(G14,G23,G24,G25,G29,G35,G36) -> 82.9888592 | H37: 1.1618976 | I37: 0.01419944695 | J37: 0.9523809524
A38: HST | C38: 0.13 | D38: =D37*C38 -> 10.63750501 | F38: =C38 -> 0.13 | G38: =G37*F38 -> 10.7885517 | H38: 0.151046688 | I38: 0.01419944695 | J38: 0.1238095238
A39: Total Electricity Charge on Two-Tier RPP (including HST) | D39: =SUM(D37:D38) -> 92.46446661 | G39: =SUM(G37:G38) -> 93.7774109 | H39: 1.312944288 | I39: 0.01419944695 | J39: 1.076190476
A40: Ontario Rebate for Electricity Consumers (OREC) | C40: -0.08 | D40: =D37*C40 -> -6.546156928 | F40: =C40 -> -0.08 | G40: =G37*F40 -> -6.639108736 | H40: -0.092951808 | I40: -0.01419944695 | J40: -0.07619047619
A41: Total Amount on Two-Tier RPP | D41: =SUM(D39:D40) -> 85.91830968 | G41: =SUM(G39:G40) -> 87.13830216 | H41: 1.21999248 | I41: 0.01419944695 | J41: 1

Sheet BI Template_Demand (hidden)
A1: 2021 Bill Impacts (Average Consumption Level) - GSd
A3: Rate Class | B3: =RIGHT(A1,LEN(A1)-FIND("- ",A1,1)-1) -> GSd
A4: Monthly Consumption (kWh) | B4: =IF(COUNTIF(A1,"*Low*")>0,VLOOKUP(B3,'Data Billing Quantities'!$A:$Z,MATCH("Low kWh",'Data Billing Quantities'!4:4,0),FALSE),IF(COUNTIF(A1,"*Typical*")>0,VLOOKUP(B3,'Data Billing Quantities'!$A:$Z,MATCH("Typical kWh",'Data Billing Quantities'!4:4,0),FALSE),IF(COUNTIF(A1,"*Average*")>0,VLOOKUP(B3,'Data Billing Quantities'!$A:$Z,MATCH("Average kWh",'Data Billing Quantities'!4:4,0),FALSE),IF(COUNTIF(A1,"*High*")>0,VLOOKUP(B3,'Data Billing Quantities'!$A:$Z,MATCH("High kWh",'Data Billing Quantities'!4:4,0),FALSE),"error")))) -> 36104
A5: Peak (kW) | B5: =IF(COUNTIF(A1,"*Low*")>0,VLOOKUP(B3,'Data Billing Quantities'!$A:$Z,MATCH("Low kW",'Data Billing Quantities'!4:4,0),FALSE),IF(COUNTIF(A1,"*Typical*")>0,VLOOKUP(B3,'Data Billing Quantities'!$A:$Z,MATCH("Typical kW",'Data Billing Quantities'!4:4,0),FALSE),IF(COUNTIF(A1,"*Average*")>0,VLOOKUP(B3,'Data Billing Quantities'!$A:$Z,MATCH("Average kW",'Data Billing Quantities'!4:4,0),FALSE),IF(COUNTIF(A1,"*High*")>0,VLOOKUP(B3,'Data Billing Quantities'!$A:$Z,MATCH("High kW",'Data Billing Quantities'!4:4,0),FALSE),"error")))) -> 124
A6: Loss factor | B6: =VLOOKUP(B3,'Data Billing Quantities'!A:D,MATCH(A6,'Data Billing Quantities'!4:4,0),FALSE) -> 1.061
A7: Load factor | B7: =B4/(B5*730) -> 0.3988510826
A8: Monthly Consumption (kWh) - Uplifted | B8: =B4*B6 -> 38306.344
A9: Charge determinant | B9: =VLOOKUP(B3,'Data Billing Quantities'!A:D,MATCH(A9,'Data Billing Quantities'!4:4,0),FALSE) -> kW
B11: Volume | C11: Current Rate ($) | D11: Current Charge ($) | E11: Volume | F11: Proposed Rate ($) | G11: Proposed Charge ($) | H11: Change ($) | I11: Change (%) | J11: % of Total Bill
A12: Energy (Non-RPP)* | B12: =B8 -> 38306.344 | C12: =VLOOKUP($A12,'Data Pass Through'!A:E,2,FALSE) -> 0.123 | D12: =B12*C12 -> 4711.680312 | E12: =B8 -> 38306.344 | F12: =VLOOKUP($A12,'Data Pass Through'!A:E,3,FALSE) -> 0.123 | G12: =E12*F12 -> 4711.680312 | H12: =G12-D12 -> 0 | I12: =IF(ISERROR(H12/ABS(D12)),"N/A",(H12/ABS(D12))) -> 0 | J12: =G12/$G$37 -> 0.5540722253
A13: Service Charge | B13: 1 | C13: =VLOOKUP($B$3,'Data Current Rates'!$A:$BA,MATCH($A13,CurrentHeader,0),FALSE) -> 105.73 | D13: =B13*C13 -> 105.73 | E13: =B13 -> 1 | F13: =VLOOKUP($B$3,'Data Proposed Rates'!$A:$BA,MATCH($A13,ProposedHeader,0),FALSE) -> 108.28 | G13: =E13*F13 -> 108.28 | H13: 2.55 | I13: 0.02411803651 | J13: 0.01273323668
A14: Fixed Foregone Revenue Charge | B14: 1 | C14: =VLOOKUP($B$3,'Data Current Rates'!$A:$BA,MATCH($A14,CurrentHeader,0),FALSE) -> 10.69 | D14: =B14*C14 -> 10.69 | H14: =G14-D14 -> -10.69 | I14: =IF(ISERROR(H14/ABS(D14)),"N/A",(H14/ABS(D14))) -> -1 | J14: 0
A15: Fixed Deferral/Variance Account Rider (General) | B15: 1 | C15: =VLOOKUP($B$3,'Data Current Rates'!$A:$BA,MATCH($A15,CurrentHeader,0),FALSE) -> -0.05 | D15: =B15*C15 -> -0.05 | E15: 1 | F15: =VLOOKUP($B$3,'Data Proposed Rates'!$A:$BA,MATCH($A15,ProposedHeader,0),FALSE) -> 0 | G15: =E15*F15 -> 0 | H15: 0.05 | I15: 1 | J15: 0
A16: Fixed ESM Rider | E16: 1 | F16: =VLOOKUP($B$3,'Data Proposed Rates'!$A:$BA,MATCH($A16,ProposedHeader,0),FALSE) -> -1.52 | G16: =E16*F16 -> -1.52 | H16: =G16-D16 -> -1.52 | I16: =IF(ISERROR(H16/ABS(D16)),"N/A",(H16/ABS(D16))) -> N/A | J16: -0.0001787451029
A17: Distribution Volumetric Charge | B17: =IF($B$9="kWh",$B$4,$B$5) -> 124 | C17: =VLOOKUP($B$3,'Data Current Rates'!$A:$BA,MATCH($A17,CurrentHeader,0),FALSE) -> 17.7164 | D17: 2196.8336 | E17: =$B$5 -> 124 | F17: =VLOOKUP($B$3,'Data Proposed Rates'!$A:$BA,MATCH($A17,ProposedHeader,0),FALSE) -> 18.3296 | G17: 2272.8704 | H17: 76.0368 | I17: =IF(ISERROR(H17/ABS(D17)),"N/A",(H17/ABS(D17))) -> 0.03461199792 | J17: 0.2672792458
A18: Volumetric Foregone Revenue Charge | B18: =IF($B$9="kWh",$B$4,$B$5) -> 124 | C18: =VLOOKUP($B$3,'Data Current Rates'!$A:$BA,MATCH($A18,CurrentHeader,0),FALSE) -> 0.7265 | D18: =B18*C18 -> 90.086 | H18: =G18-D18 -> -90.086 | I18: =IF(ISERROR(H18/ABS(D18)),"N/A",(H18/ABS(D18))) -> -1 | J18: 0
A19: Volumetric Deferral/Variance Account Rider (General) | B19: =IF($B$9="kWh",$B$4,$B$5) -> 124 | C19: =VLOOKUP($B$3,'Data Current Rates'!$A:$BA,MATCH($A19,CurrentHeader,0),FALSE) -> -0.2655 | D19: -32.922 | E19: =$B$5 -> 124 | F19: =VLOOKUP($B$3,'Data Proposed Rates'!$A:$BA,MATCH($A19,ProposedHeader,0),FALSE) -> 0.0117 | G19: 1.4508 | H19: 34.3728 | I19: =IF(ISERROR(H19/ABS(D19)),"N/A",(H19/ABS(D19))) -> 1.044067797 | J19: 0.0001706074969
A20: Volumetric Deferral/Variance Account Rider (Sub-Account Global Adjustment) | B20: =B8 -> 38306.344 | C20: =VLOOKUP($B$3,'Data Current Rates'!$A:$BA,MATCH($A20,CurrentHeader,0),FALSE) -> -0.0067 | D20: -256.6525048 | E20: =B8 -> 38306.344 | F20: =VLOOKUP($B$3,'Data Proposed Rates'!$A:$BA,MATCH($A20,ProposedHeader,0),FALSE) -> -0.0039 | G20: -149.3947416 | H20: =G20-D20 -> 107.2577632 | I20: =IF(ISERROR(H20/ABS(D20)),"N/A",(H20/ABS(D20))) -> 0.4179104478 | J20: -0.01756814373
A21: Volumetric ESM Rider | E21: =B5 -> 124 | F21: =VLOOKUP($B$3,'Data Proposed Rates'!$A:$BA,MATCH($A21,ProposedHeader,0),FALSE) -> -0.2555 | G21: =E21*F21 -> -31.682 | H21: =G21-D21 -> -31.682 | I21: =IF(ISERROR(H21/ABS(D21)),"N/A",(H21/ABS(D21))) -> N/A | J21: -0.003725659442
A22: Sub-Total: Distribution | D22: =SUM(INDIRECT("D13:D"&ROW()-1)) -> 2113.715095 | G22: =SUM(INDIRECT("g13:g"&ROW()-1)) -> 2200.004458 | H22: 86.2893632 | I22: 0.04082355441 | J22: 0.2587105417
A23: Retail Transmission Rate – Network Service Rate | B23: =B5 -> 124 | C23: =VLOOKUP($B$3,'Data Current Rates'!$A:$BA,MATCH($A23,CurrentHeader,0),FALSE) -> 1.9952 | D23: =B23*C23 -> 247.4048 | E23: 124 | F23: =VLOOKUP($B$3,'Data Proposed Rates'!$A:$BA,MATCH($A23,ProposedHeader,0),FALSE) -> 2.0421 | G23: =E23*F23 -> 253.2204 | H23: 5.8156 | I23: 0.0235064154 | J23: 0.02977757004
A24: Retail Transmission Rate – Line and Transformation Connection Service Rate | B24: =B5 -> 124 | C24: =VLOOKUP($B$3,'Data Current Rates'!$A:$BA,MATCH($A24,CurrentHeader,0),FALSE) -> 1.6799 | D24: =B24*C24 -> 208.3076 | E24: 124 | F24: =VLOOKUP($B$3,'Data Proposed Rates'!$A:$BA,MATCH($A24,ProposedHeader,0),FALSE) -> 1.7006 | G24: =E24*F24 -> 210.8744 | H24: 2.5668 | I24: 0.01232216203 | J24: 0.02479787259
A25: Sub-Total: Retail Transmission | D25: =SUM(D23:D24) -> 455.7124 | G25: =SUM(G23:G24) -> 464.0948 | H25: 8.3824 | I25: 0.0183940573 | J25: 0.05457544263
A26: Sub-Total: Delivery | D26: =D22+D25 -> 2569.427495 | G26: =G22+G25 -> 2664.099258 | H26: 94.6717632 | I26: 0.03684546981 | J26: 0.3132859843
A27: Wholesale Market Service Rate (WMS) - not including CBR | B27: =$B$8 -> 38306.344 | C27: =VLOOKUP($A27,'Data Pass Through'!$A:$D,2,FALSE) -> 0.003 | D27: =B27*C27 -> 114.919032 | E27: =$B$8 -> 38306.344 | F27: =VLOOKUP($A27,'Data Pass Through'!$A:$D,3,FALSE) -> 0.003 | G27: =E27*F27 -> 114.919032 | H27: 0 | I27: 0 | J27: 0.01351395671
A28: Capacity Based Recovery (CBR) - Applicable for Class B Customers | B28: =$B$8 -> 38306.344 | C28: =VLOOKUP($A28,'Data Pass Through'!$A:$D,2,FALSE) -> 0.0004 | D28: =B28*C28 -> 15.3225376 | E28: =$B$8 -> 38306.344 | F28: =VLOOKUP($A28,'Data Pass Through'!$A:$D,3,FALSE) -> 0.0004 | G28: =E28*F28 -> 15.3225376 | H28: =G28-D28 -> 0 | I28: 0 | J28: 0.001801860895
A29: Rural Rate Protection Charge | B29: =$B$8 -> 38306.344 | C29: =VLOOKUP($A29,'Data Pass Through'!$A:$D,2,FALSE) -> 0.0005 | D29: =B29*C29 -> 19.153172 | E29: =$B$8 -> 38306.344 | F29: =VLOOKUP($A29,'Data Pass Through'!$A:$D,3,FALSE) -> 0.0005 | G29: =E29*F29 -> 19.153172 | H29: =G29-D29 -> 0 | I29: 0 | J29: 0.002252326119
A30: Standard Supply Service – Administration Charge (if applicable) | B30: 1 | C30: =VLOOKUP($A30,'Data Pass Through'!$A:$D,2,FALSE) -> 0.25 | D30: =B30*C30 -> 0.25 | E30: 1 | F30: =VLOOKUP($A30,'Data Pass Through'!$A:$D,3,FALSE) -> 0.25 | G30: =E30*F30 -> 0.25 | H30: 0 | I30: 0 | J30: 2.939886562e-05
A31: Sub-Total: Regulatory | D31: =SUM(D27:D30) -> 149.6447416 | G31: =SUM(G27:G30) -> 149.6447416 | H31: 0 | I31: 0 | J31: 0.01759754259
A32: Debt Retirement Charge (DRC) | B32: =B4 -> 36104 | C32: =VLOOKUP($A32,'Data Pass Through'!$A:$D,2,FALSE) -> 0 | D32: =B32*C32 -> 0 | E32: =B4 -> 36104 | F32: =VLOOKUP($A32,'Data Pass Through'!$A:$D,3,FALSE) -> 0 | G32: =E32*F32 -> 0 | H32: 0 | I32: N/A | J32: 0
A33: Total Electricity Charge (before HST) | D33: =SUM(D12,D22,D25,D31,D32) -> 7430.752549 | G33: =SUM(G12,G22,G25,G31,G32) -> 7525.424312 | H33: 94.6717632 | I33: 0.01274053504 | J33: 0.8849557522
A34: HST | C34: 0.13 | D34: =D33*C34 -> 965.9978313 | F34: =C34 -> 0.13 | G34: =G33*F34 -> 978.3051606 | H34: 12.30732922 | I34: 0.01274053504 | J34: 0.1150442478
A35: Total Electricity Charge (including HST) | D35: =SUM(D33:D34) -> 8396.75038 | G35: =SUM(G33:G34) -> 8503.729473 | H35: 106.9790924 | I35: 0.01274053504 | J35: 1
A36: Ontario Rebate for Electricity Consumers (OREC) | C36: 0 | D36: =D33*C36 -> 0 | F36: =C36 -> 0 | G36: =G33*F36 -> 0 | H36: 0 | I36: N/A | J36: 0
A37: Total Amount | D37: =SUM(D35:D36) -> 8396.75038 | G37: =SUM(G35:G36) -> 8503.729473 | H37: 106.9790924 | I37: 0.01274053504 | J37: 1
A38: =VLOOKUP($A12,'Data Pass Through'!A:E,5,FALSE) -> *Average HOEP plus average GA used to approximate Non-RPP Energy Charges (IESO Monthly Market Report December 2017)

Sheet BI_UR_Low
A1: 2021 Bill Impacts (Low Consumption Level) - UR
A3: Rate Class | B3: =RIGHT(A1,LEN(A1)-FIND("- ",A1,1)-1) -> UR
A4: Monthly Consumption (kWh) | B4: =IF(COUNTIF(A1,"*Low*")>0,VLOOKUP(B3,'Data Billing Quantities'!$A:$Z,MATCH("Low kWh",'Data Billing Quantities'!4:4,0),FALSE),IF(COUNTIF(A1,"*Typical*")>0,VLOOKUP(B3,'Data Billing Quantities'!$A:$Z,MATCH("Typical kWh",'Data Billing Quantities'!4:4,0),FALSE),IF(COUNTIF(A1,"*Average*")>0,VLOOKUP(B3,'Data Billing Quantities'!$A:$Z,MATCH("Average kWh",'Data Billing Quantities'!4:4,0),FALSE),IF(COUNTIF(A1,"*High*")>0,VLOOKUP(B3,'Data Billing Quantities'!$A:$Z,MATCH("High kWh",'Data Billing Quantities'!4:4,0),FALSE),"error")))) -> 350
A5: Peak (kW) | B5: =IF(COUNTIF(A1,"*Low*")>0,VLOOKUP(B3,'Data Billing Quantities'!$A:$Z,MATCH("Low kW",'Data Billing Quantities'!4:4,0),FALSE),IF(COUNTIF(A1,"*Typical*")>0,VLOOKUP(B3,'Data Billing Quantities'!$A:$Z,MATCH("Typical kW",'Data Billing Quantities'!4:4,0),FALSE),IF(COUNTIF(A1,"*Average*")>0,VLOOKUP(B3,'Data Billing Quantities'!$A:$Z,MATCH("Average kW",'Data Billing Quantities'!4:4,0),FALSE),IF(COUNTIF(A1,"*High*")>0,VLOOKUP(B3,'Data Billing Quantities'!$A:$Z,MATCH("High kW",'Data Billing Quantities'!4:4,0),FALSE),"error")))) -> 0
A6: Loss factor | B6: =VLOOKUP(B3,'Data Billing Quantities'!A:D,MATCH(A6,'Data Billing Quantities'!4:4,0),FALSE) -> 1.057
A7: Commodity Threshold | B7: =VLOOKUP(B3,'Data Billing Quantities'!A:D,MATCH(A7,'Data Billing Quantities'!4:4,0),FALSE) -> 600
A8: Monthly Consumption (kWh) - Uplifted | B8: =B4*B6 -> 369.95
A9: Charge determinant | B9: =VLOOKUP(B3,'Data Billing Quantities'!A:D,MATCH(A9,'Data Billing Quantities'!4:4,0),FALSE) -> kWh
B11: Volume | C11: Current Rate ($) | D11: Current Charge ($) | E11: Volume | F11: Proposed Rate ($) | G11: Proposed Charge ($) | H11: Change ($) | I11: Change (%) | J11: % of Total Bill on RPP | K11: % of Total Bill on TOU
A12: Energy First Tier | B12: =IF(B4>B7,B7,B4) -> 350 | C12: =VLOOKUP($A12,'Data Pass Through'!$A:$D,2,FALSE) -> 0.077 | D12: =B12*C12 -> 26.95 | E12: =B12 -> 350 | F12: =VLOOKUP($A12,'Data Pass Through'!$A:$D,3,FALSE) -> 0.077 | G12: =E12*F12 -> 26.95 | H12: =G12-D12 -> 0 | I12: =IF(ISERROR(H12/ABS(D12)),"N/A",(H12/ABS(D12))) -> 0 | J12: =G12/$G$49 -> 0.3568525834
A13: Energy Second Tier | B13: =IF(B4>B7,(B4)-B7,0) -> 0 | C13: =VLOOKUP($A13,'Data Pass Through'!$A:$D,2,FALSE) -> 0.089 | D13: =B13*C13 -> 0 | E13: =B13 -> 0 | F13: =VLOOKUP($A13,'Data Pass Through'!$A:$D,3,FALSE) -> 0.089 | G13: =E13*F13 -> 0 | H13: 0 | I13: N/A | J13: =G13/$G$49 -> 0
A14: Sub-Total: Energy (RPP Tiered) | D14: =SUM(D12:D13) -> 26.95 | G14: =SUM(G12:G13) -> 26.95 | H14: 0 | I14: 0 | J14: =G14/$G$49 -> 0.3568525834
A15: TOU-Off Peak | B15: =B$4*VLOOKUP($B$3,'Data Billing Quantities'!$A:$O,MATCH(BI_UR_Low!$A15,'Data Billing Quantities'!$4:$4,0),FALSE) -> 227.5 | C15: =VLOOKUP($A15,'Data Pass Through'!$A:$D,2,FALSE) -> 0.065 | D15: =B15*C15 -> 14.7875 | E15: 227.5 | F15: =VLOOKUP($A15,'Data Pass Through'!$A:$D,3,FALSE) -> 0.065 | G15: =E15*F15 -> 14.7875 | H15: 0 | I15: 0 | K15: =G15/$G$54 -> 0.1905616098
A16: TOU-Mid Peak | B16: =B$4*VLOOKUP($B$3,'Data Billing Quantities'!$A:$O,MATCH(BI_UR_Low!$A16,'Data Billing Quantities'!$4:$4,0),FALSE) -> 59.5 | C16: =VLOOKUP($A16,'Data Pass Through'!$A:$D,2,FALSE) -> 0.094 | D16: =B16*C16 -> 5.593 | E16: 59.5 | F16: =VLOOKUP($A16,'Data Pass Through'!$A:$D,3,FALSE) -> 0.094 | G16: =E16*F16 -> 5.593 | H16: 0 | I16: 0 | K16: 0.07207513666
A17: TOU-On Peak | B17: =B$4*VLOOKUP($B$3,'Data Billing Quantities'!$A:$O,MATCH(BI_UR_Low!$A17,'Data Billing Quantities'!$4:$4,0),FALSE) -> 63 | C17: =VLOOKUP($A17,'Data Pass Through'!$A:$D,2,FALSE) -> 0.134 | D17: =B17*C17 -> 8.442 | E17: 63 | F17: =VLOOKUP($A17,'Data Pass Through'!$A:$D,3,FALSE) -> 0.134 | G17: =E17*F17 -> 8.442 | H17: 0 | I17: 0 | K17: 0.1087892551
A18: Sub-Total: Energy (RPP TOU) | D18: =SUM(D15:D17) -> 28.8225 | G18: =SUM(G15:G17) -> 28.8225 | H18: 0 | I18: 0 | J18: =G18/$G$49 -> 0.3816468863 | K18: 0.3714260015
A19: Service Charge | B19: 1 | C19: =IF(ISERROR(VLOOKUP($B$3,'Data Current Rates'!$A:$BA,MATCH(BI_UR_Low!$A19,CurrentHeader,0),FALSE)),0,VLOOKUP($B$3,'Data Current Rates'!$A:$BA,MATCH(BI_UR_Low!$A19,CurrentHeader,0),FALSE)) -> 32.08 | D19: =B19*C19 -> 32.08 | E19: 1 | F19: =VLOOKUP($B$3,'Data Proposed Rates'!$A:$BA,MATCH(BI_UR_Low!$A19,ProposedHeader,0),FALSE) -> 35.92 | G19: =E19*F19 -> 35.92 | H19: 3.84 | I19: 0.1197007481 | J19: 0.4756268941 | K19: 0.4628891309
A20: Fixed Foregone Revenue Charge | B20: 1 | C20: =IF(ISERROR(VLOOKUP($B$3,'Data Current Rates'!$A:$BA,MATCH(BI_UR_Low!$A20,CurrentHeader,0),FALSE)),0,VLOOKUP($B$3,'Data Current Rates'!$A:$BA,MATCH(BI_UR_Low!$A20,CurrentHeader,0),FALSE)) -> 1.45 | D20: 1.45 | H20: -1.45 | I20: -1 | J20: 0 | K20: 0
A21: Fixed Deferral/Variance Account Rider (General) | B21: 1 | C21: =IF(ISERROR(VLOOKUP($B$3,'Data Current Rates'!$A:$BA,MATCH(BI_UR_Low!$A21,CurrentHeader,0),FALSE)),0,VLOOKUP($B$3,'Data Current Rates'!$A:$BA,MATCH(BI_UR_Low!$A21,CurrentHeader,0),FALSE)) -> 0.05 | D21: 0.05 | E21: 1 | F21: =VLOOKUP($B$3,'Data Proposed Rates'!$A:$BA,MATCH(BI_UR_Low!$A21,ProposedHeader,0),FALSE) -> -0.14 | G21: -0.14 | H21: -0.19 | I21: -3.8 | J21: -0.001853779654 | K21: -0.001804133584
A22: Fixed ESM Rider | E22: 1 | F22: =VLOOKUP($B$3,'Data Proposed Rates'!$A:$BA,MATCH(BI_UR_Low!$A22,ProposedHeader,0),FALSE) -> -0.5 | G22: -0.5 | H22: -0.5 | I22: N/A | J22: -0.006620641621 | K22: -0.006443334227
A23: Distribution Volumetric Charge | B23: =IF($B$9="kWh",$B$4,$B$5) -> 350 | C23: =IF(ISERROR(VLOOKUP($B$3,'Data Current Rates'!$A:$BA,MATCH(BI_UR_Low!$A23,CurrentHeader,0),FALSE)),0,VLOOKUP($B$3,'Data Current Rates'!$A:$BA,MATCH(BI_UR_Low!$A23,CurrentHeader,0),FALSE)) -> 0.0039 | D23: 1.365 | E23: =IF($B$9="kWh",$B$4,$B$5) -> 350 | F23: =VLOOKUP($B$3,'Data Proposed Rates'!$A:$BA,MATCH(BI_UR_Low!$A23,ProposedHeader,0),FALSE) -> 0 | G23: 0 | H23: -1.365 | I23: -1 | J23: 0 | K23: 0
A24: Volumetric Foregone Revenue Charge | B24: =IF($B$9="kWh",$B$4,$B$5) -> 350 | C24: =IF(ISERROR(VLOOKUP($B$3,'Data Current Rates'!$A:$BA,MATCH(BI_UR_Low!$A24,CurrentHeader,0),FALSE)),0,VLOOKUP($B$3,'Data Current Rates'!$A:$BA,MATCH(BI_UR_Low!$A24,CurrentHeader,0),FALSE)) -> 0 | D24: 0 | H24: 0 | I24: N/A | J24: 0 | K24: 0
A25: Volumetric Deferral/Variance Account Rider (General) | B25: =IF($B$9="kWh",$B$4,$B$5) -> 350 | C25: =IF(ISERROR(VLOOKUP($B$3,'Data Current Rates'!$A:$BA,MATCH(BI_UR_Low!$A25,CurrentHeader,0),FALSE)),0,VLOOKUP($B$3,'Data Current Rates'!$A:$BA,MATCH(BI_UR_Low!$A25,CurrentHeader,0),FALSE)) -> -0.0008 | D25: -0.28 | E25: =IF($B$9="kWh",$B$4,$B$5) -> 350 | F25: =VLOOKUP($B$3,'Data Proposed Rates'!$A:$BA,MATCH(BI_UR_Low!$A25,ProposedHeader,0),FALSE) -> -0.0007 | G25: -0.245 | H25: 0.035 | I25: 0.125 | J25: -0.003244114394 | K25: -0.003157233771
A26: Volumetric ESM Rider | E26: 350 | F26: =VLOOKUP($B$3,'Data Proposed Rates'!$A:$BA,MATCH(BI_UR_Low!$A26,ProposedHeader,0),FALSE) -> 0 | G26: 0 | H26: 0 | I26: N/A | J26: 0 | K26: 0
A27: Fair Hydro Plan - Distribution Rate Protection Savings* | D27: =IF(AND(B3<>"R1",B3<>"R2"),0,IF(VLOOKUP($A27,'Data Pass Through'!$A:$D,2,FALSE)=0,0,IF(SUM(D19:D20,D23:D24)<VLOOKUP($A27,'Data Pass Through'!$A:$D,2,FALSE),0,VLOOKUP($A27,'Data Pass Through'!$A:$D,2,FALSE)-SUM(D19:D20,D23:D24)))) -> 0 | G27: =IF(AND(B3<>"R1",B3<>"R2"),0,IF(VLOOKUP($A27,'Data Pass Through'!$A:$D,2,FALSE)=0,0,IF(SUM(G19:G20,G23:G24)<VLOOKUP($A27,'Data Pass Through'!$A:$D,2,FALSE),0,VLOOKUP($A27,'Data Pass Through'!$A:$D,2,FALSE)-SUM(G19:G20,G23:G24)))) -> 0 | H27: 0 | I27: N/A | J27: 0 | K27: 0
A28: Sub-Total: Distribution (excluding pass through) | D28: =SUM(INDIRECT("D19:D"&ROW()-1)) -> 34.665 | G28: =SUM(INDIRECT("g19:g"&ROW()-1)) -> 35.035 | H28: =G28-D28 -> 0.37 | I28: 0.01067359008 | J28: 0.4639083584 | K28: 0.4514844293
A29: Smart Metering Entity Charge | B29: 1 | C29: =VLOOKUP($A29,'Data Pass Through'!$A:$D,2,FALSE) -> 0.57 | D29: =B29*C29 -> 0.57 | E29: 1 | F29: =VLOOKUP($A29,'Data Pass Through'!$A:$D,3,FALSE) -> 0.57 | G29: =E29*F29 -> 0.57 | H29: 0 | I29: 0 | J29: 0.007547531448 | K29: 0.007345401019
A30: Line Losses on Cost of Power (based on two-tier RPP prices) | B30: =B8-B4 -> 19.95 | C30: =IF(B4>B7,C13,C12) -> 0.077 | D30: =B30*C30 -> 1.53615 | E30: 19.95 | F30: =IF(B4>B7,F13,F12) -> 0.077 | G30: =E30*F30 -> 1.53615 | H30: 0 | I30: 0 | J30: 0.02034059725 | K30: 0.01979585575
A31: Line Losses on Cost of Power (based on TOU prices) | B31: =B8-B4 -> 19.95 | C31: =VLOOKUP($B$3,'Data Billing Quantities'!$A:$O,MATCH(BI_UR_Low!$A15,'Data Billing Quantities'!$4:$4,0),FALSE)*C15+VLOOKUP($B$3,'Data Billing Quantities'!$A:$O,MATCH(BI_UR_Low!$A16,'Data Billing Quantities'!$4:$4,0),FALSE)*C16+VLOOKUP($B$3,'Data Billing Quantities'!$A:$O,MATCH(BI_UR_Low!$A17,'Data Billing Quantities'!$4:$4,0),FALSE)*C17 -> 0.08235 | D31: =B31*C31 -> 1.6428825 | E31: 19.95 | F31: =VLOOKUP($B$3,'Data Billing Quantities'!$A:$O,MATCH(BI_UR_Low!$A15,'Data Billing Quantities'!$4:$4,0),FALSE)*F15+VLOOKUP($B$3,'Data Billing Quantities'!$A:$O,MATCH(BI_UR_Low!$A16,'Data Billing Quantities'!$4:$4,0),FALSE)*F16+VLOOKUP($B$3,'Data Billing Quantities'!$A:$O,MATCH(BI_UR_Low!$A17,'Data Billing Quantities'!$4:$4,0),FALSE)*F17 -> 0.08235 | G31: =E31*F31 -> 1.6428825 | H31: 0 | I31: 0 | J31: 0.02175387252 | K31: 0.02117128209
A32: Sub-Total: Distribution (based on two-tier RPP prices) | D32: =SUM(D28,D29:D30) -> 36.77115 | G32: =SUM(G28,G29:G30) -> 37.14115 | H32: 0.37 | I32: 0.01006223629 | J32: 0.4917964871 | K32: 0.478625686
A33: Sub-Total: Distribution (based on TOU prices) | D33: =SUM(D28,D29,D31) -> 36.8778825 | G33: =SUM(G28,G29,G31) -> 37.2478825 | H33: 0.37 | I33: 0.01003311402 | J33: 0.4932097624 | K33: 0.4800011124
A34: Retail Transmission Rate – Network Service Rate | B34: =B8 -> 369.95 | C34: =VLOOKUP($B$3,'Data Current Rates'!$A:$BA,MATCH(BI_UR_Low!$A34,CurrentHeader,0),FALSE) -> 0.0087 | D34: =B34*C34 -> 3.218565 | E34: 369.95 | F34: =VLOOKUP($B$3,'Data Proposed Rates'!$A:$BA,MATCH(BI_UR_Low!$A34,ProposedHeader,0),FALSE) -> 0.0089 | G34: =E34*F34 -> 3.292555 | H34: =G34-D34 -> 0.07399 | I34: 0.02298850575 | J34: 0.04359765335 | K34: 0.04243006465
A35: Retail Transmission Rate – Line and Transformation Connection Service Rate | B35: =B8 -> 369.95 | C35: =VLOOKUP($B$3,'Data Current Rates'!$A:$BA,MATCH(BI_UR_Low!$A35,CurrentHeader,0),FALSE) -> 0.0076 | D35: =B35*C35 -> 2.81162 | E35: 369.95 | F35: =VLOOKUP($B$3,'Data Proposed Rates'!$A:$BA,MATCH(BI_UR_Low!$A35,ProposedHeader,0),FALSE) -> 0.0077 | G35: =E35*F35 -> 2.848615 | H35: =G35-D35 -> 0.036995 | I35: 0.01315789474 | J35: 0.03771931806 | K35: 0.03670915706
A36: Sub-Total: Retail Transmission | D36: =SUM(D34:D35) -> 6.030185 | G36: =SUM(G34:G35) -> 6.14117 | H36: =G36-D36 -> 0.110985 | I36: 0.01840490798 | J36: 0.08131697141 | K36: 0.07913922171
A37: Sub-Total: Delivery (based on two-tier RPP prices) | D37: =D32+D36 -> 42.801335 | G37: =G32+G36 -> 43.28232 | H37: =G37-D37 -> 0.480985 | I37: 0.01123761677 | J37: 0.5731134585 | K37: 0.5577649077
A38: Sub-Total: Delivery (based on TOU prices) | D38: =D33+D36 -> 42.9080675 | G38: =G33+G36 -> 43.3890525 | H38: =G38-D38 -> 0.480985 | I38: 0.01120966354 | J38: 0.5745267338 | K38: 0.5591403341
A39: Wholesale Market Service Rate (WMS) - not including CBR | B39: =B8 -> 369.95 | C39: =VLOOKUP($A39,'Data Pass Through'!$A:$D,2,FALSE) -> 0.003 | D39: =B39*C39 -> 1.10985 | E39: =$B$8 -> 369.95 | F39: =VLOOKUP($A39,'Data Pass Through'!$A:$D,3,FALSE) -> 0.003 | G39: =E39*F39 -> 1.10985 | H39: 0 | I39: 0 | J39: 0.01469583821 | K39: 0.01430226898
A40: Capacity Based Recovery (CBR) - Applicable for Class B Customers | B40: =B8 -> 369.95 | C40: =VLOOKUP($A40,'Data Pass Through'!$A:$D,2,FALSE) -> 0.0004 | D40: =B40*C40 -> 0.14798 | E40: =$B$8 -> 369.95 | F40: =VLOOKUP($A40,'Data Pass Through'!$A:$D,3,FALSE) -> 0.0004 | G40: =E40*F40 -> 0.14798 | H40: 0 | I40: 0 | J40: 0.001959445094 | K40: 0.001906969198
A41: Rural Rate Protection Charge | B41: =B8 -> 369.95 | C41: =VLOOKUP($A41,'Data Pass Through'!$A:$D,2,FALSE) -> 0.0005 | D41: 0.184975 | E41: 369.95 | F41: =VLOOKUP($A41,'Data Pass Through'!$A:$D,3,FALSE) -> 0.0005 | G41: 0.184975 | H41: 0 | I41: 0 | J41: 0.002449306368 | K41: 0.002383711497
A42: Standard Supply Service – Administration Charge (if applicable) | B42: 1 | C42: =VLOOKUP($A42,'Data Pass Through'!$A:$D,2,FALSE) -> 0.25 | D42: =B42*C42 -> 0.25 | E42: 1 | F42: =VLOOKUP($A42,'Data Pass Through'!$A:$D,3,FALSE) -> 0.25 | G42: 0.25 | H42: 0 | I42: 0 | J42: 0.003310320811 | K42: 0.003221667113
A43: Sub-Total: Regulatory | D43: =SUM(D39:D42) -> 1.692805 | G43: =SUM(G39:G42) -> 1.692805 | H43: 0 | I43: 0 | J43: 0.02241491048 | K43: 0.02181461679
A44: Debt Retirement Charge (DRC) | B44: =B4 -> 350 | C44: =VLOOKUP($A44,'Data Pass Through'!$A:$D,2,FALSE) -> 0 | D44: =B44*C44 -> 0 | E44: 350 | F44: =VLOOKUP($A44,'Data Pass Through'!$A:$D,3,FALSE) -> 0 | G44: =E44*F44 -> 0 | H44: 0 | I44: N/A | J44: 0 | K44: 0
A45: Total Electricty Charge on Two-Tier RPP | D45: =SUM(D14,D28,D29,D30,D36,D43,D44) -> 71.44414 | G45: =SUM(G14,G28,G29,G30,G36,G43,G44) -> 71.925125 | H45: 0.480985 | I45: 0.006732322623 | J45: 0.9523809524
A46: HST | C46: 0.13 | D46: =D45*C46 -> 9.2877382 | F46: =C46 -> 0.13 | G46: =G45*F46 -> 9.35026625 | H46: 0.06252805 | I46: 0.006732322623 | J46: 0.1238095238
A47: Total Electricity Charge on Two-Tier RPP (including HST) | D47: =SUM(D45:D46) -> 80.7318782 | G47: =SUM(G45:G46) -> 81.27539125 | H47: 0.54351305 | I47: 0.006732322623 | J47: 1.076190476
A48: Ontario Rebate for Electricity Consumers (OREC) | C48: -0.08 | D48: =D45*C48 -> -5.7155312 | F48: =C48 -> -0.08 | G48: =G45*F48 -> -5.75401 | H48: -0.0384788 | I48: -0.006732322623 | J48: -0.07619047619
A49: Total Amount on Two-Tier RPP | D49: =SUM(D47:D48) -> 75.016347 | G49: =SUM(G47:G48) -> 75.52138125 | H49: 0.50503425 | I49: 0.006732322623 | J49: 1
A50: Total Electricty Charge on TOU (before HST) | D50: =SUM(D18,D28,D29,D31,D36,D43,D44) -> 73.4233725 | G50: =SUM(G18,G28,G29,G31,G36,G43,G44) -> 73.9043575 | H50: 0.480985 | I50: 0.006550843194 | K50: =G50/$G$54 -> 0.9523809524
A51: HST | C51: 0.13 | D51: =D50*C51 -> 9.545038425 | F51: =C51 -> 0.13 | G51: =G50*F51 -> 9.607566475 | H51: 0.06252805 | I51: 0.006550843194 | K51: =G51/$G$54 -> 0.1238095238
A52: Total Electricity Charge on TOU (including HST) | D52: =SUM(D50:D51) -> 82.96841093 | G52: =SUM(G50:G51) -> 83.51192398 | H52: 0.54351305 | I52: 0.006550843194 | K52: =G52/$G$54 -> 1.076190476
A53: Ontario Rebate for Electricity Consumers (OREC) | C53: -0.08 | D53: =D50*C53 -> -5.8738698 | F53: =C53 -> -0.08 | G53: =G50*F53 -> -5.9123486 | H53: -0.0384788 | I53: -0.006550843194 | K53: =G53/$G$54 -> -0.07619047619
A54: Total Amount on TOU | D54: =SUM(D52:D53) -> 77.09454113 | G54: =SUM(G52:G53) -> 77.59957538 | H54: 0.50503425 | I54: 0.006550843194 | K54: =G54/$G$54 -> 1
A55: * Distribution rate protection applies to R1 and R2 customers

Sheet BI_UR_Typical
A1: 2021 Bill Impacts (Typical Consumption Level) - UR
A3: Rate Class | B3: =RIGHT(A1,LEN(A1)-FIND("- ",A1,1)-1) -> UR
A4: Monthly Consumption (kWh) | B4: =IF(COUNTIF(A1,"*Low*")>0,VLOOKUP(B3,'Data Billing Quantities'!$A:$Z,MATCH("Low kWh",'Data Billing Quantities'!4:4,0),FALSE),IF(COUNTIF(A1,"*Typical*")>0,VLOOKUP(B3,'Data Billing Quantities'!$A:$Z,MATCH("Typical kWh",'Data Billing Quantities'!4:4,0),FALSE),IF(COUNTIF(A1,"*Average*")>0,VLOOKUP(B3,'Data Billing Quantities'!$A:$Z,MATCH("Average kWh",'Data Billing Quantities'!4:4,0),FALSE),IF(COUNTIF(A1,"*High*")>0,VLOOKUP(B3,'Data Billing Quantities'!$A:$Z,MATCH("High kWh",'Data Billing Quantities'!4:4,0),FALSE),"error")))) -> 750
A5: Peak (kW) | B5: =IF(COUNTIF(A1,"*Low*")>0,VLOOKUP(B3,'Data Billing Quantities'!$A:$Z,MATCH("Low kW",'Data Billing Quantities'!4:4,0),FALSE),IF(COUNTIF(A1,"*Typical*")>0,VLOOKUP(B3,'Data Billing Quantities'!$A:$Z,MATCH("Typical kW",'Data Billing Quantities'!4:4,0),FALSE),IF(COUNTIF(A1,"*Average*")>0,VLOOKUP(B3,'Data Billing Quantities'!$A:$Z,MATCH("Average kW",'Data Billing Quantities'!4:4,0),FALSE),IF(COUNTIF(A1,"*High*")>0,VLOOKUP(B3,'Data Billing Quantities'!$A:$Z,MATCH("High kW",'Data Billing Quantities'!4:4,0),FALSE),"error")))) -> 0
A6: Loss factor | B6: =VLOOKUP(B3,'Data Billing Quantities'!A:D,MATCH(A6,'Data Billing Quantities'!4:4,0),FALSE) -> 1.057
A7: Commodity Threshold | B7: =VLOOKUP(B3,'Data Billing Quantities'!A:D,MATCH(A7,'Data Billing Quantities'!4:4,0),FALSE) -> 600
A8: Monthly Consumption (kWh) - Uplifted | B8: =B4*B6 -> 792.75
A9: Charge determinant | B9: =VLOOKUP(B3,'Data Billing Quantities'!A:D,MATCH(A9,'Data Billing Quantities'!4:4,0),FALSE) -> kWh
B11: Volume | C11: Current Rate ($) | D11: Current Charge ($) | E11: Volume | F11: Proposed Rate ($) | G11: Proposed Charge ($) | H11: Change ($) | I11: Change (%) | J11: % of Total Bill on RPP | K11: % of Total Bill on TOU
A12: Energy First Tier | B12: =IF(B4>B7,B7,B4) -> 600 | C12: =VLOOKUP($A12,'Data Pass Through'!$A:$D,2,FALSE) -> 0.077 | D12: =B12*C12 -> 46.2 | E12: =B12 -> 600 | F12: =VLOOKUP($A12,'Data Pass Through'!$A:$D,3,FALSE) -> 0.077 | G12: =E12*F12 -> 46.2 | H12: =G12-D12 -> 0 | I12: =IF(ISERROR(H12/ABS(D12)),"N/A",(H12/ABS(D12))) -> 0 | J12: =G12/$G$49 -> 0.3820070346
A13: Energy Second Tier | B13: =IF(B4>B7,(B4)-B7,0) -> 150 | C13: =VLOOKUP($A13,'Data Pass Through'!$A:$D,2,FALSE) -> 0.089 | D13: =B13*C13 -> 13.35 | E13: =B13 -> 150 | F13: =VLOOKUP($A13,'Data Pass Through'!$A:$D,3,FALSE) -> 0.089 | G13: =E13*F13 -> 13.35 | H13: 0 | I13: 0 | J13: =G13/$G$49 -> 0.1103851496
A14: Sub-Total: Energy (RPP Tiered) | D14: =SUM(D12:D13) -> 59.55 | G14: =SUM(G12:G13) -> 59.55 | H14: 0 | I14: 0 | J14: =G14/$G$49 -> 0.4923921842
A15: TOU-Off Peak | B15: =B$4*VLOOKUP($B$3,'Data Billing Quantities'!$A:$O,MATCH(BI_UR_Typical!$A15,'Data Billing Quantities'!$4:$4,0),FALSE) -> 487.5 | C15: =VLOOKUP($A15,'Data Pass Through'!$A:$D,2,FALSE) -> 0.065 | D15: =B15*C15 -> 31.6875 | E15: 487.5 | F15: =VLOOKUP($A15,'Data Pass Through'!$A:$D,3,FALSE) -> 0.065 | G15: =E15*F15 -> 31.6875 | H15: 0 | I15: 0 | K15: =G15/$G$54 -> 0.2576956891
A16: TOU-Mid Peak | B16: =B$4*VLOOKUP($B$3,'Data Billing Quantities'!$A:$O,MATCH(BI_UR_Typical!$A16,'Data Billing Quantities'!$4:$4,0),FALSE) -> 127.5 | C16: =VLOOKUP($A16,'Data Pass Through'!$A:$D,2,FALSE) -> 0.094 | D16: =B16*C16 -> 11.985 | E16: 127.5 | F16: =VLOOKUP($A16,'Data Pass Through'!$A:$D,3,FALSE) -> 0.094 | G16: =E16*F16 -> 11.985 | H16: 0 | I16: 0 | K16: 0.09746691389
A17: TOU-On Peak | B17: =B$4*VLOOKUP($B$3,'Data Billing Quantities'!$A:$O,MATCH(BI_UR_Typical!$A17,'Data Billing Quantities'!$4:$4,0),FALSE) -> 135 | C17: =VLOOKUP($A17,'Data Pass Through'!$A:$D,2,FALSE) -> 0.134 | D17: =B17*C17 -> 18.09 | E17: 135 | F17: =VLOOKUP($A17,'Data Pass Through'!$A:$D,3,FALSE) -> 0.134 | G17: =E17*F17 -> 18.09 | H17: 0 | I17: 0 | K17: 0.1471152668
A18: Sub-Total: Energy (RPP TOU) | D18: =SUM(D15:D17) -> 61.7625 | G18: =SUM(G15:G17) -> 61.7625 | H18: 0 | I18: 0 | J18: =G18/$G$49 -> 0.5106863522 | K18: 0.5022778698
A19: Service Charge | B19: 1 | C19: =IF(ISERROR(VLOOKUP($B$3,'Data Current Rates'!$A:$BA,MATCH(BI_UR_Typical!$A19,CurrentHeader,0),FALSE)),0,VLOOKUP($B$3,'Data Current Rates'!$A:$BA,MATCH(BI_UR_Typical!$A19,CurrentHeader,0),FALSE)) -> 32.08 | D19: =B19*C19 -> 32.08 | E19: 1 | F19: =VLOOKUP($B$3,'Data Proposed Rates'!$A:$BA,MATCH(BI_UR_Typical!$A19,ProposedHeader,0),FALSE) -> 35.92 | G19: =E19*F19 -> 35.92 | H19: 3.84 | I19: 0.1197007481 | J19: 0.2970063351 | K19: 0.2921161074
A20: Fixed Foregone Revenue Charge | B20: 1 | C20: =IF(ISERROR(VLOOKUP($B$3,'Data Current Rates'!$A:$BA,MATCH(BI_UR_Typical!$A20,CurrentHeader,0),FALSE)),0,VLOOKUP($B$3,'Data Current Rates'!$A:$BA,MATCH(BI_UR_Typical!$A20,CurrentHeader,0),FALSE)) -> 1.45 | D20: 1.45 | H20: -1.45 | I20: -1 | J20: 0 | K20: 0
A21: Fixed Deferral/Variance Account Rider (General) | B21: 1 | C21: =IF(ISERROR(VLOOKUP($B$3,'Data Current Rates'!$A:$BA,MATCH(BI_UR_Typical!$A21,CurrentHeader,0),FALSE)),0,VLOOKUP($B$3,'Data Current Rates'!$A:$BA,MATCH(BI_UR_Typical!$A21,CurrentHeader,0),FALSE)) -> 0.05 | D21: 0.05 | E21: 1 | F21: =VLOOKUP($B$3,'Data Proposed Rates'!$A:$BA,MATCH(BI_UR_Typical!$A21,ProposedHeader,0),FALSE) -> -0.14 | G21: -0.14 | H21: -0.19 | I21: -3.8 | J21: -0.001157597074 | K21: -0.001138537167
A22: Fixed ESM Rider | E22: 1 | F22: =VLOOKUP($B$3,'Data Proposed Rates'!$A:$BA,MATCH(BI_UR_Typical!$A22,ProposedHeader,0),FALSE) -> -0.5 | G22: -0.5 | H22: -0.5 | I22: N/A | J22: -0.004134275266 | K22: -0.004066204167
A23: Distribution Volumetric Charge | B23: =IF($B$9="kWh",$B$4,$B$5) -> 750 | C23: =IF(ISERROR(VLOOKUP($B$3,'Data Current Rates'!$A:$BA,MATCH(BI_UR_Typical!$A23,CurrentHeader,0),FALSE)),0,VLOOKUP($B$3,'Data Current Rates'!$A:$BA,MATCH(BI_UR_Typical!$A23,CurrentHeader,0),FALSE)) -> 0.0039 | D23: 2.925 | E23: =IF($B$9="kWh",$B$4,$B$5) -> 750 | F23: =VLOOKUP($B$3,'Data Proposed Rates'!$A:$BA,MATCH(BI_UR_Typical!$A23,ProposedHeader,0),FALSE) -> 0 | G23: 0 | H23: -2.925 | I23: -1 | J23: 0 | K23: 0
A24: Volumetric Foregone Revenue Charge | B24: =IF($B$9="kWh",$B$4,$B$5) -> 750 | C24: =IF(ISERROR(VLOOKUP($B$3,'Data Current Rates'!$A:$BA,MATCH(BI_UR_Typical!$A24,CurrentHeader,0),FALSE)),0,VLOOKUP($B$3,'Data Current Rates'!$A:$BA,MATCH(BI_UR_Typical!$A24,CurrentHeader,0),FALSE)) -> 0 | D24: 0 | H24: 0 | I24: N/A | J24: 0 | K24: 0
A25: Volumetric Deferral/Variance Account Rider (General) | B25: =IF($B$9="kWh",$B$4,$B$5) -> 750 | C25: =IF(ISERROR(VLOOKUP($B$3,'Data Current Rates'!$A:$BA,MATCH(BI_UR_Typical!$A25,CurrentHeader,0),FALSE)),0,VLOOKUP($B$3,'Data Current Rates'!$A:$BA,MATCH(BI_UR_Typical!$A25,CurrentHeader,0),FALSE)) -> -0.0008 | D25: -0.6 | E25: =IF($B$9="kWh",$B$4,$B$5) -> 750 | F25: =VLOOKUP($B$3,'Data Proposed Rates'!$A:$BA,MATCH(BI_UR_Typical!$A25,ProposedHeader,0),FALSE) -> -0.0007 | G25: -0.525 | H25: 0.075 | I25: 0.125 | J25: -0.004340989029 | K25: -0.004269514376
A26: Volumetric ESM Rider | E26: 750 | F26: =VLOOKUP($B$3,'Data Proposed Rates'!$A:$BA,MATCH(BI_UR_Typical!$A26,ProposedHeader,0),FALSE) -> 0 | G26: 0 | H26: 0 | I26: N/A | J26: 0 | K26: 0
A27: Fair Hydro Plan - Distribution Rate Protection Savings* | D27: =IF(AND(B3<>"R1",B3<>"R2"),0,IF(VLOOKUP($A27,'Data Pass Through'!$A:$D,2,FALSE)=0,0,IF(SUM(D19:D20,D23:D24)<VLOOKUP($A27,'Data Pass Through'!$A:$D,2,FALSE),0,VLOOKUP($A27,'Data Pass Through'!$A:$D,2,FALSE)-SUM(D19:D20,D23:D24)))) -> 0 | G27: =IF(AND(B3<>"R1",B3<>"R2"),0,IF(VLOOKUP($A27,'Data Pass Through'!$A:$D,2,FALSE)=0,0,IF(SUM(G19:G20,G23:G24)<VLOOKUP($A27,'Data Pass Through'!$A:$D,2,FALSE),0,VLOOKUP($A27,'Data Pass Through'!$A:$D,2,FALSE)-SUM(G19:G20,G23:G24)))) -> 0 | H27: 0 | I27: N/A | J27: 0 | K27: 0
A28: Sub-Total: Distribution (excluding pass through) | D28: =SUM(INDIRECT("D19:D"&ROW()-1)) -> 35.905 | G28: =SUM(INDIRECT("g19:g"&ROW()-1)) -> 34.755 | H28: =G28-D28 -> -1.15 | I28: -0.03202896533 | J28: 0.2873734737 | K28: 0.2826418517
A29: Smart Metering Entity Charge | B29: 1 | C29: =VLOOKUP($A29,'Data Pass Through'!$A:$D,2,FALSE) -> 0.57 | D29: =B29*C29 -> 0.57 | E29: 1 | F29: =VLOOKUP($A29,'Data Pass Through'!$A:$D,3,FALSE) -> 0.57 | G29: =E29*F29 -> 0.57 | H29: 0 | I29: 0 | J29: 0.004713073803 | K29: 0.004635472751
A30: Line Losses on Cost of Power (based on two-tier RPP prices) | B30: =B8-B4 -> 42.75 | C30: =IF(B4>B7,C13,C12) -> 0.089 | D30: =B30*C30 -> 3.80475 | E30: 42.75 | F30: =IF(B4>B7,F13,F12) -> 0.089 | G30: =E30*F30 -> 3.80475 | H30: 0 | I30: 0 | J30: 0.03145976764 | K30: 0.03094178061
A31: Line Losses on Cost of Power (based on TOU prices) | B31: =B8-B4 -> 42.75 | C31: =VLOOKUP($B$3,'Data Billing Quantities'!$A:$O,MATCH(BI_UR_Typical!$A15,'Data Billing Quantities'!$4:$4,0),FALSE)*C15+VLOOKUP($B$3,'Data Billing Quantities'!$A:$O,MATCH(BI_UR_Typical!$A16,'Data Billing Quantities'!$4:$4,0),FALSE)*C16+VLOOKUP($B$3,'Data Billing Quantities'!$A:$O,MATCH(BI_UR_Typical!$A17,'Data Billing Quantities'!$4:$4,0),FALSE)*C17 -> 0.08235 | D31: =B31*C31 -> 3.5204625 | E31: 42.75 | F31: =VLOOKUP($B$3,'Data Billing Quantities'!$A:$O,MATCH(BI_UR_Typical!$A15,'Data Billing Quantities'!$4:$4,0),FALSE)*F15+VLOOKUP($B$3,'Data Billing Quantities'!$A:$O,MATCH(BI_UR_Typical!$A16,'Data Billing Quantities'!$4:$4,0),FALSE)*F16+VLOOKUP($B$3,'Data Billing Quantities'!$A:$O,MATCH(BI_UR_Typical!$A17,'Data Billing Quantities'!$4:$4,0),FALSE)*F17 -> 0.08235 | G31: =E31*F31 -> 3.5204625 | H31: 0 | I31: 0 | J31: 0.02910912208 | K31: 0.02862983858
A32: Sub-Total: Distribution (based on two-tier RPP prices) | D32: =SUM(D28,D29:D30) -> 40.27975 | G32: =SUM(G28,G29:G30) -> 39.12975 | H32: -1.15 | I32: -0.02855032616 | J32: 0.3235463152 | K32: 0.318219105
A33: Sub-Total: Distribution (based on TOU prices) | D33: =SUM(D28,D29,D31) -> 39.9954625 | G33: =SUM(G28,G29,G31) -> 38.8454625 | H33: -1.15 | I33: -0.0287532617 | J33: 0.3211956696 | K33: 0.315907163
A34: Retail Transmission Rate – Network Service Rate | B34: =B8 -> 792.75 | C34: =VLOOKUP($B$3,'Data Current Rates'!$A:$BA,MATCH(BI_UR_Typical!$A34,CurrentHeader,0),FALSE) -> 0.0087 | D34: =B34*C34 -> 6.896925 | E34: 792.75 | F34: =VLOOKUP($B$3,'Data Proposed Rates'!$A:$BA,MATCH(BI_UR_Typical!$A34,ProposedHeader,0),FALSE) -> 0.0089 | G34: =E34*F34 -> 7.055475 | H34: =G34-D34 -> 0.15855 | I34: 0.02298850575 | J34: 0.05833855156 | K34: 0.0573780037
A35: Retail Transmission Rate – Line and Transformation Connection Service Rate | B35: =B8 -> 792.75 | C35: =VLOOKUP($B$3,'Data Current Rates'!$A:$BA,MATCH(BI_UR_Typical!$A35,CurrentHeader,0),FALSE) -> 0.0076 | D35: =B35*C35 -> 6.0249 | E35: 792.75 | F35: =VLOOKUP($B$3,'Data Proposed Rates'!$A:$BA,MATCH(BI_UR_Typical!$A35,ProposedHeader,0),FALSE) -> 0.0077 | G35: =E35*F35 -> 6.104175 | H35: =G35-D35 -> 0.079275 | I35: 0.01315789474 | J35: 0.05047267944 | K35: 0.04964164365
A36: Sub-Total: Retail Transmission | D36: =SUM(D34:D35) -> 12.921825 | G36: =SUM(G34:G35) -> 13.15965 | H36: =G36-D36 -> 0.237825 | I36: 0.01840490798 | J36: 0.108811231 | K36: 0.1070196473
A37: Sub-Total: Delivery (based on two-tier RPP prices) | D37: =D32+D36 -> 53.201575 | G37: =G32+G36 -> 52.2894 | H37: =G37-D37 -> -0.912175 | I37: -0.01714563902 | J37: 0.4323575462 | K37: 0.4252387524
A38: Sub-Total: Delivery (based on TOU prices) | D38: =D33+D36 -> 52.9172875 | G38: =G33+G36 -> 52.0051125 | H38: =G38-D38 -> -0.912175 | I38: -0.01723775052 | J38: 0.4300069006 | K38: 0.4229268104
A39: Wholesale Market Service Rate (WMS) - not including CBR | B39: =B8 -> 792.75 | C39: =VLOOKUP($A39,'Data Pass Through'!$A:$D,2,FALSE) -> 0.003 | D39: =B39*C39 -> 2.37825 | E39: =$B$8 -> 792.75 | F39: =VLOOKUP($A39,'Data Pass Through'!$A:$D,3,FALSE) -> 0.003 | G39: =E39*F39 -> 2.37825 | H39: 0 | I39: 0 | J39: 0.0196646803 | K39: 0.01934090012
A40: Capacity Based Recovery (CBR) - Applicable for Class B Customers | B40: =B8 -> 792.75 | C40: =VLOOKUP($A40,'Data Pass Through'!$A:$D,2,FALSE) -> 0.0004 | D40: =B40*C40 -> 0.3171 | E40: =$B$8 -> 792.75 | F40: =VLOOKUP($A40,'Data Pass Through'!$A:$D,3,FALSE) -> 0.0004 | G40: =E40*F40 -> 0.3171 | H40: 0 | I40: 0 | J40: 0.002621957374 | K40: 0.002578786683
A41: Rural Rate Protection Charge | B41: =B8 -> 792.75 | C41: =VLOOKUP($A41,'Data Pass Through'!$A:$D,2,FALSE) -> 0.0005 | D41: 0.396375 | E41: 792.75 | F41: =VLOOKUP($A41,'Data Pass Through'!$A:$D,3,FALSE) -> 0.0005 | G41: 0.396375 | H41: 0 | I41: 0 | J41: 0.003277446717 | K41: 0.003223483354
A42: Standard Supply Service – Administration Charge (if applicable) | B42: 1 | C42: =VLOOKUP($A42,'Data Pass Through'!$A:$D,2,FALSE) -> 0.25 | D42: =B42*C42 -> 0.25 | E42: 1 | F42: =VLOOKUP($A42,'Data Pass Through'!$A:$D,3,FALSE) -> 0.25 | G42: 0.25 | H42: 0 | I42: 0 | J42: 0.002067137633 | K42: 0.002033102084
A43: Sub-Total: Regulatory | D43: =SUM(D39:D42) -> 3.341725 | G43: =SUM(G39:G42) -> 3.341725 | H43: 0 | I43: 0 | J43: 0.02763122203 | K43: 0.02717627224
A44: Debt Retirement Charge (DRC) | B44: =B4 -> 750 | C44: =VLOOKUP($A44,'Data Pass Through'!$A:$D,2,FALSE) -> 0 | D44: =B44*C44 -> 0 | E44: 750 | F44: =VLOOKUP($A44,'Data Pass Through'!$A:$D,3,FALSE) -> 0 | G44: =E44*F44 -> 0 | H44: 0 | I44: N/A | J44: 0 | K44: 0
A45: Total Electricty Charge on Two-Tier RPP | D45: =SUM(D14,D28,D29,D30,D36,D43,D44) -> 116.0933 | G45: =SUM(G14,G28,G29,G30,G36,G43,G44) -> 115.181125 | H45: -0.912175 | I45: -0.007857257912 | J45: 0.9523809524
A46: HST | C46: 0.13 | D46: =D45*C46 -> 15.092129 | F46: =C46 -> 0.13 | G46: =G45*F46 -> 14.97354625 | H46: -0.11858275 | I46: -0.007857257912 | J46: 0.1238095238
A47: Total Electricity Charge on Two-Tier RPP (including HST) | D47: =SUM(D45:D46) -> 131.185429 | G47: =SUM(G45:G46) -> 130.1546713 | H47: -1.03075775 | I47: -0.007857257912 | J47: 1.076190476
A48: Ontario Rebate for Electricity Consumers (OREC) | C48: -0.08 | D48: =D45*C48 -> -9.287464 | F48: =C48 -> -0.08 | G48: =G45*F48 -> -9.21449 | H48: 0.072974 | I48: 0.007857257912 | J48: -0.07619047619
A49: Total Amount on Two-Tier RPP | D49: =SUM(D47:D48) -> 121.897965 | G49: =SUM(G47:G48) -> 120.9401813 | H49: -0.95778375 | I49: -0.007857257912 | J49: 1
A50: Total Electricty Charge on TOU (before HST) | D50: =SUM(D18,D28,D29,D31,D36,D43,D44) -> 118.0215125 | G50: =SUM(G18,G28,G29,G31,G36,G43,G44) -> 117.1093375 | H50: -0.912175 | I50: -0.007728887562 | K50: =G50/$G$54 -> 0.9523809524
A51: HST | C51: 0.13 | D51: =D50*C51 -> 15.34279662 | F51: =C51 -> 0.13 | G51: =G50*F51 -> 15.22421388 | H51: -0.11858275 | I51: -0.007728887562 | K51: =G51/$G$54 -> 0.1238095238
A52: Total Electricity Charge on TOU (including HST) | D52: =SUM(D50:D51) -> 133.3643091 | G52: =SUM(G50:G51) -> 132.3335514 | H52: -1.03075775 | I52: -0.007728887562 | K52: =G52/$G$54 -> 1.076190476
A53: Ontario Rebate for Electricity Consumers (OREC) | C53: -0.08 | D53: =D50*C53 -> -9.441721 | F53: =C53 -> -0.08 | G53: =G50*F53 -> -9.368747 | H53: 0.072974 | I53: 0.007728887562 | K53: =G53/$G$54 -> -0.07619047619
A54: Total Amount on TOU | D54: =SUM(D52:D53) -> 123.9225881 | G54: =SUM(G52:G53) -> 122.9648044 | H54: -0.95778375 | I54: -0.007728887562 | K54: =G54/$G$54 -> 1
A55: * Distribution rate protection applies to R1 and R2 customers

Sheet BI_UR_Avg
A1: 2021 Bill Impacts (Average Consumption Level) - UR
A3: Rate Class | B3: =RIGHT(A1,LEN(A1)-FIND("- ",A1,1)-1) -> UR
A4: Monthly Consumption (kWh) | B4: =IF(COUNTIF(A1,"*Low*")>0,VLOOKUP(B3,'Data Billing Quantities'!$A:$Z,MATCH("Low kWh",'Data Billing Quantities'!4:4,0),FALSE),IF(COUNTIF(A1,"*Typical*")>0,VLOOKUP(B3,'Data Billing Quantities'!$A:$Z,MATCH("Typical kWh",'Data Billing Quantities'!4:4,0),FALSE),IF(COUNTIF(A1,"*Average*")>0,VLOOKUP(B3,'Data Billing Quantities'!$A:$Z,MATCH("Average kWh",'Data Billing Quantities'!4:4,0),FALSE),IF(COUNTIF(A1,"*High*")>0,VLOOKUP(B3,'Data Billing Quantities'!$A:$Z,MATCH("High kWh",'Data Billing Quantities'!4:4,0),FALSE),"error")))) -> 755
A5: Peak (kW) | B5: =IF(COUNTIF(A1,"*Low*")>0,VLOOKUP(B3,'Data Billing Quantities'!$A:$Z,MATCH("Low kW",'Data Billing Quantities'!4:4,0),FALSE),IF(COUNTIF(A1,"*Typical*")>0,VLOOKUP(B3,'Data Billing Quantities'!$A:$Z,MATCH("Typical kW",'Data Billing Quantities'!4:4,0),FALSE),IF(COUNTIF(A1,"*Average*")>0,VLOOKUP(B3,'Data Billing Quantities'!$A:$Z,MATCH("Average kW",'Data Billing Quantities'!4:4,0),FALSE),IF(COUNTIF(A1,"*High*")>0,VLOOKUP(B3,'Data Billing Quantities'!$A:$Z,MATCH("High kW",'Data Billing Quantities'!4:4,0),FALSE),"error")))) -> 0
A6: Loss factor | B6: =VLOOKUP(B3,'Data Billing Quantities'!A:D,MATCH(A6,'Data Billing Quantities'!4:4,0),FALSE) -> 1.057
A7: Commodity Threshold | B7: =VLOOKUP(B3,'Data Billing Quantities'!A:D,MATCH(A7,'Data Billing Quantities'!4:4,0),FALSE) -> 600
A8: Monthly Consumption (kWh) - Uplifted | B8: =B4*B6 -> 798.035
A9: Charge determinant | B9: =VLOOKUP(B3,'Data Billing Quantities'!A:D,MATCH(A9,'Data Billing Quantities'!4:4,0),FALSE) -> kWh
B11: Volume | C11: Current Rate ($) | D11: Current Charge ($) | E11: Volume | F11: Proposed Rate ($) | G11: Proposed Charge ($) | H11: Change ($) | I11: Change (%) | J11: % of Total Bill on RPP | K11: % of Total Bill on TOU
A12: Energy First Tier | B12: =IF(B4>B7,B7,B4) -> 600 | C12: =VLOOKUP($A12,'Data Pass Through'!$A:$D,2,FALSE) -> 0.077 | D12: =B12*C12 -> 46.2 | E12: =B12 -> 600 | F12: =VLOOKUP($A12,'Data Pass Through'!$A:$D,3,FALSE) -> 0.077 | G12: =E12*F12 -> 46.2 | H12: =G12-D12 -> 0 | I12: =IF(ISERROR(H12/ABS(D12)),"N/A",(H12/ABS(D12))) -> 0 | J12: =G12/$G$49 -> 0.3801087945
A13: Energy Second Tier | B13: =IF(B4>B7,(B4)-B7,0) -> 155 | C13: =VLOOKUP($A13,'Data Pass Through'!$A:$D,2,FALSE) -> 0.089 | D13: =B13*C13 -> 13.795 | E13: =B13 -> 155 | F13: =VLOOKUP($A13,'Data Pass Through'!$A:$D,3,FALSE) -> 0.089 | G13: =E13*F13 -> 13.795 | H13: 0 | I13: 0 | J13: =G13/$G$49 -> 0.1134978532
A14: Sub-Total: Energy (RPP Tiered) | D14: =SUM(D12:D13) -> 59.995 | G14: =SUM(G12:G13) -> 59.995 | H14: 0 | I14: 0 | J14: =G14/$G$49 -> 0.4936066477
A15: TOU-Off Peak | B15: =B$4*VLOOKUP($B$3,'Data Billing Quantities'!$A:$O,MATCH(BI_UR_Avg!$A15,'Data Billing Quantities'!$4:$4,0),FALSE) -> 490.75 | C15: =VLOOKUP($A15,'Data Pass Through'!$A:$D,2,FALSE) -> 0.065 | D15: =B15*C15 -> 31.89875 | E15: 490.75 | F15: =VLOOKUP($A15,'Data Pass Through'!$A:$D,3,FALSE) -> 0.065 | G15: =E15*F15 -> 31.89875 | H15: 0 | I15: 0 | K15: =G15/$G$54 -> 0.2582228381
A16: TOU-Mid Peak | B16: =B$4*VLOOKUP($B$3,'Data Billing Quantities'!$A:$O,MATCH(BI_UR_Avg!$A16,'Data Billing Quantities'!$4:$4,0),FALSE) -> 128.35 | C16: =VLOOKUP($A16,'Data Pass Through'!$A:$D,2,FALSE) -> 0.094 | D16: =B16*C16 -> 12.0649 | E16: 128.35 | F16: =VLOOKUP($A16,'Data Pass Through'!$A:$D,3,FALSE) -> 0.094 | G16: =E16*F16 -> 12.0649 | H16: 0 | I16: 0 | K16: 0.09766629474
A17: TOU-On Peak | B17: =B$4*VLOOKUP($B$3,'Data Billing Quantities'!$A:$O,MATCH(BI_UR_Avg!$A17,'Data Billing Quantities'!$4:$4,0),FALSE) -> 135.9 | C17: =VLOOKUP($A17,'Data Pass Through'!$A:$D,2,FALSE) -> 0.134 | D17: =B17*C17 -> 18.2106 | E17: 135.9 | F17: =VLOOKUP($A17,'Data Pass Through'!$A:$D,3,FALSE) -> 0.134 | G17: =E17*F17 -> 18.2106 | H17: 0 | I17: 0 | K17: 0.1474162096
A18: Sub-Total: Energy (RPP TOU) | D18: =SUM(D15:D17) -> 62.17425 | G18: =SUM(G15:G17) -> 62.17425 | H18: 0 | I18: 0 | J18: =G18/$G$49 -> 0.5115363466 | K18: 0.5033053424
A19: Service Charge | B19: 1 | C19: =IF(ISERROR(VLOOKUP($B$3,'Data Current Rates'!$A:$BA,MATCH(BI_UR_Avg!$A19,CurrentHeader,0),FALSE)),0,VLOOKUP($B$3,'Data Current Rates'!$A:$BA,MATCH(BI_UR_Avg!$A19,CurrentHeader,0),FALSE)) -> 32.08 | D19: =B19*C19 -> 32.08 | E19: 1 | F19: =VLOOKUP($B$3,'Data Proposed Rates'!$A:$BA,MATCH(BI_UR_Avg!$A19,ProposedHeader,0),FALSE) -> 35.92 | G19: =E19*F19 -> 35.92 | H19: 3.84 | I19: 0.1197007481 | J19: 0.295530474 | K19: 0.2907751666
A20: Fixed Foregone Revenue Charge | B20: 1 | C20: =IF(ISERROR(VLOOKUP($B$3,'Data Current Rates'!$A:$BA,MATCH(BI_UR_Avg!$A20,CurrentHeader,0),FALSE)),0,VLOOKUP($B$3,'Data Current Rates'!$A:$BA,MATCH(BI_UR_Avg!$A20,CurrentHeader,0),FALSE)) -> 1.45 | D20: 1.45 | H20: -1.45 | I20: -1 | J20: 0 | K20: 0
A21: Fixed Deferral/Variance Account Rider (General) | B21: 1 | C21: =IF(ISERROR(VLOOKUP($B$3,'Data Current Rates'!$A:$BA,MATCH(BI_UR_Avg!$A21,CurrentHeader,0),FALSE)),0,VLOOKUP($B$3,'Data Current Rates'!$A:$BA,MATCH(BI_UR_Avg!$A21,CurrentHeader,0),FALSE)) -> 0.05 | D21: 0.05 | E21: 1 | F21: =VLOOKUP($B$3,'Data Proposed Rates'!$A:$BA,MATCH(BI_UR_Avg!$A21,ProposedHeader,0),FALSE) -> -0.14 | G21: -0.14 | H21: -0.19 | I21: -3.8 | J21: -0.001151844832 | K21: -0.001133310783
A22: Fixed ESM Rider | E22: 1 | F22: =VLOOKUP($B$3,'Data Proposed Rates'!$A:$BA,MATCH(BI_UR_Avg!$A22,ProposedHeader,0),FALSE) -> -0.5 | G22: -0.5 | H22: -0.5 | I22: N/A | J22: -0.004113731542 | K22: -0.00404753851
A23: Distribution Volumetric Charge | B23: =IF($B$9="kWh",$B$4,$B$5) -> 755 | C23: =IF(ISERROR(VLOOKUP($B$3,'Data Current Rates'!$A:$BA,MATCH(BI_UR_Avg!$A23,CurrentHeader,0),FALSE)),0,VLOOKUP($B$3,'Data Current Rates'!$A:$BA,MATCH(BI_UR_Avg!$A23,CurrentHeader,0),FALSE)) -> 0.0039 | D23: 2.9445 | E23: =IF($B$9="kWh",$B$4,$B$5) -> 755 | F23: =VLOOKUP($B$3,'Data Proposed Rates'!$A:$BA,MATCH(BI_UR_Avg!$A23,ProposedHeader,0),FALSE) -> 0 | G23: 0 | H23: -2.9445 | I23: -1 | J23: 0 | K23: 0
A24: Volumetric Foregone Revenue Charge | B24: =IF($B$9="kWh",$B$4,$B$5) -> 755 | C24: =IF(ISERROR(VLOOKUP($B$3,'Data Current Rates'!$A:$BA,MATCH(BI_UR_Avg!$A24,CurrentHeader,0),FALSE)),0,VLOOKUP($B$3,'Data Current Rates'!$A:$BA,MATCH(BI_UR_Avg!$A24,CurrentHeader,0),FALSE)) -> 0 | D24: 0 | H24: 0 | I24: N/A | J24: 0 | K24: 0
A25: Volumetric Deferral/Variance Account Rider (General) | B25: =IF($B$9="kWh",$B$4,$B$5) -> 755 | C25: =IF(ISERROR(VLOOKUP($B$3,'Data Current Rates'!$A:$BA,MATCH(BI_UR_Avg!$A25,CurrentHeader,0),FALSE)),0,VLOOKUP($B$3,'Data Current Rates'!$A:$BA,MATCH(BI_UR_Avg!$A25,CurrentHeader,0),FALSE)) -> -0.0008 | D25: -0.604 | E25: =IF($B$9="kWh",$B$4,$B$5) -> 755 | F25: =VLOOKUP($B$3,'Data Proposed Rates'!$A:$BA,MATCH(BI_UR_Avg!$A25,ProposedHeader,0),FALSE) -> -0.0007 | G25: -0.5285 | H25: 0.0755 | I25: 0.125 | J25: -0.00434821424 | K25: -0.004278248205
A26: Volumetric ESM Rider | E26: 755 | F26: =VLOOKUP($B$3,'Data Proposed Rates'!$A:$BA,MATCH(BI_UR_Avg!$A26,ProposedHeader,0),FALSE) -> 0 | G26: 0 | H26: 0 | I26: N/A | J26: 0 | K26: 0
A27: Fair Hydro Plan - Distribution Rate Protection Savings* | D27: =IF(AND(B3<>"R1",B3<>"R2"),0,IF(VLOOKUP($A27,'Data Pass Through'!$A:$D,2,FALSE)=0,0,IF(SUM(D19:D20,D23:D24)<VLOOKUP($A27,'Data Pass Through'!$A:$D,2,FALSE),0,VLOOKUP($A27,'Data Pass Through'!$A:$D,2,FALSE)-SUM(D19:D20,D23:D24)))) -> 0 | G27: =IF(AND(B3<>"R1",B3<>"R2"),0,IF(VLOOKUP($A27,'Data Pass Through'!$A:$D,2,FALSE)=0,0,IF(SUM(G19:G20,G23:G24)<VLOOKUP($A27,'Data Pass Through'!$A:$D,2,FALSE),0,VLOOKUP($A27,'Data Pass Through'!$A:$D,2,FALSE)-SUM(G19:G20,G23:G24)))) -> 0 | H27: 0 | I27: N/A | J27: 0 | K27: 0
A28: Sub-Total: Distribution (excluding pass through) | D28: =SUM(INDIRECT("D19:D"&ROW()-1)) -> 35.9205 | G28: =SUM(INDIRECT("g19:g"&ROW()-1)) -> 34.7515 | H28: =G28-D28 -> -1.169 | I28: -0.03254409042 | J28: 0.2859166834 | K28: 0.2813160691
A29: Smart Metering Entity Charge | B29: 1 | C29: =VLOOKUP($A29,'Data Pass Through'!$A:$D,2,FALSE) -> 0.57 | D29: =B29*C29 -> 0.57 | E29: 1 | F29: =VLOOKUP($A29,'Data Pass Through'!$A:$D,3,FALSE) -> 0.57 | G29: =E29*F29 -> 0.57 | H29: 0 | I29: 0 | J29: 0.004689653958 | K29: 0.004614193902
A30: Line Losses on Cost of Power (based on two-tier RPP prices) | B30: =B8-B4 -> 43.035 | C30: =IF(B4>B7,C13,C12) -> 0.089 | D30: =B30*C30 -> 3.830115 | E30: 43.035 | F30: =IF(B4>B7,F13,F12) -> 0.089 | G30: =E30*F30 -> 3.830115 | H30: 0 | I30: 0 | J30: 0.03151212977 | K30: 0.03100507592
A31: Line Losses on Cost of Power (based on TOU prices) | B31: =B8-B4 -> 43.035 | C31: =VLOOKUP($B$3,'Data Billing Quantities'!$A:$O,MATCH(BI_UR_Avg!$A15,'Data Billing Quantities'!$4:$4,0),FALSE)*C15+VLOOKUP($B$3,'Data Billing Quantities'!$A:$O,MATCH(BI_UR_Avg!$A16,'Data Billing Quantities'!$4:$4,0),FALSE)*C16+VLOOKUP($B$3,'Data Billing Quantities'!$A:$O,MATCH(BI_UR_Avg!$A17,'Data Billing Quantities'!$4:$4,0),FALSE)*C17 -> 0.08235 | D31: =B31*C31 -> 3.54393225 | E31: 43.035 | F31: =VLOOKUP($B$3,'Data Billing Quantities'!$A:$O,MATCH(BI_UR_Avg!$A15,'Data Billing Quantities'!$4:$4,0),FALSE)*F15+VLOOKUP($B$3,'Data Billing Quantities'!$A:$O,MATCH(BI_UR_Avg!$A16,'Data Billing Quantities'!$4:$4,0),FALSE)*F16+VLOOKUP($B$3,'Data Billing Quantities'!$A:$O,MATCH(BI_UR_Avg!$A17,'Data Billing Quantities'!$4:$4,0),FALSE)*F17 -> 0.08235 | G31: =E31*F31 -> 3.54393225 | H31: 0 | I31: 0 | J31: 0.02915757176 | K31: 0.02868840452
A32: Sub-Total: Distribution (based on two-tier RPP prices) | D32: =SUM(D28,D29:D30) -> 40.320615 | G32: =SUM(G28,G29:G30) -> 39.151615 | H32: -1.169 | I32: -0.02899261333 | J32: 0.3221184671 | K32: 0.3169353389
A33: Sub-Total: Distribution (based on TOU prices) | D33: =SUM(D28,D29,D31) -> 40.03443225 | G33: =SUM(G28,G29,G31) -> 38.86543225 | H33: -1.169 | I33: -0.02919986457 | J33: 0.3197639091 | K33: 0.3146186675
A34: Retail Transmission Rate – Network Service Rate | B34: =B8 -> 798.035 | C34: =VLOOKUP($B$3,'Data Current Rates'!$A:$BA,MATCH(BI_UR_Avg!$A34,CurrentHeader,0),FALSE) -> 0.0087 | D34: =B34*C34 -> 6.9429045 | E34: 798.035 | F34: =VLOOKUP($B$3,'Data Proposed Rates'!$A:$BA,MATCH(BI_UR_Avg!$A34,ProposedHeader,0),FALSE) -> 0.0089 | G34: =E34*F34 -> 7.1025115 | H34: =G34-D34 -> 0.159607 | I34: 0.02298850575 | J34: 0.05843565117 | K34: 0.05749537763
A35: Retail Transmission Rate – Line and Transformation Connection Service Rate | B35: =B8 -> 798.035 | C35: =VLOOKUP($B$3,'Data Current Rates'!$A:$BA,MATCH(BI_UR_Avg!$A35,CurrentHeader,0),FALSE) -> 0.0076 | D35: =B35*C35 -> 6.065066 | E35: 798.035 | F35: =VLOOKUP($B$3,'Data Proposed Rates'!$A:$BA,MATCH(BI_UR_Avg!$A35,ProposedHeader,0),FALSE) -> 0.0077 | G35: =E35*F35 -> 6.1448695 | H35: =G35-D35 -> 0.0798035 | I35: 0.01315789474 | J35: 0.05055668697 | K35: 0.04974319188
A36: Sub-Total: Retail Transmission | D36: =SUM(D34:D35) -> 13.0079705 | G36: =SUM(G34:G35) -> 13.247381 | H36: =G36-D36 -> 0.2394105 | I36: 0.01840490798 | J36: 0.1089923381 | K36: 0.1072385695
A37: Sub-Total: Delivery (based on two-tier RPP prices) | D37: =D32+D36 -> 53.3285855 | G37: =G32+G36 -> 52.398996 | H37: =G37-D37 -> -0.9295895 | I37: -0.0174313549 | J37: 0.4311108052 | K37: 0.4241739084
A38: Sub-Total: Delivery (based on TOU prices) | D38: =D33+D36 -> 53.04240275 | G38: =G33+G36 -> 52.11281325 | H38: =G38-D38 -> -0.9295895 | I38: -0.0175254033 | J38: 0.4287562472 | K38: 0.421857237
A39: Wholesale Market Service Rate (WMS) - not including CBR | B39: =B8 -> 798.035 | C39: =VLOOKUP($A39,'Data Pass Through'!$A:$D,2,FALSE) -> 0.003 | D39: =B39*C39 -> 2.394105 | E39: =$B$8 -> 798.035 | F39: =VLOOKUP($A39,'Data Pass Through'!$A:$D,3,FALSE) -> 0.003 | G39: =E39*F39 -> 2.394105 | H39: 0 | I39: 0 | J39: 0.01969741051 | K39: 0.01938046437
A40: Capacity Based Recovery (CBR) - Applicable for Class B Customers | B40: =B8 -> 798.035 | C40: =VLOOKUP($A40,'Data Pass Through'!$A:$D,2,FALSE) -> 0.0004 | D40: =B40*C40 -> 0.319214 | E40: =$B$8 -> 798.035 | F40: =VLOOKUP($A40,'Data Pass Through'!$A:$D,3,FALSE) -> 0.0004 | G40: =E40*F40 -> 0.319214 | H40: 0 | I40: 0 | J40: 0.002626321401 | K40: 0.002584061916
A41: Rural Rate Protection Charge | B41: =B8 -> 798.035 | C41: =VLOOKUP($A41,'Data Pass Through'!$A:$D,2,FALSE) -> 0.0005 | D41: 0.3990175 | E41: 798.035 | F41: =VLOOKUP($A41,'Data Pass Through'!$A:$D,3,FALSE) -> 0.0005 | G41: 0.3990175 | H41: 0 | I41: 0 | J41: 0.003282901751 | K41: 0.003230077395
A42: Standard Supply Service – Administration Charge (if applicable) | B42: 1 | C42: =VLOOKUP($A42,'Data Pass Through'!$A:$D,2,FALSE) -> 0.25 | D42: =B42*C42 -> 0.25 | E42: 1 | F42: =VLOOKUP($A42,'Data Pass Through'!$A:$D,3,FALSE) -> 0.25 | G42: 0.25 | H42: 0 | I42: 0 | J42: 0.002056865771 | K42: 0.002023769255
A43: Sub-Total: Regulatory | D43: =SUM(D39:D42) -> 3.3623365 | G43: =SUM(G39:G42) -> 3.3623365 | H43: 0 | I43: 0 | J43: 0.02766349943 | K43: 0.02721837294
A44: Debt Retirement Charge (DRC) | B44: =B4 -> 755 | C44: =VLOOKUP($A44,'Data Pass Through'!$A:$D,2,FALSE) -> 0 | D44: =B44*C44 -> 0 | E44: 755 | F44: =VLOOKUP($A44,'Data Pass Through'!$A:$D,3,FALSE) -> 0 | G44: =E44*F44 -> 0 | H44: 0 | I44: N/A | J44: 0 | K44: 0
A45: Total Electricty Charge on Two-Tier RPP | D45: =SUM(D14,D28,D29,D30,D36,D43,D44) -> 116.685922 | G45: =SUM(G14,G28,G29,G30,G36,G43,G44) -> 115.7563325 | H45: -0.9295895 | I45: -0.007966595148 | J45: 0.9523809524
A46: HST | C46: 0.13 | D46: =D45*C46 -> 15.16916986 | F46: =C46 -> 0.13 | G46: =G45*F46 -> 15.04832322 | H46: -0.120846635 | I46: -0.007966595148 | J46: 0.1238095238
A47: Total Electricity Charge on Two-Tier RPP (including HST) | D47: =SUM(D45:D46) -> 131.8550919 | G47: =SUM(G45:G46) -> 130.8046557 | H47: -1.050436135 | I47: -0.007966595148 | J47: 1.076190476
A48: Ontario Rebate for Electricity Consumers (OREC) | C48: -0.08 | D48: =D45*C48 -> -9.33487376 | F48: =C48 -> -0.08 | G48: =G45*F48 -> -9.2605066 | H48: 0.07436716 | I48: 0.007966595148 | J48: -0.07619047619
A49: Total Amount on Two-Tier RPP | D49: =SUM(D47:D48) -> 122.5202181 | G49: =SUM(G47:G48) -> 121.5441491 | H49: -0.976068975 | I49: -0.007966595148 | J49: 1
A50: Total Electricty Charge on TOU (before HST) | D50: =SUM(D18,D28,D29,D31,D36,D43,D44) -> 118.5789892 | G50: =SUM(G18,G28,G29,G31,G36,G43,G44) -> 117.6493997 | H50: -0.9295895 | I50: -0.007839411568 | K50: =G50/$G$54 -> 0.9523809524
A51: HST | C51: 0.13 | D51: =D50*C51 -> 15.4152686 | F51: =C51 -> 0.13 | G51: =G50*F51 -> 15.29442197 | H51: -0.120846635 | I51: -0.007839411568 | K51: =G51/$G$54 -> 0.1238095238
A52: Total Electricity Charge on TOU (including HST) | D52: =SUM(D50:D51) -> 133.9942579 | G52: =SUM(G50:G51) -> 132.9438217 | H52: -1.050436135 | I52: -0.007839411568 | K52: =G52/$G$54 -> 1.076190476
A53: Ontario Rebate for Electricity Consumers (OREC) | C53: -0.08 | D53: =D50*C53 -> -9.48631914 | F53: =C53 -> -0.08 | G53: =G50*F53 -> -9.41195198 | H53: 0.07436716 | I53: 0.007839411568 | K53: =G53/$G$54 -> -0.07619047619
A54: Total Amount on TOU | D54: =SUM(D52:D53) -> 124.5079387 | G54: =SUM(G52:G53) -> 123.5318697 | H54: -0.976068975 | I54: -0.007839411568 | K54: =G54/$G$54 -> 1
A55: * Distribution rate protection applies to R1 and R2 customers

Sheet BI_UR_High
A1: 2021 Bill Impacts (High Consumption Level) - UR
A3: Rate Class | B3: =RIGHT(A1,LEN(A1)-FIND("- ",A1,1)-1) -> UR
A4: Monthly Consumption (kWh) | B4: =IF(COUNTIF(A1,"*Low*")>0,VLOOKUP(B3,'Data Billing Quantities'!$A:$Z,MATCH("Low kWh",'Data Billing Quantities'!4:4,0),FALSE),IF(COUNTIF(A1,"*Typical*")>0,VLOOKUP(B3,'Data Billing Quantities'!$A:$Z,MATCH("Typical kWh",'Data Billing Quantities'!4:4,0),FALSE),IF(COUNTIF(A1,"*Average*")>0,VLOOKUP(B3,'Data Billing Quantities'!$A:$Z,MATCH("Average kWh",'Data Billing Quantities'!4:4,0),FALSE),IF(COUNTIF(A1,"*High*")>0,VLOOKUP(B3,'Data Billing Quantities'!$A:$Z,MATCH("High kWh",'Data Billing Quantities'!4:4,0),FALSE),"error")))) -> 1400
A5: Peak (kW) | B5: =IF(COUNTIF(A1,"*Low*")>0,VLOOKUP(B3,'Data Billing Quantities'!$A:$Z,MATCH("Low kW",'Data Billing Quantities'!4:4,0),FALSE),IF(COUNTIF(A1,"*Typical*")>0,VLOOKUP(B3,'Data Billing Quantities'!$A:$Z,MATCH("Typical kW",'Data Billing Quantities'!4:4,0),FALSE),IF(COUNTIF(A1,"*Average*")>0,VLOOKUP(B3,'Data Billing Quantities'!$A:$Z,MATCH("Average kW",'Data Billing Quantities'!4:4,0),FALSE),IF(COUNTIF(A1,"*High*")>0,VLOOKUP(B3,'Data Billing Quantities'!$A:$Z,MATCH("High kW",'Data Billing Quantities'!4:4,0),FALSE),"error")))) -> 0
A6: Loss factor | B6: =VLOOKUP(B3,'Data Billing Quantities'!A:D,MATCH(A6,'Data Billing Quantities'!4:4,0),FALSE) -> 1.057
A7: Commodity Threshold | B7: =VLOOKUP(B3,'Data Billing Quantities'!A:D,MATCH(A7,'Data Billing Quantities'!4:4,0),FALSE) -> 600
A8: Monthly Consumption (kWh) - Uplifted | B8: =B4*B6 -> 1479.8
A9: Charge determinant | B9: =VLOOKUP(B3,'Data Billing Quantities'!A:D,MATCH(A9,'Data Billing Quantities'!4:4,0),FALSE) -> kWh
B11: Volume | C11: Current Rate ($) | D11: Current Charge ($) | E11: Volume | F11: Proposed Rate ($) | G11: Proposed Charge ($) | H11: Change ($) | I11: Change (%) | J11: % of Total Bill on RPP | K11: % of Total Bill on TOU
A12: Energy First Tier | B12: =IF(B4>B7,B7,B4) -> 600 | C12: =VLOOKUP($A12,'Data Pass Through'!$A:$D,2,FALSE) -> 0.077 | D12: =B12*C12 -> 46.2 | E12: =B12 -> 600 | F12: =VLOOKUP($A12,'Data Pass Through'!$A:$D,3,FALSE) -> 0.077 | G12: =E12*F12 -> 46.2 | H12: =G12-D12 -> 0 | I12: =IF(ISERROR(H12/ABS(D12)),"N/A",(H12/ABS(D12))) -> 0 | J12: =G12/$G$49 -> 0.2316300279
A13: Energy Second Tier | B13: =IF(B4>B7,(B4)-B7,0) -> 800 | C13: =VLOOKUP($A13,'Data Pass Through'!$A:$D,2,FALSE) -> 0.089 | D13: =B13*C13 -> 71.2 | E13: =B13 -> 800 | F13: =VLOOKUP($A13,'Data Pass Through'!$A:$D,3,FALSE) -> 0.089 | G13: =E13*F13 -> 71.2 | H13: 0 | I13: 0 | J13: =G13/$G$49 -> 0.3569709521
A14: Sub-Total: Energy (RPP Tiered) | D14: =SUM(D12:D13) -> 117.4 | G14: =SUM(G12:G13) -> 117.4 | H14: 0 | I14: 0 | J14: =G14/$G$49 -> 0.58860098
A15: TOU-Off Peak | B15: =B$4*VLOOKUP($B$3,'Data Billing Quantities'!$A:$O,MATCH(BI_UR_High!$A15,'Data Billing Quantities'!$4:$4,0),FALSE) -> 910 | C15: =VLOOKUP($A15,'Data Pass Through'!$A:$D,2,FALSE) -> 0.065 | D15: =B15*C15 -> 59.15 | E15: 910 | F15: =VLOOKUP($A15,'Data Pass Through'!$A:$D,3,FALSE) -> 0.065 | G15: =E15*F15 -> 59.15 | H15: 0 | I15: 0 | K15: =G15/$G$54 -> 0.3007372743
A16: TOU-Mid Peak | B16: =B$4*VLOOKUP($B$3,'Data Billing Quantities'!$A:$O,MATCH(BI_UR_High!$A16,'Data Billing Quantities'!$4:$4,0),FALSE) -> 238 | C16: =VLOOKUP($A16,'Data Pass Through'!$A:$D,2,FALSE) -> 0.094 | D16: =B16*C16 -> 22.372 | E16: 238 | F16: =VLOOKUP($A16,'Data Pass Through'!$A:$D,3,FALSE) -> 0.094 | G16: =E16*F16 -> 22.372 | H16: 0 | I16: 0 | K16: 0.1137463111
A17: TOU-On Peak | B17: =B$4*VLOOKUP($B$3,'Data Billing Quantities'!$A:$O,MATCH(BI_UR_High!$A17,'Data Billing Quantities'!$4:$4,0),FALSE) -> 252 | C17: =VLOOKUP($A17,'Data Pass Through'!$A:$D,2,FALSE) -> 0.134 | D17: =B17*C17 -> 33.768 | E17: 252 | F17: =VLOOKUP($A17,'Data Pass Through'!$A:$D,3,FALSE) -> 0.134 | G17: =E17*F17 -> 33.768 | H17: 0 | I17: 0 | K17: 0.1716871729
A18: Sub-Total: Energy (RPP TOU) | D18: =SUM(D15:D17) -> 115.29 | G18: =SUM(G15:G17) -> 115.29 | H18: 0 | I18: 0 | J18: =G18/$G$49 -> 0.5780222059 | K18: 0.5861707584
A19: Service Charge | B19: 1 | C19: =IF(ISERROR(VLOOKUP($B$3,'Data Current Rates'!$A:$BA,MATCH(BI_UR_High!$A19,CurrentHeader,0),FALSE)),0,VLOOKUP($B$3,'Data Current Rates'!$A:$BA,MATCH(BI_UR_High!$A19,CurrentHeader,0),FALSE)) -> 32.08 | D19: =B19*C19 -> 32.08 | E19: 1 | F19: =VLOOKUP($B$3,'Data Proposed Rates'!$A:$BA,MATCH(BI_UR_High!$A19,ProposedHeader,0),FALSE) -> 35.92 | G19: =E19*F19 -> 35.92 | H19: 3.84 | I19: 0.1197007481 | J19: 0.1800898399 | K19: 0.1826286204
A20: Fixed Foregone Revenue Charge | B20: 1 | C20: =IF(ISERROR(VLOOKUP($B$3,'Data Current Rates'!$A:$BA,MATCH(BI_UR_High!$A20,CurrentHeader,0),FALSE)),0,VLOOKUP($B$3,'Data Current Rates'!$A:$BA,MATCH(BI_UR_High!$A20,CurrentHeader,0),FALSE)) -> 1.45 | D20: 1.45 | H20: -1.45 | I20: -1 | J20: 0 | K20: 0
A21: Fixed Deferral/Variance Account Rider (General) | B21: 1 | C21: =IF(ISERROR(VLOOKUP($B$3,'Data Current Rates'!$A:$BA,MATCH(BI_UR_High!$A21,CurrentHeader,0),FALSE)),0,VLOOKUP($B$3,'Data Current Rates'!$A:$BA,MATCH(BI_UR_High!$A21,CurrentHeader,0),FALSE)) -> 0.05 | D21: 0.05 | E21: 1 | F21: =VLOOKUP($B$3,'Data Proposed Rates'!$A:$BA,MATCH(BI_UR_High!$A21,ProposedHeader,0),FALSE) -> -0.14 | G21: -0.14 | H21: -0.19 | I21: -3.8 | J21: -0.0007019091754 | K21: -0.0007118041996
A22: Fixed ESM Rider | E22: 1 | F22: =VLOOKUP($B$3,'Data Proposed Rates'!$A:$BA,MATCH(BI_UR_High!$A22,ProposedHeader,0),FALSE) -> -0.5 | G22: -0.5 | H22: -0.5 | I22: N/A | J22: -0.002506818484 | K22: -0.002542157856
A23: Distribution Volumetric Charge | B23: =IF($B$9="kWh",$B$4,$B$5) -> 1400 | C23: =IF(ISERROR(VLOOKUP($B$3,'Data Current Rates'!$A:$BA,MATCH(BI_UR_High!$A23,CurrentHeader,0),FALSE)),0,VLOOKUP($B$3,'Data Current Rates'!$A:$BA,MATCH(BI_UR_High!$A23,CurrentHeader,0),FALSE)) -> 0.0039 | D23: 5.46 | E23: =IF($B$9="kWh",$B$4,$B$5) -> 1400 | F23: =VLOOKUP($B$3,'Data Proposed Rates'!$A:$BA,MATCH(BI_UR_High!$A23,ProposedHeader,0),FALSE) -> 0 | G23: 0 | H23: -5.46 | I23: -1 | J23: 0 | K23: 0
A24: Volumetric Foregone Revenue Charge | B24: =IF($B$9="kWh",$B$4,$B$5) -> 1400 | C24: =IF(ISERROR(VLOOKUP($B$3,'Data Current Rates'!$A:$BA,MATCH(BI_UR_High!$A24,CurrentHeader,0),FALSE)),0,VLOOKUP($B$3,'Data Current Rates'!$A:$BA,MATCH(BI_UR_High!$A24,CurrentHeader,0),FALSE)) -> 0 | D24: 0 | H24: 0 | I24: N/A | J24: 0 | K24: 0
A25: Volumetric Deferral/Variance Account Rider (General) | B25: =IF($B$9="kWh",$B$4,$B$5) -> 1400 | C25: =IF(ISERROR(VLOOKUP($B$3,'Data Current Rates'!$A:$BA,MATCH(BI_UR_High!$A25,CurrentHeader,0),FALSE)),0,VLOOKUP($B$3,'Data Current Rates'!$A:$BA,MATCH(BI_UR_High!$A25,CurrentHeader,0),FALSE)) -> -0.0008 | D25: -1.12 | E25: =IF($B$9="kWh",$B$4,$B$5) -> 1400 | F25: =VLOOKUP($B$3,'Data Proposed Rates'!$A:$BA,MATCH(BI_UR_High!$A25,ProposedHeader,0),FALSE) -> -0.0007 | G25: -0.98 | H25: 0.14 | I25: 0.125 | J25: -0.004913364228 | K25: -0.004982629397
A26: Volumetric ESM Rider | E26: 1400 | F26: =VLOOKUP($B$3,'Data Proposed Rates'!$A:$BA,MATCH(BI_UR_High!$A26,ProposedHeader,0),FALSE) -> 0 | G26: 0 | H26: 0 | I26: N/A | J26: 0 | K26: 0
A27: Fair Hydro Plan - Distribution Rate Protection Savings* | D27: =IF(AND(B3<>"R1",B3<>"R2"),0,IF(VLOOKUP($A27,'Data Pass Through'!$A:$D,2,FALSE)=0,0,IF(SUM(D19:D20,D23:D24)<VLOOKUP($A27,'Data Pass Through'!$A:$D,2,FALSE),0,VLOOKUP($A27,'Data Pass Through'!$A:$D,2,FALSE)-SUM(D19:D20,D23:D24)))) -> 0 | G27: =IF(AND(B3<>"R1",B3<>"R2"),0,IF(VLOOKUP($A27,'Data Pass Through'!$A:$D,2,FALSE)=0,0,IF(SUM(G19:G20,G23:G24)<VLOOKUP($A27,'Data Pass Through'!$A:$D,2,FALSE),0,VLOOKUP($A27,'Data Pass Through'!$A:$D,2,FALSE)-SUM(G19:G20,G23:G24)))) -> 0 | H27: 0 | I27: N/A | J27: 0 | K27: 0
A28: Sub-Total: Distribution (excluding pass through) | D28: =SUM(INDIRECT("D19:D"&ROW()-1)) -> 37.92 | G28: =SUM(INDIRECT("g19:g"&ROW()-1)) -> 34.3 | H28: =G28-D28 -> -3.62 | I28: -0.09546413502 | J28: 0.171967748 | K28: 0.1743920289
A29: Smart Metering Entity Charge | B29: 1 | C29: =VLOOKUP($A29,'Data Pass Through'!$A:$D,2,FALSE) -> 0.57 | D29: =B29*C29 -> 0.57 | E29: 1 | F29: =VLOOKUP($A29,'Data Pass Through'!$A:$D,3,FALSE) -> 0.57 | G29: =E29*F29 -> 0.57 | H29: 0 | I29: 0 | J29: 0.002857773071 | K29: 0.002898059956
A30: Line Losses on Cost of Power (based on two-tier RPP prices) | B30: =B8-B4 -> 79.8 | C30: =IF(B4>B7,C13,C12) -> 0.089 | D30: =B30*C30 -> 7.1022 | E30: 79.8 | F30: =IF(B4>B7,F13,F12) -> 0.089 | G30: =E30*F30 -> 7.1022 | H30: 0 | I30: 0 | J30: 0.03560785247 | K30: 0.03610982705
A31: Line Losses on Cost of Power (based on TOU prices) | B31: =B8-B4 -> 79.8 | C31: =VLOOKUP($B$3,'Data Billing Quantities'!$A:$O,MATCH(BI_UR_High!$A15,'Data Billing Quantities'!$4:$4,0),FALSE)*C15+VLOOKUP($B$3,'Data Billing Quantities'!$A:$O,MATCH(BI_UR_High!$A16,'Data Billing Quantities'!$4:$4,0),FALSE)*C16+VLOOKUP($B$3,'Data Billing Quantities'!$A:$O,MATCH(BI_UR_High!$A17,'Data Billing Quantities'!$4:$4,0),FALSE)*C17 -> 0.08235 | D31: =B31*C31 -> 6.57153 | E31: 79.8 | F31: =VLOOKUP($B$3,'Data Billing Quantities'!$A:$O,MATCH(BI_UR_High!$A15,'Data Billing Quantities'!$4:$4,0),FALSE)*F15+VLOOKUP($B$3,'Data Billing Quantities'!$A:$O,MATCH(BI_UR_High!$A16,'Data Billing Quantities'!$4:$4,0),FALSE)*F16+VLOOKUP($B$3,'Data Billing Quantities'!$A:$O,MATCH(BI_UR_High!$A17,'Data Billing Quantities'!$4:$4,0),FALSE)*F17 -> 0.08235 | G31: =E31*F31 -> 6.57153 | H31: 0 | I31: 0 | J31: 0.03294726574 | K31: 0.03341173323
A32: Sub-Total: Distribution (based on two-tier RPP prices) | D32: =SUM(D28,D29:D30) -> 45.5922 | G32: =SUM(G28,G29:G30) -> 41.9722 | H32: -3.62 | I32: -0.07939954641 | J32: 0.2104333735 | K32: 0.2133999159
A33: Sub-Total: Distribution (based on TOU prices) | D33: =SUM(D28,D29,D31) -> 45.06153 | G33: =SUM(G28,G29,G31) -> 41.44153 | H33: -3.62 | I33: -0.08033460027 | J33: 0.2077727868 | K33: 0.2107018221
A34: Retail Transmission Rate – Network Service Rate | B34: =B8 -> 1479.8 | C34: =VLOOKUP($B$3,'Data Current Rates'!$A:$BA,MATCH(BI_UR_High!$A34,CurrentHeader,0),FALSE) -> 0.0087 | D34: =B34*C34 -> 12.87426 | E34: 1479.8 | F34: =VLOOKUP($B$3,'Data Proposed Rates'!$A:$BA,MATCH(BI_UR_High!$A34,ProposedHeader,0),FALSE) -> 0.0089 | G34: =E34*F34 -> 13.17022 | H34: =G34-D34 -> 0.29596 | I34: 0.02298850575 | J34: 0.06603070186 | K34: 0.06696155647
A35: Retail Transmission Rate – Line and Transformation Connection Service Rate | B35: =B8 -> 1479.8 | C35: =VLOOKUP($B$3,'Data Current Rates'!$A:$BA,MATCH(BI_UR_High!$A35,CurrentHeader,0),FALSE) -> 0.0076 | D35: =B35*C35 -> 11.24648 | E35: 1479.8 | F35: =VLOOKUP($B$3,'Data Proposed Rates'!$A:$BA,MATCH(BI_UR_High!$A35,ProposedHeader,0),FALSE) -> 0.0077 | G35: =E35*F35 -> 11.39446 | H35: =G35-D35 -> 0.14798 | I35: 0.01315789474 | J35: 0.05712768588 | K35: 0.057933032
A36: Sub-Total: Retail Transmission | D36: =SUM(D34:D35) -> 24.12074 | G36: =SUM(G34:G35) -> 24.56468 | H36: =G36-D36 -> 0.44394 | I36: 0.01840490798 | J36: 0.1231583877 | K36: 0.1248945885
A37: Sub-Total: Delivery (based on two-tier RPP prices) | D37: =D32+D36 -> 69.71294 | G37: =G32+G36 -> 66.53688 | H37: =G37-D37 -> -3.17606 | I37: -0.04555911715 | J37: 0.3335917613 | K37: 0.3382945044
A38: Sub-Total: Delivery (based on TOU prices) | D38: =D33+D36 -> 69.18227 | G38: =G33+G36 -> 66.00621 | H38: =G38-D38 -> -3.17606 | I38: -0.04590858323 | J38: 0.3309311745 | K38: 0.3355964106
A39: Wholesale Market Service Rate (WMS) - not including CBR | B39: =B8 -> 1479.8 | C39: =VLOOKUP($A39,'Data Pass Through'!$A:$D,2,FALSE) -> 0.003 | D39: =B39*C39 -> 4.4394 | E39: =$B$8 -> 1479.8 | F39: =VLOOKUP($A39,'Data Pass Through'!$A:$D,3,FALSE) -> 0.003 | G39: =E39*F39 -> 4.4394 | H39: 0 | I39: 0 | J39: 0.02225753995 | K39: 0.02257131117
A40: Capacity Based Recovery (CBR) - Applicable for Class B Customers | B40: =B8 -> 1479.8 | C40: =VLOOKUP($A40,'Data Pass Through'!$A:$D,2,FALSE) -> 0.0004 | D40: =B40*C40 -> 0.59192 | E40: =$B$8 -> 1479.8 | F40: =VLOOKUP($A40,'Data Pass Through'!$A:$D,3,FALSE) -> 0.0004 | G40: =E40*F40 -> 0.59192 | H40: 0 | I40: 0 | J40: 0.002967671994 | K40: 0.003009508156
A41: Rural Rate Protection Charge | B41: =B8 -> 1479.8 | C41: =VLOOKUP($A41,'Data Pass Through'!$A:$D,2,FALSE) -> 0.0005 | D41: 0.7399 | E41: 1479.8 | F41: =VLOOKUP($A41,'Data Pass Through'!$A:$D,3,FALSE) -> 0.0005 | G41: 0.7399 | H41: 0 | I41: 0 | J41: 0.003709589992 | K41: 0.003761885195
A42: Standard Supply Service – Administration Charge (if applicable) | B42: 1 | C42: =VLOOKUP($A42,'Data Pass Through'!$A:$D,2,FALSE) -> 0.25 | D42: =B42*C42 -> 0.25 | E42: 1 | F42: =VLOOKUP($A42,'Data Pass Through'!$A:$D,3,FALSE) -> 0.25 | G42: 0.25 | H42: 0 | I42: 0 | J42: 0.001253409242 | K42: 0.001271078928
A43: Sub-Total: Regulatory | D43: =SUM(D39:D42) -> 6.02122 | G43: =SUM(G39:G42) -> 6.02122 | H43: 0 | I43: 0 | J43: 0.03018821118 | K43: 0.03061378345
A44: Debt Retirement Charge (DRC) | B44: =B4 -> 1400 | C44: =VLOOKUP($A44,'Data Pass Through'!$A:$D,2,FALSE) -> 0 | D44: =B44*C44 -> 0 | E44: 1400 | F44: =VLOOKUP($A44,'Data Pass Through'!$A:$D,3,FALSE) -> 0 | G44: =E44*F44 -> 0 | H44: 0 | I44: N/A | J44: 0 | K44: 0
A45: Total Electricty Charge on Two-Tier RPP | D45: =SUM(D14,D28,D29,D30,D36,D43,D44) -> 193.13416 | G45: =SUM(G14,G28,G29,G30,G36,G43,G44) -> 189.9581 | H45: -3.17606 | I45: -0.01644483814 | J45: 0.9523809524
A46: HST | C46: 0.13 | D46: =D45*C46 -> 25.1074408 | F46: =C46 -> 0.13 | G46: =G45*F46 -> 24.694553 | H46: -0.4128878 | I46: -0.01644483814 | J46: 0.1238095238
A47: Total Electricity Charge on Two-Tier RPP (including HST) | D47: =SUM(D45:D46) -> 218.2416008 | G47: =SUM(G45:G46) -> 214.652653 | H47: -3.5889478 | I47: -0.01644483814 | J47: 1.076190476
A48: Ontario Rebate for Electricity Consumers (OREC) | C48: -0.08 | D48: =D45*C48 -> -15.4507328 | F48: =C48 -> -0.08 | G48: =G45*F48 -> -15.196648 | H48: 0.2540848 | I48: 0.01644483814 | J48: -0.07619047619
A49: Total Amount on Two-Tier RPP | D49: =SUM(D47:D48) -> 202.790868 | G49: =SUM(G47:G48) -> 199.456005 | H49: -3.334863 | I49: -0.01644483814 | J49: 1
A50: Total Electricty Charge on TOU (before HST) | D50: =SUM(D18,D28,D29,D31,D36,D43,D44) -> 190.49349 | G50: =SUM(G18,G28,G29,G31,G36,G43,G44) -> 187.31743 | H50: -3.17606 | I50: -0.01667280073 | K50: =G50/$G$54 -> 0.9523809524
A51: HST | C51: 0.13 | D51: =D50*C51 -> 24.7641537 | F51: =C51 -> 0.13 | G51: =G50*F51 -> 24.3512659 | H51: -0.4128878 | I51: -0.01667280073 | K51: =G51/$G$54 -> 0.1238095238
A52: Total Electricity Charge on TOU (including HST) | D52: =SUM(D50:D51) -> 215.2576437 | G52: =SUM(G50:G51) -> 211.6686959 | H52: -3.5889478 | I52: -0.01667280073 | K52: =G52/$G$54 -> 1.076190476
A53: Ontario Rebate for Electricity Consumers (OREC) | C53: -0.08 | D53: =D50*C53 -> -15.2394792 | F53: =C53 -> -0.08 | G53: =G50*F53 -> -14.9853944 | H53: 0.2540848 | I53: 0.01667280073 | K53: =G53/$G$54 -> -0.07619047619
A54: Total Amount on TOU | D54: =SUM(D52:D53) -> 200.0181645 | G54: =SUM(G52:G53) -> 196.6833015 | H54: -3.334863 | I54: -0.01667280073 | K54: =G54/$G$54 -> 1
A55: * Distribution rate protection applies to R1 and R2 customers

Sheet BI_R1_Low
A1: 2021 Bill Impacts (Low Consumption Level) - R1
A3: Rate Class | B3: =RIGHT(A1,LEN(A1)-FIND("- ",A1,1)-1) -> R1
A4: Monthly Consumption (kWh) | B4: =IF(COUNTIF(A1,"*Low*")>0,VLOOKUP(B3,'Data Billing Quantities'!$A:$Z,MATCH("Low kWh",'Data Billing Quantities'!4:4,0),FALSE),IF(COUNTIF(A1,"*Typical*")>0,VLOOKUP(B3,'Data Billing Quantities'!$A:$Z,MATCH("Typical kWh",'Data Billing Quantities'!4:4,0),FALSE),IF(COUNTIF(A1,"*Average*")>0,VLOOKUP(B3,'Data Billing Quantities'!$A:$Z,MATCH("Average kWh",'Data Billing Quantities'!4:4,0),FALSE),IF(COUNTIF(A1,"*High*")>0,VLOOKUP(B3,'Data Billing Quantities'!$A:$Z,MATCH("High kWh",'Data Billing Quantities'!4:4,0),FALSE),"error")))) -> 400
A5: Peak (kW) | B5: =IF(COUNTIF(A1,"*Low*")>0,VLOOKUP(B3,'Data Billing Quantities'!$A:$Z,MATCH("Low kW",'Data Billing Quantities'!4:4,0),FALSE),IF(COUNTIF(A1,"*Typical*")>0,VLOOKUP(B3,'Data Billing Quantities'!$A:$Z,MATCH("Typical kW",'Data Billing Quantities'!4:4,0),FALSE),IF(COUNTIF(A1,"*Average*")>0,VLOOKUP(B3,'Data Billing Quantities'!$A:$Z,MATCH("Average kW",'Data Billing Quantities'!4:4,0),FALSE),IF(COUNTIF(A1,"*High*")>0,VLOOKUP(B3,'Data Billing Quantities'!$A:$Z,MATCH("High kW",'Data Billing Quantities'!4:4,0),FALSE),"error")))) -> 0
A6: Loss factor | B6: =VLOOKUP(B3,'Data Billing Quantities'!A:D,MATCH(A6,'Data Billing Quantities'!4:4,0),FALSE) -> 1.076
A7: Commodity Threshold | B7: =VLOOKUP(B3,'Data Billing Quantities'!A:D,MATCH(A7,'Data Billing Quantities'!4:4,0),FALSE) -> 600
A8: Monthly Consumption (kWh) - Uplifted | B8: =B4*B6 -> 430.4
A9: Charge determinant | B9: =VLOOKUP(B3,'Data Billing Quantities'!A:D,MATCH(A9,'Data Billing Quantities'!4:4,0),FALSE) -> kWh
B11: Volume | C11: Current Rate ($) | D11: Current Charge ($) | E11: Volume | F11: Proposed Rate ($) | G11: Proposed Charge ($) | H11: Change ($) | I11: Change (%) | J11: % of Total Bill on RPP | K11: % of Total Bill on TOU
A12: Energy First Tier | B12: =IF(B4>B7,B7,B4) -> 400 | C12: =VLOOKUP($A12,'Data Pass Through'!$A:$D,2,FALSE) -> 0.077 | D12: =B12*C12 -> 30.8 | E12: =B12 -> 400 | F12: =VLOOKUP($A12,'Data Pass Through'!$A:$D,3,FALSE) -> 0.077 | G12: =E12*F12 -> 30.8 | H12: =G12-D12 -> 0 | I12: =IF(ISERROR(H12/ABS(D12)),"N/A",(H12/ABS(D12))) -> 0 | J12: =G12/$G$49 -> 0.3767418746
A13: Energy Second Tier | B13: =IF(B4>B7,(B4)-B7,0) -> 0 | C13: =VLOOKUP($A13,'Data Pass Through'!$A:$D,2,FALSE) -> 0.089 | D13: =B13*C13 -> 0 | E13: =B13 -> 0 | F13: =VLOOKUP($A13,'Data Pass Through'!$A:$D,3,FALSE) -> 0.089 | G13: =E13*F13 -> 0 | H13: 0 | I13: N/A | J13: =G13/$G$49 -> 0
A14: Sub-Total: Energy (RPP Tiered) | D14: =SUM(D12:D13) -> 30.8 | G14: =SUM(G12:G13) -> 30.8 | H14: 0 | I14: 0 | J14: =G14/$G$49 -> 0.3767418746
A15: TOU-Off Peak | B15: =B$4*VLOOKUP($B$3,'Data Billing Quantities'!$A:$O,MATCH(BI_R1_Low!$A15,'Data Billing Quantities'!$4:$4,0),FALSE) -> 260 | C15: =VLOOKUP($A15,'Data Pass Through'!$A:$D,2,FALSE) -> 0.065 | D15: =B15*C15 -> 16.9 | E15: 260 | F15: =VLOOKUP($A15,'Data Pass Through'!$A:$D,3,FALSE) -> 0.065 | G15: =E15*F15 -> 16.9 | H15: 0 | I15: 0 | K15: =G15/$G$54 -> 0.2007808832
A16: TOU-Mid Peak | B16: =B$4*VLOOKUP($B$3,'Data Billing Quantities'!$A:$O,MATCH(BI_R1_Low!$A16,'Data Billing Quantities'!$4:$4,0),FALSE) -> 68 | C16: =VLOOKUP($A16,'Data Pass Through'!$A:$D,2,FALSE) -> 0.094 | D16: =B16*C16 -> 6.392 | E16: 68 | F16: =VLOOKUP($A16,'Data Pass Through'!$A:$D,3,FALSE) -> 0.094 | G16: =E16*F16 -> 6.392 | H16: 0 | I16: 0 | K16: 0.07594031984
A17: TOU-On Peak | B17: =B$4*VLOOKUP($B$3,'Data Billing Quantities'!$A:$O,MATCH(BI_R1_Low!$A17,'Data Billing Quantities'!$4:$4,0),FALSE) -> 72 | C17: =VLOOKUP($A17,'Data Pass Through'!$A:$D,2,FALSE) -> 0.134 | D17: =B17*C17 -> 9.648 | E17: 72 | F17: =VLOOKUP($A17,'Data Pass Through'!$A:$D,3,FALSE) -> 0.134 | G17: =E17*F17 -> 9.648 | H17: 0 | I17: 0 | K17: 0.1146233113
A18: Sub-Total: Energy (RPP TOU) | D18: =SUM(D15:D17) -> 32.94 | G18: =SUM(G15:G17) -> 32.94 | H18: 0 | I18: 0 | J18: =G18/$G$49 -> 0.4029180958 | K18: 0.3913445143
A19: Service Charge | B19: 1 | C19: =IF(ISERROR(VLOOKUP($B$3,'Data Current Rates'!$A:$BA,MATCH(BI_R1_Low!$A19,CurrentHeader,0),FALSE)),0,VLOOKUP($B$3,'Data Current Rates'!$A:$BA,MATCH(BI_R1_Low!$A19,CurrentHeader,0),FALSE)) -> 43.58 | D19: =B19*C19 -> 43.58 | E19: 1 | F19: =VLOOKUP($B$3,'Data Proposed Rates'!$A:$BA,MATCH(BI_R1_Low!$A19,ProposedHeader,0),FALSE) -> 49.04 | G19: =E19*F19 -> 49.04 | H19: 5.46 | I19: 0.1252868288 | J19: 0.5998513484 | K19: 0.582620977
A20: Fixed Foregone Revenue Charge | B20: 1 | C20: =IF(ISERROR(VLOOKUP($B$3,'Data Current Rates'!$A:$BA,MATCH(BI_R1_Low!$A20,CurrentHeader,0),FALSE)),0,VLOOKUP($B$3,'Data Current Rates'!$A:$BA,MATCH(BI_R1_Low!$A20,CurrentHeader,0),FALSE)) -> 1.69 | D20: 1.69 | H20: -1.69 | I20: -1 | J20: 0 | K20: 0
A21: Fixed Deferral/Variance Account Rider (General) | B21: 1 | C21: =IF(ISERROR(VLOOKUP($B$3,'Data Current Rates'!$A:$BA,MATCH(BI_R1_Low!$A21,CurrentHeader,0),FALSE)),0,VLOOKUP($B$3,'Data Current Rates'!$A:$BA,MATCH(BI_R1_Low!$A21,CurrentHeader,0),FALSE)) -> 0.04 | D21: 0.04 | E21: 1 | F21: =VLOOKUP($B$3,'Data Proposed Rates'!$A:$BA,MATCH(BI_R1_Low!$A21,ProposedHeader,0),FALSE) -> -0.14 | G21: -0.14 | H21: -0.18 | I21: -4.5 | J21: -0.001712463066 | K21: -0.001663273589
A22: Fixed ESM Rider | E22: 1 | F22: =VLOOKUP($B$3,'Data Proposed Rates'!$A:$BA,MATCH(BI_R1_Low!$A22,ProposedHeader,0),FALSE) -> -0.85 | G22: -0.85 | H22: -0.85 | I22: N/A | J22: -0.01039709719 | K22: -0.01009844679
A23: Distribution Volumetric Charge | B23: =IF($B$9="kWh",$B$4,$B$5) -> 400 | C23: =IF(ISERROR(VLOOKUP($B$3,'Data Current Rates'!$A:$BA,MATCH(BI_R1_Low!$A23,CurrentHeader,0),FALSE)),0,VLOOKUP($B$3,'Data Current Rates'!$A:$BA,MATCH(BI_R1_Low!$A23,CurrentHeader,0),FALSE)) -> 0.0182 | D23: 7.28 | E23: =IF($B$9="kWh",$B$4,$B$5) -> 400 | F23: =VLOOKUP($B$3,'Data Proposed Rates'!$A:$BA,MATCH(BI_R1_Low!$A23,ProposedHeader,0),FALSE) -> 0.0141 | G23: 5.64 | H23: -1.64 | I23: -0.2252747253 | J23: 0.06898779782 | K23: 0.06700616457
A24: Volumetric Foregone Revenue Charge | B24: =IF($B$9="kWh",$B$4,$B$5) -> 400 | C24: =IF(ISERROR(VLOOKUP($B$3,'Data Current Rates'!$A:$BA,MATCH(BI_R1_Low!$A24,CurrentHeader,0),FALSE)),0,VLOOKUP($B$3,'Data Current Rates'!$A:$BA,MATCH(BI_R1_Low!$A24,CurrentHeader,0),FALSE)) -> 0.0009 | D24: 0.36 | H24: -0.36 | I24: -1 | J24: 0 | K24: 0
A25: Volumetric Deferral/Variance Account Rider (General) | B25: =IF($B$9="kWh",$B$4,$B$5) -> 400 | C25: =IF(ISERROR(VLOOKUP($B$3,'Data Current Rates'!$A:$BA,MATCH(BI_R1_Low!$A25,CurrentHeader,0),FALSE)),0,VLOOKUP($B$3,'Data Current Rates'!$A:$BA,MATCH(BI_R1_Low!$A25,CurrentHeader,0),FALSE)) -> -0.0008 | D25: -0.32 | E25: =IF($B$9="kWh",$B$4,$B$5) -> 400 | F25: =VLOOKUP($B$3,'Data Proposed Rates'!$A:$BA,MATCH(BI_R1_Low!$A25,ProposedHeader,0),FALSE) -> -0.0008 | G25: -0.32 | H25: 0 | I25: 0 | J25: -0.003914201295 | K25: -0.003801768202
A26: Volumetric ESM Rider | E26: 400 | F26: =VLOOKUP($B$3,'Data Proposed Rates'!$A:$BA,MATCH(BI_R1_Low!$A26,ProposedHeader,0),FALSE) -> 0 | G26: 0 | H26: 0 | I26: N/A | J26: 0 | K26: 0
A27: Fair Hydro Plan - Distribution Rate Protection Savings* | D27: =IF(AND(B3<>"R1",B3<>"R2"),0,IF(VLOOKUP($A27,'Data Pass Through'!$A:$D,2,FALSE)=0,0,IF(SUM(D19:D20,D23:D24)<VLOOKUP($A27,'Data Pass Through'!$A:$D,2,FALSE),0,VLOOKUP($A27,'Data Pass Through'!$A:$D,2,FALSE)-SUM(D19:D20,D23:D24)))) -> -16.05 | G27: =IF(AND(B3<>"R1",B3<>"R2"),0,IF(VLOOKUP($A27,'Data Pass Through'!$A:$D,2,FALSE)=0,0,IF(SUM(G19:G20,G23:G24)<VLOOKUP($A27,'Data Pass Through'!$A:$D,2,FALSE),0,VLOOKUP($A27,'Data Pass Through'!$A:$D,2,FALSE)-SUM(G19:G20,G23:G24)))) -> -17.82 | H27: -1.77 | I27: -0.1102803738 | J27: -0.2179720846 | K27: -0.2117109668
A28: Sub-Total: Distribution (excluding pass through) | D28: =SUM(INDIRECT("D19:D"&ROW()-1)) -> 36.58 | G28: =SUM(INDIRECT("g19:g"&ROW()-1)) -> 35.55 | H28: =G28-D28 -> -1.03 | I28: -0.02815746309 | J28: 0.4348433001 | K28: 0.4223526862
A29: Smart Metering Entity Charge | B29: 1 | C29: =VLOOKUP($A29,'Data Pass Through'!$A:$D,2,FALSE) -> 0.57 | D29: =B29*C29 -> 0.57 | E29: 1 | F29: =VLOOKUP($A29,'Data Pass Through'!$A:$D,3,FALSE) -> 0.57 | G29: =E29*F29 -> 0.57 | H29: 0 | I29: 0 | J29: 0.006972171056 | K29: 0.006771899611
A30: Line Losses on Cost of Power (based on two-tier RPP prices) | B30: =B8-B4 -> 30.4 | C30: =IF(B4>B7,C13,C12) -> 0.077 | D30: =B30*C30 -> 2.3408 | E30: 30.4 | F30: =IF(B4>B7,F13,F12) -> 0.077 | G30: =E30*F30 -> 2.3408 | H30: 0 | I30: 0 | J30: 0.02863238247 | K30: 0.0278099344
A31: Line Losses on Cost of Power (based on TOU prices) | B31: =B8-B4 -> 30.4 | C31: =VLOOKUP($B$3,'Data Billing Quantities'!$A:$O,MATCH(BI_R1_Low!$A15,'Data Billing Quantities'!$4:$4,0),FALSE)*C15+VLOOKUP($B$3,'Data Billing Quantities'!$A:$O,MATCH(BI_R1_Low!$A16,'Data Billing Quantities'!$4:$4,0),FALSE)*C16+VLOOKUP($B$3,'Data Billing Quantities'!$A:$O,MATCH(BI_R1_Low!$A17,'Data Billing Quantities'!$4:$4,0),FALSE)*C17 -> 0.08235 | D31: =B31*C31 -> 2.50344 | E31: 30.4 | F31: =VLOOKUP($B$3,'Data Billing Quantities'!$A:$O,MATCH(BI_R1_Low!$A15,'Data Billing Quantities'!$4:$4,0),FALSE)*F15+VLOOKUP($B$3,'Data Billing Quantities'!$A:$O,MATCH(BI_R1_Low!$A16,'Data Billing Quantities'!$4:$4,0),FALSE)*F16+VLOOKUP($B$3,'Data Billing Quantities'!$A:$O,MATCH(BI_R1_Low!$A17,'Data Billing Quantities'!$4:$4,0),FALSE)*F17 -> 0.08235 | G31: =E31*F31 -> 2.50344 | H31: 0 | I31: 0 | J31: 0.03062177528 | K31: 0.02974218309
A32: Sub-Total: Distribution (based on two-tier RPP prices) | D32: =SUM(D28,D29:D30) -> 39.4908 | G32: =SUM(G28,G29:G30) -> 38.4608 | H32: -1.03 | I32: -0.02608202417 | J32: 0.4704478536 | K32: 0.4569345202
A33: Sub-Total: Distribution (based on TOU prices) | D33: =SUM(D28,D29,D31) -> 39.65344 | G33: =SUM(G28,G29,G31) -> 38.62344 | H33: -1.03 | I33: -0.02597504781 | J33: 0.4724372464 | K33: 0.4588667689
A34: Retail Transmission Rate – Network Service Rate | B34: =B8 -> 430.4 | C34: =VLOOKUP($B$3,'Data Current Rates'!$A:$BA,MATCH(BI_R1_Low!$A34,CurrentHeader,0),FALSE) -> 0.008 | D34: =B34*C34 -> 3.4432 | E34: 430.4 | F34: =VLOOKUP($B$3,'Data Proposed Rates'!$A:$BA,MATCH(BI_R1_Low!$A34,ProposedHeader,0),FALSE) -> 0.0082 | G34: =E34*F34 -> 3.52928 | H34: =G34-D34 -> 0.08608 | I34: 0.025 | J34: 0.04316972608 | K34: 0.0419297015
A35: Retail Transmission Rate – Line and Transformation Connection Service Rate | B35: =B8 -> 430.4 | C35: =VLOOKUP($B$3,'Data Current Rates'!$A:$BA,MATCH(BI_R1_Low!$A35,CurrentHeader,0),FALSE) -> 0.0072 | D35: =B35*C35 -> 3.09888 | E35: 430.4 | F35: =VLOOKUP($B$3,'Data Proposed Rates'!$A:$BA,MATCH(BI_R1_Low!$A35,ProposedHeader,0),FALSE) -> 0.0073 | G35: =E35*F35 -> 3.14192 | H35: =G35-D35 -> 0.04304 | I35: 0.01388888889 | J35: 0.03843158541 | K35: 0.0373276611
A36: Sub-Total: Retail Transmission | D36: =SUM(D34:D35) -> 6.54208 | G36: =SUM(G34:G35) -> 6.6712 | H36: =G36-D36 -> 0.12912 | I36: 0.01973684211 | J36: 0.08160131149 | K36: 0.0792573626
A37: Sub-Total: Delivery (based on two-tier RPP prices) | D37: =D32+D36 -> 46.03288 | G37: =G32+G36 -> 45.132 | H37: =G37-D37 -> -0.90088 | I37: -0.01957035927 | J37: 0.5520491651 | K37: 0.5361918828
A38: Sub-Total: Delivery (based on TOU prices) | D38: =D33+D36 -> 46.19552 | G38: =G33+G36 -> 45.29464 | H38: =G38-D38 -> -0.90088 | I38: -0.01950145815 | J38: 0.5540385579 | K38: 0.5381241315
A39: Wholesale Market Service Rate (WMS) - not including CBR | B39: =B8 -> 430.4 | C39: =VLOOKUP($A39,'Data Pass Through'!$A:$D,2,FALSE) -> 0.003 | D39: =B39*C39 -> 1.2912 | E39: =$B$8 -> 430.4 | F39: =VLOOKUP($A39,'Data Pass Through'!$A:$D,3,FALSE) -> 0.003 | G39: =E39*F39 -> 1.2912 | H39: 0 | I39: 0 | J39: 0.01579380222 | K39: 0.0153401347
A40: Capacity Based Recovery (CBR) - Applicable for Class B Customers | B40: =B8 -> 430.4 | C40: =VLOOKUP($A40,'Data Pass Through'!$A:$D,2,FALSE) -> 0.0004 | D40: =B40*C40 -> 0.17216 | E40: =$B$8 -> 430.4 | F40: =VLOOKUP($A40,'Data Pass Through'!$A:$D,3,FALSE) -> 0.0004 | G40: =E40*F40 -> 0.17216 | H40: 0 | I40: 0 | J40: 0.002105840297 | K40: 0.002045351293
A41: Rural Rate Protection Charge | B41: =B8 -> 430.4 | C41: =VLOOKUP($A41,'Data Pass Through'!$A:$D,2,FALSE) -> 0.0005 | D41: 0.2152 | E41: 430.4 | F41: =VLOOKUP($A41,'Data Pass Through'!$A:$D,3,FALSE) -> 0.0005 | G41: 0.2152 | H41: 0 | I41: 0 | J41: 0.002632300371 | K41: 0.002556689116
A42: Standard Supply Service – Administration Charge (if applicable) | B42: 1 | C42: =VLOOKUP($A42,'Data Pass Through'!$A:$D,2,FALSE) -> 0.25 | D42: =B42*C42 -> 0.25 | E42: 1 | F42: =VLOOKUP($A42,'Data Pass Through'!$A:$D,3,FALSE) -> 0.25 | G42: 0.25 | H42: 0 | I42: 0 | J42: 0.003057969762 | K42: 0.002970131408
A43: Sub-Total: Regulatory | D43: =SUM(D39:D42) -> 1.92856 | G43: =SUM(G39:G42) -> 1.92856 | H43: 0 | I43: 0 | J43: 0.02358991265 | K43: 0.02291230651
A44: Debt Retirement Charge (DRC) | B44: =B4 -> 400 | C44: =VLOOKUP($A44,'Data Pass Through'!$A:$D,2,FALSE) -> 0 | D44: =B44*C44 -> 0 | E44: 400 | F44: =VLOOKUP($A44,'Data Pass Through'!$A:$D,3,FALSE) -> 0 | G44: =E44*F44 -> 0 | H44: 0 | I44: N/A | J44: 0 | K44: 0
A45: Total Electricty Charge on Two-Tier RPP | D45: =SUM(D14,D28,D29,D30,D36,D43,D44) -> 78.76144 | G45: =SUM(G14,G28,G29,G30,G36,G43,G44) -> 77.86056 | H45: -0.90088 | I45: -0.01143808442 | J45: 0.9523809524
A46: HST | C46: 0.13 | D46: =D45*C46 -> 10.2389872 | F46: =C46 -> 0.13 | G46: =G45*F46 -> 10.1218728 | H46: -0.1171144 | I46: -0.01143808442 | J46: 0.1238095238
A47: Total Electricity Charge on Two-Tier RPP (including HST) | D47: =SUM(D45:D46) -> 89.0004272 | G47: =SUM(G45:G46) -> 87.9824328 | H47: -1.0179944 | I47: -0.01143808442 | J47: 1.076190476
A48: Ontario Rebate for Electricity Consumers (OREC) | C48: -0.08 | D48: =D45*C48 -> -6.3009152 | F48: =C48 -> -0.08 | G48: =G45*F48 -> -6.2288448 | H48: 0.0720704 | I48: 0.01143808442 | J48: -0.07619047619
A49: Total Amount on Two-Tier RPP | D49: =SUM(D47:D48) -> 82.699512 | G49: =SUM(G47:G48) -> 81.753588 | H49: -0.945924 | I49: -0.01143808442 | J49: 1
A50: Total Electricty Charge on TOU (before HST) | D50: =SUM(D18,D28,D29,D31,D36,D43,D44) -> 81.06408 | G50: =SUM(G18,G28,G29,G31,G36,G43,G44) -> 80.1632 | H50: -0.90088 | I50: -0.01111318355 | K50: =G50/$G$54 -> 0.9523809524
A51: HST | C51: 0.13 | D51: =D50*C51 -> 10.5383304 | F51: =C51 -> 0.13 | G51: =G50*F51 -> 10.421216 | H51: -0.1171144 | I51: -0.01111318355 | K51: =G51/$G$54 -> 0.1238095238
A52: Total Electricity Charge on TOU (including HST) | D52: =SUM(D50:D51) -> 91.6024104 | G52: =SUM(G50:G51) -> 90.584416 | H52: -1.0179944 | I52: -0.01111318355 | K52: =G52/$G$54 -> 1.076190476
A53: Ontario Rebate for Electricity Consumers (OREC) | C53: -0.08 | D53: =D50*C53 -> -6.4851264 | F53: =C53 -> -0.08 | G53: =G50*F53 -> -6.413056 | H53: 0.0720704 | I53: 0.01111318355 | K53: =G53/$G$54 -> -0.07619047619
A54: Total Amount on TOU | D54: =SUM(D52:D53) -> 85.117284 | G54: =SUM(G52:G53) -> 84.17136 | H54: -0.945924 | I54: -0.01111318355 | K54: =G54/$G$54 -> 1
A55: * Distribution rate protection applies to R1 and R2 customers

Sheet BI_R1_Typical
A1: 2021 Bill Impacts (Typical Consumption Level) - R1
A3: Rate Class | B3: =RIGHT(A1,LEN(A1)-FIND("- ",A1,1)-1) -> R1
A4: Monthly Consumption (kWh) | B4: =IF(COUNTIF(A1,"*Low*")>0,VLOOKUP(B3,'Data Billing Quantities'!$A:$Z,MATCH("Low kWh",'Data Billing Quantities'!4:4,0),FALSE),IF(COUNTIF(A1,"*Typical*")>0,VLOOKUP(B3,'Data Billing Quantities'!$A:$Z,MATCH("Typical kWh",'Data Billing Quantities'!4:4,0),FALSE),IF(COUNTIF(A1,"*Average*")>0,VLOOKUP(B3,'Data Billing Quantities'!$A:$Z,MATCH("Average kWh",'Data Billing Quantities'!4:4,0),FALSE),IF(COUNTIF(A1,"*High*")>0,VLOOKUP(B3,'Data Billing Quantities'!$A:$Z,MATCH("High kWh",'Data Billing Quantities'!4:4,0),FALSE),"error")))) -> 750
A5: Peak (kW) | B5: =IF(COUNTIF(A1,"*Low*")>0,VLOOKUP(B3,'Data Billing Quantities'!$A:$Z,MATCH("Low kW",'Data Billing Quantities'!4:4,0),FALSE),IF(COUNTIF(A1,"*Typical*")>0,VLOOKUP(B3,'Data Billing Quantities'!$A:$Z,MATCH("Typical kW",'Data Billing Quantities'!4:4,0),FALSE),IF(COUNTIF(A1,"*Average*")>0,VLOOKUP(B3,'Data Billing Quantities'!$A:$Z,MATCH("Average kW",'Data Billing Quantities'!4:4,0),FALSE),IF(COUNTIF(A1,"*High*")>0,VLOOKUP(B3,'Data Billing Quantities'!$A:$Z,MATCH("High kW",'Data Billing Quantities'!4:4,0),FALSE),"error")))) -> 0
A6: Loss factor | B6: =VLOOKUP(B3,'Data Billing Quantities'!A:D,MATCH(A6,'Data Billing Quantities'!4:4,0),FALSE) -> 1.076
A7: Commodity Threshold | B7: =VLOOKUP(B3,'Data Billing Quantities'!A:D,MATCH(A7,'Data Billing Quantities'!4:4,0),FALSE) -> 600
A8: Monthly Consumption (kWh) - Uplifted | B8: =B4*B6 -> 807
A9: Charge determinant | B9: =VLOOKUP(B3,'Data Billing Quantities'!A:D,MATCH(A9,'Data Billing Quantities'!4:4,0),FALSE) -> kWh
B11: Volume | C11: Current Rate ($) | D11: Current Charge ($) | E11: Volume | F11: Proposed Rate ($) | G11: Proposed Charge ($) | H11: Change ($) | I11: Change (%) | J11: % of Total Bill on RPP | K11: % of Total Bill on TOU
A12: Energy First Tier | B12: =IF(B4>B7,B7,B4) -> 600 | C12: =VLOOKUP($A12,'Data Pass Through'!$A:$D,2,FALSE) -> 0.077 | D12: =B12*C12 -> 46.2 | E12: =B12 -> 600 | F12: =VLOOKUP($A12,'Data Pass Through'!$A:$D,3,FALSE) -> 0.077 | G12: =E12*F12 -> 46.2 | H12: =G12-D12 -> 0 | I12: =IF(ISERROR(H12/ABS(D12)),"N/A",(H12/ABS(D12))) -> 0 | J12: =G12/$G$49 -> 0.3781082214
A13: Energy Second Tier | B13: =IF(B4>B7,(B4)-B7,0) -> 150 | C13: =VLOOKUP($A13,'Data Pass Through'!$A:$D,2,FALSE) -> 0.089 | D13: =B13*C13 -> 13.35 | E13: =B13 -> 150 | F13: =VLOOKUP($A13,'Data Pass Through'!$A:$D,3,FALSE) -> 0.089 | G13: =E13*F13 -> 13.35 | H13: 0 | I13: 0 | J13: =G13/$G$49 -> 0.1092585445
A14: Sub-Total: Energy (RPP Tiered) | D14: =SUM(D12:D13) -> 59.55 | G14: =SUM(G12:G13) -> 59.55 | H14: 0 | I14: 0 | J14: =G14/$G$49 -> 0.487366766
A15: TOU-Off Peak | B15: =B$4*VLOOKUP($B$3,'Data Billing Quantities'!$A:$O,MATCH(BI_R1_Typical!$A15,'Data Billing Quantities'!$4:$4,0),FALSE) -> 487.5 | C15: =VLOOKUP($A15,'Data Pass Through'!$A:$D,2,FALSE) -> 0.065 | D15: =B15*C15 -> 31.6875 | E15: 487.5 | F15: =VLOOKUP($A15,'Data Pass Through'!$A:$D,3,FALSE) -> 0.065 | G15: =E15*F15 -> 31.6875 | H15: 0 | I15: 0 | K15: =G15/$G$54 -> 0.2553130032
A16: TOU-Mid Peak | B16: =B$4*VLOOKUP($B$3,'Data Billing Quantities'!$A:$O,MATCH(BI_R1_Typical!$A16,'Data Billing Quantities'!$4:$4,0),FALSE) -> 127.5 | C16: =VLOOKUP($A16,'Data Pass Through'!$A:$D,2,FALSE) -> 0.094 | D16: =B16*C16 -> 11.985 | E16: 127.5 | F16: =VLOOKUP($A16,'Data Pass Through'!$A:$D,3,FALSE) -> 0.094 | G16: =E16*F16 -> 11.985 | H16: 0 | I16: 0 | K16: 0.09656572285
A17: TOU-On Peak | B17: =B$4*VLOOKUP($B$3,'Data Billing Quantities'!$A:$O,MATCH(BI_R1_Typical!$A17,'Data Billing Quantities'!$4:$4,0),FALSE) -> 135 | C17: =VLOOKUP($A17,'Data Pass Through'!$A:$D,2,FALSE) -> 0.134 | D17: =B17*C17 -> 18.09 | E17: 135 | F17: =VLOOKUP($A17,'Data Pass Through'!$A:$D,3,FALSE) -> 0.134 | G17: =E17*F17 -> 18.09 | H17: 0 | I17: 0 | K17: 0.145755021
A18: Sub-Total: Energy (RPP TOU) | D18: =SUM(D15:D17) -> 61.7625 | G18: =SUM(G15:G17) -> 61.7625 | H18: 0 | I18: 0 | J18: =G18/$G$49 -> 0.5054742214 | K18: 0.497633747
A19: Service Charge | B19: 1 | C19: =IF(ISERROR(VLOOKUP($B$3,'Data Current Rates'!$A:$BA,MATCH(BI_R1_Typical!$A19,CurrentHeader,0),FALSE)),0,VLOOKUP($B$3,'Data Current Rates'!$A:$BA,MATCH(BI_R1_Typical!$A19,CurrentHeader,0),FALSE)) -> 43.58 | D19: =B19*C19 -> 43.58 | E19: 1 | F19: =VLOOKUP($B$3,'Data Proposed Rates'!$A:$BA,MATCH(BI_R1_Typical!$A19,ProposedHeader,0),FALSE) -> 49.04 | G19: =E19*F19 -> 49.04 | H19: 5.46 | I19: 0.1252868288 | J19: 0.4013512377 | K19: 0.395125828
A20: Fixed Foregone Revenue Charge | B20: 1 | C20: =IF(ISERROR(VLOOKUP($B$3,'Data Current Rates'!$A:$BA,MATCH(BI_R1_Typical!$A20,CurrentHeader,0),FALSE)),0,VLOOKUP($B$3,'Data Current Rates'!$A:$BA,MATCH(BI_R1_Typical!$A20,CurrentHeader,0),FALSE)) -> 1.69 | D20: 1.69 | H20: -1.69 | I20: -1 | J20: 0 | K20: 0
A21: Fixed Deferral/Variance Account Rider (General) | B21: 1 | C21: =IF(ISERROR(VLOOKUP($B$3,'Data Current Rates'!$A:$BA,MATCH(BI_R1_Typical!$A21,CurrentHeader,0),FALSE)),0,VLOOKUP($B$3,'Data Current Rates'!$A:$BA,MATCH(BI_R1_Typical!$A21,CurrentHeader,0),FALSE)) -> 0.04 | D21: 0.04 | E21: 1 | F21: =VLOOKUP($B$3,'Data Proposed Rates'!$A:$BA,MATCH(BI_R1_Typical!$A21,ProposedHeader,0),FALSE) -> -0.14 | G21: -0.14 | H21: -0.18 | I21: -4.5 | J21: -0.001145782489 | K21: -0.001128010113
A22: Fixed ESM Rider | E22: 1 | F22: =VLOOKUP($B$3,'Data Proposed Rates'!$A:$BA,MATCH(BI_R1_Typical!$A22,ProposedHeader,0),FALSE) -> -0.85 | G22: -0.85 | H22: -0.85 | I22: N/A | J22: -0.006956536542 | K22: -0.006848632827
A23: Distribution Volumetric Charge | B23: =IF($B$9="kWh",$B$4,$B$5) -> 750 | C23: =IF(ISERROR(VLOOKUP($B$3,'Data Current Rates'!$A:$BA,MATCH(BI_R1_Typical!$A23,CurrentHeader,0),FALSE)),0,VLOOKUP($B$3,'Data Current Rates'!$A:$BA,MATCH(BI_R1_Typical!$A23,CurrentHeader,0),FALSE)) -> 0.0182 | D23: 13.65 | E23: =IF($B$9="kWh",$B$4,$B$5) -> 750 | F23: =VLOOKUP($B$3,'Data Proposed Rates'!$A:$BA,MATCH(BI_R1_Typical!$A23,ProposedHeader,0),FALSE) -> 0.0141 | G23: 10.575 | H23: -3.075 | I23: -0.2252747253 | J23: 0.08654749874 | K23: 0.08520504958
A24: Volumetric Foregone Revenue Charge | B24: =IF($B$9="kWh",$B$4,$B$5) -> 750 | C24: =IF(ISERROR(VLOOKUP($B$3,'Data Current Rates'!$A:$BA,MATCH(BI_R1_Typical!$A24,CurrentHeader,0),FALSE)),0,VLOOKUP($B$3,'Data Current Rates'!$A:$BA,MATCH(BI_R1_Typical!$A24,CurrentHeader,0),FALSE)) -> 0.0009 | D24: 0.675 | H24: -0.675 | I24: -1 | J24: 0 | K24: 0
A25: Volumetric Deferral/Variance Account Rider (General) | B25: =IF($B$9="kWh",$B$4,$B$5) -> 750 | C25: =IF(ISERROR(VLOOKUP($B$3,'Data Current Rates'!$A:$BA,MATCH(BI_R1_Typical!$A25,CurrentHeader,0),FALSE)),0,VLOOKUP($B$3,'Data Current Rates'!$A:$BA,MATCH(BI_R1_Typical!$A25,CurrentHeader,0),FALSE)) -> -0.0008 | D25: -0.6 | E25: =IF($B$9="kWh",$B$4,$B$5) -> 750 | F25: =VLOOKUP($B$3,'Data Proposed Rates'!$A:$BA,MATCH(BI_R1_Typical!$A25,ProposedHeader,0),FALSE) -> -0.0008 | G25: -0.6 | H25: 0 | I25: 0 | J25: -0.004910496382 | K25: -0.004834329054
A26: Volumetric ESM Rider | E26: 750 | F26: =VLOOKUP($B$3,'Data Proposed Rates'!$A:$BA,MATCH(BI_R1_Typical!$A26,ProposedHeader,0),FALSE) -> 0 | G26: 0 | H26: 0 | I26: N/A | J26: 0 | K26: 0
A27: Fair Hydro Plan - Distribution Rate Protection Savings* | D27: =IF(AND(B3<>"R1",B3<>"R2"),0,IF(VLOOKUP($A27,'Data Pass Through'!$A:$D,2,FALSE)=0,0,IF(SUM(D19:D20,D23:D24)<VLOOKUP($A27,'Data Pass Through'!$A:$D,2,FALSE),0,VLOOKUP($A27,'Data Pass Through'!$A:$D,2,FALSE)-SUM(D19:D20,D23:D24)))) -> -22.735 | G27: =IF(AND(B3<>"R1",B3<>"R2"),0,IF(VLOOKUP($A27,'Data Pass Through'!$A:$D,2,FALSE)=0,0,IF(SUM(G19:G20,G23:G24)<VLOOKUP($A27,'Data Pass Through'!$A:$D,2,FALSE),0,VLOOKUP($A27,'Data Pass Through'!$A:$D,2,FALSE)-SUM(G19:G20,G23:G24)))) -> -22.755 | H27: -0.02 | I27: -0.0008797009017 | J27: -0.1862305753 | K27: -0.1833419294
A28: Sub-Total: Distribution (excluding pass through) | D28: =SUM(INDIRECT("D19:D"&ROW()-1)) -> 36.3 | G28: =SUM(INDIRECT("g19:g"&ROW()-1)) -> 35.27 | H28: =G28-D28 -> -1.03 | I28: -0.02837465565 | J28: 0.2886553457 | K28: 0.2841779762
A29: Smart Metering Entity Charge | B29: 1 | C29: =VLOOKUP($A29,'Data Pass Through'!$A:$D,2,FALSE) -> 0.57 | D29: =B29*C29 -> 0.57 | E29: 1 | F29: =VLOOKUP($A29,'Data Pass Through'!$A:$D,3,FALSE) -> 0.57 | G29: =E29*F29 -> 0.57 | H29: 0 | I29: 0 | J29: 0.004664971563 | K29: 0.004592612601
A30: Line Losses on Cost of Power (based on two-tier RPP prices) | B30: =B8-B4 -> 57 | C30: =IF(B4>B7,C13,C12) -> 0.089 | D30: =B30*C30 -> 5.073 | E30: 57 | F30: =IF(B4>B7,F13,F12) -> 0.089 | G30: =E30*F30 -> 5.073 | H30: 0 | I30: 0 | J30: 0.04151824691 | K30: 0.04087425215
A31: Line Losses on Cost of Power (based on TOU prices) | B31: =B8-B4 -> 57 | C31: =VLOOKUP($B$3,'Data Billing Quantities'!$A:$O,MATCH(BI_R1_Typical!$A15,'Data Billing Quantities'!$4:$4,0),FALSE)*C15+VLOOKUP($B$3,'Data Billing Quantities'!$A:$O,MATCH(BI_R1_Typical!$A16,'Data Billing Quantities'!$4:$4,0),FALSE)*C16+VLOOKUP($B$3,'Data Billing Quantities'!$A:$O,MATCH(BI_R1_Typical!$A17,'Data Billing Quantities'!$4:$4,0),FALSE)*C17 -> 0.08235 | D31: =B31*C31 -> 4.69395 | E31: 57 | F31: =VLOOKUP($B$3,'Data Billing Quantities'!$A:$O,MATCH(BI_R1_Typical!$A15,'Data Billing Quantities'!$4:$4,0),FALSE)*F15+VLOOKUP($B$3,'Data Billing Quantities'!$A:$O,MATCH(BI_R1_Typical!$A16,'Data Billing Quantities'!$4:$4,0),FALSE)*F16+VLOOKUP($B$3,'Data Billing Quantities'!$A:$O,MATCH(BI_R1_Typical!$A17,'Data Billing Quantities'!$4:$4,0),FALSE)*F17 -> 0.08235 | G31: =E31*F31 -> 4.69395 | H31: 0 | I31: 0 | J31: 0.03841604082 | K31: 0.03782016477
A32: Sub-Total: Distribution (based on two-tier RPP prices) | D32: =SUM(D28,D29:D30) -> 41.943 | G32: =SUM(G28,G29:G30) -> 40.913 | H32: -1.03 | I32: -0.02455713707 | J32: 0.3348385642 | K32: 0.329644841
A33: Sub-Total: Distribution (based on TOU prices) | D33: =SUM(D28,D29,D31) -> 41.56395 | G33: =SUM(G28,G29,G31) -> 40.53395 | H33: -1.03 | I33: -0.02478109034 | J33: 0.3317363581 | K33: 0.3265907536
A34: Retail Transmission Rate – Network Service Rate | B34: =B8 -> 807 | C34: =VLOOKUP($B$3,'Data Current Rates'!$A:$BA,MATCH(BI_R1_Typical!$A34,CurrentHeader,0),FALSE) -> 0.008 | D34: =B34*C34 -> 6.456 | E34: 807 | F34: =VLOOKUP($B$3,'Data Proposed Rates'!$A:$BA,MATCH(BI_R1_Typical!$A34,ProposedHeader,0),FALSE) -> 0.0082 | G34: =E34*F34 -> 6.6174 | H34: =G34-D34 -> 0.1614 | I34: 0.025 | J34: 0.0541578646 | K34: 0.05331781514
A35: Retail Transmission Rate – Line and Transformation Connection Service Rate | B35: =B8 -> 807 | C35: =VLOOKUP($B$3,'Data Current Rates'!$A:$BA,MATCH(BI_R1_Typical!$A35,CurrentHeader,0),FALSE) -> 0.0072 | D35: =B35*C35 -> 5.8104 | E35: 807 | F35: =VLOOKUP($B$3,'Data Proposed Rates'!$A:$BA,MATCH(BI_R1_Typical!$A35,ProposedHeader,0),FALSE) -> 0.0073 | G35: =E35*F35 -> 5.8911 | H35: =G35-D35 -> 0.0807 | I35: 0.01388888889 | J35: 0.04821370873 | K35: 0.04746585982
A36: Sub-Total: Retail Transmission | D36: =SUM(D34:D35) -> 12.2664 | G36: =SUM(G34:G35) -> 12.5085 | H36: =G36-D36 -> 0.2421 | I36: 0.01973684211 | J36: 0.1023715733 | K36: 0.100783675
A37: Sub-Total: Delivery (based on two-tier RPP prices) | D37: =D32+D36 -> 54.2094 | G37: =G32+G36 -> 53.4215 | H37: =G37-D37 -> -0.7879 | I37: -0.01453437965 | J37: 0.4372101375 | K37: 0.4304285159
A38: Sub-Total: Delivery (based on TOU prices) | D38: =D33+D36 -> 53.83035 | G38: =G33+G36 -> 53.04245 | H38: =G38-D38 -> -0.7879 | I38: -0.01463672445 | J38: 0.4341079314 | K38: 0.4273744286
A39: Wholesale Market Service Rate (WMS) - not including CBR | B39: =B8 -> 807 | C39: =VLOOKUP($A39,'Data Pass Through'!$A:$D,2,FALSE) -> 0.003 | D39: =B39*C39 -> 2.421 | E39: =$B$8 -> 807 | F39: =VLOOKUP($A39,'Data Pass Through'!$A:$D,3,FALSE) -> 0.003 | G39: =E39*F39 -> 2.421 | H39: 0 | I39: 0 | J39: 0.0198138529 | K39: 0.01950651773
A40: Capacity Based Recovery (CBR) - Applicable for Class B Customers | B40: =B8 -> 807 | C40: =VLOOKUP($A40,'Data Pass Through'!$A:$D,2,FALSE) -> 0.0004 | D40: =B40*C40 -> 0.3228 | E40: =$B$8 -> 807 | F40: =VLOOKUP($A40,'Data Pass Through'!$A:$D,3,FALSE) -> 0.0004 | G40: =E40*F40 -> 0.3228 | H40: 0 | I40: 0 | J40: 0.002641847054 | K40: 0.002600869031
A41: Rural Rate Protection Charge | B41: =B8 -> 807 | C41: =VLOOKUP($A41,'Data Pass Through'!$A:$D,2,FALSE) -> 0.0005 | D41: 0.4035 | E41: 807 | F41: =VLOOKUP($A41,'Data Pass Through'!$A:$D,3,FALSE) -> 0.0005 | G41: 0.4035 | H41: 0 | I41: 0 | J41: 0.003302308817 | K41: 0.003251086289
A42: Standard Supply Service – Administration Charge (if applicable) | B42: 1 | C42: =VLOOKUP($A42,'Data Pass Through'!$A:$D,2,FALSE) -> 0.25 | D42: =B42*C42 -> 0.25 | E42: 1 | F42: =VLOOKUP($A42,'Data Pass Through'!$A:$D,3,FALSE) -> 0.25 | G42: 0.25 | H42: 0 | I42: 0 | J42: 0.002046040159 | K42: 0.002014303773
A43: Sub-Total: Regulatory | D43: =SUM(D39:D42) -> 3.3973 | G43: =SUM(G39:G42) -> 3.3973 | H43: 0 | I43: 0 | J43: 0.02780404893 | K43: 0.02737277683
A44: Debt Retirement Charge (DRC) | B44: =B4 -> 750 | C44: =VLOOKUP($A44,'Data Pass Through'!$A:$D,2,FALSE) -> 0 | D44: =B44*C44 -> 0 | E44: 750 | F44: =VLOOKUP($A44,'Data Pass Through'!$A:$D,3,FALSE) -> 0 | G44: =E44*F44 -> 0 | H44: 0 | I44: N/A | J44: 0 | K44: 0
A45: Total Electricty Charge on Two-Tier RPP | D45: =SUM(D14,D28,D29,D30,D36,D43,D44) -> 117.1567 | G45: =SUM(G14,G28,G29,G30,G36,G43,G44) -> 116.3688 | H45: -0.7879 | I45: -0.00672518089 | J45: 0.9523809524
A46: HST | C46: 0.13 | D46: =D45*C46 -> 15.230371 | F46: =C46 -> 0.13 | G46: =G45*F46 -> 15.127944 | H46: -0.102427 | I46: -0.00672518089 | J46: 0.1238095238
A47: Total Electricity Charge on Two-Tier RPP (including HST) | D47: =SUM(D45:D46) -> 132.387071 | G47: =SUM(G45:G46) -> 131.496744 | H47: -0.890327 | I47: -0.00672518089 | J47: 1.076190476
A48: Ontario Rebate for Electricity Consumers (OREC) | C48: -0.08 | D48: =D45*C48 -> -9.372536 | F48: =C48 -> -0.08 | G48: =G45*F48 -> -9.309504 | H48: 0.063032 | I48: 0.00672518089 | J48: -0.07619047619
A49: Total Amount on Two-Tier RPP | D49: =SUM(D47:D48) -> 123.014535 | G49: =SUM(G47:G48) -> 122.18724 | H49: -0.827295 | I49: -0.00672518089 | J49: 1
A50: Total Electricty Charge on TOU (before HST) | D50: =SUM(D18,D28,D29,D31,D36,D43,D44) -> 118.99015 | G50: =SUM(G18,G28,G29,G31,G36,G43,G44) -> 118.20225 | H50: -0.7879 | I50: -0.00662155649 | K50: =G50/$G$54 -> 0.9523809524
A51: HST | C51: 0.13 | D51: =D50*C51 -> 15.4687195 | F51: =C51 -> 0.13 | G51: =G50*F51 -> 15.3662925 | H51: -0.102427 | I51: -0.00662155649 | K51: =G51/$G$54 -> 0.1238095238
A52: Total Electricity Charge on TOU (including HST) | D52: =SUM(D50:D51) -> 134.4588695 | G52: =SUM(G50:G51) -> 133.5685425 | H52: -0.890327 | I52: -0.00662155649 | K52: =G52/$G$54 -> 1.076190476
A53: Ontario Rebate for Electricity Consumers (OREC) | C53: -0.08 | D53: =D50*C53 -> -9.519212 | F53: =C53 -> -0.08 | G53: =G50*F53 -> -9.45618 | H53: 0.063032 | I53: 0.00662155649 | K53: =G53/$G$54 -> -0.07619047619
A54: Total Amount on TOU | D54: =SUM(D52:D53) -> 124.9396575 | G54: =SUM(G52:G53) -> 124.1123625 | H54: -0.827295 | I54: -0.00662155649 | K54: =G54/$G$54 -> 1
A55: * Distribution rate protection applies to R1 and R2 customers

Sheet BI_R1_Avg
A1: 2021 Bill Impacts (Average Consumption Level) - R1
A3: Rate Class | B3: =RIGHT(A1,LEN(A1)-FIND("- ",A1,1)-1) -> R1
A4: Monthly Consumption (kWh) | B4: =IF(COUNTIF(A1,"*Low*")>0,VLOOKUP(B3,'Data Billing Quantities'!$A:$Z,MATCH("Low kWh",'Data Billing Quantities'!4:4,0),FALSE),IF(COUNTIF(A1,"*Typical*")>0,VLOOKUP(B3,'Data Billing Quantities'!$A:$Z,MATCH("Typical kWh",'Data Billing Quantities'!4:4,0),FALSE),IF(COUNTIF(A1,"*Average*")>0,VLOOKUP(B3,'Data Billing Quantities'!$A:$Z,MATCH("Average kWh",'Data Billing Quantities'!4:4,0),FALSE),IF(COUNTIF(A1,"*High*")>0,VLOOKUP(B3,'Data Billing Quantities'!$A:$Z,MATCH("High kWh",'Data Billing Quantities'!4:4,0),FALSE),"error")))) -> 920
A5: Peak (kW) | B5: =IF(COUNTIF(A1,"*Low*")>0,VLOOKUP(B3,'Data Billing Quantities'!$A:$Z,MATCH("Low kW",'Data Billing Quantities'!4:4,0),FALSE),IF(COUNTIF(A1,"*Typical*")>0,VLOOKUP(B3,'Data Billing Quantities'!$A:$Z,MATCH("Typical kW",'Data Billing Quantities'!4:4,0),FALSE),IF(COUNTIF(A1,"*Average*")>0,VLOOKUP(B3,'Data Billing Quantities'!$A:$Z,MATCH("Average kW",'Data Billing Quantities'!4:4,0),FALSE),IF(COUNTIF(A1,"*High*")>0,VLOOKUP(B3,'Data Billing Quantities'!$A:$Z,MATCH("High kW",'Data Billing Quantities'!4:4,0),FALSE),"error")))) -> 0
A6: Loss factor | B6: =VLOOKUP(B3,'Data Billing Quantities'!A:D,MATCH(A6,'Data Billing Quantities'!4:4,0),FALSE) -> 1.076
A7: Commodity Threshold | B7: =VLOOKUP(B3,'Data Billing Quantities'!A:D,MATCH(A7,'Data Billing Quantities'!4:4,0),FALSE) -> 600
A8: Monthly Consumption (kWh) - Uplifted | B8: =B4*B6 -> 989.92
A9: Charge determinant | B9: =VLOOKUP(B3,'Data Billing Quantities'!A:D,MATCH(A9,'Data Billing Quantities'!4:4,0),FALSE) -> kWh
B11: Volume | C11: Current Rate ($) | D11: Current Charge ($) | E11: Volume | F11: Proposed Rate ($) | G11: Proposed Charge ($) | H11: Change ($) | I11: Change (%) | J11: % of Total Bill on RPP | K11: % of Total Bill on TOU
A12: Energy First Tier | B12: =IF(B4>B7,B7,B4) -> 600 | C12: =VLOOKUP($A12,'Data Pass Through'!$A:$D,2,FALSE) -> 0.077 | D12: =B12*C12 -> 46.2 | E12: =B12 -> 600 | F12: =VLOOKUP($A12,'Data Pass Through'!$A:$D,3,FALSE) -> 0.077 | G12: =E12*F12 -> 46.2 | H12: =G12-D12 -> 0 | I12: =IF(ISERROR(H12/ABS(D12)),"N/A",(H12/ABS(D12))) -> 0 | J12: =G12/$G$49 -> 0.3233835848
A13: Energy Second Tier | B13: =IF(B4>B7,(B4)-B7,0) -> 320 | C13: =VLOOKUP($A13,'Data Pass Through'!$A:$D,2,FALSE) -> 0.089 | D13: =B13*C13 -> 28.48 | E13: =B13 -> 320 | F13: =VLOOKUP($A13,'Data Pass Through'!$A:$D,3,FALSE) -> 0.089 | G13: =E13*F13 -> 28.48 | H13: 0 | I13: 0 | J13: =G13/$G$49 -> 0.1993498808
A14: Sub-Total: Energy (RPP Tiered) | D14: =SUM(D12:D13) -> 74.68 | G14: =SUM(G12:G13) -> 74.68 | H14: 0 | I14: 0 | J14: =G14/$G$49 -> 0.5227334656
A15: TOU-Off Peak | B15: =B$4*VLOOKUP($B$3,'Data Billing Quantities'!$A:$O,MATCH(BI_R1_Avg!$A15,'Data Billing Quantities'!$4:$4,0),FALSE) -> 598 | C15: =VLOOKUP($A15,'Data Pass Through'!$A:$D,2,FALSE) -> 0.065 | D15: =B15*C15 -> 38.87 | E15: 598 | F15: =VLOOKUP($A15,'Data Pass Through'!$A:$D,3,FALSE) -> 0.065 | G15: =E15*F15 -> 38.87 | H15: 0 | I15: 0 | K15: =G15/$G$54 -> 0.2708479061
A16: TOU-Mid Peak | B16: =B$4*VLOOKUP($B$3,'Data Billing Quantities'!$A:$O,MATCH(BI_R1_Avg!$A16,'Data Billing Quantities'!$4:$4,0),FALSE) -> 156.4 | C16: =VLOOKUP($A16,'Data Pass Through'!$A:$D,2,FALSE) -> 0.094 | D16: =B16*C16 -> 14.7016 | E16: 156.4 | F16: =VLOOKUP($A16,'Data Pass Through'!$A:$D,3,FALSE) -> 0.094 | G16: =E16*F16 -> 14.7016 | H16: 0 | I16: 0 | K16: 0.1024414092
A17: TOU-On Peak | B17: =B$4*VLOOKUP($B$3,'Data Billing Quantities'!$A:$O,MATCH(BI_R1_Avg!$A17,'Data Billing Quantities'!$4:$4,0),FALSE) -> 165.6 | C17: =VLOOKUP($A17,'Data Pass Through'!$A:$D,2,FALSE) -> 0.134 | D17: =B17*C17 -> 22.1904 | E17: 165.6 | F17: =VLOOKUP($A17,'Data Pass Through'!$A:$D,3,FALSE) -> 0.134 | G17: =E17*F17 -> 22.1904 | H17: 0 | I17: 0 | K17: 0.154623704
A18: Sub-Total: Energy (RPP TOU) | D18: =SUM(D15:D17) -> 75.762 | G18: =SUM(G15:G17) -> 75.762 | H18: 0 | I18: 0 | J18: =G18/$G$49 -> 0.5303070812 | K18: 0.5279130194
A19: Service Charge | B19: 1 | C19: =IF(ISERROR(VLOOKUP($B$3,'Data Current Rates'!$A:$BA,MATCH(BI_R1_Avg!$A19,CurrentHeader,0),FALSE)),0,VLOOKUP($B$3,'Data Current Rates'!$A:$BA,MATCH(BI_R1_Avg!$A19,CurrentHeader,0),FALSE)) -> 43.58 | D19: =B19*C19 -> 43.58 | E19: 1 | F19: =VLOOKUP($B$3,'Data Proposed Rates'!$A:$BA,MATCH(BI_R1_Avg!$A19,ProposedHeader,0),FALSE) -> 49.04 | G19: =E19*F19 -> 49.04 | H19: 5.46 | I19: 0.1252868288 | J19: 0.3432625757 | K19: 0.341712923
A20: Fixed Foregone Revenue Charge | B20: 1 | C20: =IF(ISERROR(VLOOKUP($B$3,'Data Current Rates'!$A:$BA,MATCH(BI_R1_Avg!$A20,CurrentHeader,0),FALSE)),0,VLOOKUP($B$3,'Data Current Rates'!$A:$BA,MATCH(BI_R1_Avg!$A20,CurrentHeader,0),FALSE)) -> 1.69 | D20: 1.69 | H20: -1.69 | I20: -1 | J20: 0 | K20: 0
A21: Fixed Deferral/Variance Account Rider (General) | B21: 1 | C21: =IF(ISERROR(VLOOKUP($B$3,'Data Current Rates'!$A:$BA,MATCH(BI_R1_Avg!$A21,CurrentHeader,0),FALSE)),0,VLOOKUP($B$3,'Data Current Rates'!$A:$BA,MATCH(BI_R1_Avg!$A21,CurrentHeader,0),FALSE)) -> 0.04 | D21: 0.04 | E21: 1 | F21: =VLOOKUP($B$3,'Data Proposed Rates'!$A:$BA,MATCH(BI_R1_Avg!$A21,ProposedHeader,0),FALSE) -> -0.14 | G21: -0.14 | H21: -0.18 | I21: -4.5 | J21: -0.0009799502569 | K21: -0.0009755262891
A22: Fixed ESM Rider | E22: 1 | F22: =VLOOKUP($B$3,'Data Proposed Rates'!$A:$BA,MATCH(BI_R1_Avg!$A22,ProposedHeader,0),FALSE) -> -0.85 | G22: -0.85 | H22: -0.85 | I22: N/A | J22: -0.005949697989 | K22: -0.005922838184
A23: Distribution Volumetric Charge | B23: =IF($B$9="kWh",$B$4,$B$5) -> 920 | C23: =IF(ISERROR(VLOOKUP($B$3,'Data Current Rates'!$A:$BA,MATCH(BI_R1_Avg!$A23,CurrentHeader,0),FALSE)),0,VLOOKUP($B$3,'Data Current Rates'!$A:$BA,MATCH(BI_R1_Avg!$A23,CurrentHeader,0),FALSE)) -> 0.0182 | D23: 16.744 | E23: =IF($B$9="kWh",$B$4,$B$5) -> 920 | F23: =VLOOKUP($B$3,'Data Proposed Rates'!$A:$BA,MATCH(BI_R1_Avg!$A23,ProposedHeader,0),FALSE) -> 0.0141 | G23: 12.972 | H23: -3.772 | I23: -0.2252747253 | J23: 0.09079939095 | K23: 0.09038947873
A24: Volumetric Foregone Revenue Charge | B24: =IF($B$9="kWh",$B$4,$B$5) -> 920 | C24: =IF(ISERROR(VLOOKUP($B$3,'Data Current Rates'!$A:$BA,MATCH(BI_R1_Avg!$A24,CurrentHeader,0),FALSE)),0,VLOOKUP($B$3,'Data Current Rates'!$A:$BA,MATCH(BI_R1_Avg!$A24,CurrentHeader,0),FALSE)) -> 0.0009 | D24: 0.828 | H24: -0.828 | I24: -1 | J24: 0 | K24: 0
A25: Volumetric Deferral/Variance Account Rider (General) | B25: =IF($B$9="kWh",$B$4,$B$5) -> 920 | C25: =IF(ISERROR(VLOOKUP($B$3,'Data Current Rates'!$A:$BA,MATCH(BI_R1_Avg!$A25,CurrentHeader,0),FALSE)),0,VLOOKUP($B$3,'Data Current Rates'!$A:$BA,MATCH(BI_R1_Avg!$A25,CurrentHeader,0),FALSE)) -> -0.0008 | D25: -0.736 | E25: =IF($B$9="kWh",$B$4,$B$5) -> 920 | F25: =VLOOKUP($B$3,'Data Proposed Rates'!$A:$BA,MATCH(BI_R1_Avg!$A25,ProposedHeader,0),FALSE) -> -0.0008 | G25: -0.736 | H25: 0 | I25: 0 | J25: -0.005151738494 | K25: -0.005128481063
A26: Volumetric ESM Rider | E26: 920 | F26: =VLOOKUP($B$3,'Data Proposed Rates'!$A:$BA,MATCH(BI_R1_Avg!$A26,ProposedHeader,0),FALSE) -> 0 | G26: 0 | H26: 0 | I26: N/A | J26: 0 | K26: 0
A27: Fair Hydro Plan - Distribution Rate Protection Savings* | D27: =IF(AND(B3<>"R1",B3<>"R2"),0,IF(VLOOKUP($A27,'Data Pass Through'!$A:$D,2,FALSE)=0,0,IF(SUM(D19:D20,D23:D24)<VLOOKUP($A27,'Data Pass Through'!$A:$D,2,FALSE),0,VLOOKUP($A27,'Data Pass Through'!$A:$D,2,FALSE)-SUM(D19:D20,D23:D24)))) -> -25.982 | G27: =IF(AND(B3<>"R1",B3<>"R2"),0,IF(VLOOKUP($A27,'Data Pass Through'!$A:$D,2,FALSE)=0,0,IF(SUM(G19:G20,G23:G24)<VLOOKUP($A27,'Data Pass Through'!$A:$D,2,FALSE),0,VLOOKUP($A27,'Data Pass Through'!$A:$D,2,FALSE)-SUM(G19:G20,G23:G24)))) -> -25.152 | H27: 0.83 | I27: 0.03194519283 | J27: -0.1760550633 | K27: -0.1752602659
A28: Sub-Total: Distribution (excluding pass through) | D28: =SUM(INDIRECT("D19:D"&ROW()-1)) -> 36.164 | G28: =SUM(INDIRECT("g19:g"&ROW()-1)) -> 35.134 | H28: =G28-D28 -> -1.03 | I28: -0.02848136268 | J28: 0.2459255166 | K28: 0.2448152903
A29: Smart Metering Entity Charge | B29: 1 | C29: =VLOOKUP($A29,'Data Pass Through'!$A:$D,2,FALSE) -> 0.57 | D29: =B29*C29 -> 0.57 | E29: 1 | F29: =VLOOKUP($A29,'Data Pass Through'!$A:$D,3,FALSE) -> 0.57 | G29: =E29*F29 -> 0.57 | H29: 0 | I29: 0 | J29: 0.003989797475 | K29: 0.003971785606
A30: Line Losses on Cost of Power (based on two-tier RPP prices) | B30: =B8-B4 -> 69.92 | C30: =IF(B4>B7,C13,C12) -> 0.089 | D30: =B30*C30 -> 6.22288 | E30: 69.92 | F30: =IF(B4>B7,F13,F12) -> 0.089 | G30: =E30*F30 -> 6.22288 | H30: 0 | I30: 0 | J30: 0.04355794896 | K30: 0.04336130739
A31: Line Losses on Cost of Power (based on TOU prices) | B31: =B8-B4 -> 69.92 | C31: =VLOOKUP($B$3,'Data Billing Quantities'!$A:$O,MATCH(BI_R1_Avg!$A15,'Data Billing Quantities'!$4:$4,0),FALSE)*C15+VLOOKUP($B$3,'Data Billing Quantities'!$A:$O,MATCH(BI_R1_Avg!$A16,'Data Billing Quantities'!$4:$4,0),FALSE)*C16+VLOOKUP($B$3,'Data Billing Quantities'!$A:$O,MATCH(BI_R1_Avg!$A17,'Data Billing Quantities'!$4:$4,0),FALSE)*C17 -> 0.08235 | D31: =B31*C31 -> 5.757912 | E31: 69.92 | F31: =VLOOKUP($B$3,'Data Billing Quantities'!$A:$O,MATCH(BI_R1_Avg!$A15,'Data Billing Quantities'!$4:$4,0),FALSE)*F15+VLOOKUP($B$3,'Data Billing Quantities'!$A:$O,MATCH(BI_R1_Avg!$A16,'Data Billing Quantities'!$4:$4,0),FALSE)*F16+VLOOKUP($B$3,'Data Billing Quantities'!$A:$O,MATCH(BI_R1_Avg!$A17,'Data Billing Quantities'!$4:$4,0),FALSE)*F17 -> 0.08235 | G31: =E31*F31 -> 5.757912 | H31: 0 | I31: 0 | J31: 0.04030333817 | K31: 0.04012138947
A32: Sub-Total: Distribution (based on two-tier RPP prices) | D32: =SUM(D28,D29:D30) -> 42.95688 | G32: =SUM(G28,G29:G30) -> 41.92688 | H32: -1.03 | I32: -0.02397753282 | J32: 0.2934732631 | K32: 0.2921483833
A33: Sub-Total: Distribution (based on TOU prices) | D33: =SUM(D28,D29,D31) -> 42.491912 | G33: =SUM(G28,G29,G31) -> 41.461912 | H33: -1.03 | I33: -0.02423990711 | J33: 0.2902186523 | K33: 0.2889084654
A34: Retail Transmission Rate – Network Service Rate | B34: =B8 -> 989.92 | C34: =VLOOKUP($B$3,'Data Current Rates'!$A:$BA,MATCH(BI_R1_Avg!$A34,CurrentHeader,0),FALSE) -> 0.008 | D34: =B34*C34 -> 7.91936 | E34: 989.92 | F34: =VLOOKUP($B$3,'Data Proposed Rates'!$A:$BA,MATCH(BI_R1_Avg!$A34,ProposedHeader,0),FALSE) -> 0.0082 | G34: =E34*F34 -> 8.117344 | H34: =G34-D34 -> 0.197984 | I34: 0.025 | J34: 0.05681852385 | K34: 0.05656201764
A35: Retail Transmission Rate – Line and Transformation Connection Service Rate | B35: =B8 -> 989.92 | C35: =VLOOKUP($B$3,'Data Current Rates'!$A:$BA,MATCH(BI_R1_Avg!$A35,CurrentHeader,0),FALSE) -> 0.0072 | D35: =B35*C35 -> 7.127424 | E35: 989.92 | F35: =VLOOKUP($B$3,'Data Proposed Rates'!$A:$BA,MATCH(BI_R1_Avg!$A35,ProposedHeader,0),FALSE) -> 0.0073 | G35: =E35*F35 -> 7.226416 | H35: =G35-D35 -> 0.098992 | I35: 0.01388888889 | J35: 0.0505823444 | K35: 0.05035399131
A36: Sub-Total: Retail Transmission | D36: =SUM(D34:D35) -> 15.046784 | G36: =SUM(G34:G35) -> 15.34376 | H36: =G36-D36 -> 0.296976 | I36: 0.01973684211 | J36: 0.1074008682 | K36: 0.106916009
A37: Sub-Total: Delivery (based on two-tier RPP prices) | D37: =D32+D36 -> 58.003664 | G37: =G32+G36 -> 57.27064 | H37: =G37-D37 -> -0.733024 | I37: -0.01263754648 | J37: 0.4008741313 | K37: 0.3990643922
A38: Sub-Total: Delivery (based on TOU prices) | D38: =D33+D36 -> 57.538696 | G38: =G33+G36 -> 56.805672 | H38: =G38-D38 -> -0.733024 | I38: -0.01273967001 | J38: 0.3976195205 | K38: 0.3958244743
A39: Wholesale Market Service Rate (WMS) - not including CBR | B39: =B8 -> 989.92 | C39: =VLOOKUP($A39,'Data Pass Through'!$A:$D,2,FALSE) -> 0.003 | D39: =B39*C39 -> 2.96976 | E39: =$B$8 -> 989.92 | F39: =VLOOKUP($A39,'Data Pass Through'!$A:$D,3,FALSE) -> 0.003 | G39: =E39*F39 -> 2.96976 | H39: 0 | I39: 0 | J39: 0.02078726482 | K39: 0.02069342109
A40: Capacity Based Recovery (CBR) - Applicable for Class B Customers | B40: =B8 -> 989.92 | C40: =VLOOKUP($A40,'Data Pass Through'!$A:$D,2,FALSE) -> 0.0004 | D40: =B40*C40 -> 0.395968 | E40: =$B$8 -> 989.92 | F40: =VLOOKUP($A40,'Data Pass Through'!$A:$D,3,FALSE) -> 0.0004 | G40: =E40*F40 -> 0.395968 | H40: 0 | I40: 0 | J40: 0.00277163531 | K40: 0.002759122812
A41: Rural Rate Protection Charge | B41: =B8 -> 989.92 | C41: =VLOOKUP($A41,'Data Pass Through'!$A:$D,2,FALSE) -> 0.0005 | D41: 0.49496 | E41: 989.92 | F41: =VLOOKUP($A41,'Data Pass Through'!$A:$D,3,FALSE) -> 0.0005 | G41: 0.49496 | H41: 0 | I41: 0 | J41: 0.003464544137 | K41: 0.003448903515
A42: Standard Supply Service – Administration Charge (if applicable) | B42: 1 | C42: =VLOOKUP($A42,'Data Pass Through'!$A:$D,2,FALSE) -> 0.25 | D42: =B42*C42 -> 0.25 | E42: 1 | F42: =VLOOKUP($A42,'Data Pass Through'!$A:$D,3,FALSE) -> 0.25 | G42: 0.25 | H42: 0 | I42: 0 | J42: 0.001749911173 | K42: 0.001742011231
A43: Sub-Total: Regulatory | D43: =SUM(D39:D42) -> 4.110688 | G43: =SUM(G39:G42) -> 4.110688 | H43: 0 | I43: 0 | J43: 0.02877335544 | K43: 0.02864345865
A44: Debt Retirement Charge (DRC) | B44: =B4 -> 920 | C44: =VLOOKUP($A44,'Data Pass Through'!$A:$D,2,FALSE) -> 0 | D44: =B44*C44 -> 0 | E44: 920 | F44: =VLOOKUP($A44,'Data Pass Through'!$A:$D,3,FALSE) -> 0 | G44: =E44*F44 -> 0 | H44: 0 | I44: N/A | J44: 0 | K44: 0
A45: Total Electricty Charge on Two-Tier RPP | D45: =SUM(D14,D28,D29,D30,D36,D43,D44) -> 136.794352 | G45: =SUM(G14,G28,G29,G30,G36,G43,G44) -> 136.061328 | H45: -0.733024 | I45: -0.005358583811 | J45: 0.9523809524
A46: HST | C46: 0.13 | D46: =D45*C46 -> 17.78326576 | F46: =C46 -> 0.13 | G46: =G45*F46 -> 17.68797264 | H46: -0.09529312 | I46: -0.005358583811 | J46: 0.1238095238
A47: Total Electricity Charge on Two-Tier RPP (including HST) | D47: =SUM(D45:D46) -> 154.5776178 | G47: =SUM(G45:G46) -> 153.7493006 | H47: -0.82831712 | I47: -0.005358583811 | J47: 1.076190476
A48: Ontario Rebate for Electricity Consumers (OREC) | C48: -0.08 | D48: =D45*C48 -> -10.94354816 | F48: =C48 -> -0.08 | G48: =G45*F48 -> -10.88490624 | H48: 0.05864192 | I48: 0.005358583811 | J48: -0.07619047619
A49: Total Amount on Two-Tier RPP | D49: =SUM(D47:D48) -> 143.6340696 | G49: =SUM(G47:G48) -> 142.8643944 | H49: -0.7696752 | I49: -0.005358583811 | J49: 1
A50: Total Electricty Charge on TOU (before HST) | D50: =SUM(D18,D28,D29,D31,D36,D43,D44) -> 137.411384 | G50: =SUM(G18,G28,G29,G31,G36,G43,G44) -> 136.67836 | H50: -0.733024 | I50: -0.005334521629 | K50: =G50/$G$54 -> 0.9523809524
A51: HST | C51: 0.13 | D51: =D50*C51 -> 17.86347992 | F51: =C51 -> 0.13 | G51: =G50*F51 -> 17.7681868 | H51: -0.09529312 | I51: -0.005334521629 | K51: =G51/$G$54 -> 0.1238095238
A52: Total Electricity Charge on TOU (including HST) | D52: =SUM(D50:D51) -> 155.2748639 | G52: =SUM(G50:G51) -> 154.4465468 | H52: -0.82831712 | I52: -0.005334521629 | K52: =G52/$G$54 -> 1.076190476
A53: Ontario Rebate for Electricity Consumers (OREC) | C53: -0.08 | D53: =D50*C53 -> -10.99291072 | F53: =C53 -> -0.08 | G53: =G50*F53 -> -10.9342688 | H53: 0.05864192 | I53: 0.005334521629 | K53: =G53/$G$54 -> -0.07619047619
A54: Total Amount on TOU | D54: =SUM(D52:D53) -> 144.2819532 | G54: =SUM(G52:G53) -> 143.512278 | H54: -0.7696752 | I54: -0.005334521629 | K54: =G54/$G$54 -> 1
A55: * Distribution rate protection applies to R1 and R2 customers

Sheet BI_R1_High
A1: 2021 Bill Impacts (High Consumption Level) - R1
A3: Rate Class | B3: =RIGHT(A1,LEN(A1)-FIND("- ",A1,1)-1) -> R1
A4: Monthly Consumption (kWh) | B4: =IF(COUNTIF(A1,"*Low*")>0,VLOOKUP(B3,'Data Billing Quantities'!$A:$Z,MATCH("Low kWh",'Data Billing Quantities'!4:4,0),FALSE),IF(COUNTIF(A1,"*Typical*")>0,VLOOKUP(B3,'Data Billing Quantities'!$A:$Z,MATCH("Typical kWh",'Data Billing Quantities'!4:4,0),FALSE),IF(COUNTIF(A1,"*Average*")>0,VLOOKUP(B3,'Data Billing Quantities'!$A:$Z,MATCH("Average kWh",'Data Billing Quantities'!4:4,0),FALSE),IF(COUNTIF(A1,"*High*")>0,VLOOKUP(B3,'Data Billing Quantities'!$A:$Z,MATCH("High kWh",'Data Billing Quantities'!4:4,0),FALSE),"error")))) -> 1800
A5: Peak (kW) | B5: =IF(COUNTIF(A1,"*Low*")>0,VLOOKUP(B3,'Data Billing Quantities'!$A:$Z,MATCH("Low kW",'Data Billing Quantities'!4:4,0),FALSE),IF(COUNTIF(A1,"*Typical*")>0,VLOOKUP(B3,'Data Billing Quantities'!$A:$Z,MATCH("Typical kW",'Data Billing Quantities'!4:4,0),FALSE),IF(COUNTIF(A1,"*Average*")>0,VLOOKUP(B3,'Data Billing Quantities'!$A:$Z,MATCH("Average kW",'Data Billing Quantities'!4:4,0),FALSE),IF(COUNTIF(A1,"*High*")>0,VLOOKUP(B3,'Data Billing Quantities'!$A:$Z,MATCH("High kW",'Data Billing Quantities'!4:4,0),FALSE),"error")))) -> 0
A6: Loss factor | B6: =VLOOKUP(B3,'Data Billing Quantities'!A:D,MATCH(A6,'Data Billing Quantities'!4:4,0),FALSE) -> 1.076
A7: Commodity Threshold | B7: =VLOOKUP(B3,'Data Billing Quantities'!A:D,MATCH(A7,'Data Billing Quantities'!4:4,0),FALSE) -> 600
A8: Monthly Consumption (kWh) - Uplifted | B8: =B4*B6 -> 1936.8
A9: Charge determinant | B9: =VLOOKUP(B3,'Data Billing Quantities'!A:D,MATCH(A9,'Data Billing Quantities'!4:4,0),FALSE) -> kWh
B11: Volume | C11: Current Rate ($) | D11: Current Charge ($) | E11: Volume | F11: Proposed Rate ($) | G11: Proposed Charge ($) | H11: Change ($) | I11: Change (%) | J11: % of Total Bill on RPP | K11: % of Total Bill on TOU
A12: Energy First Tier | B12: =IF(B4>B7,B7,B4) -> 600 | C12: =VLOOKUP($A12,'Data Pass Through'!$A:$D,2,FALSE) -> 0.077 | D12: =B12*C12 -> 46.2 | E12: =B12 -> 600 | F12: =VLOOKUP($A12,'Data Pass Through'!$A:$D,3,FALSE) -> 0.077 | G12: =E12*F12 -> 46.2 | H12: =G12-D12 -> 0 | I12: =IF(ISERROR(H12/ABS(D12)),"N/A",(H12/ABS(D12))) -> 0 | J12: =G12/$G$49 -> 0.1848746331
A13: Energy Second Tier | B13: =IF(B4>B7,(B4)-B7,0) -> 1200 | C13: =VLOOKUP($A13,'Data Pass Through'!$A:$D,2,FALSE) -> 0.089 | D13: =B13*C13 -> 106.8 | E13: =B13 -> 1200 | F13: =VLOOKUP($A13,'Data Pass Through'!$A:$D,3,FALSE) -> 0.089 | G13: =E13*F13 -> 106.8 | H13: 0 | I13: 0 | J13: =G13/$G$49 -> 0.4273725286
A14: Sub-Total: Energy (RPP Tiered) | D14: =SUM(D12:D13) -> 153 | G14: =SUM(G12:G13) -> 153 | H14: 0 | I14: 0 | J14: =G14/$G$49 -> 0.6122471617
A15: TOU-Off Peak | B15: =B$4*VLOOKUP($B$3,'Data Billing Quantities'!$A:$O,MATCH(BI_R1_High!$A15,'Data Billing Quantities'!$4:$4,0),FALSE) -> 1170 | C15: =VLOOKUP($A15,'Data Pass Through'!$A:$D,2,FALSE) -> 0.065 | D15: =B15*C15 -> 76.05 | E15: 1170 | F15: =VLOOKUP($A15,'Data Pass Through'!$A:$D,3,FALSE) -> 0.065 | G15: =E15*F15 -> 76.05 | H15: 0 | I15: 0 | K15: =G15/$G$54 -> 0.3117629067
A16: TOU-Mid Peak | B16: =B$4*VLOOKUP($B$3,'Data Billing Quantities'!$A:$O,MATCH(BI_R1_High!$A16,'Data Billing Quantities'!$4:$4,0),FALSE) -> 306 | C16: =VLOOKUP($A16,'Data Pass Through'!$A:$D,2,FALSE) -> 0.094 | D16: =B16*C16 -> 28.764 | E16: 306 | F16: =VLOOKUP($A16,'Data Pass Through'!$A:$D,3,FALSE) -> 0.094 | G16: =E16*F16 -> 28.764 | H16: 0 | I16: 0 | K16: 0.1179164793
A17: TOU-On Peak | B17: =B$4*VLOOKUP($B$3,'Data Billing Quantities'!$A:$O,MATCH(BI_R1_High!$A17,'Data Billing Quantities'!$4:$4,0),FALSE) -> 324 | C17: =VLOOKUP($A17,'Data Pass Through'!$A:$D,2,FALSE) -> 0.134 | D17: =B17*C17 -> 43.416 | E17: 324 | F17: =VLOOKUP($A17,'Data Pass Through'!$A:$D,3,FALSE) -> 0.134 | G17: =E17*F17 -> 43.416 | H17: 0 | I17: 0 | K17: 0.1779815695
A18: Sub-Total: Energy (RPP TOU) | D18: =SUM(D15:D17) -> 148.23 | G18: =SUM(G15:G17) -> 148.23 | H18: 0 | I18: 0 | J18: =G18/$G$49 -> 0.5931594561 | K18: 0.6076609554
A19: Service Charge | B19: 1 | C19: =IF(ISERROR(VLOOKUP($B$3,'Data Current Rates'!$A:$BA,MATCH(BI_R1_High!$A19,CurrentHeader,0),FALSE)),0,VLOOKUP($B$3,'Data Current Rates'!$A:$BA,MATCH(BI_R1_High!$A19,CurrentHeader,0),FALSE)) -> 43.58 | D19: =B19*C19 -> 43.58 | E19: 1 | F19: =VLOOKUP($B$3,'Data Proposed Rates'!$A:$BA,MATCH(BI_R1_High!$A19,ProposedHeader,0),FALSE) -> 49.04 | G19: =E19*F19 -> 49.04 | H19: 5.46 | I19: 0.1252868288 | J19: 0.196239221 | K19: 0.2010368566
A20: Fixed Foregone Revenue Charge | B20: 1 | C20: =IF(ISERROR(VLOOKUP($B$3,'Data Current Rates'!$A:$BA,MATCH(BI_R1_High!$A20,CurrentHeader,0),FALSE)),0,VLOOKUP($B$3,'Data Current Rates'!$A:$BA,MATCH(BI_R1_High!$A20,CurrentHeader,0),FALSE)) -> 1.69 | D20: 1.69 | H20: -1.69 | I20: -1 | J20: 0 | K20: 0
A21: Fixed Deferral/Variance Account Rider (General) | B21: 1 | C21: =IF(ISERROR(VLOOKUP($B$3,'Data Current Rates'!$A:$BA,MATCH(BI_R1_High!$A21,CurrentHeader,0),FALSE)),0,VLOOKUP($B$3,'Data Current Rates'!$A:$BA,MATCH(BI_R1_High!$A21,CurrentHeader,0),FALSE)) -> 0.04 | D21: 0.04 | E21: 1 | F21: =VLOOKUP($B$3,'Data Proposed Rates'!$A:$BA,MATCH(BI_R1_High!$A21,ProposedHeader,0),FALSE) -> -0.14 | G21: -0.14 | H21: -0.18 | I21: -4.5 | J21: -0.0005602261611 | K21: -0.0005739225107
A22: Fixed ESM Rider | E22: 1 | F22: =VLOOKUP($B$3,'Data Proposed Rates'!$A:$BA,MATCH(BI_R1_High!$A22,ProposedHeader,0),FALSE) -> -0.85 | G22: -0.85 | H22: -0.85 | I22: N/A | J22: -0.003401373121 | K22: -0.003484529529
A23: Distribution Volumetric Charge | B23: =IF($B$9="kWh",$B$4,$B$5) -> 1800 | C23: =IF(ISERROR(VLOOKUP($B$3,'Data Current Rates'!$A:$BA,MATCH(BI_R1_High!$A23,CurrentHeader,0),FALSE)),0,VLOOKUP($B$3,'Data Current Rates'!$A:$BA,MATCH(BI_R1_High!$A23,CurrentHeader,0),FALSE)) -> 0.0182 | D23: 32.76 | E23: =IF($B$9="kWh",$B$4,$B$5) -> 1800 | F23: =VLOOKUP($B$3,'Data Proposed Rates'!$A:$BA,MATCH(BI_R1_High!$A23,ProposedHeader,0),FALSE) -> 0.0141 | G23: 25.38 | H23: -7.38 | I23: -0.2252747253 | J23: 0.1015609998 | K23: 0.1040439523
A24: Volumetric Foregone Revenue Charge | B24: =IF($B$9="kWh",$B$4,$B$5) -> 1800 | C24: =IF(ISERROR(VLOOKUP($B$3,'Data Current Rates'!$A:$BA,MATCH(BI_R1_High!$A24,CurrentHeader,0),FALSE)),0,VLOOKUP($B$3,'Data Current Rates'!$A:$BA,MATCH(BI_R1_High!$A24,CurrentHeader,0),FALSE)) -> 0.0009 | D24: 1.62 | H24: -1.62 | I24: -1 | J24: 0 | K24: 0
A25: Volumetric Deferral/Variance Account Rider (General) | B25: =IF($B$9="kWh",$B$4,$B$5) -> 1800 | C25: =IF(ISERROR(VLOOKUP($B$3,'Data Current Rates'!$A:$BA,MATCH(BI_R1_High!$A25,CurrentHeader,0),FALSE)),0,VLOOKUP($B$3,'Data Current Rates'!$A:$BA,MATCH(BI_R1_High!$A25,CurrentHeader,0),FALSE)) -> -0.0008 | D25: -1.44 | E25: =IF($B$9="kWh",$B$4,$B$5) -> 1800 | F25: =VLOOKUP($B$3,'Data Proposed Rates'!$A:$BA,MATCH(BI_R1_High!$A25,ProposedHeader,0),FALSE) -> -0.0008 | G25: -1.44 | H25: 0 | I25: 0 | J25: -0.005762326228 | K25: -0.005903202967
A26: Volumetric ESM Rider | E26: 1800 | F26: =VLOOKUP($B$3,'Data Proposed Rates'!$A:$BA,MATCH(BI_R1_High!$A26,ProposedHeader,0),FALSE) -> 0 | G26: 0 | H26: 0 | I26: N/A | J26: 0 | K26: 0
A27: Fair Hydro Plan - Distribution Rate Protection Savings* | D27: =IF(AND(B3<>"R1",B3<>"R2"),0,IF(VLOOKUP($A27,'Data Pass Through'!$A:$D,2,FALSE)=0,0,IF(SUM(D19:D20,D23:D24)<VLOOKUP($A27,'Data Pass Through'!$A:$D,2,FALSE),0,VLOOKUP($A27,'Data Pass Through'!$A:$D,2,FALSE)-SUM(D19:D20,D23:D24)))) -> -42.79 | G27: =IF(AND(B3<>"R1",B3<>"R2"),0,IF(VLOOKUP($A27,'Data Pass Through'!$A:$D,2,FALSE)=0,0,IF(SUM(G19:G20,G23:G24)<VLOOKUP($A27,'Data Pass Through'!$A:$D,2,FALSE),0,VLOOKUP($A27,'Data Pass Through'!$A:$D,2,FALSE)-SUM(G19:G20,G23:G24)))) -> -37.56 | H27: 5.23 | I27: 0.1222248189 | J27: -0.1503006758 | K27: -0.1539752107
A28: Sub-Total: Distribution (excluding pass through) | D28: =SUM(INDIRECT("D19:D"&ROW()-1)) -> 35.46 | G28: =SUM(INDIRECT("g19:g"&ROW()-1)) -> 34.43 | H28: =G28-D28 -> -1.03 | I28: -0.02904681331 | J28: 0.1377756195 | K28: 0.1411439432
A29: Smart Metering Entity Charge | B29: 1 | C29: =VLOOKUP($A29,'Data Pass Through'!$A:$D,2,FALSE) -> 0.57 | D29: =B29*C29 -> 0.57 | E29: 1 | F29: =VLOOKUP($A29,'Data Pass Through'!$A:$D,3,FALSE) -> 0.57 | G29: =E29*F29 -> 0.57 | H29: 0 | I29: 0 | J29: 0.002280920799 | K29: 0.002336684508
A30: Line Losses on Cost of Power (based on two-tier RPP prices) | B30: =B8-B4 -> 136.8 | C30: =IF(B4>B7,C13,C12) -> 0.089 | D30: =B30*C30 -> 12.1752 | E30: 136.8 | F30: =IF(B4>B7,F13,F12) -> 0.089 | G30: =E30*F30 -> 12.1752 | H30: 0 | I30: 0 | J30: 0.04872046826 | K30: 0.04991158109
A31: Line Losses on Cost of Power (based on TOU prices) | B31: =B8-B4 -> 136.8 | C31: =VLOOKUP($B$3,'Data Billing Quantities'!$A:$O,MATCH(BI_R1_High!$A15,'Data Billing Quantities'!$4:$4,0),FALSE)*C15+VLOOKUP($B$3,'Data Billing Quantities'!$A:$O,MATCH(BI_R1_High!$A16,'Data Billing Quantities'!$4:$4,0),FALSE)*C16+VLOOKUP($B$3,'Data Billing Quantities'!$A:$O,MATCH(BI_R1_High!$A17,'Data Billing Quantities'!$4:$4,0),FALSE)*C17 -> 0.08235 | D31: =B31*C31 -> 11.26548 | E31: 136.8 | F31: =VLOOKUP($B$3,'Data Billing Quantities'!$A:$O,MATCH(BI_R1_High!$A15,'Data Billing Quantities'!$4:$4,0),FALSE)*F15+VLOOKUP($B$3,'Data Billing Quantities'!$A:$O,MATCH(BI_R1_High!$A16,'Data Billing Quantities'!$4:$4,0),FALSE)*F16+VLOOKUP($B$3,'Data Billing Quantities'!$A:$O,MATCH(BI_R1_High!$A17,'Data Billing Quantities'!$4:$4,0),FALSE)*F17 -> 0.08235 | G31: =E31*F31 -> 11.26548 | H31: 0 | I31: 0 | J31: 0.04508011866 | K31: 0.04618223261
A32: Sub-Total: Distribution (based on two-tier RPP prices) | D32: =SUM(D28,D29:D30) -> 48.2052 | G32: =SUM(G28,G29:G30) -> 47.1752 | H32: -1.03 | I32: -0.02136698945 | J32: 0.1887770085 | K32: 0.1933922088
A33: Sub-Total: Distribution (based on TOU prices) | D33: =SUM(D28,D29,D31) -> 47.29548 | G33: =SUM(G28,G29,G31) -> 46.26548 | H33: -1.03 | I33: -0.02177797963 | J33: 0.1851366589 | K33: 0.1896628603
A34: Retail Transmission Rate – Network Service Rate | B34: =B8 -> 1936.8 | C34: =VLOOKUP($B$3,'Data Current Rates'!$A:$BA,MATCH(BI_R1_High!$A34,CurrentHeader,0),FALSE) -> 0.008 | D34: =B34*C34 -> 15.4944 | E34: 1936.8 | F34: =VLOOKUP($B$3,'Data Proposed Rates'!$A:$BA,MATCH(BI_R1_High!$A34,ProposedHeader,0),FALSE) -> 0.0082 | G34: =E34*F34 -> 15.88176 | H34: =G34-D34 -> 0.38736 | I34: 0.025 | J34: 0.06355269597 | K34: 0.06510642553
A35: Retail Transmission Rate – Line and Transformation Connection Service Rate | B35: =B8 -> 1936.8 | C35: =VLOOKUP($B$3,'Data Current Rates'!$A:$BA,MATCH(BI_R1_High!$A35,CurrentHeader,0),FALSE) -> 0.0072 | D35: =B35*C35 -> 13.94496 | E35: 1936.8 | F35: =VLOOKUP($B$3,'Data Proposed Rates'!$A:$BA,MATCH(BI_R1_High!$A35,ProposedHeader,0),FALSE) -> 0.0073 | G35: =E35*F35 -> 14.13864 | H35: =G35-D35 -> 0.19368 | I35: 0.01388888889 | J35: 0.05657740007 | K35: 0.05796059833
A36: Sub-Total: Retail Transmission | D36: =SUM(D34:D35) -> 29.43936 | G36: =SUM(G34:G35) -> 30.0204 | H36: =G36-D36 -> 0.58104 | I36: 0.01973684211 | J36: 0.120130096 | K36: 0.1230670239
A37: Sub-Total: Delivery (based on two-tier RPP prices) | D37: =D32+D36 -> 77.64456 | G37: =G32+G36 -> 77.1956 | H37: =G37-D37 -> -0.44896 | I37: -0.005782246689 | J37: 0.3089071046 | K37: 0.3164592326
A38: Sub-Total: Delivery (based on TOU prices) | D38: =D33+D36 -> 76.73484 | G38: =G33+G36 -> 76.28588 | H38: =G38-D38 -> -0.44896 | I38: -0.005850797369 | J38: 0.305266755 | K38: 0.3127298841
A39: Wholesale Market Service Rate (WMS) - not including CBR | B39: =B8 -> 1936.8 | C39: =VLOOKUP($A39,'Data Pass Through'!$A:$D,2,FALSE) -> 0.003 | D39: =B39*C39 -> 5.8104 | E39: =$B$8 -> 1936.8 | F39: =VLOOKUP($A39,'Data Pass Through'!$A:$D,3,FALSE) -> 0.003 | G39: =E39*F39 -> 5.8104 | H39: 0 | I39: 0 | J39: 0.02325098633 | K39: 0.02381942397
A40: Capacity Based Recovery (CBR) - Applicable for Class B Customers | B40: =B8 -> 1936.8 | C40: =VLOOKUP($A40,'Data Pass Through'!$A:$D,2,FALSE) -> 0.0004 | D40: =B40*C40 -> 0.77472 | E40: =$B$8 -> 1936.8 | F40: =VLOOKUP($A40,'Data Pass Through'!$A:$D,3,FALSE) -> 0.0004 | G40: =E40*F40 -> 0.77472 | H40: 0 | I40: 0 | J40: 0.003100131511 | K40: 0.003175923196
A41: Rural Rate Protection Charge | B41: =B8 -> 1936.8 | C41: =VLOOKUP($A41,'Data Pass Through'!$A:$D,2,FALSE) -> 0.0005 | D41: 0.9684 | E41: 1936.8 | F41: =VLOOKUP($A41,'Data Pass Through'!$A:$D,3,FALSE) -> 0.0005 | G41: 0.9684 | H41: 0 | I41: 0 | J41: 0.003875164388 | K41: 0.003969903995
A42: Standard Supply Service – Administration Charge (if applicable) | B42: 1 | C42: =VLOOKUP($A42,'Data Pass Through'!$A:$D,2,FALSE) -> 0.25 | D42: =B42*C42 -> 0.25 | E42: 1 | F42: =VLOOKUP($A42,'Data Pass Through'!$A:$D,3,FALSE) -> 0.25 | G42: 0.25 | H42: 0 | I42: 0 | J42: 0.001000403859 | K42: 0.001024861626
A43: Sub-Total: Regulatory | D43: =SUM(D39:D42) -> 7.80352 | G43: =SUM(G39:G42) -> 7.80352 | H43: 0 | I43: 0 | J43: 0.03122668609 | K43: 0.03199011279
A44: Debt Retirement Charge (DRC) | B44: =B4 -> 1800 | C44: =VLOOKUP($A44,'Data Pass Through'!$A:$D,2,FALSE) -> 0 | D44: =B44*C44 -> 0 | E44: 1800 | F44: =VLOOKUP($A44,'Data Pass Through'!$A:$D,3,FALSE) -> 0 | G44: =E44*F44 -> 0 | H44: 0 | I44: N/A | J44: 0 | K44: 0
A45: Total Electricty Charge on Two-Tier RPP | D45: =SUM(D14,D28,D29,D30,D36,D43,D44) -> 238.44808 | G45: =SUM(G14,G28,G29,G30,G36,G43,G44) -> 237.99912 | H45: -0.44896 | I45: -0.001882841749 | J45: 0.9523809524
A46: HST | C46: 0.13 | D46: =D45*C46 -> 30.9982504 | F46: =C46 -> 0.13 | G46: =G45*F46 -> 30.9398856 | H46: -0.0583648 | I46: -0.001882841749 | J46: 0.1238095238
A47: Total Electricity Charge on Two-Tier RPP (including HST) | D47: =SUM(D45:D46) -> 269.4463304 | G47: =SUM(G45:G46) -> 268.9390056 | H47: -0.5073248 | I47: -0.001882841749 | J47: 1.076190476
A48: Ontario Rebate for Electricity Consumers (OREC) | C48: -0.08 | D48: =D45*C48 -> -19.0758464 | F48: =C48 -> -0.08 | G48: =G45*F48 -> -19.0399296 | H48: 0.0359168 | I48: 0.001882841749 | J48: -0.07619047619
A49: Total Amount on Two-Tier RPP | D49: =SUM(D47:D48) -> 250.370484 | G49: =SUM(G47:G48) -> 249.899076 | H49: -0.471408 | I49: -0.001882841749 | J49: 1
A50: Total Electricty Charge on TOU (before HST) | D50: =SUM(D18,D28,D29,D31,D36,D43,D44) -> 232.76836 | G50: =SUM(G18,G28,G29,G31,G36,G43,G44) -> 232.3194 | H50: -0.44896 | I50: -0.001928784479 | K50: =G50/$G$54 -> 0.9523809524
A51: HST | C51: 0.13 | D51: =D50*C51 -> 30.2598868 | F51: =C51 -> 0.13 | G51: =G50*F51 -> 30.201522 | H51: -0.0583648 | I51: -0.001928784479 | K51: =G51/$G$54 -> 0.1238095238
A52: Total Electricity Charge on TOU (including HST) | D52: =SUM(D50:D51) -> 263.0282468 | G52: =SUM(G50:G51) -> 262.520922 | H52: -0.5073248 | I52: -0.001928784479 | K52: =G52/$G$54 -> 1.076190476
A53: Ontario Rebate for Electricity Consumers (OREC) | C53: -0.08 | D53: =D50*C53 -> -18.6214688 | F53: =C53 -> -0.08 | G53: =G50*F53 -> -18.585552 | H53: 0.0359168 | I53: 0.001928784479 | K53: =G53/$G$54 -> -0.07619047619
A54: Total Amount on TOU | D54: =SUM(D52:D53) -> 244.406778 | G54: =SUM(G52:G53) -> 243.93537 | H54: -0.471408 | I54: -0.001928784479 | K54: =G54/$G$54 -> 1
A55: * Distribution rate protection applies to R1 and R2 customers

Sheet BI_R2_Low
A1: 2021 Bill Impacts (Low Consumption Level) - R2
A3: Rate Class | B3: =RIGHT(A1,LEN(A1)-FIND("- ",A1,1)-1) -> R2
A4: Monthly Consumption (kWh) | B4: =IF(COUNTIF(A1,"*Low*")>0,VLOOKUP(B3,'Data Billing Quantities'!$A:$Z,MATCH("Low kWh",'Data Billing Quantities'!4:4,0),FALSE),IF(COUNTIF(A1,"*Typical*")>0,VLOOKUP(B3,'Data Billing Quantities'!$A:$Z,MATCH("Typical kWh",'Data Billing Quantities'!4:4,0),FALSE),IF(COUNTIF(A1,"*Average*")>0,VLOOKUP(B3,'Data Billing Quantities'!$A:$Z,MATCH("Average kWh",'Data Billing Quantities'!4:4,0),FALSE),IF(COUNTIF(A1,"*High*")>0,VLOOKUP(B3,'Data Billing Quantities'!$A:$Z,MATCH("High kWh",'Data Billing Quantities'!4:4,0),FALSE),"error")))) -> 450
A5: Peak (kW) | B5: =IF(COUNTIF(A1,"*Low*")>0,VLOOKUP(B3,'Data Billing Quantities'!$A:$Z,MATCH("Low kW",'Data Billing Quantities'!4:4,0),FALSE),IF(COUNTIF(A1,"*Typical*")>0,VLOOKUP(B3,'Data Billing Quantities'!$A:$Z,MATCH("Typical kW",'Data Billing Quantities'!4:4,0),FALSE),IF(COUNTIF(A1,"*Average*")>0,VLOOKUP(B3,'Data Billing Quantities'!$A:$Z,MATCH("Average kW",'Data Billing Quantities'!4:4,0),FALSE),IF(COUNTIF(A1,"*High*")>0,VLOOKUP(B3,'Data Billing Quantities'!$A:$Z,MATCH("High kW",'Data Billing Quantities'!4:4,0),FALSE),"error")))) -> 0
A6: Loss factor | B6: =VLOOKUP(B3,'Data Billing Quantities'!A:D,MATCH(A6,'Data Billing Quantities'!4:4,0),FALSE) -> 1.105
A7: Commodity Threshold | B7: =VLOOKUP(B3,'Data Billing Quantities'!A:D,MATCH(A7,'Data Billing Quantities'!4:4,0),FALSE) -> 600
A8: Monthly Consumption (kWh) - Uplifted | B8: =B4*B6 -> 497.25
A9: Charge determinant | B9: =VLOOKUP(B3,'Data Billing Quantities'!A:D,MATCH(A9,'Data Billing Quantities'!4:4,0),FALSE) -> kWh
B11: Volume | C11: Current Rate ($) | D11: Current Charge ($) | E11: Volume | F11: Proposed Rate ($) | G11: Proposed Charge ($) | H11: Change ($) | I11: Change (%) | J11: % of Total Bill on RPP | K11: % of Total Bill on TOU
A12: Energy First Tier | B12: =IF(B4>B7,B7,B4) -> 450 | C12: =VLOOKUP($A12,'Data Pass Through'!$A:$D,2,FALSE) -> 0.077 | D12: =B12*C12 -> 34.65 | E12: =B12 -> 450 | F12: =VLOOKUP($A12,'Data Pass Through'!$A:$D,3,FALSE) -> 0.077 | G12: =E12*F12 -> 34.65 | H12: =G12-D12 -> 0 | I12: =IF(ISERROR(H12/ABS(D12)),"N/A",(H12/ABS(D12))) -> 0 | J12: =G12/$G$49 -> 0.3996964729
A13: Energy Second Tier | B13: =IF(B4>B7,(B4)-B7,0) -> 0 | C13: =VLOOKUP($A13,'Data Pass Through'!$A:$D,2,FALSE) -> 0.089 | D13: =B13*C13 -> 0 | E13: =B13 -> 0 | F13: =VLOOKUP($A13,'Data Pass Through'!$A:$D,3,FALSE) -> 0.089 | G13: =E13*F13 -> 0 | H13: 0 | I13: N/A | J13: =G13/$G$49 -> 0
A14: Sub-Total: Energy (RPP Tiered) | D14: =SUM(D12:D13) -> 34.65 | G14: =SUM(G12:G13) -> 34.65 | H14: 0 | I14: 0 | J14: =G14/$G$49 -> 0.3996964729
A15: TOU-Off Peak | B15: =B$4*VLOOKUP($B$3,'Data Billing Quantities'!$A:$O,MATCH(BI_R2_Low!$A15,'Data Billing Quantities'!$4:$4,0),FALSE) -> 292.5 | C15: =VLOOKUP($A15,'Data Pass Through'!$A:$D,2,FALSE) -> 0.065 | D15: =B15*C15 -> 19.0125 | E15: 292.5 | F15: =VLOOKUP($A15,'Data Pass Through'!$A:$D,3,FALSE) -> 0.065 | G15: =E15*F15 -> 19.0125 | H15: 0 | I15: 0 | K15: =G15/$G$54 -> 0.2124679504
A16: TOU-Mid Peak | B16: =B$4*VLOOKUP($B$3,'Data Billing Quantities'!$A:$O,MATCH(BI_R2_Low!$A16,'Data Billing Quantities'!$4:$4,0),FALSE) -> 76.5 | C16: =VLOOKUP($A16,'Data Pass Through'!$A:$D,2,FALSE) -> 0.094 | D16: =B16*C16 -> 7.191 | E16: 76.5 | F16: =VLOOKUP($A16,'Data Pass Through'!$A:$D,3,FALSE) -> 0.094 | G16: =E16*F16 -> 7.191 | H16: 0 | I16: 0 | K16: 0.08036065911
A17: TOU-On Peak | B17: =B$4*VLOOKUP($B$3,'Data Billing Quantities'!$A:$O,MATCH(BI_R2_Low!$A17,'Data Billing Quantities'!$4:$4,0),FALSE) -> 81 | C17: =VLOOKUP($A17,'Data Pass Through'!$A:$D,2,FALSE) -> 0.134 | D17: =B17*C17 -> 10.854 | E17: 81 | F17: =VLOOKUP($A17,'Data Pass Through'!$A:$D,3,FALSE) -> 0.134 | G17: =E17*F17 -> 10.854 | H17: 0 | I17: 0 | K17: 0.1212953127
A18: Sub-Total: Energy (RPP TOU) | D18: =SUM(D15:D17) -> 37.0575 | G18: =SUM(G15:G17) -> 37.0575 | H18: 0 | I18: 0 | J18: =G18/$G$49 -> 0.4274675915 | K18: 0.4141239222
A19: Service Charge | B19: 1 | C19: =IF(ISERROR(VLOOKUP($B$3,'Data Current Rates'!$A:$BA,MATCH(BI_R2_Low!$A19,CurrentHeader,0),FALSE)),0,VLOOKUP($B$3,'Data Current Rates'!$A:$BA,MATCH(BI_R2_Low!$A19,CurrentHeader,0),FALSE)) -> 41.7 | D19: =B19*C19 -> 41.7 | E19: 1 | F19: =VLOOKUP($B$3,'Data Proposed Rates'!$A:$BA,MATCH(BI_R2_Low!$A19,ProposedHeader,0),FALSE) -> 53.14 | G19: =E19*F19 -> 53.14 | H19: 11.44 | I19: 0.2743405276 | J19: 0.6129832777 | K19: 0.5938486198
A20: Fixed Foregone Revenue Charge | B20: 1 | C20: =IF(ISERROR(VLOOKUP($B$3,'Data Current Rates'!$A:$BA,MATCH(BI_R2_Low!$A20,CurrentHeader,0),FALSE)),0,VLOOKUP($B$3,'Data Current Rates'!$A:$BA,MATCH(BI_R2_Low!$A20,CurrentHeader,0),FALSE)) -> 4.35 | D20: 4.35 | H20: -4.35 | I20: -1 | J20: 0 | K20: 0
A21: Fixed Deferral/Variance Account Rider (General) | B21: 1 | C21: =IF(ISERROR(VLOOKUP($B$3,'Data Current Rates'!$A:$BA,MATCH(BI_R2_Low!$A21,CurrentHeader,0),FALSE)),0,VLOOKUP($B$3,'Data Current Rates'!$A:$BA,MATCH(BI_R2_Low!$A21,CurrentHeader,0),FALSE)) -> -0.03 | D21: -0.03 | E21: 1 | F21: =VLOOKUP($B$3,'Data Proposed Rates'!$A:$BA,MATCH(BI_R2_Low!$A21,ProposedHeader,0),FALSE) -> -0.14 | G21: -0.14 | H21: -0.11 | I21: -3.666666667 | J21: -0.001614935244 | K21: -0.001564524027
A22: Fixed ESM Rider | E22: 1 | F22: =VLOOKUP($B$3,'Data Proposed Rates'!$A:$BA,MATCH(BI_R2_Low!$A22,ProposedHeader,0),FALSE) -> -1.92 | G22: -1.92 | H22: -1.92 | I22: N/A | J22: -0.02214768335 | K22: -0.02145632951
A23: Distribution Volumetric Charge | B23: =IF($B$9="kWh",$B$4,$B$5) -> 450 | C23: =IF(ISERROR(VLOOKUP($B$3,'Data Current Rates'!$A:$BA,MATCH(BI_R2_Low!$A23,CurrentHeader,0),FALSE)),0,VLOOKUP($B$3,'Data Current Rates'!$A:$BA,MATCH(BI_R2_Low!$A23,CurrentHeader,0),FALSE)) -> 0.0293 | D23: 13.185 | E23: =IF($B$9="kWh",$B$4,$B$5) -> 450 | F23: =VLOOKUP($B$3,'Data Proposed Rates'!$A:$BA,MATCH(BI_R2_Low!$A23,ProposedHeader,0),FALSE) -> 0.0227 | G23: 10.215 | H23: -2.97 | I23: -0.2252559727 | J23: 0.1178325966 | K23: 0.1141543781
A24: Volumetric Foregone Revenue Charge | B24: =IF($B$9="kWh",$B$4,$B$5) -> 450 | C24: =IF(ISERROR(VLOOKUP($B$3,'Data Current Rates'!$A:$BA,MATCH(BI_R2_Low!$A24,CurrentHeader,0),FALSE)),0,VLOOKUP($B$3,'Data Current Rates'!$A:$BA,MATCH(BI_R2_Low!$A24,CurrentHeader,0),FALSE)) -> 0.0011 | D24: 0.495 | H24: -0.495 | I24: -1 | J24: 0 | K24: 0
A25: Volumetric Deferral/Variance Account Rider (General) | B25: =IF($B$9="kWh",$B$4,$B$5) -> 450 | C25: =IF(ISERROR(VLOOKUP($B$3,'Data Current Rates'!$A:$BA,MATCH(BI_R2_Low!$A25,CurrentHeader,0),FALSE)),0,VLOOKUP($B$3,'Data Current Rates'!$A:$BA,MATCH(BI_R2_Low!$A25,CurrentHeader,0),FALSE)) -> -0.0008 | D25: -0.36 | E25: =IF($B$9="kWh",$B$4,$B$5) -> 450 | F25: =VLOOKUP($B$3,'Data Proposed Rates'!$A:$BA,MATCH(BI_R2_Low!$A25,ProposedHeader,0),FALSE) -> -0.0011 | G25: -0.495 | H25: -0.135 | I25: -0.375 | J25: -0.005709949613 | K25: -0.005531709951
A26: Volumetric ESM Rider | E26: 450 | F26: =VLOOKUP($B$3,'Data Proposed Rates'!$A:$BA,MATCH(BI_R2_Low!$A26,ProposedHeader,0),FALSE) -> 0 | G26: 0 | H26: 0 | I26: N/A | J26: 0 | K26: 0
A27: Fair Hydro Plan - Distribution Rate Protection Savings* | D27: =IF(AND(B3<>"R1",B3<>"R2"),0,IF(VLOOKUP($A27,'Data Pass Through'!$A:$D,2,FALSE)=0,0,IF(SUM(D19:D20,D23:D24)<VLOOKUP($A27,'Data Pass Through'!$A:$D,2,FALSE),0,VLOOKUP($A27,'Data Pass Through'!$A:$D,2,FALSE)-SUM(D19:D20,D23:D24)))) -> -22.87 | G27: =IF(AND(B3<>"R1",B3<>"R2"),0,IF(VLOOKUP($A27,'Data Pass Through'!$A:$D,2,FALSE)=0,0,IF(SUM(G19:G20,G23:G24)<VLOOKUP($A27,'Data Pass Through'!$A:$D,2,FALSE),0,VLOOKUP($A27,'Data Pass Through'!$A:$D,2,FALSE)-SUM(G19:G20,G23:G24)))) -> -26.495 | H27: -3.625 | I27: -0.1585045912 | J27: -0.305626495 | K27: -0.296086172
A28: Sub-Total: Distribution (excluding pass through) | D28: =SUM(INDIRECT("D19:D"&ROW()-1)) -> 36.47 | G28: =SUM(INDIRECT("g19:g"&ROW()-1)) -> 34.305 | H28: =G28-D28 -> -2.165 | I28: -0.05936386071 | J28: 0.3957168111 | K28: 0.3833642624
A29: Smart Metering Entity Charge | B29: 1 | C29: =VLOOKUP($A29,'Data Pass Through'!$A:$D,2,FALSE) -> 0.57 | D29: =B29*C29 -> 0.57 | E29: 1 | F29: =VLOOKUP($A29,'Data Pass Through'!$A:$D,3,FALSE) -> 0.57 | G29: =E29*F29 -> 0.57 | H29: 0 | I29: 0 | J29: 0.006575093494 | K29: 0.006369847822
A30: Line Losses on Cost of Power (based on two-tier RPP prices) | B30: =B8-B4 -> 47.25 | C30: =IF(B4>B7,C13,C12) -> 0.077 | D30: =B30*C30 -> 3.63825 | E30: 47.25 | F30: =IF(B4>B7,F13,F12) -> 0.077 | G30: =E30*F30 -> 3.63825 | H30: 0 | I30: 0 | J30: 0.04196812966 | K30: 0.04065806814
A31: Line Losses on Cost of Power (based on TOU prices) | B31: =B8-B4 -> 47.25 | C31: =VLOOKUP($B$3,'Data Billing Quantities'!$A:$O,MATCH(BI_R2_Low!$A15,'Data Billing Quantities'!$4:$4,0),FALSE)*C15+VLOOKUP($B$3,'Data Billing Quantities'!$A:$O,MATCH(BI_R2_Low!$A16,'Data Billing Quantities'!$4:$4,0),FALSE)*C16+VLOOKUP($B$3,'Data Billing Quantities'!$A:$O,MATCH(BI_R2_Low!$A17,'Data Billing Quantities'!$4:$4,0),FALSE)*C17 -> 0.08235 | D31: =B31*C31 -> 3.8910375 | E31: 47.25 | F31: =VLOOKUP($B$3,'Data Billing Quantities'!$A:$O,MATCH(BI_R2_Low!$A15,'Data Billing Quantities'!$4:$4,0),FALSE)*F15+VLOOKUP($B$3,'Data Billing Quantities'!$A:$O,MATCH(BI_R2_Low!$A16,'Data Billing Quantities'!$4:$4,0),FALSE)*F16+VLOOKUP($B$3,'Data Billing Quantities'!$A:$O,MATCH(BI_R2_Low!$A17,'Data Billing Quantities'!$4:$4,0),FALSE)*F17 -> 0.08235 | G31: =E31*F31 -> 3.8910375 | H31: 0 | I31: 0 | J31: 0.04488409711 | K31: 0.04348301184
A32: Sub-Total: Distribution (based on two-tier RPP prices) | D32: =SUM(D28,D29:D30) -> 40.67825 | G32: =SUM(G28,G29:G30) -> 38.51325 | H32: -2.165 | I32: -0.05322254522 | J32: 0.4442600342 | K32: 0.4303921783
A33: Sub-Total: Distribution (based on TOU prices) | D33: =SUM(D28,D29,D31) -> 40.9310375 | G33: =SUM(G28,G29,G31) -> 38.7660375 | H33: -2.165 | I33: -0.05289384614 | J33: 0.4471760017 | K33: 0.433217122
A34: Retail Transmission Rate – Network Service Rate | B34: =B8 -> 497.25 | C34: =VLOOKUP($B$3,'Data Current Rates'!$A:$BA,MATCH(BI_R2_Low!$A34,CurrentHeader,0),FALSE) -> 0.0075 | D34: =B34*C34 -> 3.729375 | E34: 497.25 | F34: =VLOOKUP($B$3,'Data Proposed Rates'!$A:$BA,MATCH(BI_R2_Low!$A34,ProposedHeader,0),FALSE) -> 0.0077 | G34: =E34*F34 -> 3.828825 | H34: =G34-D34 -> 0.09945 | I34: 0.02666666667 | J34: 0.04416646026 | K34: 0.04278777647
A35: Retail Transmission Rate – Line and Transformation Connection Service Rate | B35: =B8 -> 497.25 | C35: =VLOOKUP($B$3,'Data Current Rates'!$A:$BA,MATCH(BI_R2_Low!$A35,CurrentHeader,0),FALSE) -> 0.0067 | D35: =B35*C35 -> 3.331575 | E35: 497.25 | F35: =VLOOKUP($B$3,'Data Proposed Rates'!$A:$BA,MATCH(BI_R2_Low!$A35,ProposedHeader,0),FALSE) -> 0.0068 | G35: =E35*F35 -> 3.3813 | H35: =G35-D35 -> 0.049725 | I35: 0.01492537313 | J35: 0.03900414672 | K35: 0.03778660779
A36: Sub-Total: Retail Transmission | D36: =SUM(D34:D35) -> 7.06095 | G36: =SUM(G34:G35) -> 7.210125 | H36: =G36-D36 -> 0.149175 | I36: 0.02112676056 | J36: 0.08317060698 | K36: 0.08057438426
A37: Sub-Total: Delivery (based on two-tier RPP prices) | D37: =D32+D36 -> 47.7392 | G37: =G32+G36 -> 45.723375 | H37: =G37-D37 -> -2.015825 | I37: -0.04222578091 | J37: 0.5274306412 | K37: 0.5109665626
A38: Sub-Total: Delivery (based on TOU prices) | D38: =D33+D36 -> 47.9919875 | G38: =G33+G36 -> 45.9761625 | H38: =G38-D38 -> -2.015825 | I38: -0.04200336567 | J38: 0.5303466086 | K38: 0.5137915063
A39: Wholesale Market Service Rate (WMS) - not including CBR | B39: =B8 -> 497.25 | C39: =VLOOKUP($A39,'Data Pass Through'!$A:$D,2,FALSE) -> 0.003 | D39: =B39*C39 -> 1.49175 | E39: =$B$8 -> 497.25 | F39: =VLOOKUP($A39,'Data Pass Through'!$A:$D,3,FALSE) -> 0.003 | G39: =E39*F39 -> 1.49175 | H39: 0 | I39: 0 | J39: 0.01720771179 | K39: 0.01667056226
A40: Capacity Based Recovery (CBR) - Applicable for Class B Customers | B40: =B8 -> 497.25 | C40: =VLOOKUP($A40,'Data Pass Through'!$A:$D,2,FALSE) -> 0.0004 | D40: =B40*C40 -> 0.1989 | E40: =$B$8 -> 497.25 | F40: =VLOOKUP($A40,'Data Pass Through'!$A:$D,3,FALSE) -> 0.0004 | G40: =E40*F40 -> 0.1989 | H40: 0 | I40: 0 | J40: 0.002294361572 | K40: 0.002222741635
A41: Rural Rate Protection Charge | B41: =B8 -> 497.25 | C41: =VLOOKUP($A41,'Data Pass Through'!$A:$D,2,FALSE) -> 0.0005 | D41: 0.248625 | E41: 497.25 | F41: =VLOOKUP($A41,'Data Pass Through'!$A:$D,3,FALSE) -> 0.0005 | G41: 0.248625 | H41: 0 | I41: 0 | J41: 0.002867951965 | K41: 0.002778427044
A42: Standard Supply Service – Administration Charge (if applicable) | B42: 1 | C42: =VLOOKUP($A42,'Data Pass Through'!$A:$D,2,FALSE) -> 0.25 | D42: =B42*C42 -> 0.25 | E42: 1 | F42: =VLOOKUP($A42,'Data Pass Through'!$A:$D,3,FALSE) -> 0.25 | G42: 0.25 | H42: 0 | I42: 0 | J42: 0.002883812936 | K42: 0.002793792905
A43: Sub-Total: Regulatory | D43: =SUM(D39:D42) -> 2.189275 | G43: =SUM(G39:G42) -> 2.189275 | H43: 0 | I43: 0 | J43: 0.02525383826 | K43: 0.02446552384
A44: Debt Retirement Charge (DRC) | B44: =B4 -> 450 | C44: =VLOOKUP($A44,'Data Pass Through'!$A:$D,2,FALSE) -> 0 | D44: =B44*C44 -> 0 | E44: 450 | F44: =VLOOKUP($A44,'Data Pass Through'!$A:$D,3,FALSE) -> 0 | G44: =E44*F44 -> 0 | H44: 0 | I44: N/A | J44: 0 | K44: 0
A45: Total Electricty Charge on Two-Tier RPP | D45: =SUM(D14,D28,D29,D30,D36,D43,D44) -> 84.578475 | G45: =SUM(G14,G28,G29,G30,G36,G43,G44) -> 82.56265 | H45: -2.015825 | I45: -0.02383378277 | J45: 0.9523809524
A46: HST | C46: 0.13 | D46: =D45*C46 -> 10.99520175 | F46: =C46 -> 0.13 | G46: =G45*F46 -> 10.7331445 | H46: -0.26205725 | I46: -0.02383378277 | J46: 0.1238095238
A47: Total Electricity Charge on Two-Tier RPP (including HST) | D47: =SUM(D45:D46) -> 95.57367675 | G47: =SUM(G45:G46) -> 93.2957945 | H47: -2.27788225 | I47: -0.02383378277 | J47: 1.076190476
A48: Ontario Rebate for Electricity Consumers (OREC) | C48: -0.08 | D48: =D45*C48 -> -6.766278 | F48: =C48 -> -0.08 | G48: =G45*F48 -> -6.605012 | H48: 0.161266 | I48: 0.02383378277 | J48: -0.07619047619
A49: Total Amount on Two-Tier RPP | D49: =SUM(D47:D48) -> 88.80739875 | G49: =SUM(G47:G48) -> 86.6907825 | H49: -2.11661625 | I49: -0.02383378277 | J49: 1
A50: Total Electricty Charge on TOU (before HST) | D50: =SUM(D18,D28,D29,D31,D36,D43,D44) -> 87.2387625 | G50: =SUM(G18,G28,G29,G31,G36,G43,G44) -> 85.2229375 | H50: -2.015825 | I50: -0.02310698756 | K50: =G50/$G$54 -> 0.9523809524
A51: HST | C51: 0.13 | D51: =D50*C51 -> 11.34103912 | F51: =C51 -> 0.13 | G51: =G50*F51 -> 11.07898187 | H51: -0.26205725 | I51: -0.02310698756 | K51: =G51/$G$54 -> 0.1238095238
A52: Total Electricity Charge on TOU (including HST) | D52: =SUM(D50:D51) -> 98.57980162 | G52: =SUM(G50:G51) -> 96.30191937 | H52: -2.27788225 | I52: -0.02310698756 | K52: =G52/$G$54 -> 1.076190476
A53: Ontario Rebate for Electricity Consumers (OREC) | C53: -0.08 | D53: =D50*C53 -> -6.979101 | F53: =C53 -> -0.08 | G53: =G50*F53 -> -6.817835 | H53: 0.161266 | I53: 0.02310698756 | K53: =G53/$G$54 -> -0.07619047619
A54: Total Amount on TOU | D54: =SUM(D52:D53) -> 91.60070062 | G54: =SUM(G52:G53) -> 89.48408437 | H54: -2.11661625 | I54: -0.02310698756 | K54: =G54/$G$54 -> 1
A55: * Distribution rate protection applies to R1 and R2 customers

Sheet BI_R2_Typical
A1: 2021 Bill Impacts (Typical Consumption Level) - R2
A3: Rate Class | B3: =RIGHT(A1,LEN(A1)-FIND("- ",A1,1)-1) -> R2
A4: Monthly Consumption (kWh) | B4: =IF(COUNTIF(A1,"*Low*")>0,VLOOKUP(B3,'Data Billing Quantities'!$A:$Z,MATCH("Low kWh",'Data Billing Quantities'!4:4,0),FALSE),IF(COUNTIF(A1,"*Typical*")>0,VLOOKUP(B3,'Data Billing Quantities'!$A:$Z,MATCH("Typical kWh",'Data Billing Quantities'!4:4,0),FALSE),IF(COUNTIF(A1,"*Average*")>0,VLOOKUP(B3,'Data Billing Quantities'!$A:$Z,MATCH("Average kWh",'Data Billing Quantities'!4:4,0),FALSE),IF(COUNTIF(A1,"*High*")>0,VLOOKUP(B3,'Data Billing Quantities'!$A:$Z,MATCH("High kWh",'Data Billing Quantities'!4:4,0),FALSE),"error")))) -> 750
A5: Peak (kW) | B5: =IF(COUNTIF(A1,"*Low*")>0,VLOOKUP(B3,'Data Billing Quantities'!$A:$Z,MATCH("Low kW",'Data Billing Quantities'!4:4,0),FALSE),IF(COUNTIF(A1,"*Typical*")>0,VLOOKUP(B3,'Data Billing Quantities'!$A:$Z,MATCH("Typical kW",'Data Billing Quantities'!4:4,0),FALSE),IF(COUNTIF(A1,"*Average*")>0,VLOOKUP(B3,'Data Billing Quantities'!$A:$Z,MATCH("Average kW",'Data Billing Quantities'!4:4,0),FALSE),IF(COUNTIF(A1,"*High*")>0,VLOOKUP(B3,'Data Billing Quantities'!$A:$Z,MATCH("High kW",'Data Billing Quantities'!4:4,0),FALSE),"error")))) -> 0
A6: Loss factor | B6: =VLOOKUP(B3,'Data Billing Quantities'!A:D,MATCH(A6,'Data Billing Quantities'!4:4,0),FALSE) -> 1.105
A7: Commodity Threshold | B7: =VLOOKUP(B3,'Data Billing Quantities'!A:D,MATCH(A7,'Data Billing Quantities'!4:4,0),FALSE) -> 600
A8: Monthly Consumption (kWh) - Uplifted | B8: =B4*B6 -> 828.75
A9: Charge determinant | B9: =VLOOKUP(B3,'Data Billing Quantities'!A:D,MATCH(A9,'Data Billing Quantities'!4:4,0),FALSE) -> kWh
B11: Volume | C11: Current Rate ($) | D11: Current Charge ($) | E11: Volume | F11: Proposed Rate ($) | G11: Proposed Charge ($) | H11: Change ($) | I11: Change (%) | J11: % of Total Bill on RPP | K11: % of Total Bill on TOU
A12: Energy First Tier | B12: =IF(B4>B7,B7,B4) -> 600 | C12: =VLOOKUP($A12,'Data Pass Through'!$A:$D,2,FALSE) -> 0.077 | D12: =B12*C12 -> 46.2 | E12: =B12 -> 600 | F12: =VLOOKUP($A12,'Data Pass Through'!$A:$D,3,FALSE) -> 0.077 | G12: =E12*F12 -> 46.2 | H12: =G12-D12 -> 0 | I12: =IF(ISERROR(H12/ABS(D12)),"N/A",(H12/ABS(D12))) -> 0 | J12: =G12/$G$49 -> 0.3773495908
A13: Energy Second Tier | B13: =IF(B4>B7,(B4)-B7,0) -> 150 | C13: =VLOOKUP($A13,'Data Pass Through'!$A:$D,2,FALSE) -> 0.089 | D13: =B13*C13 -> 13.35 | E13: =B13 -> 150 | F13: =VLOOKUP($A13,'Data Pass Through'!$A:$D,3,FALSE) -> 0.089 | G13: =E13*F13 -> 13.35 | H13: 0 | I13: 0 | J13: =G13/$G$49 -> 0.1090393298
A14: Sub-Total: Energy (RPP Tiered) | D14: =SUM(D12:D13) -> 59.55 | G14: =SUM(G12:G13) -> 59.55 | H14: 0 | I14: 0 | J14: =G14/$G$49 -> 0.4863889206
A15: TOU-Off Peak | B15: =B$4*VLOOKUP($B$3,'Data Billing Quantities'!$A:$O,MATCH(BI_R2_Typical!$A15,'Data Billing Quantities'!$4:$4,0),FALSE) -> 487.5 | C15: =VLOOKUP($A15,'Data Pass Through'!$A:$D,2,FALSE) -> 0.065 | D15: =B15*C15 -> 31.6875 | E15: 487.5 | F15: =VLOOKUP($A15,'Data Pass Through'!$A:$D,3,FALSE) -> 0.065 | G15: =E15*F15 -> 31.6875 | H15: 0 | I15: 0 | K15: =G15/$G$54 -> 0.2551202367
A16: TOU-Mid Peak | B16: =B$4*VLOOKUP($B$3,'Data Billing Quantities'!$A:$O,MATCH(BI_R2_Typical!$A16,'Data Billing Quantities'!$4:$4,0),FALSE) -> 127.5 | C16: =VLOOKUP($A16,'Data Pass Through'!$A:$D,2,FALSE) -> 0.094 | D16: =B16*C16 -> 11.985 | E16: 127.5 | F16: =VLOOKUP($A16,'Data Pass Through'!$A:$D,3,FALSE) -> 0.094 | G16: =E16*F16 -> 11.985 | H16: 0 | I16: 0 | K16: 0.0964928138
A17: TOU-On Peak | B17: =B$4*VLOOKUP($B$3,'Data Billing Quantities'!$A:$O,MATCH(BI_R2_Typical!$A17,'Data Billing Quantities'!$4:$4,0),FALSE) -> 135 | C17: =VLOOKUP($A17,'Data Pass Through'!$A:$D,2,FALSE) -> 0.134 | D17: =B17*C17 -> 18.09 | E17: 135 | F17: =VLOOKUP($A17,'Data Pass Through'!$A:$D,3,FALSE) -> 0.134 | G17: =E17*F17 -> 18.09 | H17: 0 | I17: 0 | K17: 0.145644973
A18: Sub-Total: Energy (RPP TOU) | D18: =SUM(D15:D17) -> 61.7625 | G18: =SUM(G15:G17) -> 61.7625 | H18: 0 | I18: 0 | J18: =G18/$G$49 -> 0.5044600455 | K18: 0.4972580236
A19: Service Charge | B19: 1 | C19: =IF(ISERROR(VLOOKUP($B$3,'Data Current Rates'!$A:$BA,MATCH(BI_R2_Typical!$A19,CurrentHeader,0),FALSE)),0,VLOOKUP($B$3,'Data Current Rates'!$A:$BA,MATCH(BI_R2_Typical!$A19,CurrentHeader,0),FALSE)) -> 41.7 | D19: =B19*C19 -> 41.7 | E19: 1 | F19: =VLOOKUP($B$3,'Data Proposed Rates'!$A:$BA,MATCH(BI_R2_Typical!$A19,ProposedHeader,0),FALSE) -> 53.14 | G19: =E19*F19 -> 53.14 | H19: 11.44 | I19: 0.2743405276 | J19: 0.4340337068 | K19: 0.4278371402
A20: Fixed Foregone Revenue Charge | B20: 1 | C20: =IF(ISERROR(VLOOKUP($B$3,'Data Current Rates'!$A:$BA,MATCH(BI_R2_Typical!$A20,CurrentHeader,0),FALSE)),0,VLOOKUP($B$3,'Data Current Rates'!$A:$BA,MATCH(BI_R2_Typical!$A20,CurrentHeader,0),FALSE)) -> 4.35 | D20: 4.35 | H20: -4.35 | I20: -1 | J20: 0 | K20: 0
A21: Fixed Deferral/Variance Account Rider (General) | B21: 1 | C21: =IF(ISERROR(VLOOKUP($B$3,'Data Current Rates'!$A:$BA,MATCH(BI_R2_Typical!$A21,CurrentHeader,0),FALSE)),0,VLOOKUP($B$3,'Data Current Rates'!$A:$BA,MATCH(BI_R2_Typical!$A21,CurrentHeader,0),FALSE)) -> -0.03 | D21: -0.03 | E21: 1 | F21: =VLOOKUP($B$3,'Data Proposed Rates'!$A:$BA,MATCH(BI_R2_Typical!$A21,ProposedHeader,0),FALSE) -> -0.14 | G21: -0.14 | H21: -0.11 | I21: -3.666666667 | J21: -0.001143483609 | K21: -0.001127158442
A22: Fixed ESM Rider | E22: 1 | F22: =VLOOKUP($B$3,'Data Proposed Rates'!$A:$BA,MATCH(BI_R2_Typical!$A22,ProposedHeader,0),FALSE) -> -1.92 | G22: -1.92 | H22: -1.92 | I22: N/A | J22: -0.01568206092 | K22: -0.01545817292
A23: Distribution Volumetric Charge | B23: =IF($B$9="kWh",$B$4,$B$5) -> 750 | C23: =IF(ISERROR(VLOOKUP($B$3,'Data Current Rates'!$A:$BA,MATCH(BI_R2_Typical!$A23,CurrentHeader,0),FALSE)),0,VLOOKUP($B$3,'Data Current Rates'!$A:$BA,MATCH(BI_R2_Typical!$A23,CurrentHeader,0),FALSE)) -> 0.0293 | D23: 21.975 | E23: =IF($B$9="kWh",$B$4,$B$5) -> 750 | F23: =VLOOKUP($B$3,'Data Proposed Rates'!$A:$BA,MATCH(BI_R2_Typical!$A23,ProposedHeader,0),FALSE) -> 0.0227 | G23: 17.025 | H23: -4.95 | I23: -0.2252559727 | J23: 0.1390557745 | K23: 0.1370705177
A24: Volumetric Foregone Revenue Charge | B24: =IF($B$9="kWh",$B$4,$B$5) -> 750 | C24: =IF(ISERROR(VLOOKUP($B$3,'Data Current Rates'!$A:$BA,MATCH(BI_R2_Typical!$A24,CurrentHeader,0),FALSE)),0,VLOOKUP($B$3,'Data Current Rates'!$A:$BA,MATCH(BI_R2_Typical!$A24,CurrentHeader,0),FALSE)) -> 0.0011 | D24: 0.825 | H24: -0.825 | I24: -1 | J24: 0 | K24: 0
A25: Volumetric Deferral/Variance Account Rider (General) | B25: =IF($B$9="kWh",$B$4,$B$5) -> 750 | C25: =IF(ISERROR(VLOOKUP($B$3,'Data Current Rates'!$A:$BA,MATCH(BI_R2_Typical!$A25,CurrentHeader,0),FALSE)),0,VLOOKUP($B$3,'Data Current Rates'!$A:$BA,MATCH(BI_R2_Typical!$A25,CurrentHeader,0),FALSE)) -> -0.0008 | D25: -0.6 | E25: =IF($B$9="kWh",$B$4,$B$5) -> 750 | F25: =VLOOKUP($B$3,'Data Proposed Rates'!$A:$BA,MATCH(BI_R2_Typical!$A25,ProposedHeader,0),FALSE) -> -0.0011 | G25: -0.825 | H25: -0.225 | I25: -0.375 | J25: -0.00673838555 | K25: -0.006642183678
A26: Volumetric ESM Rider | E26: 750 | F26: =VLOOKUP($B$3,'Data Proposed Rates'!$A:$BA,MATCH(BI_R2_Typical!$A26,ProposedHeader,0),FALSE) -> 0 | G26: 0 | H26: 0 | I26: N/A | J26: 0 | K26: 0
A27: Fair Hydro Plan - Distribution Rate Protection Savings* | D27: =IF(AND(B3<>"R1",B3<>"R2"),0,IF(VLOOKUP($A27,'Data Pass Through'!$A:$D,2,FALSE)=0,0,IF(SUM(D19:D20,D23:D24)<VLOOKUP($A27,'Data Pass Through'!$A:$D,2,FALSE),0,VLOOKUP($A27,'Data Pass Through'!$A:$D,2,FALSE)-SUM(D19:D20,D23:D24)))) -> -31.99 | G27: =IF(AND(B3<>"R1",B3<>"R2"),0,IF(VLOOKUP($A27,'Data Pass Through'!$A:$D,2,FALSE)=0,0,IF(SUM(G19:G20,G23:G24)<VLOOKUP($A27,'Data Pass Through'!$A:$D,2,FALSE),0,VLOOKUP($A27,'Data Pass Through'!$A:$D,2,FALSE)-SUM(G19:G20,G23:G24)))) -> -33.305 | H27: -1.315 | I27: -0.04110659581 | J27: -0.2720265827 | K27: -0.2681429423
A28: Sub-Total: Distribution (excluding pass through) | D28: =SUM(INDIRECT("D19:D"&ROW()-1)) -> 36.23 | G28: =SUM(INDIRECT("g19:g"&ROW()-1)) -> 33.975 | H28: =G28-D28 -> -2.255 | I28: -0.06224123654 | J28: 0.2774989686 | K28: 0.2735372006
A29: Smart Metering Entity Charge | B29: 1 | C29: =VLOOKUP($A29,'Data Pass Through'!$A:$D,2,FALSE) -> 0.57 | D29: =B29*C29 -> 0.57 | E29: 1 | F29: =VLOOKUP($A29,'Data Pass Through'!$A:$D,3,FALSE) -> 0.57 | G29: =E29*F29 -> 0.57 | H29: 0 | I29: 0 | J29: 0.004655611835 | K29: 0.004589145087
A30: Line Losses on Cost of Power (based on two-tier RPP prices) | B30: =B8-B4 -> 78.75 | C30: =IF(B4>B7,C13,C12) -> 0.089 | D30: =B30*C30 -> 7.00875 | E30: 78.75 | F30: =IF(B4>B7,F13,F12) -> 0.089 | G30: =E30*F30 -> 7.00875 | H30: 0 | I30: 0 | J30: 0.05724564815 | K30: 0.05642836952
A31: Line Losses on Cost of Power (based on TOU prices) | B31: =B8-B4 -> 78.75 | C31: =VLOOKUP($B$3,'Data Billing Quantities'!$A:$O,MATCH(BI_R2_Typical!$A15,'Data Billing Quantities'!$4:$4,0),FALSE)*C15+VLOOKUP($B$3,'Data Billing Quantities'!$A:$O,MATCH(BI_R2_Typical!$A16,'Data Billing Quantities'!$4:$4,0),FALSE)*C16+VLOOKUP($B$3,'Data Billing Quantities'!$A:$O,MATCH(BI_R2_Typical!$A17,'Data Billing Quantities'!$4:$4,0),FALSE)*C17 -> 0.08235 | D31: =B31*C31 -> 6.4850625 | E31: 78.75 | F31: =VLOOKUP($B$3,'Data Billing Quantities'!$A:$O,MATCH(BI_R2_Typical!$A15,'Data Billing Quantities'!$4:$4,0),FALSE)*F15+VLOOKUP($B$3,'Data Billing Quantities'!$A:$O,MATCH(BI_R2_Typical!$A16,'Data Billing Quantities'!$4:$4,0),FALSE)*F16+VLOOKUP($B$3,'Data Billing Quantities'!$A:$O,MATCH(BI_R2_Typical!$A17,'Data Billing Quantities'!$4:$4,0),FALSE)*F17 -> 0.08235 | G31: =E31*F31 -> 6.4850625 | H31: 0 | I31: 0 | J31: 0.05296830478 | K31: 0.05221209247
A32: Sub-Total: Distribution (based on two-tier RPP prices) | D32: =SUM(D28,D29:D30) -> 43.80875 | G32: =SUM(G28,G29:G30) -> 41.55375 | H32: -2.255 | I32: -0.05147373527 | J32: 0.3394002286 | K32: 0.3345547152
A33: Sub-Total: Distribution (based on TOU prices) | D33: =SUM(D28,D29,D31) -> 43.2850625 | G33: =SUM(G28,G29,G31) -> 41.0300625 | H33: -2.255 | I33: -0.05209649403 | J33: 0.3351228852 | K33: 0.3303384381
A34: Retail Transmission Rate – Network Service Rate | B34: =B8 -> 828.75 | C34: =VLOOKUP($B$3,'Data Current Rates'!$A:$BA,MATCH(BI_R2_Typical!$A34,CurrentHeader,0),FALSE) -> 0.0075 | D34: =B34*C34 -> 6.215625 | E34: 828.75 | F34: =VLOOKUP($B$3,'Data Proposed Rates'!$A:$BA,MATCH(BI_R2_Typical!$A34,ProposedHeader,0),FALSE) -> 0.0077 | G34: =E34*F34 -> 6.381375 | H34: =G34-D34 -> 0.16575 | I34: 0.02666666667 | J34: 0.05212141223 | K34: 0.05137729075
A35: Retail Transmission Rate – Line and Transformation Connection Service Rate | B35: =B8 -> 828.75 | C35: =VLOOKUP($B$3,'Data Current Rates'!$A:$BA,MATCH(BI_R2_Typical!$A35,CurrentHeader,0),FALSE) -> 0.0067 | D35: =B35*C35 -> 5.552625 | E35: 828.75 | F35: =VLOOKUP($B$3,'Data Proposed Rates'!$A:$BA,MATCH(BI_R2_Typical!$A35,ProposedHeader,0),FALSE) -> 0.0068 | G35: =E35*F35 -> 5.6355 | H35: =G35-D35 -> 0.082875 | I35: 0.01492537313 | J35: 0.04602929911 | K35: 0.04537215287
A36: Sub-Total: Retail Transmission | D36: =SUM(D34:D35) -> 11.76825 | G36: =SUM(G34:G35) -> 12.016875 | H36: =G36-D36 -> 0.248625 | I36: 0.02112676056 | J36: 0.09815071134 | K36: 0.09674944362
A37: Sub-Total: Delivery (based on two-tier RPP prices) | D37: =D32+D36 -> 55.577 | G37: =G32+G36 -> 53.570625 | H37: =G37-D37 -> -2.006375 | I37: -0.03610081509 | J37: 0.4375509399 | K37: 0.4313041588
A38: Sub-Total: Delivery (based on TOU prices) | D38: =D33+D36 -> 55.0533125 | G38: =G33+G36 -> 53.0469375 | H38: =G38-D38 -> -2.006375 | I38: -0.03644421941 | J38: 0.4332735965 | K38: 0.4270878818
A39: Wholesale Market Service Rate (WMS) - not including CBR | B39: =B8 -> 828.75 | C39: =VLOOKUP($A39,'Data Pass Through'!$A:$D,2,FALSE) -> 0.003 | D39: =B39*C39 -> 2.48625 | E39: =$B$8 -> 828.75 | F39: =VLOOKUP($A39,'Data Pass Through'!$A:$D,3,FALSE) -> 0.003 | G39: =E39*F39 -> 2.48625 | H39: 0 | I39: 0 | J39: 0.02030704373 | K39: 0.02001712627
A40: Capacity Based Recovery (CBR) - Applicable for Class B Customers | B40: =B8 -> 828.75 | C40: =VLOOKUP($A40,'Data Pass Through'!$A:$D,2,FALSE) -> 0.0004 | D40: =B40*C40 -> 0.3315 | E40: =$B$8 -> 828.75 | F40: =VLOOKUP($A40,'Data Pass Through'!$A:$D,3,FALSE) -> 0.0004 | G40: =E40*F40 -> 0.3315 | H40: 0 | I40: 0 | J40: 0.00270760583 | K40: 0.002668950169
A41: Rural Rate Protection Charge | B41: =B8 -> 828.75 | C41: =VLOOKUP($A41,'Data Pass Through'!$A:$D,2,FALSE) -> 0.0005 | D41: 0.414375 | E41: 828.75 | F41: =VLOOKUP($A41,'Data Pass Through'!$A:$D,3,FALSE) -> 0.0005 | G41: 0.414375 | H41: 0 | I41: 0 | J41: 0.003384507288 | K41: 0.003336187711
A42: Standard Supply Service – Administration Charge (if applicable) | B42: 1 | C42: =VLOOKUP($A42,'Data Pass Through'!$A:$D,2,FALSE) -> 0.25 | D42: =B42*C42 -> 0.25 | E42: 1 | F42: =VLOOKUP($A42,'Data Pass Through'!$A:$D,3,FALSE) -> 0.25 | G42: 0.25 | H42: 0 | I42: 0 | J42: 0.002041935015 | K42: 0.002012782933
A43: Sub-Total: Regulatory | D43: =SUM(D39:D42) -> 3.482125 | G43: =SUM(G39:G42) -> 3.482125 | H43: 0 | I43: 0 | J43: 0.02844109186 | K43: 0.02803504708
A44: Debt Retirement Charge (DRC) | B44: =B4 -> 750 | C44: =VLOOKUP($A44,'Data Pass Through'!$A:$D,2,FALSE) -> 0 | D44: =B44*C44 -> 0 | E44: 750 | F44: =VLOOKUP($A44,'Data Pass Through'!$A:$D,3,FALSE) -> 0 | G44: =E44*F44 -> 0 | H44: 0 | I44: N/A | J44: 0 | K44: 0
A45: Total Electricty Charge on Two-Tier RPP | D45: =SUM(D14,D28,D29,D30,D36,D43,D44) -> 118.609125 | G45: =SUM(G14,G28,G29,G30,G36,G43,G44) -> 116.60275 | H45: -2.006375 | I45: -0.01691585702 | J45: 0.9523809524
A46: HST | C46: 0.13 | D46: =D45*C46 -> 15.41918625 | F46: =C46 -> 0.13 | G46: =G45*F46 -> 15.1583575 | H46: -0.26082875 | I46: -0.01691585702 | J46: 0.1238095238
A47: Total Electricity Charge on Two-Tier RPP (including HST) | D47: =SUM(D45:D46) -> 134.0283113 | G47: =SUM(G45:G46) -> 131.7611075 | H47: -2.26720375 | I47: -0.01691585702 | J47: 1.076190476
A48: Ontario Rebate for Electricity Consumers (OREC) | C48: -0.08 | D48: =D45*C48 -> -9.48873 | F48: =C48 -> -0.08 | G48: =G45*F48 -> -9.32822 | H48: 0.16051 | I48: 0.01691585702 | J48: -0.07619047619
A49: Total Amount on Two-Tier RPP | D49: =SUM(D47:D48) -> 124.5395812 | G49: =SUM(G47:G48) -> 122.4328875 | H49: -2.10669375 | I49: -0.01691585702 | J49: 1
A50: Total Electricty Charge on TOU (before HST) | D50: =SUM(D18,D28,D29,D31,D36,D43,D44) -> 120.2979375 | G50: =SUM(G18,G28,G29,G31,G36,G43,G44) -> 118.2915625 | H50: -2.006375 | I50: -0.01667838237 | K50: =G50/$G$54 -> 0.9523809524
A51: HST | C51: 0.13 | D51: =D50*C51 -> 15.63873187 | F51: =C51 -> 0.13 | G51: =G50*F51 -> 15.37790312 | H51: -0.26082875 | I51: -0.01667838237 | K51: =G51/$G$54 -> 0.1238095238
A52: Total Electricity Charge on TOU (including HST) | D52: =SUM(D50:D51) -> 135.9366694 | G52: =SUM(G50:G51) -> 133.6694656 | H52: -2.26720375 | I52: -0.01667838237 | K52: =G52/$G$54 -> 1.076190476
A53: Ontario Rebate for Electricity Consumers (OREC) | C53: -0.08 | D53: =D50*C53 -> -9.623835 | F53: =C53 -> -0.08 | G53: =G50*F53 -> -9.463325 | H53: 0.16051 | I53: 0.01667838237 | K53: =G53/$G$54 -> -0.07619047619
A54: Total Amount on TOU | D54: =SUM(D52:D53) -> 126.3128344 | G54: =SUM(G52:G53) -> 124.2061406 | H54: -2.10669375 | I54: -0.01667838237 | K54: =G54/$G$54 -> 1
A55: * Distribution rate protection applies to R1 and R2 customers

Sheet BI_R2_Avg
A1: 2021 Bill Impacts (Average Consumption Level) - R2
A3: Rate Class | B3: =RIGHT(A1,LEN(A1)-FIND("- ",A1,1)-1) -> R2
A4: Monthly Consumption (kWh) | B4: =IF(COUNTIF(A1,"*Low*")>0,VLOOKUP(B3,'Data Billing Quantities'!$A:$Z,MATCH("Low kWh",'Data Billing Quantities'!4:4,0),FALSE),IF(COUNTIF(A1,"*Typical*")>0,VLOOKUP(B3,'Data Billing Quantities'!$A:$Z,MATCH("Typical kWh",'Data Billing Quantities'!4:4,0),FALSE),IF(COUNTIF(A1,"*Average*")>0,VLOOKUP(B3,'Data Billing Quantities'!$A:$Z,MATCH("Average kWh",'Data Billing Quantities'!4:4,0),FALSE),IF(COUNTIF(A1,"*High*")>0,VLOOKUP(B3,'Data Billing Quantities'!$A:$Z,MATCH("High kWh",'Data Billing Quantities'!4:4,0),FALSE),"error")))) -> 1152
A5: Peak (kW) | B5: =IF(COUNTIF(A1,"*Low*")>0,VLOOKUP(B3,'Data Billing Quantities'!$A:$Z,MATCH("Low kW",'Data Billing Quantities'!4:4,0),FALSE),IF(COUNTIF(A1,"*Typical*")>0,VLOOKUP(B3,'Data Billing Quantities'!$A:$Z,MATCH("Typical kW",'Data Billing Quantities'!4:4,0),FALSE),IF(COUNTIF(A1,"*Average*")>0,VLOOKUP(B3,'Data Billing Quantities'!$A:$Z,MATCH("Average kW",'Data Billing Quantities'!4:4,0),FALSE),IF(COUNTIF(A1,"*High*")>0,VLOOKUP(B3,'Data Billing Quantities'!$A:$Z,MATCH("High kW",'Data Billing Quantities'!4:4,0),FALSE),"error")))) -> 0
A6: Loss factor | B6: =VLOOKUP(B3,'Data Billing Quantities'!A:D,MATCH(A6,'Data Billing Quantities'!4:4,0),FALSE) -> 1.105
A7: Commodity Threshold | B7: =VLOOKUP(B3,'Data Billing Quantities'!A:D,MATCH(A7,'Data Billing Quantities'!4:4,0),FALSE) -> 600
A8: Monthly Consumption (kWh) - Uplifted | B8: =B4*B6 -> 1272.96
A9: Charge determinant | B9: =VLOOKUP(B3,'Data Billing Quantities'!A:D,MATCH(A9,'Data Billing Quantities'!4:4,0),FALSE) -> kWh
B11: Volume | C11: Current Rate ($) | D11: Current Charge ($) | E11: Volume | F11: Proposed Rate ($) | G11: Proposed Charge ($) | H11: Change ($) | I11: Change (%) | J11: % of Total Bill on RPP | K11: % of Total Bill on TOU
A12: Energy First Tier | B12: =IF(B4>B7,B7,B4) -> 600 | C12: =VLOOKUP($A12,'Data Pass Through'!$A:$D,2,FALSE) -> 0.077 | D12: =B12*C12 -> 46.2 | E12: =B12 -> 600 | F12: =VLOOKUP($A12,'Data Pass Through'!$A:$D,3,FALSE) -> 0.077 | G12: =E12*F12 -> 46.2 | H12: =G12-D12 -> 0 | I12: =IF(ISERROR(H12/ABS(D12)),"N/A",(H12/ABS(D12))) -> 0 | J12: =G12/$G$49 -> 0.2685076462
A13: Energy Second Tier | B13: =IF(B4>B7,(B4)-B7,0) -> 552 | C13: =VLOOKUP($A13,'Data Pass Through'!$A:$D,2,FALSE) -> 0.089 | D13: =B13*C13 -> 49.128 | E13: =B13 -> 552 | F13: =VLOOKUP($A13,'Data Pass Through'!$A:$D,3,FALSE) -> 0.089 | G13: =E13*F13 -> 49.128 | H13: 0 | I13: 0 | J13: =G13/$G$49 -> 0.2855247542
A14: Sub-Total: Energy (RPP Tiered) | D14: =SUM(D12:D13) -> 95.328 | G14: =SUM(G12:G13) -> 95.328 | H14: 0 | I14: 0 | J14: =G14/$G$49 -> 0.5540324004
A15: TOU-Off Peak | B15: =B$4*VLOOKUP($B$3,'Data Billing Quantities'!$A:$O,MATCH(BI_R2_Avg!$A15,'Data Billing Quantities'!$4:$4,0),FALSE) -> 748.8 | C15: =VLOOKUP($A15,'Data Pass Through'!$A:$D,2,FALSE) -> 0.065 | D15: =B15*C15 -> 48.672 | E15: 748.8 | F15: =VLOOKUP($A15,'Data Pass Through'!$A:$D,3,FALSE) -> 0.065 | G15: =E15*F15 -> 48.672 | H15: 0 | I15: 0 | K15: =G15/$G$54 -> 0.2850755366
A16: TOU-Mid Peak | B16: =B$4*VLOOKUP($B$3,'Data Billing Quantities'!$A:$O,MATCH(BI_R2_Avg!$A16,'Data Billing Quantities'!$4:$4,0),FALSE) -> 195.84 | C16: =VLOOKUP($A16,'Data Pass Through'!$A:$D,2,FALSE) -> 0.094 | D16: =B16*C16 -> 18.40896 | E16: 195.84 | F16: =VLOOKUP($A16,'Data Pass Through'!$A:$D,3,FALSE) -> 0.094 | G16: =E16*F16 -> 18.40896 | H16: 0 | I16: 0 | K16: 0.1078226527
A17: TOU-On Peak | B17: =B$4*VLOOKUP($B$3,'Data Billing Quantities'!$A:$O,MATCH(BI_R2_Avg!$A17,'Data Billing Quantities'!$4:$4,0),FALSE) -> 207.36 | C17: =VLOOKUP($A17,'Data Pass Through'!$A:$D,2,FALSE) -> 0.134 | D17: =B17*C17 -> 27.78624 | E17: 207.36 | F17: =VLOOKUP($A17,'Data Pass Through'!$A:$D,3,FALSE) -> 0.134 | G17: =E17*F17 -> 27.78624 | H17: 0 | I17: 0 | K17: 0.1627460815
A18: Sub-Total: Energy (RPP TOU) | D18: =SUM(D15:D17) -> 94.8672 | G18: =SUM(G15:G17) -> 94.8672 | H18: 0 | I18: 0 | J18: =G18/$G$49 -> 0.5513542982 | K18: 0.5556442707
A19: Service Charge | B19: 1 | C19: =IF(ISERROR(VLOOKUP($B$3,'Data Current Rates'!$A:$BA,MATCH(BI_R2_Avg!$A19,CurrentHeader,0),FALSE)),0,VLOOKUP($B$3,'Data Current Rates'!$A:$BA,MATCH(BI_R2_Avg!$A19,CurrentHeader,0),FALSE)) -> 41.7 | D19: =B19*C19 -> 41.7 | E19: 1 | F19: =VLOOKUP($B$3,'Data Proposed Rates'!$A:$BA,MATCH(BI_R2_Avg!$A19,ProposedHeader,0),FALSE) -> 53.14 | G19: =E19*F19 -> 53.14 | H19: 11.44 | I19: 0.2743405276 | J19: 0.3088419117 | K19: 0.311244946
A20: Fixed Foregone Revenue Charge | B20: 1 | C20: =IF(ISERROR(VLOOKUP($B$3,'Data Current Rates'!$A:$BA,MATCH(BI_R2_Avg!$A20,CurrentHeader,0),FALSE)),0,VLOOKUP($B$3,'Data Current Rates'!$A:$BA,MATCH(BI_R2_Avg!$A20,CurrentHeader,0),FALSE)) -> 4.35 | D20: 4.35 | H20: -4.35 | I20: -1 | J20: 0 | K20: 0
A21: Fixed Deferral/Variance Account Rider (General) | B21: 1 | C21: =IF(ISERROR(VLOOKUP($B$3,'Data Current Rates'!$A:$BA,MATCH(BI_R2_Avg!$A21,CurrentHeader,0),FALSE)),0,VLOOKUP($B$3,'Data Current Rates'!$A:$BA,MATCH(BI_R2_Avg!$A21,CurrentHeader,0),FALSE)) -> -0.03 | D21: -0.03 | E21: 1 | F21: =VLOOKUP($B$3,'Data Proposed Rates'!$A:$BA,MATCH(BI_R2_Avg!$A21,ProposedHeader,0),FALSE) -> -0.14 | G21: -0.14 | H21: -0.11 | I21: -3.666666667 | J21: -0.000813659534 | K21: -0.0008199904488
A22: Fixed ESM Rider | E22: 1 | F22: =VLOOKUP($B$3,'Data Proposed Rates'!$A:$BA,MATCH(BI_R2_Avg!$A22,ProposedHeader,0),FALSE) -> -1.92 | G22: -1.92 | H22: -1.92 | I22: N/A | J22: -0.01115875932 | K22: -0.0112455833
A23: Distribution Volumetric Charge | B23: =IF($B$9="kWh",$B$4,$B$5) -> 1152 | C23: =IF(ISERROR(VLOOKUP($B$3,'Data Current Rates'!$A:$BA,MATCH(BI_R2_Avg!$A23,CurrentHeader,0),FALSE)),0,VLOOKUP($B$3,'Data Current Rates'!$A:$BA,MATCH(BI_R2_Avg!$A23,CurrentHeader,0),FALSE)) -> 0.0293 | D23: 33.7536 | E23: =IF($B$9="kWh",$B$4,$B$5) -> 1152 | F23: =VLOOKUP($B$3,'Data Proposed Rates'!$A:$BA,MATCH(BI_R2_Avg!$A23,ProposedHeader,0),FALSE) -> 0.0227 | G23: 26.1504 | H23: -7.6032 | I23: -0.2252559727 | J23: 0.151982302 | K23: 0.1531648445
A24: Volumetric Foregone Revenue Charge | B24: =IF($B$9="kWh",$B$4,$B$5) -> 1152 | C24: =IF(ISERROR(VLOOKUP($B$3,'Data Current Rates'!$A:$BA,MATCH(BI_R2_Avg!$A24,CurrentHeader,0),FALSE)),0,VLOOKUP($B$3,'Data Current Rates'!$A:$BA,MATCH(BI_R2_Avg!$A24,CurrentHeader,0),FALSE)) -> 0.0011 | D24: 1.2672 | H24: -1.2672 | I24: -1 | J24: 0 | K24: 0
A25: Volumetric Deferral/Variance Account Rider (General) | B25: =IF($B$9="kWh",$B$4,$B$5) -> 1152 | C25: =IF(ISERROR(VLOOKUP($B$3,'Data Current Rates'!$A:$BA,MATCH(BI_R2_Avg!$A25,CurrentHeader,0),FALSE)),0,VLOOKUP($B$3,'Data Current Rates'!$A:$BA,MATCH(BI_R2_Avg!$A25,CurrentHeader,0),FALSE)) -> -0.0008 | D25: -0.9216 | E25: =IF($B$9="kWh",$B$4,$B$5) -> 1152 | F25: =VLOOKUP($B$3,'Data Proposed Rates'!$A:$BA,MATCH(BI_R2_Avg!$A25,ProposedHeader,0),FALSE) -> -0.0011 | G25: -1.2672 | H25: -0.3456 | I25: -0.375 | J25: -0.007364781153 | K25: -0.007422084976
A26: Volumetric ESM Rider | E26: 1152 | F26: =VLOOKUP($B$3,'Data Proposed Rates'!$A:$BA,MATCH(BI_R2_Avg!$A26,ProposedHeader,0),FALSE) -> 0 | G26: 0 | H26: 0 | I26: N/A | J26: 0 | K26: 0
